{"text_format":"1","workbook":"xlsx","n_sheets":2,"sheets":["Introduzir dados","Ficheiro a enviar BFA"],"not_rendered":{"charts":0,"images":0,"macros":1,"external_links":0,"defined_names":0,"comments":0,"pivot_tables":0},"unopened":[],"bounds":{"document_bytes":16777216,"sheet_cells":100000,"rows_first":2000,"rows_last":500,"rows_between":2000,"halvings":0,"cell_chars":16384,"cell_head_chars":4096},"cells_cut":0,"cells_raw":0,"read":"whole","date_system":"1900"}

{"sheet":"Introduzir dados","index":0,"n_rows":10009,"n_cols":7,"rows_kept":10009,"cut":false,"hidden":false,"merged":[[0,0,1,1]]}
["Este ficheiro é propriedade do BFA e não pode ser alterado. Ver instruções de preenchimento e utilização -------->",null,null,"Instruções de utilização"]
[null,null,null,"Passo 1: ","Introduzir os valores nas células em branco. As restantes não são alteráveis",null,"No máximo poderão ser introduzidas 10.000 transferências"]
[]
["VALOR TOTAL DO FICHEIRO",{"$f":"SUM(E10:E2010)","v":99999},null,"Passo 2:"]
[]
[null,null,null,"Passo 3:","Gravar a folha \"Ficheiro a enviar BFA\" num novo ficheiro de Excel"]
[]
[null,null,null,"Passo 4:","Enviar esse ficheiro de Excel para o BFA"]
["Nome ","IBAN                                                                                                          [Apenas é aceite o seguinte formato:                                       AO, seguido dos dígitos 06, seguido de 21 dígitos]                                                                                                     NÃO colocar qualquer espaço ou caracter entre os digitos","Valor","Descritivo (preenchimento opcional)","Valor formatado (apenas para confirmação visual)",null,"Mensagens"]
["Exemplo","AO06xxxxxxxxxxxxxxxxxxxxx",99999,"Salário Dezembro",{"$f":"IF(C10<>\"\",C10,\"\")","v":99999},null,{"$f":"IF(A10<>\"\",IF(B10=\"\",\"Falta IBAN\",IF(C10=\"\",\"Falta Valor\",\"Linha totalmente preenchida\")),IF(B10<>\"\",IF(A10=\"\",\"Falta Nome\",\"\"),\"\"))","v":"Linha totalmente preenchida"}]
[null,null,null,null,{"$f":"IF(C11<>\"\",C11,\"\")","v":""},null,""]
[null,null,null,null,"",null,""]
[null,null,null,null,"",null,""]
[null,null,null,null,"",null,""]
[null,null,null,null,"",null,""]
[null,null,null,null,"",null,""]
[null,null,null,null,"",null,""]
[null,null,null,null,"",null,""]
[null,null,null,null,"",null,""]
[null,null,null,null,{"$f":"IF(C20<>\"\",C20,\"\")","v":""},null,""]
[null,null,null,null,"",null,""]
[null,null,null,null,"",null,""]
[null,null,null,null,"",null,""]
[null,null,null,null,"",null,""]
[null,null,null,null,"",null,""]
[null,null,null,null,"",null,""]
[null,null,null,null,"",null,""]
[null,null,null,null,"",null,""]
[null,null,null,null,"",null,""]
[null,null,null,null,"",null,""]
[null,null,null,null,"",null,""]
[null,null,null,null,"",null,""]
[null,null,null,null,"",null,""]
[null,null,null,null,"",null,""]
[null,null,null,null,"",null,""]
[null,null,null,null,"",null,""]
[null,null,null,null,"",null,""]
[null,null,null,null,"",null,""]
[null,null,null,null,"",null,""]
[null,null,null,null,"",null,""]
[null,null,null,null,"",null,""]
[null,null,null,null,"",null,""]
[null,null,null,null,"",null,""]
[null,null,null,null,"",null,""]
[null,null,null,null,"",null,""]
[null,null,null,null,"",null,""]
[null,null,null,null,"",null,""]
[null,null,null,null,"",null,""]
[null,null,null,null,"",null,""]
[null,null,null,null,"",null,""]
[null,null,null,null,"",null,""]
[null,null,null,null,"",null,""]
[null,null,null,null,"",null,""]
[null,null,null,null,"",null,""]
[null,null,null,null,"",null,""]
[null,null,null,null,"",null,""]
[null,null,null,null,"",null,""]
[null,null,null,null,"",null,""]
[null,null,null,null,"",null,""]
[null,null,null,null,"",null,""]
[null,null,null,null,"",null,""]
[null,null,null,null,"",null,""]
[null,null,null,null,"",null,""]
[null,null,null,null,"",null,""]
[null,null,null,null,"",null,""]
[null,null,null,null,"",null,""]
[null,null,null,null,"",null,""]
[null,null,null,null,"",null,""]
[null,null,null,null,"",null,""]
[null,null,null,null,"",null,""]
[null,null,null,null,"",null,""]
[null,null,null,null,"",null,""]
[null,null,null,null,"",null,""]
[null,null,null,null,"",null,{"$f":"IF(A74<>\"\",IF(B74=\"\",\"Falta IBAN\",IF(C74=\"\",\"Falta Valor\",\"Linha totalmente preenchida\")),IF(B74<>\"\",IF(A74=\"\",\"Falta Nome\",\"\"),\"\"))","v":""}]
[null,null,null,null,"",null,""]
[null,null,null,null,"",null,""]
[null,null,null,null,"",null,""]
[null,null,null,null,"",null,""]
[null,null,null,null,"",null,""]
[null,null,null,null,"",null,""]
[null,null,null,null,"",null,""]
[null,null,null,null,"",null,""]
[null,null,null,null,"",null,""]
[null,null,null,null,{"$f":"IF(C84<>\"\",C84,\"\")","v":""},null,""]
[null,null,null,null,"",null,""]
[null,null,null,null,"",null,""]
[null,null,null,null,"",null,""]
[null,null,null,null,"",null,""]
[null,null,null,null,"",null,""]
[null,null,null,null,"",null,""]
[null,null,null,null,"",null,""]
[null,null,null,null,"",null,""]
[null,null,null,null,"",null,""]
[null,null,null,null,"",null,""]
[null,null,null,null,"",null,""]
[null,null,null,null,"",null,""]
[null,null,null,null,"",null,""]
[null,null,null,null,"",null,""]
[null,null,null,null,"",null,""]
[null,null,null,null,"",null,""]
[null,null,null,null,"",null,""]
[null,null,null,null,"",null,""]
[null,null,null,null,"",null,""]
[null,null,null,null,"",null,""]
[null,null,null,null,"",null,""]
[null,null,null,null,"",null,""]
[null,null,null,null,"",null,""]
[null,null,null,null,"",null,""]
[null,null,null,null,"",null,""]
[null,null,null,null,"",null,""]
[null,null,null,null,"",null,""]
[null,null,null,null,"",null,""]
[null,null,null,null,"",null,""]
[null,null,null,null,"",null,""]
[null,null,null,null,"",null,""]
[null,null,null,null,"",null,""]
[null,null,null,null,"",null,""]
[null,null,null,null,"",null,""]
[null,null,null,null,"",null,""]
[null,null,null,null,"",null,""]
[null,null,null,null,"",null,""]
[null,null,null,null,"",null,""]
[null,null,null,null,"",null,""]
[null,null,null,null,"",null,""]
[null,null,null,null,"",null,""]
[null,null,null,null,"",null,""]
[null,null,null,null,"",null,""]
[null,null,null,null,"",null,""]
[null,null,null,null,"",null,""]
[null,null,null,null,"",null,""]
[null,null,null,null,"",null,""]
[null,null,null,null,"",null,""]
[null,null,null,null,"",null,""]
[null,null,null,null,"",null,""]
[null,null,null,null,"",null,""]
[null,null,null,null,"",null,""]
[null,null,null,null,"",null,""]
[null,null,null,null,"",null,{"$f":"IF(A138<>\"\",IF(B138=\"\",\"Falta IBAN\",IF(C138=\"\",\"Falta Valor\",\"Linha totalmente preenchida\")),IF(B138<>\"\",IF(A138=\"\",\"Falta Nome\",\"\"),\"\"))","v":""}]
[null,null,null,null,"",null,""]
[null,null,null,null,"",null,""]
[null,null,null,null,"",null,""]
[null,null,null,null,"",null,""]
[null,null,null,null,"",null,""]
[null,null,null,null,"",null,""]
[null,null,null,null,"",null,""]
[null,null,null,null,"",null,""]
[null,null,null,null,"",null,""]
[null,null,null,null,{"$f":"IF(C148<>\"\",C148,\"\")","v":""},null,""]
[null,null,null,null,"",null,""]
[null,null,null,null,"",null,""]
[null,null,null,null,"",null,""]
[null,null,null,null,"",null,""]
[null,null,null,null,"",null,""]
[null,null,null,null,"",null,""]
[null,null,null,null,"",null,""]
[null,null,null,null,"",null,""]
[null,null,null,null,"",null,""]
[null,null,null,null,"",null,""]
[null,null,null,null,"",null,""]
[null,null,null,null,"",null,""]
[null,null,null,null,"",null,""]
[null,null,null,null,"",null,""]
[null,null,null,null,"",null,""]
[null,null,null,null,"",null,""]
[null,null,null,null,"",null,""]
[null,null,null,null,"",null,""]
[null,null,null,null,"",null,""]
[null,null,null,null,"",null,""]
[null,null,null,null,"",null,""]
[null,null,null,null,"",null,""]
[null,null,null,null,"",null,""]
[null,null,null,null,"",null,""]
[null,null,null,null,"",null,""]
[null,null,null,null,"",null,""]
[null,null,null,null,"",null,""]
[null,null,null,null,"",null,""]
[null,null,null,null,"",null,""]
[null,null,null,null,"",null,""]
[null,null,null,null,"",null,""]
[null,null,null,null,"",null,""]
[null,null,null,null,"",null,""]
[null,null,null,null,"",null,""]
[null,null,null,null,"",null,""]
[null,null,null,null,"",null,""]
[null,null,null,null,"",null,""]
[null,null,null,null,"",null,""]
[null,null,null,null,"",null,""]
[null,null,null,null,"",null,""]
[null,null,null,null,"",null,""]
[null,null,null,null,"",null,""]
[null,null,null,null,"",null,""]
[null,null,null,null,"",null,""]
[null,null,null,null,"",null,""]
[null,null,null,null,"",null,""]
[null,null,null,null,"",null,""]
[null,null,null,null,"",null,""]
[null,null,null,null,"",null,""]
[null,null,null,null,"",null,""]
[null,null,null,null,"",null,""]
[null,null,null,null,"",null,""]
[null,null,null,null,"",null,""]
[null,null,null,null,"",null,{"$f":"IF(A202<>\"\",IF(B202=\"\",\"Falta IBAN\",IF(C202=\"\",\"Falta Valor\",\"Linha totalmente preenchida\")),IF(B202<>\"\",IF(A202=\"\",\"Falta Nome\",\"\"),\"\"))","v":""}]
[null,null,null,null,"",null,""]
[null,null,null,null,"",null,""]
[null,null,null,null,"",null,""]
[null,null,null,null,"",null,""]
[null,null,null,null,"",null,""]
[null,null,null,null,"",null,""]
[null,null,null,null,"",null,""]
[null,null,null,null,"",null,""]
[null,null,null,null,"",null,""]
[null,null,null,null,{"$f":"IF(C212<>\"\",C212,\"\")","v":""},null,""]
[null,null,null,null,"",null,""]
[null,null,null,null,"",null,""]
[null,null,null,null,"",null,""]
[null,null,null,null,"",null,""]
[null,null,null,null,"",null,""]
[null,null,null,null,"",null,""]
[null,null,null,null,"",null,""]
[null,null,null,null,"",null,""]
[null,null,null,null,"",null,""]
[null,null,null,null,"",null,""]
[null,null,null,null,"",null,""]
[null,null,null,null,"",null,""]
[null,null,null,null,"",null,""]
[null,null,null,null,"",null,""]
[null,null,null,null,"",null,""]
[null,null,null,null,"",null,""]
[null,null,null,null,"",null,""]
[null,null,null,null,"",null,""]
[null,null,null,null,"",null,""]
[null,null,null,null,"",null,""]
[null,null,null,null,"",null,""]
[null,null,null,null,"",null,""]
[null,null,null,null,"",null,""]
[null,null,null,null,"",null,""]
[null,null,null,null,"",null,""]
[null,null,null,null,"",null,""]
[null,null,null,null,"",null,""]
[null,null,null,null,"",null,""]
[null,null,null,null,"",null,""]
[null,null,null,null,"",null,""]
[null,null,null,null,"",null,""]
[null,null,null,null,"",null,""]
[null,null,null,null,"",null,""]
[null,null,null,null,"",null,""]
[null,null,null,null,"",null,""]
[null,null,null,null,"",null,""]
[null,null,null,null,"",null,""]
[null,null,null,null,"",null,""]
[null,null,null,null,"",null,""]
[null,null,null,null,"",null,""]
[null,null,null,null,"",null,""]
[null,null,null,null,"",null,""]
[null,null,null,null,"",null,""]
[null,null,null,null,"",null,""]
[null,null,null,null,"",null,""]
[null,null,null,null,"",null,""]
[null,null,null,null,"",null,""]
[null,null,null,null,"",null,""]
[null,null,null,null,"",null,""]
[null,null,null,null,"",null,""]
[null,null,null,null,"",null,""]
[null,null,null,null,"",null,""]
[null,null,null,null,"",null,""]
[null,null,null,null,"",null,{"$f":"IF(A266<>\"\",IF(B266=\"\",\"Falta IBAN\",IF(C266=\"\",\"Falta Valor\",\"Linha totalmente preenchida\")),IF(B266<>\"\",IF(A266=\"\",\"Falta Nome\",\"\"),\"\"))","v":""}]
[null,null,null,null,"",null,""]
[null,null,null,null,"",null,""]
[null,null,null,null,"",null,""]
[null,null,null,null,"",null,""]
[null,null,null,null,"",null,""]
[null,null,null,null,"",null,""]
[null,null,null,null,"",null,""]
[null,null,null,null,"",null,""]
[null,null,null,null,"",null,""]
[null,null,null,null,{"$f":"IF(C276<>\"\",C276,\"\")","v":""},null,""]
[null,null,null,null,"",null,""]
[null,null,null,null,"",null,""]
[null,null,null,null,"",null,""]
[null,null,null,null,"",null,""]
[null,null,null,null,"",null,""]
[null,null,null,null,"",null,""]
[null,null,null,null,"",null,""]
[null,null,null,null,"",null,""]
[null,null,null,null,"",null,""]
[null,null,null,null,"",null,""]
[null,null,null,null,"",null,""]
[null,null,null,null,"",null,""]
[null,null,null,null,"",null,""]
[null,null,null,null,"",null,""]
[null,null,null,null,"",null,""]
[null,null,null,null,"",null,""]
[null,null,null,null,"",null,""]
[null,null,null,null,"",null,""]
[null,null,null,null,"",null,""]
[null,null,null,null,"",null,""]
[null,null,null,null,"",null,""]
[null,null,null,null,"",null,""]
[null,null,null,null,"",null,""]
[null,null,null,null,"",null,""]
[null,null,null,null,"",null,""]
[null,null,null,null,"",null,""]
[null,null,null,null,"",null,""]
[null,null,null,null,"",null,""]
[null,null,null,null,"",null,""]
[null,null,null,null,"",null,""]
[null,null,null,null,"",null,""]
[null,null,null,null,"",null,""]
[null,null,null,null,"",null,""]
[null,null,null,null,"",null,""]
[null,null,null,null,"",null,""]
[null,null,null,null,"",null,""]
[null,null,null,null,"",null,""]
[null,null,null,null,"",null,""]
[null,null,null,null,"",null,""]
[null,null,null,null,"",null,""]
[null,null,null,null,"",null,""]
[null,null,null,null,"",null,""]
[null,null,null,null,"",null,""]
[null,null,null,null,"",null,""]
[null,null,null,null,"",null,""]
[null,null,null,null,"",null,""]
[null,null,null,null,"",null,""]
[null,null,null,null,"",null,""]
[null,null,null,null,"",null,""]
[null,null,null,null,"",null,""]
[null,null,null,null,"",null,""]
[null,null,null,null,"",null,""]
[null,null,null,null,"",null,""]
[null,null,null,null,"",null,{"$f":"IF(A330<>\"\",IF(B330=\"\",\"Falta IBAN\",IF(C330=\"\",\"Falta Valor\",\"Linha totalmente preenchida\")),IF(B330<>\"\",IF(A330=\"\",\"Falta Nome\",\"\"),\"\"))","v":""}]
[null,null,null,null,"",null,""]
[null,null,null,null,"",null,""]
[null,null,null,null,"",null,""]
[null,null,null,null,"",null,""]
[null,null,null,null,"",null,""]
[null,null,null,null,"",null,""]
[null,null,null,null,"",null,""]
[null,null,null,null,"",null,""]
[null,null,null,null,"",null,""]
[null,null,null,null,{"$f":"IF(C340<>\"\",C340,\"\")","v":""},null,""]
[null,null,null,null,"",null,""]
[null,null,null,null,"",null,""]
[null,null,null,null,"",null,""]
[null,null,null,null,"",null,""]
[null,null,null,null,"",null,""]
[null,null,null,null,"",null,""]
[null,null,null,null,"",null,""]
[null,null,null,null,"",null,""]
[null,null,null,null,"",null,""]
[null,null,null,null,"",null,""]
[null,null,null,null,"",null,""]
[null,null,null,null,"",null,""]
[null,null,null,null,"",null,""]
[null,null,null,null,"",null,""]
[null,null,null,null,"",null,""]
[null,null,null,null,"",null,""]
[null,null,null,null,"",null,""]
[null,null,null,null,"",null,""]
[null,null,null,null,"",null,""]
[null,null,null,null,"",null,""]
[null,null,null,null,"",null,""]
[null,null,null,null,"",null,""]
[null,null,null,null,"",null,""]
[null,null,null,null,"",null,""]
[null,null,null,null,"",null,""]
[null,null,null,null,"",null,""]
[null,null,null,null,"",null,""]
[null,null,null,null,"",null,""]
[null,null,null,null,"",null,""]
[null,null,null,null,"",null,""]
[null,null,null,null,"",null,""]
[null,null,null,null,"",null,""]
[null,null,null,null,"",null,""]
[null,null,null,null,"",null,""]
[null,null,null,null,"",null,""]
[null,null,null,null,"",null,""]
[null,null,null,null,"",null,""]
[null,null,null,null,"",null,""]
[null,null,null,null,"",null,""]
[null,null,null,null,"",null,""]
[null,null,null,null,"",null,""]
[null,null,null,null,"",null,""]
[null,null,null,null,"",null,""]
[null,null,null,null,"",null,""]
[null,null,null,null,"",null,""]
[null,null,null,null,"",null,""]
[null,null,null,null,"",null,""]
[null,null,null,null,"",null,""]
[null,null,null,null,"",null,""]
[null,null,null,null,"",null,""]
[null,null,null,null,"",null,""]
[null,null,null,null,"",null,""]
[null,null,null,null,"",null,""]
[null,null,null,null,"",null,{"$f":"IF(A394<>\"\",IF(B394=\"\",\"Falta IBAN\",IF(C394=\"\",\"Falta Valor\",\"Linha totalmente preenchida\")),IF(B394<>\"\",IF(A394=\"\",\"Falta Nome\",\"\"),\"\"))","v":""}]
[null,null,null,null,"",null,""]
[null,null,null,null,"",null,""]
[null,null,null,null,"",null,""]
[null,null,null,null,"",null,""]
[null,null,null,null,"",null,""]
[null,null,null,null,"",null,""]
[null,null,null,null,"",null,""]
[null,null,null,null,"",null,""]
[null,null,null,null,"",null,""]
[null,null,null,null,{"$f":"IF(C404<>\"\",C404,\"\")","v":""},null,""]
[null,null,null,null,"",null,""]
[null,null,null,null,"",null,""]
[null,null,null,null,"",null,""]
[null,null,null,null,"",null,""]
[null,null,null,null,"",null,""]
[null,null,null,null,"",null,""]
[null,null,null,null,"",null,""]
[null,null,null,null,"",null,""]
[null,null,null,null,"",null,""]
[null,null,null,null,"",null,""]
[null,null,null,null,"",null,""]
[null,null,null,null,"",null,""]
[null,null,null,null,"",null,""]
[null,null,null,null,"",null,""]
[null,null,null,null,"",null,""]
[null,null,null,null,"",null,""]
[null,null,null,null,"",null,""]
[null,null,null,null,"",null,""]
[null,null,null,null,"",null,""]
[null,null,null,null,"",null,""]
[null,null,null,null,"",null,""]
[null,null,null,null,"",null,""]
[null,null,null,null,"",null,""]
[null,null,null,null,"",null,""]
[null,null,null,null,"",null,""]
[null,null,null,null,"",null,""]
[null,null,null,null,"",null,""]
[null,null,null,null,"",null,""]
[null,null,null,null,"",null,""]
[null,null,null,null,"",null,""]
[null,null,null,null,"",null,""]
[null,null,null,null,"",null,""]
[null,null,null,null,"",null,""]
[null,null,null,null,"",null,""]
[null,null,null,null,"",null,""]
[null,null,null,null,"",null,""]
[null,null,null,null,"",null,""]
[null,null,null,null,"",null,""]
[null,null,null,null,"",null,""]
[null,null,null,null,"",null,""]
[null,null,null,null,"",null,""]
[null,null,null,null,"",null,""]
[null,null,null,null,"",null,""]
[null,null,null,null,"",null,""]
[null,null,null,null,"",null,""]
[null,null,null,null,"",null,""]
[null,null,null,null,"",null,""]
[null,null,null,null,"",null,""]
[null,null,null,null,"",null,""]
[null,null,null,null,"",null,""]
[null,null,null,null,"",null,""]
[null,null,null,null,"",null,""]
[null,null,null,null,"",null,""]
[null,null,null,null,"",null,{"$f":"IF(A458<>\"\",IF(B458=\"\",\"Falta IBAN\",IF(C458=\"\",\"Falta Valor\",\"Linha totalmente preenchida\")),IF(B458<>\"\",IF(A458=\"\",\"Falta Nome\",\"\"),\"\"))","v":""}]
[null,null,null,null,"",null,""]
[null,null,null,null,"",null,""]
[null,null,null,null,"",null,""]
[null,null,null,null,"",null,""]
[null,null,null,null,"",null,""]
[null,null,null,null,"",null,""]
[null,null,null,null,"",null,""]
[null,null,null,null,"",null,""]
[null,null,null,null,"",null,""]
[null,null,null,null,{"$f":"IF(C468<>\"\",C468,\"\")","v":""},null,""]
[null,null,null,null,"",null,""]
[null,null,null,null,"",null,""]
[null,null,null,null,"",null,""]
[null,null,null,null,"",null,""]
[null,null,null,null,"",null,""]
[null,null,null,null,"",null,""]
[null,null,null,null,"",null,""]
[null,null,null,null,"",null,""]
[null,null,null,null,"",null,""]
[null,null,null,null,"",null,""]
[null,null,null,null,"",null,""]
[null,null,null,null,"",null,""]
[null,null,null,null,"",null,""]
[null,null,null,null,"",null,""]
[null,null,null,null,"",null,""]
[null,null,null,null,"",null,""]
[null,null,null,null,"",null,""]
[null,null,null,null,"",null,""]
[null,null,null,null,"",null,""]
[null,null,null,null,"",null,""]
[null,null,null,null,"",null,""]
[null,null,null,null,"",null,""]
[null,null,null,null,"",null,""]
[null,null,null,null,"",null,""]
[null,null,null,null,"",null,""]
[null,null,null,null,"",null,""]
[null,null,null,null,"",null,""]
[null,null,null,null,"",null,""]
[null,null,null,null,"",null,""]
[null,null,null,null,"",null,""]
[null,null,null,null,"",null,""]
[null,null,null,null,"",null,""]
[null,null,null,null,"",null,""]
[null,null,null,null,"",null,""]
[null,null,null,null,"",null,""]
[null,null,null,null,"",null,""]
[null,null,null,null,"",null,""]
[null,null,null,null,"",null,""]
[null,null,null,null,"",null,""]
[null,null,null,null,"",null,""]
[null,null,null,null,"",null,""]
[null,null,null,null,"",null,""]
[null,null,null,null,"",null,""]
[null,null,null,null,"",null,""]
[null,null,null,null,"",null,""]
[null,null,null,null,"",null,""]
[null,null,null,null,"",null,""]
[null,null,null,null,"",null,""]
[null,null,null,null,"",null,""]
[null,null,null,null,"",null,""]
[null,null,null,null,"",null,""]
[null,null,null,null,"",null,""]
[null,null,null,null,"",null,""]
[null,null,null,null,"",null,{"$f":"IF(A522<>\"\",IF(B522=\"\",\"Falta IBAN\",IF(C522=\"\",\"Falta Valor\",\"Linha totalmente preenchida\")),IF(B522<>\"\",IF(A522=\"\",\"Falta Nome\",\"\"),\"\"))","v":""}]
[null,null,null,null,"",null,""]
[null,null,null,null,"",null,""]
[null,null,null,null,"",null,""]
[null,null,null,null,"",null,""]
[null,null,null,null,"",null,""]
[null,null,null,null,"",null,""]
[null,null,null,null,"",null,""]
[null,null,null,null,"",null,""]
[null,null,null,null,"",null,""]
[null,null,null,null,{"$f":"IF(C532<>\"\",C532,\"\")","v":""},null,""]
[null,null,null,null,"",null,""]
[null,null,null,null,"",null,""]
[null,null,null,null,"",null,""]
[null,null,null,null,"",null,""]
[null,null,null,null,"",null,""]
[null,null,null,null,"",null,""]
[null,null,null,null,"",null,""]
[null,null,null,null,"",null,""]
[null,null,null,null,"",null,""]
[null,null,null,null,"",null,""]
[null,null,null,null,"",null,""]
[null,null,null,null,"",null,""]
[null,null,null,null,"",null,""]
[null,null,null,null,"",null,""]
[null,null,null,null,"",null,""]
[null,null,null,null,"",null,""]
[null,null,null,null,"",null,""]
[null,null,null,null,"",null,""]
[null,null,null,null,"",null,""]
[null,null,null,null,"",null,""]
[null,null,null,null,"",null,""]
[null,null,null,null,"",null,""]
[null,null,null,null,"",null,""]
[null,null,null,null,"",null,""]
[null,null,null,null,"",null,""]
[null,null,null,null,"",null,""]
[null,null,null,null,"",null,""]
[null,null,null,null,"",null,""]
[null,null,null,null,"",null,""]
[null,null,null,null,"",null,""]
[null,null,null,null,"",null,""]
[null,null,null,null,"",null,""]
[null,null,null,null,"",null,""]
[null,null,null,null,"",null,""]
[null,null,null,null,"",null,""]
[null,null,null,null,"",null,""]
[null,null,null,null,"",null,""]
[null,null,null,null,"",null,""]
[null,null,null,null,"",null,""]
[null,null,null,null,"",null,""]
[null,null,null,null,"",null,""]
[null,null,null,null,"",null,""]
[null,null,null,null,"",null,""]
[null,null,null,null,"",null,""]
[null,null,null,null,"",null,""]
[null,null,null,null,"",null,""]
[null,null,null,null,"",null,""]
[null,null,null,null,"",null,""]
[null,null,null,null,"",null,""]
[null,null,null,null,"",null,""]
[null,null,null,null,"",null,""]
[null,null,null,null,"",null,""]
[null,null,null,null,"",null,""]
[null,null,null,null,"",null,{"$f":"IF(A586<>\"\",IF(B586=\"\",\"Falta IBAN\",IF(C586=\"\",\"Falta Valor\",\"Linha totalmente preenchida\")),IF(B586<>\"\",IF(A586=\"\",\"Falta Nome\",\"\"),\"\"))","v":""}]
[null,null,null,null,"",null,""]
[null,null,null,null,"",null,""]
[null,null,null,null,"",null,""]
[null,null,null,null,"",null,""]
[null,null,null,null,"",null,""]
[null,null,null,null,"",null,""]
[null,null,null,null,"",null,""]
[null,null,null,null,"",null,""]
[null,null,null,null,"",null,""]
[null,null,null,null,{"$f":"IF(C596<>\"\",C596,\"\")","v":""},null,""]
[null,null,null,null,"",null,""]
[null,null,null,null,"",null,""]
[null,null,null,null,"",null,""]
[null,null,null,null,"",null,""]
[null,null,null,null,"",null,""]
[null,null,null,null,"",null,""]
[null,null,null,null,"",null,""]
[null,null,null,null,"",null,""]
[null,null,null,null,"",null,""]
[null,null,null,null,"",null,""]
[null,null,null,null,"",null,""]
[null,null,null,null,"",null,""]
[null,null,null,null,"",null,""]
[null,null,null,null,"",null,""]
[null,null,null,null,"",null,""]
[null,null,null,null,"",null,""]
[null,null,null,null,"",null,""]
[null,null,null,null,"",null,""]
[null,null,null,null,"",null,""]
[null,null,null,null,"",null,""]
[null,null,null,null,"",null,""]
[null,null,null,null,"",null,""]
[null,null,null,null,"",null,""]
[null,null,null,null,"",null,""]
[null,null,null,null,"",null,""]
[null,null,null,null,"",null,""]
[null,null,null,null,"",null,""]
[null,null,null,null,"",null,""]
[null,null,null,null,"",null,""]
[null,null,null,null,"",null,""]
[null,null,null,null,"",null,""]
[null,null,null,null,"",null,""]
[null,null,null,null,"",null,""]
[null,null,null,null,"",null,""]
[null,null,null,null,"",null,""]
[null,null,null,null,"",null,""]
[null,null,null,null,"",null,""]
[null,null,null,null,"",null,""]
[null,null,null,null,"",null,""]
[null,null,null,null,"",null,""]
[null,null,null,null,"",null,""]
[null,null,null,null,"",null,""]
[null,null,null,null,"",null,""]
[null,null,null,null,"",null,""]
[null,null,null,null,"",null,""]
[null,null,null,null,"",null,""]
[null,null,null,null,"",null,""]
[null,null,null,null,"",null,""]
[null,null,null,null,"",null,""]
[null,null,null,null,"",null,""]
[null,null,null,null,"",null,""]
[null,null,null,null,"",null,""]
[null,null,null,null,"",null,""]
[null,null,null,null,"",null,{"$f":"IF(A650<>\"\",IF(B650=\"\",\"Falta IBAN\",IF(C650=\"\",\"Falta Valor\",\"Linha totalmente preenchida\")),IF(B650<>\"\",IF(A650=\"\",\"Falta Nome\",\"\"),\"\"))","v":""}]
[null,null,null,null,"",null,""]
[null,null,null,null,"",null,""]
[null,null,null,null,"",null,""]
[null,null,null,null,"",null,""]
[null,null,null,null,"",null,""]
[null,null,null,null,"",null,""]
[null,null,null,null,"",null,""]
[null,null,null,null,"",null,""]
[null,null,null,null,"",null,""]
[null,null,null,null,{"$f":"IF(C660<>\"\",C660,\"\")","v":""},null,""]
[null,null,null,null,"",null,""]
[null,null,null,null,"",null,""]
[null,null,null,null,"",null,""]
[null,null,null,null,"",null,""]
[null,null,null,null,"",null,""]
[null,null,null,null,"",null,""]
[null,null,null,null,"",null,""]
[null,null,null,null,"",null,""]
[null,null,null,null,"",null,""]
[null,null,null,null,"",null,""]
[null,null,null,null,"",null,""]
[null,null,null,null,"",null,""]
[null,null,null,null,"",null,""]
[null,null,null,null,"",null,""]
[null,null,null,null,"",null,""]
[null,null,null,null,"",null,""]
[null,null,null,null,"",null,""]
[null,null,null,null,"",null,""]
[null,null,null,null,"",null,""]
[null,null,null,null,"",null,""]
[null,null,null,null,"",null,""]
[null,null,null,null,"",null,""]
[null,null,null,null,"",null,""]
[null,null,null,null,"",null,""]
[null,null,null,null,"",null,""]
[null,null,null,null,"",null,""]
[null,null,null,null,"",null,""]
[null,null,null,null,"",null,""]
[null,null,null,null,"",null,""]
[null,null,null,null,"",null,""]
[null,null,null,null,"",null,""]
[null,null,null,null,"",null,""]
[null,null,null,null,"",null,""]
[null,null,null,null,"",null,""]
[null,null,null,null,"",null,""]
[null,null,null,null,"",null,""]
[null,null,null,null,"",null,""]
[null,null,null,null,"",null,""]
[null,null,null,null,"",null,""]
[null,null,null,null,"",null,""]
[null,null,null,null,"",null,""]
[null,null,null,null,"",null,""]
[null,null,null,null,"",null,""]
[null,null,null,null,"",null,""]
[null,null,null,null,"",null,""]
[null,null,null,null,"",null,""]
[null,null,null,null,"",null,""]
[null,null,null,null,"",null,""]
[null,null,null,null,"",null,""]
[null,null,null,null,"",null,""]
[null,null,null,null,"",null,""]
[null,null,null,null,"",null,""]
[null,null,null,null,"",null,""]
[null,null,null,null,"",null,{"$f":"IF(A714<>\"\",IF(B714=\"\",\"Falta IBAN\",IF(C714=\"\",\"Falta Valor\",\"Linha totalmente preenchida\")),IF(B714<>\"\",IF(A714=\"\",\"Falta Nome\",\"\"),\"\"))","v":""}]
[null,null,null,null,"",null,""]
[null,null,null,null,"",null,""]
[null,null,null,null,"",null,""]
[null,null,null,null,"",null,""]
[null,null,null,null,"",null,""]
[null,null,null,null,"",null,""]
[null,null,null,null,"",null,""]
[null,null,null,null,"",null,""]
[null,null,null,null,"",null,""]
[null,null,null,null,{"$f":"IF(C724<>\"\",C724,\"\")","v":""},null,""]
[null,null,null,null,"",null,""]
[null,null,null,null,"",null,""]
[null,null,null,null,"",null,""]
[null,null,null,null,"",null,""]
[null,null,null,null,"",null,""]
[null,null,null,null,"",null,""]
[null,null,null,null,"",null,""]
[null,null,null,null,"",null,""]
[null,null,null,null,"",null,""]
[null,null,null,null,"",null,""]
[null,null,null,null,"",null,""]
[null,null,null,null,"",null,""]
[null,null,null,null,"",null,""]
[null,null,null,null,"",null,""]
[null,null,null,null,"",null,""]
[null,null,null,null,"",null,""]
[null,null,null,null,"",null,""]
[null,null,null,null,"",null,""]
[null,null,null,null,"",null,""]
[null,null,null,null,"",null,""]
[null,null,null,null,"",null,""]
[null,null,null,null,"",null,""]
[null,null,null,null,"",null,""]
[null,null,null,null,"",null,""]
[null,null,null,null,"",null,""]
[null,null,null,null,"",null,""]
[null,null,null,null,"",null,""]
[null,null,null,null,"",null,""]
[null,null,null,null,"",null,""]
[null,null,null,null,"",null,""]
[null,null,null,null,"",null,""]
[null,null,null,null,"",null,""]
[null,null,null,null,"",null,""]
[null,null,null,null,"",null,""]
[null,null,null,null,"",null,""]
[null,null,null,null,"",null,""]
[null,null,null,null,"",null,""]
[null,null,null,null,"",null,""]
[null,null,null,null,"",null,""]
[null,null,null,null,"",null,""]
[null,null,null,null,"",null,""]
[null,null,null,null,"",null,""]
[null,null,null,null,"",null,""]
[null,null,null,null,"",null,""]
[null,null,null,null,"",null,""]
[null,null,null,null,"",null,""]
[null,null,null,null,"",null,""]
[null,null,null,null,"",null,""]
[null,null,null,null,"",null,""]
[null,null,null,null,"",null,""]
[null,null,null,null,"",null,""]
[null,null,null,null,"",null,""]
[null,null,null,null,"",null,""]
[null,null,null,null,"",null,{"$f":"IF(A778<>\"\",IF(B778=\"\",\"Falta IBAN\",IF(C778=\"\",\"Falta Valor\",\"Linha totalmente preenchida\")),IF(B778<>\"\",IF(A778=\"\",\"Falta Nome\",\"\"),\"\"))","v":""}]
[null,null,null,null,"",null,""]
[null,null,null,null,"",null,""]
[null,null,null,null,"",null,""]
[null,null,null,null,"",null,""]
[null,null,null,null,"",null,""]
[null,null,null,null,"",null,""]
[null,null,null,null,"",null,""]
[null,null,null,null,"",null,""]
[null,null,null,null,"",null,""]
[null,null,null,null,{"$f":"IF(C788<>\"\",C788,\"\")","v":""},null,""]
[null,null,null,null,"",null,""]
[null,null,null,null,"",null,""]
[null,null,null,null,"",null,""]
[null,null,null,null,"",null,""]
[null,null,null,null,"",null,""]
[null,null,null,null,"",null,""]
[null,null,null,null,"",null,""]
[null,null,null,null,"",null,""]
[null,null,null,null,"",null,""]
[null,null,null,null,"",null,""]
[null,null,null,null,"",null,""]
[null,null,null,null,"",null,""]
[null,null,null,null,"",null,""]
[null,null,null,null,"",null,""]
[null,null,null,null,"",null,""]
[null,null,null,null,"",null,""]
[null,null,null,null,"",null,""]
[null,null,null,null,"",null,""]
[null,null,null,null,"",null,""]
[null,null,null,null,"",null,""]
[null,null,null,null,"",null,""]
[null,null,null,null,"",null,""]
[null,null,null,null,"",null,""]
[null,null,null,null,"",null,""]
[null,null,null,null,"",null,""]
[null,null,null,null,"",null,""]
[null,null,null,null,"",null,""]
[null,null,null,null,"",null,""]
[null,null,null,null,"",null,""]
[null,null,null,null,"",null,""]
[null,null,null,null,"",null,""]
[null,null,null,null,"",null,""]
[null,null,null,null,"",null,""]
[null,null,null,null,"",null,""]
[null,null,null,null,"",null,""]
[null,null,null,null,"",null,""]
[null,null,null,null,"",null,""]
[null,null,null,null,"",null,""]
[null,null,null,null,"",null,""]
[null,null,null,null,"",null,""]
[null,null,null,null,"",null,""]
[null,null,null,null,"",null,""]
[null,null,null,null,"",null,""]
[null,null,null,null,"",null,""]
[null,null,null,null,"",null,""]
[null,null,null,null,"",null,""]
[null,null,null,null,"",null,""]
[null,null,null,null,"",null,""]
[null,null,null,null,"",null,""]
[null,null,null,null,"",null,""]
[null,null,null,null,"",null,""]
[null,null,null,null,"",null,""]
[null,null,null,null,"",null,""]
[null,null,null,null,"",null,{"$f":"IF(A842<>\"\",IF(B842=\"\",\"Falta IBAN\",IF(C842=\"\",\"Falta Valor\",\"Linha totalmente preenchida\")),IF(B842<>\"\",IF(A842=\"\",\"Falta Nome\",\"\"),\"\"))","v":""}]
[null,null,null,null,"",null,""]
[null,null,null,null,"",null,""]
[null,null,null,null,"",null,""]
[null,null,null,null,"",null,""]
[null,null,null,null,"",null,""]
[null,null,null,null,"",null,""]
[null,null,null,null,"",null,""]
[null,null,null,null,"",null,""]
[null,null,null,null,"",null,""]
[null,null,null,null,{"$f":"IF(C852<>\"\",C852,\"\")","v":""},null,""]
[null,null,null,null,"",null,""]
[null,null,null,null,"",null,""]
[null,null,null,null,"",null,""]
[null,null,null,null,"",null,""]
[null,null,null,null,"",null,""]
[null,null,null,null,"",null,""]
[null,null,null,null,"",null,""]
[null,null,null,null,"",null,""]
[null,null,null,null,"",null,""]
[null,null,null,null,"",null,""]
[null,null,null,null,"",null,""]
[null,null,null,null,"",null,""]
[null,null,null,null,"",null,""]
[null,null,null,null,"",null,""]
[null,null,null,null,"",null,""]
[null,null,null,null,"",null,""]
[null,null,null,null,"",null,""]
[null,null,null,null,"",null,""]
[null,null,null,null,"",null,""]
[null,null,null,null,"",null,""]
[null,null,null,null,"",null,""]
[null,null,null,null,"",null,""]
[null,null,null,null,"",null,""]
[null,null,null,null,"",null,""]
[null,null,null,null,"",null,""]
[null,null,null,null,"",null,""]
[null,null,null,null,"",null,""]
[null,null,null,null,"",null,""]
[null,null,null,null,"",null,""]
[null,null,null,null,"",null,""]
[null,null,null,null,"",null,""]
[null,null,null,null,"",null,""]
[null,null,null,null,"",null,""]
[null,null,null,null,"",null,""]
[null,null,null,null,"",null,""]
[null,null,null,null,"",null,""]
[null,null,null,null,"",null,""]
[null,null,null,null,"",null,""]
[null,null,null,null,"",null,""]
[null,null,null,null,"",null,""]
[null,null,null,null,"",null,""]
[null,null,null,null,"",null,""]
[null,null,null,null,"",null,""]
[null,null,null,null,"",null,""]
[null,null,null,null,"",null,""]
[null,null,null,null,"",null,""]
[null,null,null,null,"",null,""]
[null,null,null,null,"",null,""]
[null,null,null,null,"",null,""]
[null,null,null,null,"",null,""]
[null,null,null,null,"",null,""]
[null,null,null,null,"",null,""]
[null,null,null,null,"",null,""]
[null,null,null,null,"",null,{"$f":"IF(A906<>\"\",IF(B906=\"\",\"Falta IBAN\",IF(C906=\"\",\"Falta Valor\",\"Linha totalmente preenchida\")),IF(B906<>\"\",IF(A906=\"\",\"Falta Nome\",\"\"),\"\"))","v":""}]
[null,null,null,null,"",null,""]
[null,null,null,null,"",null,""]
[null,null,null,null,"",null,""]
[null,null,null,null,"",null,""]
[null,null,null,null,"",null,""]
[null,null,null,null,"",null,""]
[null,null,null,null,"",null,""]
[null,null,null,null,"",null,""]
[null,null,null,null,"",null,""]
[null,null,null,null,{"$f":"IF(C916<>\"\",C916,\"\")","v":""},null,""]
[null,null,null,null,"",null,""]
[null,null,null,null,"",null,""]
[null,null,null,null,"",null,""]
[null,null,null,null,"",null,""]
[null,null,null,null,"",null,""]
[null,null,null,null,"",null,""]
[null,null,null,null,"",null,""]
[null,null,null,null,"",null,""]
[null,null,null,null,"",null,""]
[null,null,null,null,"",null,""]
[null,null,null,null,"",null,""]
[null,null,null,null,"",null,""]
[null,null,null,null,"",null,""]
[null,null,null,null,"",null,""]
[null,null,null,null,"",null,""]
[null,null,null,null,"",null,""]
[null,null,null,null,"",null,""]
[null,null,null,null,"",null,""]
[null,null,null,null,"",null,""]
[null,null,null,null,"",null,""]
[null,null,null,null,"",null,""]
[null,null,null,null,"",null,""]
[null,null,null,null,"",null,""]
[null,null,null,null,"",null,""]
[null,null,null,null,"",null,""]
[null,null,null,null,"",null,""]
[null,null,null,null,"",null,""]
[null,null,null,null,"",null,""]
[null,null,null,null,"",null,""]
[null,null,null,null,"",null,""]
[null,null,null,null,"",null,""]
[null,null,null,null,"",null,""]
[null,null,null,null,"",null,""]
[null,null,null,null,"",null,""]
[null,null,null,null,"",null,""]
[null,null,null,null,"",null,""]
[null,null,null,null,"",null,""]
[null,null,null,null,"",null,""]
[null,null,null,null,"",null,""]
[null,null,null,null,"",null,""]
[null,null,null,null,"",null,""]
[null,null,null,null,"",null,""]
[null,null,null,null,"",null,""]
[null,null,null,null,"",null,""]
[null,null,null,null,"",null,""]
[null,null,null,null,"",null,""]
[null,null,null,null,"",null,""]
[null,null,null,null,"",null,""]
[null,null,null,null,"",null,""]
[null,null,null,null,"",null,""]
[null,null,null,null,"",null,""]
[null,null,null,null,"",null,""]
[null,null,null,null,"",null,""]
[null,null,null,null,"",null,{"$f":"IF(A970<>\"\",IF(B970=\"\",\"Falta IBAN\",IF(C970=\"\",\"Falta Valor\",\"Linha totalmente preenchida\")),IF(B970<>\"\",IF(A970=\"\",\"Falta Nome\",\"\"),\"\"))","v":""}]
[null,null,null,null,"",null,""]
[null,null,null,null,"",null,""]
[null,null,null,null,"",null,""]
[null,null,null,null,"",null,""]
[null,null,null,null,"",null,""]
[null,null,null,null,"",null,""]
[null,null,null,null,"",null,""]
[null,null,null,null,"",null,""]
[null,null,null,null,"",null,""]
[null,null,null,null,{"$f":"IF(C980<>\"\",C980,\"\")","v":""},null,""]
[null,null,null,null,"",null,""]
[null,null,null,null,"",null,""]
[null,null,null,null,"",null,""]
[null,null,null,null,"",null,""]
[null,null,null,null,"",null,""]
[null,null,null,null,"",null,""]
[null,null,null,null,"",null,""]
[null,null,null,null,"",null,""]
[null,null,null,null,"",null,""]
[null,null,null,null,"",null,""]
[null,null,null,null,"",null,""]
[null,null,null,null,"",null,""]
[null,null,null,null,"",null,""]
[null,null,null,null,"",null,""]
[null,null,null,null,"",null,""]
[null,null,null,null,"",null,""]
[null,null,null,null,"",null,""]
[null,null,null,null,"",null,""]
[null,null,null,null,"",null,""]
[null,null,null,null,"",null,""]
[null,null,null,null,"",null,""]
[null,null,null,null,"",null,""]
[null,null,null,null,"",null,""]
[null,null,null,null,"",null,""]
[null,null,null,null,"",null,""]
[null,null,null,null,"",null,""]
[null,null,null,null,"",null,""]
[null,null,null,null,"",null,""]
[null,null,null,null,"",null,""]
[null,null,null,null,"",null,""]
[null,null,null,null,"",null,""]
[null,null,null,null,"",null,""]
[null,null,null,null,"",null,""]
[null,null,null,null,"",null,""]
[null,null,null,null,"",null,""]
[null,null,null,null,"",null,""]
[null,null,null,null,"",null,""]
[null,null,null,null,"",null,""]
[null,null,null,null,"",null,""]
[null,null,null,null,"",null,""]
[null,null,null,null,"",null,""]
[null,null,null,null,"",null,""]
[null,null,null,null,"",null,""]
[null,null,null,null,"",null,""]
[null,null,null,null,"",null,""]
[null,null,null,null,"",null,""]
[null,null,null,null,"",null,""]
[null,null,null,null,"",null,""]
[null,null,null,null,"",null,""]
[null,null,null,null,"",null,""]
[null,null,null,null,"",null,""]
[null,null,null,null,"",null,""]
[null,null,null,null,"",null,""]
[null,null,null,null,"",null,{"$f":"IF(A1034<>\"\",IF(B1034=\"\",\"Falta IBAN\",IF(C1034=\"\",\"Falta Valor\",\"Linha totalmente preenchida\")),IF(B1034<>\"\",IF(A1034=\"\",\"Falta Nome\",\"\"),\"\"))","v":""}]
[null,null,null,null,"",null,""]
[null,null,null,null,"",null,""]
[null,null,null,null,"",null,""]
[null,null,null,null,"",null,""]
[null,null,null,null,"",null,""]
[null,null,null,null,"",null,""]
[null,null,null,null,"",null,""]
[null,null,null,null,"",null,""]
[null,null,null,null,"",null,""]
[null,null,null,null,{"$f":"IF(C1044<>\"\",C1044,\"\")","v":""},null,""]
[null,null,null,null,"",null,""]
[null,null,null,null,"",null,""]
[null,null,null,null,"",null,""]
[null,null,null,null,"",null,""]
[null,null,null,null,"",null,""]
[null,null,null,null,"",null,""]
[null,null,null,null,"",null,""]
[null,null,null,null,"",null,""]
[null,null,null,null,"",null,""]
[null,null,null,null,"",null,""]
[null,null,null,null,"",null,""]
[null,null,null,null,"",null,""]
[null,null,null,null,"",null,""]
[null,null,null,null,"",null,""]
[null,null,null,null,"",null,""]
[null,null,null,null,"",null,""]
[null,null,null,null,"",null,""]
[null,null,null,null,"",null,""]
[null,null,null,null,"",null,""]
[null,null,null,null,"",null,""]
[null,null,null,null,"",null,""]
[null,null,null,null,"",null,""]
[null,null,null,null,"",null,""]
[null,null,null,null,"",null,""]
[null,null,null,null,"",null,""]
[null,null,null,null,"",null,""]
[null,null,null,null,"",null,""]
[null,null,null,null,"",null,""]
[null,null,null,null,"",null,""]
[null,null,null,null,"",null,""]
[null,null,null,null,"",null,""]
[null,null,null,null,"",null,""]
[null,null,null,null,"",null,""]
[null,null,null,null,"",null,""]
[null,null,null,null,"",null,""]
[null,null,null,null,"",null,""]
[null,null,null,null,"",null,""]
[null,null,null,null,"",null,""]
[null,null,null,null,"",null,""]
[null,null,null,null,"",null,""]
[null,null,null,null,"",null,""]
[null,null,null,null,"",null,""]
[null,null,null,null,"",null,""]
[null,null,null,null,"",null,""]
[null,null,null,null,"",null,""]
[null,null,null,null,"",null,""]
[null,null,null,null,"",null,""]
[null,null,null,null,"",null,""]
[null,null,null,null,"",null,""]
[null,null,null,null,"",null,""]
[null,null,null,null,"",null,""]
[null,null,null,null,"",null,""]
[null,null,null,null,"",null,""]
[null,null,null,null,"",null,{"$f":"IF(A1098<>\"\",IF(B1098=\"\",\"Falta IBAN\",IF(C1098=\"\",\"Falta Valor\",\"Linha totalmente preenchida\")),IF(B1098<>\"\",IF(A1098=\"\",\"Falta Nome\",\"\"),\"\"))","v":""}]
[null,null,null,null,"",null,""]
[null,null,null,null,"",null,""]
[null,null,null,null,"",null,""]
[null,null,null,null,"",null,""]
[null,null,null,null,"",null,""]
[null,null,null,null,"",null,""]
[null,null,null,null,"",null,""]
[null,null,null,null,"",null,""]
[null,null,null,null,"",null,""]
[null,null,null,null,{"$f":"IF(C1108<>\"\",C1108,\"\")","v":""},null,""]
[null,null,null,null,"",null,""]
[null,null,null,null,"",null,""]
[null,null,null,null,"",null,""]
[null,null,null,null,"",null,""]
[null,null,null,null,"",null,""]
[null,null,null,null,"",null,""]
[null,null,null,null,"",null,""]
[null,null,null,null,"",null,""]
[null,null,null,null,"",null,""]
[null,null,null,null,"",null,""]
[null,null,null,null,"",null,""]
[null,null,null,null,"",null,""]
[null,null,null,null,"",null,""]
[null,null,null,null,"",null,""]
[null,null,null,null,"",null,""]
[null,null,null,null,"",null,""]
[null,null,null,null,"",null,""]
[null,null,null,null,"",null,""]
[null,null,null,null,"",null,""]
[null,null,null,null,"",null,""]
[null,null,null,null,"",null,""]
[null,null,null,null,"",null,""]
[null,null,null,null,"",null,""]
[null,null,null,null,"",null,""]
[null,null,null,null,"",null,""]
[null,null,null,null,"",null,""]
[null,null,null,null,"",null,""]
[null,null,null,null,"",null,""]
[null,null,null,null,"",null,""]
[null,null,null,null,"",null,""]
[null,null,null,null,"",null,""]
[null,null,null,null,"",null,""]
[null,null,null,null,"",null,""]
[null,null,null,null,"",null,""]
[null,null,null,null,"",null,""]
[null,null,null,null,"",null,""]
[null,null,null,null,"",null,""]
[null,null,null,null,"",null,""]
[null,null,null,null,"",null,""]
[null,null,null,null,"",null,""]
[null,null,null,null,"",null,""]
[null,null,null,null,"",null,""]
[null,null,null,null,"",null,""]
[null,null,null,null,"",null,""]
[null,null,null,null,"",null,""]
[null,null,null,null,"",null,""]
[null,null,null,null,"",null,""]
[null,null,null,null,"",null,""]
[null,null,null,null,"",null,""]
[null,null,null,null,"",null,""]
[null,null,null,null,"",null,""]
[null,null,null,null,"",null,""]
[null,null,null,null,"",null,""]
[null,null,null,null,"",null,{"$f":"IF(A1162<>\"\",IF(B1162=\"\",\"Falta IBAN\",IF(C1162=\"\",\"Falta Valor\",\"Linha totalmente preenchida\")),IF(B1162<>\"\",IF(A1162=\"\",\"Falta Nome\",\"\"),\"\"))","v":""}]
[null,null,null,null,"",null,""]
[null,null,null,null,"",null,""]
[null,null,null,null,"",null,""]
[null,null,null,null,"",null,""]
[null,null,null,null,"",null,""]
[null,null,null,null,"",null,""]
[null,null,null,null,"",null,""]
[null,null,null,null,"",null,""]
[null,null,null,null,"",null,""]
[null,null,null,null,{"$f":"IF(C1172<>\"\",C1172,\"\")","v":""},null,""]
[null,null,null,null,"",null,""]
[null,null,null,null,"",null,""]
[null,null,null,null,"",null,""]
[null,null,null,null,"",null,""]
[null,null,null,null,"",null,""]
[null,null,null,null,"",null,""]
[null,null,null,null,"",null,""]
[null,null,null,null,"",null,""]
[null,null,null,null,"",null,""]
[null,null,null,null,"",null,""]
[null,null,null,null,"",null,""]
[null,null,null,null,"",null,""]
[null,null,null,null,"",null,""]
[null,null,null,null,"",null,""]
[null,null,null,null,"",null,""]
[null,null,null,null,"",null,""]
[null,null,null,null,"",null,""]
[null,null,null,null,"",null,""]
[null,null,null,null,"",null,""]
[null,null,null,null,"",null,""]
[null,null,null,null,"",null,""]
[null,null,null,null,"",null,""]
[null,null,null,null,"",null,""]
[null,null,null,null,"",null,""]
[null,null,null,null,"",null,""]
[null,null,null,null,"",null,""]
[null,null,null,null,"",null,""]
[null,null,null,null,"",null,""]
[null,null,null,null,"",null,""]
[null,null,null,null,"",null,""]
[null,null,null,null,"",null,""]
[null,null,null,null,"",null,""]
[null,null,null,null,"",null,""]
[null,null,null,null,"",null,""]
[null,null,null,null,"",null,""]
[null,null,null,null,"",null,""]
[null,null,null,null,"",null,""]
[null,null,null,null,"",null,""]
[null,null,null,null,"",null,""]
[null,null,null,null,"",null,""]
[null,null,null,null,"",null,""]
[null,null,null,null,"",null,""]
[null,null,null,null,"",null,""]
[null,null,null,null,"",null,""]
[null,null,null,null,"",null,""]
[null,null,null,null,"",null,""]
[null,null,null,null,"",null,""]
[null,null,null,null,"",null,""]
[null,null,null,null,"",null,""]
[null,null,null,null,"",null,""]
[null,null,null,null,"",null,""]
[null,null,null,null,"",null,""]
[null,null,null,null,"",null,""]
[null,null,null,null,"",null,{"$f":"IF(A1226<>\"\",IF(B1226=\"\",\"Falta IBAN\",IF(C1226=\"\",\"Falta Valor\",\"Linha totalmente preenchida\")),IF(B1226<>\"\",IF(A1226=\"\",\"Falta Nome\",\"\"),\"\"))","v":""}]
[null,null,null,null,"",null,""]
[null,null,null,null,"",null,""]
[null,null,null,null,"",null,""]
[null,null,null,null,"",null,""]
[null,null,null,null,"",null,""]
[null,null,null,null,"",null,""]
[null,null,null,null,"",null,""]
[null,null,null,null,"",null,""]
[null,null,null,null,"",null,""]
[null,null,null,null,{"$f":"IF(C1236<>\"\",C1236,\"\")","v":""},null,""]
[null,null,null,null,"",null,""]
[null,null,null,null,"",null,""]
[null,null,null,null,"",null,""]
[null,null,null,null,"",null,""]
[null,null,null,null,"",null,""]
[null,null,null,null,"",null,""]
[null,null,null,null,"",null,""]
[null,null,null,null,"",null,""]
[null,null,null,null,"",null,""]
[null,null,null,null,"",null,""]
[null,null,null,null,"",null,""]
[null,null,null,null,"",null,""]
[null,null,null,null,"",null,""]
[null,null,null,null,"",null,""]
[null,null,null,null,"",null,""]
[null,null,null,null,"",null,""]
[null,null,null,null,"",null,""]
[null,null,null,null,"",null,""]
[null,null,null,null,"",null,""]
[null,null,null,null,"",null,""]
[null,null,null,null,"",null,""]
[null,null,null,null,"",null,""]
[null,null,null,null,"",null,""]
[null,null,null,null,"",null,""]
[null,null,null,null,"",null,""]
[null,null,null,null,"",null,""]
[null,null,null,null,"",null,""]
[null,null,null,null,"",null,""]
[null,null,null,null,"",null,""]
[null,null,null,null,"",null,""]
[null,null,null,null,"",null,""]
[null,null,null,null,"",null,""]
[null,null,null,null,"",null,""]
[null,null,null,null,"",null,""]
[null,null,null,null,"",null,""]
[null,null,null,null,"",null,""]
[null,null,null,null,"",null,""]
[null,null,null,null,"",null,""]
[null,null,null,null,"",null,""]
[null,null,null,null,"",null,""]
[null,null,null,null,"",null,""]
[null,null,null,null,"",null,""]
[null,null,null,null,"",null,""]
[null,null,null,null,"",null,""]
[null,null,null,null,"",null,""]
[null,null,null,null,"",null,""]
[null,null,null,null,"",null,""]
[null,null,null,null,"",null,""]
[null,null,null,null,"",null,""]
[null,null,null,null,"",null,""]
[null,null,null,null,"",null,""]
[null,null,null,null,"",null,""]
[null,null,null,null,"",null,""]
[null,null,null,null,"",null,{"$f":"IF(A1290<>\"\",IF(B1290=\"\",\"Falta IBAN\",IF(C1290=\"\",\"Falta Valor\",\"Linha totalmente preenchida\")),IF(B1290<>\"\",IF(A1290=\"\",\"Falta Nome\",\"\"),\"\"))","v":""}]
[null,null,null,null,"",null,""]
[null,null,null,null,"",null,""]
[null,null,null,null,"",null,""]
[null,null,null,null,"",null,""]
[null,null,null,null,"",null,""]
[null,null,null,null,"",null,""]
[null,null,null,null,"",null,""]
[null,null,null,null,"",null,""]
[null,null,null,null,"",null,""]
[null,null,null,null,{"$f":"IF(C1300<>\"\",C1300,\"\")","v":""},null,""]
[null,null,null,null,"",null,""]
[null,null,null,null,"",null,""]
[null,null,null,null,"",null,""]
[null,null,null,null,"",null,""]
[null,null,null,null,"",null,""]
[null,null,null,null,"",null,""]
[null,null,null,null,"",null,""]
[null,null,null,null,"",null,""]
[null,null,null,null,"",null,""]
[null,null,null,null,"",null,""]
[null,null,null,null,"",null,""]
[null,null,null,null,"",null,""]
[null,null,null,null,"",null,""]
[null,null,null,null,"",null,""]
[null,null,null,null,"",null,""]
[null,null,null,null,"",null,""]
[null,null,null,null,"",null,""]
[null,null,null,null,"",null,""]
[null,null,null,null,"",null,""]
[null,null,null,null,"",null,""]
[null,null,null,null,"",null,""]
[null,null,null,null,"",null,""]
[null,null,null,null,"",null,""]
[null,null,null,null,"",null,""]
[null,null,null,null,"",null,""]
[null,null,null,null,"",null,""]
[null,null,null,null,"",null,""]
[null,null,null,null,"",null,""]
[null,null,null,null,"",null,""]
[null,null,null,null,"",null,""]
[null,null,null,null,"",null,""]
[null,null,null,null,"",null,""]
[null,null,null,null,"",null,""]
[null,null,null,null,"",null,""]
[null,null,null,null,"",null,""]
[null,null,null,null,"",null,""]
[null,null,null,null,"",null,""]
[null,null,null,null,"",null,""]
[null,null,null,null,"",null,""]
[null,null,null,null,"",null,""]
[null,null,null,null,"",null,""]
[null,null,null,null,"",null,""]
[null,null,null,null,"",null,""]
[null,null,null,null,"",null,""]
[null,null,null,null,"",null,""]
[null,null,null,null,"",null,""]
[null,null,null,null,"",null,""]
[null,null,null,null,"",null,""]
[null,null,null,null,"",null,""]
[null,null,null,null,"",null,""]
[null,null,null,null,"",null,""]
[null,null,null,null,"",null,""]
[null,null,null,null,"",null,""]
[null,null,null,null,"",null,{"$f":"IF(A1354<>\"\",IF(B1354=\"\",\"Falta IBAN\",IF(C1354=\"\",\"Falta Valor\",\"Linha totalmente preenchida\")),IF(B1354<>\"\",IF(A1354=\"\",\"Falta Nome\",\"\"),\"\"))","v":""}]
[null,null,null,null,"",null,""]
[null,null,null,null,"",null,""]
[null,null,null,null,"",null,""]
[null,null,null,null,"",null,""]
[null,null,null,null,"",null,""]
[null,null,null,null,"",null,""]
[null,null,null,null,"",null,""]
[null,null,null,null,"",null,""]
[null,null,null,null,"",null,""]
[null,null,null,null,{"$f":"IF(C1364<>\"\",C1364,\"\")","v":""},null,""]
[null,null,null,null,"",null,""]
[null,null,null,null,"",null,""]
[null,null,null,null,"",null,""]
[null,null,null,null,"",null,""]
[null,null,null,null,"",null,""]
[null,null,null,null,"",null,""]
[null,null,null,null,"",null,""]
[null,null,null,null,"",null,""]
[null,null,null,null,"",null,""]
[null,null,null,null,"",null,""]
[null,null,null,null,"",null,""]
[null,null,null,null,"",null,""]
[null,null,null,null,"",null,""]
[null,null,null,null,"",null,""]
[null,null,null,null,"",null,""]
[null,null,null,null,"",null,""]
[null,null,null,null,"",null,""]
[null,null,null,null,"",null,""]
[null,null,null,null,"",null,""]
[null,null,null,null,"",null,""]
[null,null,null,null,"",null,""]
[null,null,null,null,"",null,""]
[null,null,null,null,"",null,""]
[null,null,null,null,"",null,""]
[null,null,null,null,"",null,""]
[null,null,null,null,"",null,""]
[null,null,null,null,"",null,""]
[null,null,null,null,"",null,""]
[null,null,null,null,"",null,""]
[null,null,null,null,"",null,""]
[null,null,null,null,"",null,""]
[null,null,null,null,"",null,""]
[null,null,null,null,"",null,""]
[null,null,null,null,"",null,""]
[null,null,null,null,"",null,""]
[null,null,null,null,"",null,""]
[null,null,null,null,"",null,""]
[null,null,null,null,"",null,""]
[null,null,null,null,"",null,""]
[null,null,null,null,"",null,""]
[null,null,null,null,"",null,""]
[null,null,null,null,"",null,""]
[null,null,null,null,"",null,""]
[null,null,null,null,"",null,""]
[null,null,null,null,"",null,""]
[null,null,null,null,"",null,""]
[null,null,null,null,"",null,""]
[null,null,null,null,"",null,""]
[null,null,null,null,"",null,""]
[null,null,null,null,"",null,""]
[null,null,null,null,"",null,""]
[null,null,null,null,"",null,""]
[null,null,null,null,"",null,""]
[null,null,null,null,"",null,{"$f":"IF(A1418<>\"\",IF(B1418=\"\",\"Falta IBAN\",IF(C1418=\"\",\"Falta Valor\",\"Linha totalmente preenchida\")),IF(B1418<>\"\",IF(A1418=\"\",\"Falta Nome\",\"\"),\"\"))","v":""}]
[null,null,null,null,"",null,""]
[null,null,null,null,"",null,""]
[null,null,null,null,"",null,""]
[null,null,null,null,"",null,""]
[null,null,null,null,"",null,""]
[null,null,null,null,"",null,""]
[null,null,null,null,"",null,""]
[null,null,null,null,"",null,""]
[null,null,null,null,"",null,""]
[null,null,null,null,{"$f":"IF(C1428<>\"\",C1428,\"\")","v":""},null,""]
[null,null,null,null,"",null,""]
[null,null,null,null,"",null,""]
[null,null,null,null,"",null,""]
[null,null,null,null,"",null,""]
[null,null,null,null,"",null,""]
[null,null,null,null,"",null,""]
[null,null,null,null,"",null,""]
[null,null,null,null,"",null,""]
[null,null,null,null,"",null,""]
[null,null,null,null,"",null,""]
[null,null,null,null,"",null,""]
[null,null,null,null,"",null,""]
[null,null,null,null,"",null,""]
[null,null,null,null,"",null,""]
[null,null,null,null,"",null,""]
[null,null,null,null,"",null,""]
[null,null,null,null,"",null,""]
[null,null,null,null,"",null,""]
[null,null,null,null,"",null,""]
[null,null,null,null,"",null,""]
[null,null,null,null,"",null,""]
[null,null,null,null,"",null,""]
[null,null,null,null,"",null,""]
[null,null,null,null,"",null,""]
[null,null,null,null,"",null,""]
[null,null,null,null,"",null,""]
[null,null,null,null,"",null,""]
[null,null,null,null,"",null,""]
[null,null,null,null,"",null,""]
[null,null,null,null,"",null,""]
[null,null,null,null,"",null,""]
[null,null,null,null,"",null,""]
[null,null,null,null,"",null,""]
[null,null,null,null,"",null,""]
[null,null,null,null,"",null,""]
[null,null,null,null,"",null,""]
[null,null,null,null,"",null,""]
[null,null,null,null,"",null,""]
[null,null,null,null,"",null,""]
[null,null,null,null,"",null,""]
[null,null,null,null,"",null,""]
[null,null,null,null,"",null,""]
[null,null,null,null,"",null,""]
[null,null,null,null,"",null,""]
[null,null,null,null,"",null,""]
[null,null,null,null,"",null,""]
[null,null,null,null,"",null,""]
[null,null,null,null,"",null,""]
[null,null,null,null,"",null,""]
[null,null,null,null,"",null,""]
[null,null,null,null,"",null,""]
[null,null,null,null,"",null,""]
[null,null,null,null,"",null,""]
[null,null,null,null,"",null,{"$f":"IF(A1482<>\"\",IF(B1482=\"\",\"Falta IBAN\",IF(C1482=\"\",\"Falta Valor\",\"Linha totalmente preenchida\")),IF(B1482<>\"\",IF(A1482=\"\",\"Falta Nome\",\"\"),\"\"))","v":""}]
[null,null,null,null,"",null,""]
[null,null,null,null,"",null,""]
[null,null,null,null,"",null,""]
[null,null,null,null,"",null,""]
[null,null,null,null,"",null,""]
[null,null,null,null,"",null,""]
[null,null,null,null,"",null,""]
[null,null,null,null,"",null,""]
[null,null,null,null,"",null,""]
[null,null,null,null,{"$f":"IF(C1492<>\"\",C1492,\"\")","v":""},null,""]
[null,null,null,null,"",null,""]
[null,null,null,null,"",null,""]
[null,null,null,null,"",null,""]
[null,null,null,null,"",null,""]
[null,null,null,null,"",null,""]
[null,null,null,null,"",null,""]
[null,null,null,null,"",null,""]
[null,null,null,null,"",null,""]
[null,null,null,null,"",null,""]
[null,null,null,null,"",null,""]
[null,null,null,null,"",null,""]
[null,null,null,null,"",null,""]
[null,null,null,null,"",null,""]
[null,null,null,null,"",null,""]
[null,null,null,null,"",null,""]
[null,null,null,null,"",null,""]
[null,null,null,null,"",null,""]
[null,null,null,null,"",null,""]
[null,null,null,null,"",null,""]
[null,null,null,null,"",null,""]
[null,null,null,null,"",null,""]
[null,null,null,null,"",null,""]
[null,null,null,null,"",null,""]
[null,null,null,null,"",null,""]
[null,null,null,null,"",null,""]
[null,null,null,null,"",null,""]
[null,null,null,null,"",null,""]
[null,null,null,null,"",null,""]
[null,null,null,null,"",null,""]
[null,null,null,null,"",null,""]
[null,null,null,null,"",null,""]
[null,null,null,null,"",null,""]
[null,null,null,null,"",null,""]
[null,null,null,null,"",null,""]
[null,null,null,null,"",null,""]
[null,null,null,null,"",null,""]
[null,null,null,null,"",null,""]
[null,null,null,null,"",null,""]
[null,null,null,null,"",null,""]
[null,null,null,null,"",null,""]
[null,null,null,null,"",null,""]
[null,null,null,null,"",null,""]
[null,null,null,null,"",null,""]
[null,null,null,null,"",null,""]
[null,null,null,null,"",null,""]
[null,null,null,null,"",null,""]
[null,null,null,null,"",null,""]
[null,null,null,null,"",null,""]
[null,null,null,null,"",null,""]
[null,null,null,null,"",null,""]
[null,null,null,null,"",null,""]
[null,null,null,null,"",null,""]
[null,null,null,null,"",null,""]
[null,null,null,null,"",null,{"$f":"IF(A1546<>\"\",IF(B1546=\"\",\"Falta IBAN\",IF(C1546=\"\",\"Falta Valor\",\"Linha totalmente preenchida\")),IF(B1546<>\"\",IF(A1546=\"\",\"Falta Nome\",\"\"),\"\"))","v":""}]
[null,null,null,null,"",null,""]
[null,null,null,null,"",null,""]
[null,null,null,null,"",null,""]
[null,null,null,null,"",null,""]
[null,null,null,null,"",null,""]
[null,null,null,null,"",null,""]
[null,null,null,null,"",null,""]
[null,null,null,null,"",null,""]
[null,null,null,null,"",null,""]
[null,null,null,null,{"$f":"IF(C1556<>\"\",C1556,\"\")","v":""},null,""]
[null,null,null,null,"",null,""]
[null,null,null,null,"",null,""]
[null,null,null,null,"",null,""]
[null,null,null,null,"",null,""]
[null,null,null,null,"",null,""]
[null,null,null,null,"",null,""]
[null,null,null,null,"",null,""]
[null,null,null,null,"",null,""]
[null,null,null,null,"",null,""]
[null,null,null,null,"",null,""]
[null,null,null,null,"",null,""]
[null,null,null,null,"",null,""]
[null,null,null,null,"",null,""]
[null,null,null,null,"",null,""]
[null,null,null,null,"",null,""]
[null,null,null,null,"",null,""]
[null,null,null,null,"",null,""]
[null,null,null,null,"",null,""]
[null,null,null,null,"",null,""]
[null,null,null,null,"",null,""]
[null,null,null,null,"",null,""]
[null,null,null,null,"",null,""]
[null,null,null,null,"",null,""]
[null,null,null,null,"",null,""]
[null,null,null,null,"",null,""]
[null,null,null,null,"",null,""]
[null,null,null,null,"",null,""]
[null,null,null,null,"",null,""]
[null,null,null,null,"",null,""]
[null,null,null,null,"",null,""]
[null,null,null,null,"",null,""]
[null,null,null,null,"",null,""]
[null,null,null,null,"",null,""]
[null,null,null,null,"",null,""]
[null,null,null,null,"",null,""]
[null,null,null,null,"",null,""]
[null,null,null,null,"",null,""]
[null,null,null,null,"",null,""]
[null,null,null,null,"",null,""]
[null,null,null,null,"",null,""]
[null,null,null,null,"",null,""]
[null,null,null,null,"",null,""]
[null,null,null,null,"",null,""]
[null,null,null,null,"",null,""]
[null,null,null,null,"",null,""]
[null,null,null,null,"",null,""]
[null,null,null,null,"",null,""]
[null,null,null,null,"",null,""]
[null,null,null,null,"",null,""]
[null,null,null,null,"",null,""]
[null,null,null,null,"",null,""]
[null,null,null,null,"",null,""]
[null,null,null,null,"",null,""]
[null,null,null,null,"",null,{"$f":"IF(A1610<>\"\",IF(B1610=\"\",\"Falta IBAN\",IF(C1610=\"\",\"Falta Valor\",\"Linha totalmente preenchida\")),IF(B1610<>\"\",IF(A1610=\"\",\"Falta Nome\",\"\"),\"\"))","v":""}]
[null,null,null,null,"",null,""]
[null,null,null,null,"",null,""]
[null,null,null,null,"",null,""]
[null,null,null,null,"",null,""]
[null,null,null,null,"",null,""]
[null,null,null,null,"",null,""]
[null,null,null,null,"",null,""]
[null,null,null,null,"",null,""]
[null,null,null,null,"",null,""]
[null,null,null,null,{"$f":"IF(C1620<>\"\",C1620,\"\")","v":""},null,""]
[null,null,null,null,"",null,""]
[null,null,null,null,"",null,""]
[null,null,null,null,"",null,""]
[null,null,null,null,"",null,""]
[null,null,null,null,"",null,""]
[null,null,null,null,"",null,""]
[null,null,null,null,"",null,""]
[null,null,null,null,"",null,""]
[null,null,null,null,"",null,""]
[null,null,null,null,"",null,""]
[null,null,null,null,"",null,""]
[null,null,null,null,"",null,""]
[null,null,null,null,"",null,""]
[null,null,null,null,"",null,""]
[null,null,null,null,"",null,""]
[null,null,null,null,"",null,""]
[null,null,null,null,"",null,""]
[null,null,null,null,"",null,""]
[null,null,null,null,"",null,""]
[null,null,null,null,"",null,""]
[null,null,null,null,"",null,""]
[null,null,null,null,"",null,""]
[null,null,null,null,"",null,""]
[null,null,null,null,"",null,""]
[null,null,null,null,"",null,""]
[null,null,null,null,"",null,""]
[null,null,null,null,"",null,""]
[null,null,null,null,"",null,""]
[null,null,null,null,"",null,""]
[null,null,null,null,"",null,""]
[null,null,null,null,"",null,""]
[null,null,null,null,"",null,""]
[null,null,null,null,"",null,""]
[null,null,null,null,"",null,""]
[null,null,null,null,"",null,""]
[null,null,null,null,"",null,""]
[null,null,null,null,"",null,""]
[null,null,null,null,"",null,""]
[null,null,null,null,"",null,""]
[null,null,null,null,"",null,""]
[null,null,null,null,"",null,""]
[null,null,null,null,"",null,""]
[null,null,null,null,"",null,""]
[null,null,null,null,"",null,""]
[null,null,null,null,"",null,""]
[null,null,null,null,"",null,""]
[null,null,null,null,"",null,""]
[null,null,null,null,"",null,""]
[null,null,null,null,"",null,""]
[null,null,null,null,"",null,""]
[null,null,null,null,"",null,""]
[null,null,null,null,"",null,""]
[null,null,null,null,"",null,""]
[null,null,null,null,"",null,{"$f":"IF(A1674<>\"\",IF(B1674=\"\",\"Falta IBAN\",IF(C1674=\"\",\"Falta Valor\",\"Linha totalmente preenchida\")),IF(B1674<>\"\",IF(A1674=\"\",\"Falta Nome\",\"\"),\"\"))","v":""}]
[null,null,null,null,"",null,""]
[null,null,null,null,"",null,""]
[null,null,null,null,"",null,""]
[null,null,null,null,"",null,""]
[null,null,null,null,"",null,""]
[null,null,null,null,"",null,""]
[null,null,null,null,"",null,""]
[null,null,null,null,"",null,""]
[null,null,null,null,"",null,""]
[null,null,null,null,{"$f":"IF(C1684<>\"\",C1684,\"\")","v":""},null,""]
[null,null,null,null,"",null,""]
[null,null,null,null,"",null,""]
[null,null,null,null,"",null,""]
[null,null,null,null,"",null,""]
[null,null,null,null,"",null,""]
[null,null,null,null,"",null,""]
[null,null,null,null,"",null,""]
[null,null,null,null,"",null,""]
[null,null,null,null,"",null,""]
[null,null,null,null,"",null,""]
[null,null,null,null,"",null,""]
[null,null,null,null,"",null,""]
[null,null,null,null,"",null,""]
[null,null,null,null,"",null,""]
[null,null,null,null,"",null,""]
[null,null,null,null,"",null,""]
[null,null,null,null,"",null,""]
[null,null,null,null,"",null,""]
[null,null,null,null,"",null,""]
[null,null,null,null,"",null,""]
[null,null,null,null,"",null,""]
[null,null,null,null,"",null,""]
[null,null,null,null,"",null,""]
[null,null,null,null,"",null,""]
[null,null,null,null,"",null,""]
[null,null,null,null,"",null,""]
[null,null,null,null,"",null,""]
[null,null,null,null,"",null,""]
[null,null,null,null,"",null,""]
[null,null,null,null,"",null,""]
[null,null,null,null,"",null,""]
[null,null,null,null,"",null,""]
[null,null,null,null,"",null,""]
[null,null,null,null,"",null,""]
[null,null,null,null,"",null,""]
[null,null,null,null,"",null,""]
[null,null,null,null,"",null,""]
[null,null,null,null,"",null,""]
[null,null,null,null,"",null,""]
[null,null,null,null,"",null,""]
[null,null,null,null,"",null,""]
[null,null,null,null,"",null,""]
[null,null,null,null,"",null,""]
[null,null,null,null,"",null,""]
[null,null,null,null,"",null,""]
[null,null,null,null,"",null,""]
[null,null,null,null,"",null,""]
[null,null,null,null,"",null,""]
[null,null,null,null,"",null,""]
[null,null,null,null,"",null,""]
[null,null,null,null,"",null,""]
[null,null,null,null,"",null,""]
[null,null,null,null,"",null,""]
[null,null,null,null,"",null,{"$f":"IF(A1738<>\"\",IF(B1738=\"\",\"Falta IBAN\",IF(C1738=\"\",\"Falta Valor\",\"Linha totalmente preenchida\")),IF(B1738<>\"\",IF(A1738=\"\",\"Falta Nome\",\"\"),\"\"))","v":""}]
[null,null,null,null,"",null,""]
[null,null,null,null,"",null,""]
[null,null,null,null,"",null,""]
[null,null,null,null,"",null,""]
[null,null,null,null,"",null,""]
[null,null,null,null,"",null,""]
[null,null,null,null,"",null,""]
[null,null,null,null,"",null,""]
[null,null,null,null,"",null,""]
[null,null,null,null,{"$f":"IF(C1748<>\"\",C1748,\"\")","v":""},null,""]
[null,null,null,null,"",null,""]
[null,null,null,null,"",null,""]
[null,null,null,null,"",null,""]
[null,null,null,null,"",null,""]
[null,null,null,null,"",null,""]
[null,null,null,null,"",null,""]
[null,null,null,null,"",null,""]
[null,null,null,null,"",null,""]
[null,null,null,null,"",null,""]
[null,null,null,null,"",null,""]
[null,null,null,null,"",null,""]
[null,null,null,null,"",null,""]
[null,null,null,null,"",null,""]
[null,null,null,null,"",null,""]
[null,null,null,null,"",null,""]
[null,null,null,null,"",null,""]
[null,null,null,null,"",null,""]
[null,null,null,null,"",null,""]
[null,null,null,null,"",null,""]
[null,null,null,null,"",null,""]
[null,null,null,null,"",null,""]
[null,null,null,null,"",null,""]
[null,null,null,null,"",null,""]
[null,null,null,null,"",null,""]
[null,null,null,null,"",null,""]
[null,null,null,null,"",null,""]
[null,null,null,null,"",null,""]
[null,null,null,null,"",null,""]
[null,null,null,null,"",null,""]
[null,null,null,null,"",null,""]
[null,null,null,null,"",null,""]
[null,null,null,null,"",null,""]
[null,null,null,null,"",null,""]
[null,null,null,null,"",null,""]
[null,null,null,null,"",null,""]
[null,null,null,null,"",null,""]
[null,null,null,null,"",null,""]
[null,null,null,null,"",null,""]
[null,null,null,null,"",null,""]
[null,null,null,null,"",null,""]
[null,null,null,null,"",null,""]
[null,null,null,null,"",null,""]
[null,null,null,null,"",null,""]
[null,null,null,null,"",null,""]
[null,null,null,null,"",null,""]
[null,null,null,null,"",null,""]
[null,null,null,null,"",null,""]
[null,null,null,null,"",null,""]
[null,null,null,null,"",null,""]
[null,null,null,null,"",null,""]
[null,null,null,null,"",null,""]
[null,null,null,null,"",null,""]
[null,null,null,null,"",null,""]
[null,null,null,null,"",null,{"$f":"IF(A1802<>\"\",IF(B1802=\"\",\"Falta IBAN\",IF(C1802=\"\",\"Falta Valor\",\"Linha totalmente preenchida\")),IF(B1802<>\"\",IF(A1802=\"\",\"Falta Nome\",\"\"),\"\"))","v":""}]
[null,null,null,null,"",null,""]
[null,null,null,null,"",null,""]
[null,null,null,null,"",null,""]
[null,null,null,null,"",null,""]
[null,null,null,null,"",null,""]
[null,null,null,null,"",null,""]
[null,null,null,null,"",null,""]
[null,null,null,null,"",null,""]
[null,null,null,null,"",null,""]
[null,null,null,null,{"$f":"IF(C1812<>\"\",C1812,\"\")","v":""},null,""]
[null,null,null,null,"",null,""]
[null,null,null,null,"",null,""]
[null,null,null,null,"",null,""]
[null,null,null,null,"",null,""]
[null,null,null,null,"",null,""]
[null,null,null,null,"",null,""]
[null,null,null,null,"",null,""]
[null,null,null,null,"",null,""]
[null,null,null,null,"",null,""]
[null,null,null,null,"",null,""]
[null,null,null,null,"",null,""]
[null,null,null,null,"",null,""]
[null,null,null,null,"",null,""]
[null,null,null,null,"",null,""]
[null,null,null,null,"",null,""]
[null,null,null,null,"",null,""]
[null,null,null,null,"",null,""]
[null,null,null,null,"",null,""]
[null,null,null,null,"",null,""]
[null,null,null,null,"",null,""]
[null,null,null,null,"",null,""]
[null,null,null,null,"",null,""]
[null,null,null,null,"",null,""]
[null,null,null,null,"",null,""]
[null,null,null,null,"",null,""]
[null,null,null,null,"",null,""]
[null,null,null,null,"",null,""]
[null,null,null,null,"",null,""]
[null,null,null,null,"",null,""]
[null,null,null,null,"",null,""]
[null,null,null,null,"",null,""]
[null,null,null,null,"",null,""]
[null,null,null,null,"",null,""]
[null,null,null,null,"",null,""]
[null,null,null,null,"",null,""]
[null,null,null,null,"",null,""]
[null,null,null,null,"",null,""]
[null,null,null,null,"",null,""]
[null,null,null,null,"",null,""]
[null,null,null,null,"",null,""]
[null,null,null,null,"",null,""]
[null,null,null,null,"",null,""]
[null,null,null,null,"",null,""]
[null,null,null,null,"",null,""]
[null,null,null,null,"",null,""]
[null,null,null,null,"",null,""]
[null,null,null,null,"",null,""]
[null,null,null,null,"",null,""]
[null,null,null,null,"",null,""]
[null,null,null,null,"",null,""]
[null,null,null,null,"",null,""]
[null,null,null,null,"",null,""]
[null,null,null,null,"",null,""]
[null,null,null,null,"",null,{"$f":"IF(A1866<>\"\",IF(B1866=\"\",\"Falta IBAN\",IF(C1866=\"\",\"Falta Valor\",\"Linha totalmente preenchida\")),IF(B1866<>\"\",IF(A1866=\"\",\"Falta Nome\",\"\"),\"\"))","v":""}]
[null,null,null,null,"",null,""]
[null,null,null,null,"",null,""]
[null,null,null,null,"",null,""]
[null,null,null,null,"",null,""]
[null,null,null,null,"",null,""]
[null,null,null,null,"",null,""]
[null,null,null,null,"",null,""]
[null,null,null,null,"",null,""]
[null,null,null,null,"",null,""]
[null,null,null,null,{"$f":"IF(C1876<>\"\",C1876,\"\")","v":""},null,""]
[null,null,null,null,"",null,""]
[null,null,null,null,"",null,""]
[null,null,null,null,"",null,""]
[null,null,null,null,"",null,""]
[null,null,null,null,"",null,""]
[null,null,null,null,"",null,""]
[null,null,null,null,"",null,""]
[null,null,null,null,"",null,""]
[null,null,null,null,"",null,""]
[null,null,null,null,"",null,""]
[null,null,null,null,"",null,""]
[null,null,null,null,"",null,""]
[null,null,null,null,"",null,""]
[null,null,null,null,"",null,""]
[null,null,null,null,"",null,""]
[null,null,null,null,"",null,""]
[null,null,null,null,"",null,""]
[null,null,null,null,"",null,""]
[null,null,null,null,"",null,""]
[null,null,null,null,"",null,""]
[null,null,null,null,"",null,""]
[null,null,null,null,"",null,""]
[null,null,null,null,"",null,""]
[null,null,null,null,"",null,""]
[null,null,null,null,"",null,""]
[null,null,null,null,"",null,""]
[null,null,null,null,"",null,""]
[null,null,null,null,"",null,""]
[null,null,null,null,"",null,""]
[null,null,null,null,"",null,""]
[null,null,null,null,"",null,""]
[null,null,null,null,"",null,""]
[null,null,null,null,"",null,""]
[null,null,null,null,"",null,""]
[null,null,null,null,"",null,""]
[null,null,null,null,"",null,""]
[null,null,null,null,"",null,""]
[null,null,null,null,"",null,""]
[null,null,null,null,"",null,""]
[null,null,null,null,"",null,""]
[null,null,null,null,"",null,""]
[null,null,null,null,"",null,""]
[null,null,null,null,"",null,""]
[null,null,null,null,"",null,""]
[null,null,null,null,"",null,""]
[null,null,null,null,"",null,""]
[null,null,null,null,"",null,""]
[null,null,null,null,"",null,""]
[null,null,null,null,"",null,""]
[null,null,null,null,"",null,""]
[null,null,null,null,"",null,""]
[null,null,null,null,"",null,""]
[null,null,null,null,"",null,""]
[null,null,null,null,"",null,{"$f":"IF(A1930<>\"\",IF(B1930=\"\",\"Falta IBAN\",IF(C1930=\"\",\"Falta Valor\",\"Linha totalmente preenchida\")),IF(B1930<>\"\",IF(A1930=\"\",\"Falta Nome\",\"\"),\"\"))","v":""}]
[null,null,null,null,"",null,""]
[null,null,null,null,"",null,""]
[null,null,null,null,"",null,""]
[null,null,null,null,"",null,""]
[null,null,null,null,"",null,""]
[null,null,null,null,"",null,""]
[null,null,null,null,"",null,""]
[null,null,null,null,"",null,""]
[null,null,null,null,"",null,""]
[null,null,null,null,{"$f":"IF(C1940<>\"\",C1940,\"\")","v":""},null,""]
[null,null,null,null,"",null,""]
[null,null,null,null,"",null,""]
[null,null,null,null,"",null,""]
[null,null,null,null,"",null,""]
[null,null,null,null,"",null,""]
[null,null,null,null,"",null,""]
[null,null,null,null,"",null,""]
[null,null,null,null,"",null,""]
[null,null,null,null,"",null,""]
[null,null,null,null,"",null,""]
[null,null,null,null,"",null,""]
[null,null,null,null,"",null,""]
[null,null,null,null,"",null,""]
[null,null,null,null,"",null,""]
[null,null,null,null,"",null,""]
[null,null,null,null,"",null,""]
[null,null,null,null,"",null,""]
[null,null,null,null,"",null,""]
[null,null,null,null,"",null,""]
[null,null,null,null,"",null,""]
[null,null,null,null,"",null,""]
[null,null,null,null,"",null,""]
[null,null,null,null,"",null,""]
[null,null,null,null,"",null,""]
[null,null,null,null,"",null,""]
[null,null,null,null,"",null,""]
[null,null,null,null,"",null,""]
[null,null,null,null,"",null,""]
[null,null,null,null,"",null,""]
[null,null,null,null,"",null,""]
[null,null,null,null,"",null,""]
[null,null,null,null,"",null,""]
[null,null,null,null,"",null,""]
[null,null,null,null,"",null,""]
[null,null,null,null,"",null,""]
[null,null,null,null,"",null,""]
[null,null,null,null,"",null,""]
[null,null,null,null,"",null,""]
[null,null,null,null,"",null,""]
[null,null,null,null,"",null,""]
[null,null,null,null,"",null,""]
[null,null,null,null,"",null,""]
[null,null,null,null,"",null,""]
[null,null,null,null,"",null,""]
[null,null,null,null,"",null,""]
[null,null,null,null,"",null,""]
[null,null,null,null,"",null,""]
[null,null,null,null,"",null,""]
[null,null,null,null,"",null,""]
[null,null,null,null,"",null,""]
[null,null,null,null,"",null,""]
[null,null,null,null,"",null,""]
[null,null,null,null,"",null,""]
[null,null,null,null,"",null,{"$f":"IF(A1994<>\"\",IF(B1994=\"\",\"Falta IBAN\",IF(C1994=\"\",\"Falta Valor\",\"Linha totalmente preenchida\")),IF(B1994<>\"\",IF(A1994=\"\",\"Falta Nome\",\"\"),\"\"))","v":""}]
[null,null,null,null,"",null,""]
[null,null,null,null,"",null,""]
[null,null,null,null,"",null,""]
[null,null,null,null,"",null,""]
[null,null,null,null,"",null,""]
[null,null,null,null,"",null,""]
[null,null,null,null,"",null,""]
[null,null,null,null,"",null,""]
[null,null,null,null,"",null,""]
[null,null,null,null,{"$f":"IF(C2004<>\"\",C2004,\"\")","v":""},null,""]
[null,null,null,null,"",null,""]
[null,null,null,null,"",null,""]
[null,null,null,null,"",null,""]
[null,null,null,null,"",null,""]
[null,null,null,null,"",null,""]
[null,null,null,null,"",null,""]
[null,null,null,null,{"$f":"IF(C2011<>\"\",C2011,\"\")","v":""},null,""]
[null,null,null,null,"",null,""]
[null,null,null,null,"",null,""]
[null,null,null,null,"",null,""]
[null,null,null,null,"",null,""]
[null,null,null,null,"",null,""]
[null,null,null,null,"",null,""]
[null,null,null,null,"",null,""]
[null,null,null,null,"",null,""]
[null,null,null,null,"",null,""]
[null,null,null,null,"",null,""]
[null,null,null,null,"",null,""]
[null,null,null,null,"",null,""]
[null,null,null,null,"",null,""]
[null,null,null,null,"",null,""]
[null,null,null,null,"",null,""]
[null,null,null,null,"",null,""]
[null,null,null,null,"",null,""]
[null,null,null,null,"",null,""]
[null,null,null,null,"",null,""]
[null,null,null,null,"",null,""]
[null,null,null,null,"",null,""]
[null,null,null,null,"",null,""]
[null,null,null,null,"",null,""]
[null,null,null,null,"",null,""]
[null,null,null,null,"",null,""]
[null,null,null,null,"",null,""]
[null,null,null,null,"",null,""]
[null,null,null,null,"",null,""]
[null,null,null,null,"",null,""]
[null,null,null,null,"",null,""]
[null,null,null,null,"",null,""]
[null,null,null,null,"",null,""]
[null,null,null,null,"",null,""]
[null,null,null,null,"",null,""]
[null,null,null,null,"",null,""]
[null,null,null,null,"",null,""]
[null,null,null,null,"",null,""]
[null,null,null,null,"",null,""]
[null,null,null,null,"",null,""]
[null,null,null,null,"",null,""]
[null,null,null,null,"",null,""]
[null,null,null,null,"",null,""]
[null,null,null,null,"",null,""]
[null,null,null,null,"",null,""]
[null,null,null,null,"",null,""]
[null,null,null,null,"",null,""]
[null,null,null,null,"",null,{"$f":"IF(A2058<>\"\",IF(B2058=\"\",\"Falta IBAN\",IF(C2058=\"\",\"Falta Valor\",\"Linha totalmente preenchida\")),IF(B2058<>\"\",IF(A2058=\"\",\"Falta Nome\",\"\"),\"\"))","v":""}]
[null,null,null,null,"",null,""]
[null,null,null,null,"",null,""]
[null,null,null,null,"",null,""]
[null,null,null,null,"",null,""]
[null,null,null,null,"",null,""]
[null,null,null,null,"",null,""]
[null,null,null,null,"",null,""]
[null,null,null,null,"",null,""]
[null,null,null,null,"",null,""]
[null,null,null,null,"",null,""]
[null,null,null,null,"",null,""]
[null,null,null,null,"",null,""]
[null,null,null,null,"",null,""]
[null,null,null,null,"",null,""]
[null,null,null,null,"",null,""]
[null,null,null,null,"",null,""]
[null,null,null,null,{"$f":"IF(C2075<>\"\",C2075,\"\")","v":""},null,""]
[null,null,null,null,"",null,""]
[null,null,null,null,"",null,""]
[null,null,null,null,"",null,""]
[null,null,null,null,"",null,""]
[null,null,null,null,"",null,""]
[null,null,null,null,"",null,""]
[null,null,null,null,"",null,""]
[null,null,null,null,"",null,""]
[null,null,null,null,"",null,""]
[null,null,null,null,"",null,""]
[null,null,null,null,"",null,""]
[null,null,null,null,"",null,""]
[null,null,null,null,"",null,""]
[null,null,null,null,"",null,""]
[null,null,null,null,"",null,""]
[null,null,null,null,"",null,""]
[null,null,null,null,"",null,""]
[null,null,null,null,"",null,""]
[null,null,null,null,"",null,""]
[null,null,null,null,"",null,""]
[null,null,null,null,"",null,""]
[null,null,null,null,"",null,""]
[null,null,null,null,"",null,""]
[null,null,null,null,"",null,""]
[null,null,null,null,"",null,""]
[null,null,null,null,"",null,""]
[null,null,null,null,"",null,""]
[null,null,null,null,"",null,""]
[null,null,null,null,"",null,""]
[null,null,null,null,"",null,""]
[null,null,null,null,"",null,""]
[null,null,null,null,"",null,""]
[null,null,null,null,"",null,""]
[null,null,null,null,"",null,""]
[null,null,null,null,"",null,""]
[null,null,null,null,"",null,""]
[null,null,null,null,"",null,""]
[null,null,null,null,"",null,""]
[null,null,null,null,"",null,""]
[null,null,null,null,"",null,""]
[null,null,null,null,"",null,""]
[null,null,null,null,"",null,""]
[null,null,null,null,"",null,""]
[null,null,null,null,"",null,""]
[null,null,null,null,"",null,""]
[null,null,null,null,"",null,""]
[null,null,null,null,"",null,{"$f":"IF(A2122<>\"\",IF(B2122=\"\",\"Falta IBAN\",IF(C2122=\"\",\"Falta Valor\",\"Linha totalmente preenchida\")),IF(B2122<>\"\",IF(A2122=\"\",\"Falta Nome\",\"\"),\"\"))","v":""}]
[null,null,null,null,"",null,""]
[null,null,null,null,"",null,""]
[null,null,null,null,"",null,""]
[null,null,null,null,"",null,""]
[null,null,null,null,"",null,""]
[null,null,null,null,"",null,""]
[null,null,null,null,"",null,""]
[null,null,null,null,"",null,""]
[null,null,null,null,"",null,""]
[null,null,null,null,"",null,""]
[null,null,null,null,"",null,""]
[null,null,null,null,"",null,""]
[null,null,null,null,"",null,""]
[null,null,null,null,"",null,""]
[null,null,null,null,"",null,""]
[null,null,null,null,"",null,""]
[null,null,null,null,{"$f":"IF(C2139<>\"\",C2139,\"\")","v":""},null,""]
[null,null,null,null,"",null,""]
[null,null,null,null,"",null,""]
[null,null,null,null,"",null,""]
[null,null,null,null,"",null,""]
[null,null,null,null,"",null,""]
[null,null,null,null,"",null,""]
[null,null,null,null,"",null,""]
[null,null,null,null,"",null,""]
[null,null,null,null,"",null,""]
[null,null,null,null,"",null,""]
[null,null,null,null,"",null,""]
[null,null,null,null,"",null,""]
[null,null,null,null,"",null,""]
[null,null,null,null,"",null,""]
[null,null,null,null,"",null,""]
[null,null,null,null,"",null,""]
[null,null,null,null,"",null,""]
[null,null,null,null,"",null,""]
[null,null,null,null,"",null,""]
[null,null,null,null,"",null,""]
[null,null,null,null,"",null,""]
[null,null,null,null,"",null,""]
[null,null,null,null,"",null,""]
[null,null,null,null,"",null,""]
[null,null,null,null,"",null,""]
[null,null,null,null,"",null,""]
[null,null,null,null,"",null,""]
[null,null,null,null,"",null,""]
[null,null,null,null,"",null,""]
[null,null,null,null,"",null,""]
[null,null,null,null,"",null,""]
[null,null,null,null,"",null,""]
[null,null,null,null,"",null,""]
[null,null,null,null,"",null,""]
[null,null,null,null,"",null,""]
[null,null,null,null,"",null,""]
[null,null,null,null,"",null,""]
[null,null,null,null,"",null,""]
[null,null,null,null,"",null,""]
[null,null,null,null,"",null,""]
[null,null,null,null,"",null,""]
[null,null,null,null,"",null,""]
[null,null,null,null,"",null,""]
[null,null,null,null,"",null,""]
[null,null,null,null,"",null,""]
[null,null,null,null,"",null,""]
[null,null,null,null,"",null,{"$f":"IF(A2186<>\"\",IF(B2186=\"\",\"Falta IBAN\",IF(C2186=\"\",\"Falta Valor\",\"Linha totalmente preenchida\")),IF(B2186<>\"\",IF(A2186=\"\",\"Falta Nome\",\"\"),\"\"))","v":""}]
[null,null,null,null,"",null,""]
[null,null,null,null,"",null,""]
[null,null,null,null,"",null,""]
[null,null,null,null,"",null,""]
[null,null,null,null,"",null,""]
[null,null,null,null,"",null,""]
[null,null,null,null,"",null,""]
[null,null,null,null,"",null,""]
[null,null,null,null,"",null,""]
[null,null,null,null,"",null,""]
[null,null,null,null,"",null,""]
[null,null,null,null,"",null,""]
[null,null,null,null,"",null,""]
[null,null,null,null,"",null,""]
[null,null,null,null,"",null,""]
[null,null,null,null,"",null,""]
[null,null,null,null,{"$f":"IF(C2203<>\"\",C2203,\"\")","v":""},null,""]
[null,null,null,null,"",null,""]
[null,null,null,null,"",null,""]
[null,null,null,null,"",null,""]
[null,null,null,null,"",null,""]
[null,null,null,null,"",null,""]
[null,null,null,null,"",null,""]
[null,null,null,null,"",null,""]
[null,null,null,null,"",null,""]
[null,null,null,null,"",null,""]
[null,null,null,null,"",null,""]
[null,null,null,null,"",null,""]
[null,null,null,null,"",null,""]
[null,null,null,null,"",null,""]
[null,null,null,null,"",null,""]
[null,null,null,null,"",null,""]
[null,null,null,null,"",null,""]
[null,null,null,null,"",null,""]
[null,null,null,null,"",null,""]
[null,null,null,null,"",null,""]
[null,null,null,null,"",null,""]
[null,null,null,null,"",null,""]
[null,null,null,null,"",null,""]
[null,null,null,null,"",null,""]
[null,null,null,null,"",null,""]
[null,null,null,null,"",null,""]
[null,null,null,null,"",null,""]
[null,null,null,null,"",null,""]
[null,null,null,null,"",null,""]
[null,null,null,null,"",null,""]
[null,null,null,null,"",null,""]
[null,null,null,null,"",null,""]
[null,null,null,null,"",null,""]
[null,null,null,null,"",null,""]
[null,null,null,null,"",null,""]
[null,null,null,null,"",null,""]
[null,null,null,null,"",null,""]
[null,null,null,null,"",null,""]
[null,null,null,null,"",null,""]
[null,null,null,null,"",null,""]
[null,null,null,null,"",null,""]
[null,null,null,null,"",null,""]
[null,null,null,null,"",null,""]
[null,null,null,null,"",null,""]
[null,null,null,null,"",null,""]
[null,null,null,null,"",null,""]
[null,null,null,null,"",null,""]
[null,null,null,null,"",null,{"$f":"IF(A2250<>\"\",IF(B2250=\"\",\"Falta IBAN\",IF(C2250=\"\",\"Falta Valor\",\"Linha totalmente preenchida\")),IF(B2250<>\"\",IF(A2250=\"\",\"Falta Nome\",\"\"),\"\"))","v":""}]
[null,null,null,null,"",null,""]
[null,null,null,null,"",null,""]
[null,null,null,null,"",null,""]
[null,null,null,null,"",null,""]
[null,null,null,null,"",null,""]
[null,null,null,null,"",null,""]
[null,null,null,null,"",null,""]
[null,null,null,null,"",null,""]
[null,null,null,null,"",null,""]
[null,null,null,null,"",null,""]
[null,null,null,null,"",null,""]
[null,null,null,null,"",null,""]
[null,null,null,null,"",null,""]
[null,null,null,null,"",null,""]
[null,null,null,null,"",null,""]
[null,null,null,null,"",null,""]
[null,null,null,null,{"$f":"IF(C2267<>\"\",C2267,\"\")","v":""},null,""]
[null,null,null,null,"",null,""]
[null,null,null,null,"",null,""]
[null,null,null,null,"",null,""]
[null,null,null,null,"",null,""]
[null,null,null,null,"",null,""]
[null,null,null,null,"",null,""]
[null,null,null,null,"",null,""]
[null,null,null,null,"",null,""]
[null,null,null,null,"",null,""]
[null,null,null,null,"",null,""]
[null,null,null,null,"",null,""]
[null,null,null,null,"",null,""]
[null,null,null,null,"",null,""]
[null,null,null,null,"",null,""]
[null,null,null,null,"",null,""]
[null,null,null,null,"",null,""]
[null,null,null,null,"",null,""]
[null,null,null,null,"",null,""]
[null,null,null,null,"",null,""]
[null,null,null,null,"",null,""]
[null,null,null,null,"",null,""]
[null,null,null,null,"",null,""]
[null,null,null,null,"",null,""]
[null,null,null,null,"",null,""]
[null,null,null,null,"",null,""]
[null,null,null,null,"",null,""]
[null,null,null,null,"",null,""]
[null,null,null,null,"",null,""]
[null,null,null,null,"",null,""]
[null,null,null,null,"",null,""]
[null,null,null,null,"",null,""]
[null,null,null,null,"",null,""]
[null,null,null,null,"",null,""]
[null,null,null,null,"",null,""]
[null,null,null,null,"",null,""]
[null,null,null,null,"",null,""]
[null,null,null,null,"",null,""]
[null,null,null,null,"",null,""]
[null,null,null,null,"",null,""]
[null,null,null,null,"",null,""]
[null,null,null,null,"",null,""]
[null,null,null,null,"",null,""]
[null,null,null,null,"",null,""]
[null,null,null,null,"",null,""]
[null,null,null,null,"",null,""]
[null,null,null,null,"",null,""]
[null,null,null,null,"",null,{"$f":"IF(A2314<>\"\",IF(B2314=\"\",\"Falta IBAN\",IF(C2314=\"\",\"Falta Valor\",\"Linha totalmente preenchida\")),IF(B2314<>\"\",IF(A2314=\"\",\"Falta Nome\",\"\"),\"\"))","v":""}]
[null,null,null,null,"",null,""]
[null,null,null,null,"",null,""]
[null,null,null,null,"",null,""]
[null,null,null,null,"",null,""]
[null,null,null,null,"",null,""]
[null,null,null,null,"",null,""]
[null,null,null,null,"",null,""]
[null,null,null,null,"",null,""]
[null,null,null,null,"",null,""]
[null,null,null,null,"",null,""]
[null,null,null,null,"",null,""]
[null,null,null,null,"",null,""]
[null,null,null,null,"",null,""]
[null,null,null,null,"",null,""]
[null,null,null,null,"",null,""]
[null,null,null,null,"",null,""]
[null,null,null,null,{"$f":"IF(C2331<>\"\",C2331,\"\")","v":""},null,""]
[null,null,null,null,"",null,""]
[null,null,null,null,"",null,""]
[null,null,null,null,"",null,""]
[null,null,null,null,"",null,""]
[null,null,null,null,"",null,""]
[null,null,null,null,"",null,""]
[null,null,null,null,"",null,""]
[null,null,null,null,"",null,""]
[null,null,null,null,"",null,""]
[null,null,null,null,"",null,""]
[null,null,null,null,"",null,""]
[null,null,null,null,"",null,""]
[null,null,null,null,"",null,""]
[null,null,null,null,"",null,""]
[null,null,null,null,"",null,""]
[null,null,null,null,"",null,""]
[null,null,null,null,"",null,""]
[null,null,null,null,"",null,""]
[null,null,null,null,"",null,""]
[null,null,null,null,"",null,""]
[null,null,null,null,"",null,""]
[null,null,null,null,"",null,""]
[null,null,null,null,"",null,""]
[null,null,null,null,"",null,""]
[null,null,null,null,"",null,""]
[null,null,null,null,"",null,""]
[null,null,null,null,"",null,""]
[null,null,null,null,"",null,""]
[null,null,null,null,"",null,""]
[null,null,null,null,"",null,""]
[null,null,null,null,"",null,""]
[null,null,null,null,"",null,""]
[null,null,null,null,"",null,""]
[null,null,null,null,"",null,""]
[null,null,null,null,"",null,""]
[null,null,null,null,"",null,""]
[null,null,null,null,"",null,""]
[null,null,null,null,"",null,""]
[null,null,null,null,"",null,""]
[null,null,null,null,"",null,""]
[null,null,null,null,"",null,""]
[null,null,null,null,"",null,""]
[null,null,null,null,"",null,""]
[null,null,null,null,"",null,""]
[null,null,null,null,"",null,""]
[null,null,null,null,"",null,""]
[null,null,null,null,"",null,{"$f":"IF(A2378<>\"\",IF(B2378=\"\",\"Falta IBAN\",IF(C2378=\"\",\"Falta Valor\",\"Linha totalmente preenchida\")),IF(B2378<>\"\",IF(A2378=\"\",\"Falta Nome\",\"\"),\"\"))","v":""}]
[null,null,null,null,"",null,""]
[null,null,null,null,"",null,""]
[null,null,null,null,"",null,""]
[null,null,null,null,"",null,""]
[null,null,null,null,"",null,""]
[null,null,null,null,"",null,""]
[null,null,null,null,"",null,""]
[null,null,null,null,"",null,""]
[null,null,null,null,"",null,""]
[null,null,null,null,"",null,""]
[null,null,null,null,"",null,""]
[null,null,null,null,"",null,""]
[null,null,null,null,"",null,""]
[null,null,null,null,"",null,""]
[null,null,null,null,"",null,""]
[null,null,null,null,"",null,""]
[null,null,null,null,{"$f":"IF(C2395<>\"\",C2395,\"\")","v":""},null,""]
[null,null,null,null,"",null,""]
[null,null,null,null,"",null,""]
[null,null,null,null,"",null,""]
[null,null,null,null,"",null,""]
[null,null,null,null,"",null,""]
[null,null,null,null,"",null,""]
[null,null,null,null,"",null,""]
[null,null,null,null,"",null,""]
[null,null,null,null,"",null,""]
[null,null,null,null,"",null,""]
[null,null,null,null,"",null,""]
[null,null,null,null,"",null,""]
[null,null,null,null,"",null,""]
[null,null,null,null,"",null,""]
[null,null,null,null,"",null,""]
[null,null,null,null,"",null,""]
[null,null,null,null,"",null,""]
[null,null,null,null,"",null,""]
[null,null,null,null,"",null,""]
[null,null,null,null,"",null,""]
[null,null,null,null,"",null,""]
[null,null,null,null,"",null,""]
[null,null,null,null,"",null,""]
[null,null,null,null,"",null,""]
[null,null,null,null,"",null,""]
[null,null,null,null,"",null,""]
[null,null,null,null,"",null,""]
[null,null,null,null,"",null,""]
[null,null,null,null,"",null,""]
[null,null,null,null,"",null,""]
[null,null,null,null,"",null,""]
[null,null,null,null,"",null,""]
[null,null,null,null,"",null,""]
[null,null,null,null,"",null,""]
[null,null,null,null,"",null,""]
[null,null,null,null,"",null,""]
[null,null,null,null,"",null,""]
[null,null,null,null,"",null,""]
[null,null,null,null,"",null,""]
[null,null,null,null,"",null,""]
[null,null,null,null,"",null,""]
[null,null,null,null,"",null,""]
[null,null,null,null,"",null,""]
[null,null,null,null,"",null,""]
[null,null,null,null,"",null,""]
[null,null,null,null,"",null,""]
[null,null,null,null,"",null,{"$f":"IF(A2442<>\"\",IF(B2442=\"\",\"Falta IBAN\",IF(C2442=\"\",\"Falta Valor\",\"Linha totalmente preenchida\")),IF(B2442<>\"\",IF(A2442=\"\",\"Falta Nome\",\"\"),\"\"))","v":""}]
[null,null,null,null,"",null,""]
[null,null,null,null,"",null,""]
[null,null,null,null,"",null,""]
[null,null,null,null,"",null,""]
[null,null,null,null,"",null,""]
[null,null,null,null,"",null,""]
[null,null,null,null,"",null,""]
[null,null,null,null,"",null,""]
[null,null,null,null,"",null,""]
[null,null,null,null,"",null,""]
[null,null,null,null,"",null,""]
[null,null,null,null,"",null,""]
[null,null,null,null,"",null,""]
[null,null,null,null,"",null,""]
[null,null,null,null,"",null,""]
[null,null,null,null,"",null,""]
[null,null,null,null,{"$f":"IF(C2459<>\"\",C2459,\"\")","v":""},null,""]
[null,null,null,null,"",null,""]
[null,null,null,null,"",null,""]
[null,null,null,null,"",null,""]
[null,null,null,null,"",null,""]
[null,null,null,null,"",null,""]
[null,null,null,null,"",null,""]
[null,null,null,null,"",null,""]
[null,null,null,null,"",null,""]
[null,null,null,null,"",null,""]
[null,null,null,null,"",null,""]
[null,null,null,null,"",null,""]
[null,null,null,null,"",null,""]
[null,null,null,null,"",null,""]
[null,null,null,null,"",null,""]
[null,null,null,null,"",null,""]
[null,null,null,null,"",null,""]
[null,null,null,null,"",null,""]
[null,null,null,null,"",null,""]
[null,null,null,null,"",null,""]
[null,null,null,null,"",null,""]
[null,null,null,null,"",null,""]
[null,null,null,null,"",null,""]
[null,null,null,null,"",null,""]
[null,null,null,null,"",null,""]
[null,null,null,null,"",null,""]
[null,null,null,null,"",null,""]
[null,null,null,null,"",null,""]
[null,null,null,null,"",null,""]
[null,null,null,null,"",null,""]
[null,null,null,null,"",null,""]
[null,null,null,null,"",null,""]
[null,null,null,null,"",null,""]
[null,null,null,null,"",null,""]
[null,null,null,null,"",null,""]
[null,null,null,null,"",null,""]
[null,null,null,null,"",null,""]
[null,null,null,null,"",null,""]
[null,null,null,null,"",null,""]
[null,null,null,null,"",null,""]
[null,null,null,null,"",null,""]
[null,null,null,null,"",null,""]
[null,null,null,null,"",null,""]
[null,null,null,null,"",null,""]
[null,null,null,null,"",null,""]
[null,null,null,null,"",null,""]
[null,null,null,null,"",null,""]
[null,null,null,null,"",null,{"$f":"IF(A2506<>\"\",IF(B2506=\"\",\"Falta IBAN\",IF(C2506=\"\",\"Falta Valor\",\"Linha totalmente preenchida\")),IF(B2506<>\"\",IF(A2506=\"\",\"Falta Nome\",\"\"),\"\"))","v":""}]
[null,null,null,null,"",null,""]
[null,null,null,null,"",null,""]
[null,null,null,null,"",null,""]
[null,null,null,null,"",null,""]
[null,null,null,null,"",null,""]
[null,null,null,null,"",null,""]
[null,null,null,null,"",null,""]
[null,null,null,null,"",null,""]
[null,null,null,null,"",null,""]
[null,null,null,null,"",null,""]
[null,null,null,null,"",null,""]
[null,null,null,null,"",null,""]
[null,null,null,null,"",null,""]
[null,null,null,null,"",null,""]
[null,null,null,null,"",null,""]
[null,null,null,null,"",null,""]
[null,null,null,null,{"$f":"IF(C2523<>\"\",C2523,\"\")","v":""},null,""]
[null,null,null,null,"",null,""]
[null,null,null,null,"",null,""]
[null,null,null,null,"",null,""]
[null,null,null,null,"",null,""]
[null,null,null,null,"",null,""]
[null,null,null,null,"",null,""]
[null,null,null,null,"",null,""]
[null,null,null,null,"",null,""]
[null,null,null,null,"",null,""]
[null,null,null,null,"",null,""]
[null,null,null,null,"",null,""]
[null,null,null,null,"",null,""]
[null,null,null,null,"",null,""]
[null,null,null,null,"",null,""]
[null,null,null,null,"",null,""]
[null,null,null,null,"",null,""]
[null,null,null,null,"",null,""]
[null,null,null,null,"",null,""]
[null,null,null,null,"",null,""]
[null,null,null,null,"",null,""]
[null,null,null,null,"",null,""]
[null,null,null,null,"",null,""]
[null,null,null,null,"",null,""]
[null,null,null,null,"",null,""]
[null,null,null,null,"",null,""]
[null,null,null,null,"",null,""]
[null,null,null,null,"",null,""]
[null,null,null,null,"",null,""]
[null,null,null,null,"",null,""]
[null,null,null,null,"",null,""]
[null,null,null,null,"",null,""]
[null,null,null,null,"",null,""]
[null,null,null,null,"",null,""]
[null,null,null,null,"",null,""]
[null,null,null,null,"",null,""]
[null,null,null,null,"",null,""]
[null,null,null,null,"",null,""]
[null,null,null,null,"",null,""]
[null,null,null,null,"",null,""]
[null,null,null,null,"",null,""]
[null,null,null,null,"",null,""]
[null,null,null,null,"",null,""]
[null,null,null,null,"",null,""]
[null,null,null,null,"",null,""]
[null,null,null,null,"",null,""]
[null,null,null,null,"",null,""]
[null,null,null,null,"",null,{"$f":"IF(A2570<>\"\",IF(B2570=\"\",\"Falta IBAN\",IF(C2570=\"\",\"Falta Valor\",\"Linha totalmente preenchida\")),IF(B2570<>\"\",IF(A2570=\"\",\"Falta Nome\",\"\"),\"\"))","v":""}]
[null,null,null,null,"",null,""]
[null,null,null,null,"",null,""]
[null,null,null,null,"",null,""]
[null,null,null,null,"",null,""]
[null,null,null,null,"",null,""]
[null,null,null,null,"",null,""]
[null,null,null,null,"",null,""]
[null,null,null,null,"",null,""]
[null,null,null,null,"",null,""]
[null,null,null,null,"",null,""]
[null,null,null,null,"",null,""]
[null,null,null,null,"",null,""]
[null,null,null,null,"",null,""]
[null,null,null,null,"",null,""]
[null,null,null,null,"",null,""]
[null,null,null,null,"",null,""]
[null,null,null,null,{"$f":"IF(C2587<>\"\",C2587,\"\")","v":""},null,""]
[null,null,null,null,"",null,""]
[null,null,null,null,"",null,""]
[null,null,null,null,"",null,""]
[null,null,null,null,"",null,""]
[null,null,null,null,"",null,""]
[null,null,null,null,"",null,""]
[null,null,null,null,"",null,""]
[null,null,null,null,"",null,""]
[null,null,null,null,"",null,""]
[null,null,null,null,"",null,""]
[null,null,null,null,"",null,""]
[null,null,null,null,"",null,""]
[null,null,null,null,"",null,""]
[null,null,null,null,"",null,""]
[null,null,null,null,"",null,""]
[null,null,null,null,"",null,""]
[null,null,null,null,"",null,""]
[null,null,null,null,"",null,""]
[null,null,null,null,"",null,""]
[null,null,null,null,"",null,""]
[null,null,null,null,"",null,""]
[null,null,null,null,"",null,""]
[null,null,null,null,"",null,""]
[null,null,null,null,"",null,""]
[null,null,null,null,"",null,""]
[null,null,null,null,"",null,""]
[null,null,null,null,"",null,""]
[null,null,null,null,"",null,""]
[null,null,null,null,"",null,""]
[null,null,null,null,"",null,""]
[null,null,null,null,"",null,""]
[null,null,null,null,"",null,""]
[null,null,null,null,"",null,""]
[null,null,null,null,"",null,""]
[null,null,null,null,"",null,""]
[null,null,null,null,"",null,""]
[null,null,null,null,"",null,""]
[null,null,null,null,"",null,""]
[null,null,null,null,"",null,""]
[null,null,null,null,"",null,""]
[null,null,null,null,"",null,""]
[null,null,null,null,"",null,""]
[null,null,null,null,"",null,""]
[null,null,null,null,"",null,""]
[null,null,null,null,"",null,""]
[null,null,null,null,"",null,""]
[null,null,null,null,"",null,{"$f":"IF(A2634<>\"\",IF(B2634=\"\",\"Falta IBAN\",IF(C2634=\"\",\"Falta Valor\",\"Linha totalmente preenchida\")),IF(B2634<>\"\",IF(A2634=\"\",\"Falta Nome\",\"\"),\"\"))","v":""}]
[null,null,null,null,"",null,""]
[null,null,null,null,"",null,""]
[null,null,null,null,"",null,""]
[null,null,null,null,"",null,""]
[null,null,null,null,"",null,""]
[null,null,null,null,"",null,""]
[null,null,null,null,"",null,""]
[null,null,null,null,"",null,""]
[null,null,null,null,"",null,""]
[null,null,null,null,"",null,""]
[null,null,null,null,"",null,""]
[null,null,null,null,"",null,""]
[null,null,null,null,"",null,""]
[null,null,null,null,"",null,""]
[null,null,null,null,"",null,""]
[null,null,null,null,"",null,""]
[null,null,null,null,{"$f":"IF(C2651<>\"\",C2651,\"\")","v":""},null,""]
[null,null,null,null,"",null,""]
[null,null,null,null,"",null,""]
[null,null,null,null,"",null,""]
[null,null,null,null,"",null,""]
[null,null,null,null,"",null,""]
[null,null,null,null,"",null,""]
[null,null,null,null,"",null,""]
[null,null,null,null,"",null,""]
[null,null,null,null,"",null,""]
[null,null,null,null,"",null,""]
[null,null,null,null,"",null,""]
[null,null,null,null,"",null,""]
[null,null,null,null,"",null,""]
[null,null,null,null,"",null,""]
[null,null,null,null,"",null,""]
[null,null,null,null,"",null,""]
[null,null,null,null,"",null,""]
[null,null,null,null,"",null,""]
[null,null,null,null,"",null,""]
[null,null,null,null,"",null,""]
[null,null,null,null,"",null,""]
[null,null,null,null,"",null,""]
[null,null,null,null,"",null,""]
[null,null,null,null,"",null,""]
[null,null,null,null,"",null,""]
[null,null,null,null,"",null,""]
[null,null,null,null,"",null,""]
[null,null,null,null,"",null,""]
[null,null,null,null,"",null,""]
[null,null,null,null,"",null,""]
[null,null,null,null,"",null,""]
[null,null,null,null,"",null,""]
[null,null,null,null,"",null,""]
[null,null,null,null,"",null,""]
[null,null,null,null,"",null,""]
[null,null,null,null,"",null,""]
[null,null,null,null,"",null,""]
[null,null,null,null,"",null,""]
[null,null,null,null,"",null,""]
[null,null,null,null,"",null,""]
[null,null,null,null,"",null,""]
[null,null,null,null,"",null,""]
[null,null,null,null,"",null,""]
[null,null,null,null,"",null,""]
[null,null,null,null,"",null,""]
[null,null,null,null,"",null,""]
[null,null,null,null,"",null,{"$f":"IF(A2698<>\"\",IF(B2698=\"\",\"Falta IBAN\",IF(C2698=\"\",\"Falta Valor\",\"Linha totalmente preenchida\")),IF(B2698<>\"\",IF(A2698=\"\",\"Falta Nome\",\"\"),\"\"))","v":""}]
[null,null,null,null,"",null,""]
[null,null,null,null,"",null,""]
[null,null,null,null,"",null,""]
[null,null,null,null,"",null,""]
[null,null,null,null,"",null,""]
[null,null,null,null,"",null,""]
[null,null,null,null,"",null,""]
[null,null,null,null,"",null,""]
[null,null,null,null,"",null,""]
[null,null,null,null,"",null,""]
[null,null,null,null,"",null,""]
[null,null,null,null,"",null,""]
[null,null,null,null,"",null,""]
[null,null,null,null,"",null,""]
[null,null,null,null,"",null,""]
[null,null,null,null,"",null,""]
[null,null,null,null,{"$f":"IF(C2715<>\"\",C2715,\"\")","v":""},null,""]
[null,null,null,null,"",null,""]
[null,null,null,null,"",null,""]
[null,null,null,null,"",null,""]
[null,null,null,null,"",null,""]
[null,null,null,null,"",null,""]
[null,null,null,null,"",null,""]
[null,null,null,null,"",null,""]
[null,null,null,null,"",null,""]
[null,null,null,null,"",null,""]
[null,null,null,null,"",null,""]
[null,null,null,null,"",null,""]
[null,null,null,null,"",null,""]
[null,null,null,null,"",null,""]
[null,null,null,null,"",null,""]
[null,null,null,null,"",null,""]
[null,null,null,null,"",null,""]
[null,null,null,null,"",null,""]
[null,null,null,null,"",null,""]
[null,null,null,null,"",null,""]
[null,null,null,null,"",null,""]
[null,null,null,null,"",null,""]
[null,null,null,null,"",null,""]
[null,null,null,null,"",null,""]
[null,null,null,null,"",null,""]
[null,null,null,null,"",null,""]
[null,null,null,null,"",null,""]
[null,null,null,null,"",null,""]
[null,null,null,null,"",null,""]
[null,null,null,null,"",null,""]
[null,null,null,null,"",null,""]
[null,null,null,null,"",null,""]
[null,null,null,null,"",null,""]
[null,null,null,null,"",null,""]
[null,null,null,null,"",null,""]
[null,null,null,null,"",null,""]
[null,null,null,null,"",null,""]
[null,null,null,null,"",null,""]
[null,null,null,null,"",null,""]
[null,null,null,null,"",null,""]
[null,null,null,null,"",null,""]
[null,null,null,null,"",null,""]
[null,null,null,null,"",null,""]
[null,null,null,null,"",null,""]
[null,null,null,null,"",null,""]
[null,null,null,null,"",null,""]
[null,null,null,null,"",null,""]
[null,null,null,null,"",null,{"$f":"IF(A2762<>\"\",IF(B2762=\"\",\"Falta IBAN\",IF(C2762=\"\",\"Falta Valor\",\"Linha totalmente preenchida\")),IF(B2762<>\"\",IF(A2762=\"\",\"Falta Nome\",\"\"),\"\"))","v":""}]
[null,null,null,null,"",null,""]
[null,null,null,null,"",null,""]
[null,null,null,null,"",null,""]
[null,null,null,null,"",null,""]
[null,null,null,null,"",null,""]
[null,null,null,null,"",null,""]
[null,null,null,null,"",null,""]
[null,null,null,null,"",null,""]
[null,null,null,null,"",null,""]
[null,null,null,null,"",null,""]
[null,null,null,null,"",null,""]
[null,null,null,null,"",null,""]
[null,null,null,null,"",null,""]
[null,null,null,null,"",null,""]
[null,null,null,null,"",null,""]
[null,null,null,null,"",null,""]
[null,null,null,null,{"$f":"IF(C2779<>\"\",C2779,\"\")","v":""},null,""]
[null,null,null,null,"",null,""]
[null,null,null,null,"",null,""]
[null,null,null,null,"",null,""]
[null,null,null,null,"",null,""]
[null,null,null,null,"",null,""]
[null,null,null,null,"",null,""]
[null,null,null,null,"",null,""]
[null,null,null,null,"",null,""]
[null,null,null,null,"",null,""]
[null,null,null,null,"",null,""]
[null,null,null,null,"",null,""]
[null,null,null,null,"",null,""]
[null,null,null,null,"",null,""]
[null,null,null,null,"",null,""]
[null,null,null,null,"",null,""]
[null,null,null,null,"",null,""]
[null,null,null,null,"",null,""]
[null,null,null,null,"",null,""]
[null,null,null,null,"",null,""]
[null,null,null,null,"",null,""]
[null,null,null,null,"",null,""]
[null,null,null,null,"",null,""]
[null,null,null,null,"",null,""]
[null,null,null,null,"",null,""]
[null,null,null,null,"",null,""]
[null,null,null,null,"",null,""]
[null,null,null,null,"",null,""]
[null,null,null,null,"",null,""]
[null,null,null,null,"",null,""]
[null,null,null,null,"",null,""]
[null,null,null,null,"",null,""]
[null,null,null,null,"",null,""]
[null,null,null,null,"",null,""]
[null,null,null,null,"",null,""]
[null,null,null,null,"",null,""]
[null,null,null,null,"",null,""]
[null,null,null,null,"",null,""]
[null,null,null,null,"",null,""]
[null,null,null,null,"",null,""]
[null,null,null,null,"",null,""]
[null,null,null,null,"",null,""]
[null,null,null,null,"",null,""]
[null,null,null,null,"",null,""]
[null,null,null,null,"",null,""]
[null,null,null,null,"",null,""]
[null,null,null,null,"",null,""]
[null,null,null,null,"",null,{"$f":"IF(A2826<>\"\",IF(B2826=\"\",\"Falta IBAN\",IF(C2826=\"\",\"Falta Valor\",\"Linha totalmente preenchida\")),IF(B2826<>\"\",IF(A2826=\"\",\"Falta Nome\",\"\"),\"\"))","v":""}]
[null,null,null,null,"",null,""]
[null,null,null,null,"",null,""]
[null,null,null,null,"",null,""]
[null,null,null,null,"",null,""]
[null,null,null,null,"",null,""]
[null,null,null,null,"",null,""]
[null,null,null,null,"",null,""]
[null,null,null,null,"",null,""]
[null,null,null,null,"",null,""]
[null,null,null,null,"",null,""]
[null,null,null,null,"",null,""]
[null,null,null,null,"",null,""]
[null,null,null,null,"",null,""]
[null,null,null,null,"",null,""]
[null,null,null,null,"",null,""]
[null,null,null,null,"",null,""]
[null,null,null,null,{"$f":"IF(C2843<>\"\",C2843,\"\")","v":""},null,""]
[null,null,null,null,"",null,""]
[null,null,null,null,"",null,""]
[null,null,null,null,"",null,""]
[null,null,null,null,"",null,""]
[null,null,null,null,"",null,""]
[null,null,null,null,"",null,""]
[null,null,null,null,"",null,""]
[null,null,null,null,"",null,""]
[null,null,null,null,"",null,""]
[null,null,null,null,"",null,""]
[null,null,null,null,"",null,""]
[null,null,null,null,"",null,""]
[null,null,null,null,"",null,""]
[null,null,null,null,"",null,""]
[null,null,null,null,"",null,""]
[null,null,null,null,"",null,""]
[null,null,null,null,"",null,""]
[null,null,null,null,"",null,""]
[null,null,null,null,"",null,""]
[null,null,null,null,"",null,""]
[null,null,null,null,"",null,""]
[null,null,null,null,"",null,""]
[null,null,null,null,"",null,""]
[null,null,null,null,"",null,""]
[null,null,null,null,"",null,""]
[null,null,null,null,"",null,""]
[null,null,null,null,"",null,""]
[null,null,null,null,"",null,""]
[null,null,null,null,"",null,""]
[null,null,null,null,"",null,""]
[null,null,null,null,"",null,""]
[null,null,null,null,"",null,""]
[null,null,null,null,"",null,""]
[null,null,null,null,"",null,""]
[null,null,null,null,"",null,""]
[null,null,null,null,"",null,""]
[null,null,null,null,"",null,""]
[null,null,null,null,"",null,""]
[null,null,null,null,"",null,""]
[null,null,null,null,"",null,""]
[null,null,null,null,"",null,""]
[null,null,null,null,"",null,""]
[null,null,null,null,"",null,""]
[null,null,null,null,"",null,""]
[null,null,null,null,"",null,""]
[null,null,null,null,"",null,""]
[null,null,null,null,"",null,{"$f":"IF(A2890<>\"\",IF(B2890=\"\",\"Falta IBAN\",IF(C2890=\"\",\"Falta Valor\",\"Linha totalmente preenchida\")),IF(B2890<>\"\",IF(A2890=\"\",\"Falta Nome\",\"\"),\"\"))","v":""}]
[null,null,null,null,"",null,""]
[null,null,null,null,"",null,""]
[null,null,null,null,"",null,""]
[null,null,null,null,"",null,""]
[null,null,null,null,"",null,""]
[null,null,null,null,"",null,""]
[null,null,null,null,"",null,""]
[null,null,null,null,"",null,""]
[null,null,null,null,"",null,""]
[null,null,null,null,"",null,""]
[null,null,null,null,"",null,""]
[null,null,null,null,"",null,""]
[null,null,null,null,"",null,""]
[null,null,null,null,"",null,""]
[null,null,null,null,"",null,""]
[null,null,null,null,"",null,""]
[null,null,null,null,{"$f":"IF(C2907<>\"\",C2907,\"\")","v":""},null,""]
[null,null,null,null,"",null,""]
[null,null,null,null,"",null,""]
[null,null,null,null,"",null,""]
[null,null,null,null,"",null,""]
[null,null,null,null,"",null,""]
[null,null,null,null,"",null,""]
[null,null,null,null,"",null,""]
[null,null,null,null,"",null,""]
[null,null,null,null,"",null,""]
[null,null,null,null,"",null,""]
[null,null,null,null,"",null,""]
[null,null,null,null,"",null,""]
[null,null,null,null,"",null,""]
[null,null,null,null,"",null,""]
[null,null,null,null,"",null,""]
[null,null,null,null,"",null,""]
[null,null,null,null,"",null,""]
[null,null,null,null,"",null,""]
[null,null,null,null,"",null,""]
[null,null,null,null,"",null,""]
[null,null,null,null,"",null,""]
[null,null,null,null,"",null,""]
[null,null,null,null,"",null,""]
[null,null,null,null,"",null,""]
[null,null,null,null,"",null,""]
[null,null,null,null,"",null,""]
[null,null,null,null,"",null,""]
[null,null,null,null,"",null,""]
[null,null,null,null,"",null,""]
[null,null,null,null,"",null,""]
[null,null,null,null,"",null,""]
[null,null,null,null,"",null,""]
[null,null,null,null,"",null,""]
[null,null,null,null,"",null,""]
[null,null,null,null,"",null,""]
[null,null,null,null,"",null,""]
[null,null,null,null,"",null,""]
[null,null,null,null,"",null,""]
[null,null,null,null,"",null,""]
[null,null,null,null,"",null,""]
[null,null,null,null,"",null,""]
[null,null,null,null,"",null,""]
[null,null,null,null,"",null,""]
[null,null,null,null,"",null,""]
[null,null,null,null,"",null,""]
[null,null,null,null,"",null,""]
[null,null,null,null,"",null,{"$f":"IF(A2954<>\"\",IF(B2954=\"\",\"Falta IBAN\",IF(C2954=\"\",\"Falta Valor\",\"Linha totalmente preenchida\")),IF(B2954<>\"\",IF(A2954=\"\",\"Falta Nome\",\"\"),\"\"))","v":""}]
[null,null,null,null,"",null,""]
[null,null,null,null,"",null,""]
[null,null,null,null,"",null,""]
[null,null,null,null,"",null,""]
[null,null,null,null,"",null,""]
[null,null,null,null,"",null,""]
[null,null,null,null,"",null,""]
[null,null,null,null,"",null,""]
[null,null,null,null,"",null,""]
[null,null,null,null,"",null,""]
[null,null,null,null,"",null,""]
[null,null,null,null,"",null,""]
[null,null,null,null,"",null,""]
[null,null,null,null,"",null,""]
[null,null,null,null,"",null,""]
[null,null,null,null,"",null,""]
[null,null,null,null,{"$f":"IF(C2971<>\"\",C2971,\"\")","v":""},null,""]
[null,null,null,null,"",null,""]
[null,null,null,null,"",null,""]
[null,null,null,null,"",null,""]
[null,null,null,null,"",null,""]
[null,null,null,null,"",null,""]
[null,null,null,null,"",null,""]
[null,null,null,null,"",null,""]
[null,null,null,null,"",null,""]
[null,null,null,null,"",null,""]
[null,null,null,null,"",null,""]
[null,null,null,null,"",null,""]
[null,null,null,null,"",null,""]
[null,null,null,null,"",null,""]
[null,null,null,null,"",null,""]
[null,null,null,null,"",null,""]
[null,null,null,null,"",null,""]
[null,null,null,null,"",null,""]
[null,null,null,null,"",null,""]
[null,null,null,null,"",null,""]
[null,null,null,null,"",null,""]
[null,null,null,null,"",null,""]
[null,null,null,null,"",null,""]
[null,null,null,null,"",null,""]
[null,null,null,null,"",null,""]
[null,null,null,null,"",null,""]
[null,null,null,null,"",null,""]
[null,null,null,null,"",null,""]
[null,null,null,null,"",null,""]
[null,null,null,null,"",null,""]
[null,null,null,null,"",null,""]
[null,null,null,null,"",null,""]
[null,null,null,null,"",null,""]
[null,null,null,null,"",null,""]
[null,null,null,null,"",null,""]
[null,null,null,null,"",null,""]
[null,null,null,null,"",null,""]
[null,null,null,null,"",null,""]
[null,null,null,null,"",null,""]
[null,null,null,null,"",null,""]
[null,null,null,null,"",null,""]
[null,null,null,null,"",null,""]
[null,null,null,null,"",null,""]
[null,null,null,null,"",null,""]
[null,null,null,null,"",null,""]
[null,null,null,null,"",null,""]
[null,null,null,null,"",null,""]
[null,null,null,null,"",null,{"$f":"IF(A3018<>\"\",IF(B3018=\"\",\"Falta IBAN\",IF(C3018=\"\",\"Falta Valor\",\"Linha totalmente preenchida\")),IF(B3018<>\"\",IF(A3018=\"\",\"Falta Nome\",\"\"),\"\"))","v":""}]
[null,null,null,null,"",null,""]
[null,null,null,null,"",null,""]
[null,null,null,null,"",null,""]
[null,null,null,null,"",null,""]
[null,null,null,null,"",null,""]
[null,null,null,null,"",null,""]
[null,null,null,null,"",null,""]
[null,null,null,null,"",null,""]
[null,null,null,null,"",null,""]
[null,null,null,null,"",null,""]
[null,null,null,null,"",null,""]
[null,null,null,null,"",null,""]
[null,null,null,null,"",null,""]
[null,null,null,null,"",null,""]
[null,null,null,null,"",null,""]
[null,null,null,null,"",null,""]
[null,null,null,null,{"$f":"IF(C3035<>\"\",C3035,\"\")","v":""},null,""]
[null,null,null,null,"",null,""]
[null,null,null,null,"",null,""]
[null,null,null,null,"",null,""]
[null,null,null,null,"",null,""]
[null,null,null,null,"",null,""]
[null,null,null,null,"",null,""]
[null,null,null,null,"",null,""]
[null,null,null,null,"",null,""]
[null,null,null,null,"",null,""]
[null,null,null,null,"",null,""]
[null,null,null,null,"",null,""]
[null,null,null,null,"",null,""]
[null,null,null,null,"",null,""]
[null,null,null,null,"",null,""]
[null,null,null,null,"",null,""]
[null,null,null,null,"",null,""]
[null,null,null,null,"",null,""]
[null,null,null,null,"",null,""]
[null,null,null,null,"",null,""]
[null,null,null,null,"",null,""]
[null,null,null,null,"",null,""]
[null,null,null,null,"",null,""]
[null,null,null,null,"",null,""]
[null,null,null,null,"",null,""]
[null,null,null,null,"",null,""]
[null,null,null,null,"",null,""]
[null,null,null,null,"",null,""]
[null,null,null,null,"",null,""]
[null,null,null,null,"",null,""]
[null,null,null,null,"",null,""]
[null,null,null,null,"",null,""]
[null,null,null,null,"",null,""]
[null,null,null,null,"",null,""]
[null,null,null,null,"",null,""]
[null,null,null,null,"",null,""]
[null,null,null,null,"",null,""]
[null,null,null,null,"",null,""]
[null,null,null,null,"",null,""]
[null,null,null,null,"",null,""]
[null,null,null,null,"",null,""]
[null,null,null,null,"",null,""]
[null,null,null,null,"",null,""]
[null,null,null,null,"",null,""]
[null,null,null,null,"",null,""]
[null,null,null,null,"",null,""]
[null,null,null,null,"",null,""]
[null,null,null,null,"",null,{"$f":"IF(A3082<>\"\",IF(B3082=\"\",\"Falta IBAN\",IF(C3082=\"\",\"Falta Valor\",\"Linha totalmente preenchida\")),IF(B3082<>\"\",IF(A3082=\"\",\"Falta Nome\",\"\"),\"\"))","v":""}]
[null,null,null,null,"",null,""]
[null,null,null,null,"",null,""]
[null,null,null,null,"",null,""]
[null,null,null,null,"",null,""]
[null,null,null,null,"",null,""]
[null,null,null,null,"",null,""]
[null,null,null,null,"",null,""]
[null,null,null,null,"",null,""]
[null,null,null,null,"",null,""]
[null,null,null,null,"",null,""]
[null,null,null,null,"",null,""]
[null,null,null,null,"",null,""]
[null,null,null,null,"",null,""]
[null,null,null,null,"",null,""]
[null,null,null,null,"",null,""]
[null,null,null,null,"",null,""]
[null,null,null,null,{"$f":"IF(C3099<>\"\",C3099,\"\")","v":""},null,""]
[null,null,null,null,"",null,""]
[null,null,null,null,"",null,""]
[null,null,null,null,"",null,""]
[null,null,null,null,"",null,""]
[null,null,null,null,"",null,""]
[null,null,null,null,"",null,""]
[null,null,null,null,"",null,""]
[null,null,null,null,"",null,""]
[null,null,null,null,"",null,""]
[null,null,null,null,"",null,""]
[null,null,null,null,"",null,""]
[null,null,null,null,"",null,""]
[null,null,null,null,"",null,""]
[null,null,null,null,"",null,""]
[null,null,null,null,"",null,""]
[null,null,null,null,"",null,""]
[null,null,null,null,"",null,""]
[null,null,null,null,"",null,""]
[null,null,null,null,"",null,""]
[null,null,null,null,"",null,""]
[null,null,null,null,"",null,""]
[null,null,null,null,"",null,""]
[null,null,null,null,"",null,""]
[null,null,null,null,"",null,""]
[null,null,null,null,"",null,""]
[null,null,null,null,"",null,""]
[null,null,null,null,"",null,""]
[null,null,null,null,"",null,""]
[null,null,null,null,"",null,""]
[null,null,null,null,"",null,""]
[null,null,null,null,"",null,""]
[null,null,null,null,"",null,""]
[null,null,null,null,"",null,""]
[null,null,null,null,"",null,""]
[null,null,null,null,"",null,""]
[null,null,null,null,"",null,""]
[null,null,null,null,"",null,""]
[null,null,null,null,"",null,""]
[null,null,null,null,"",null,""]
[null,null,null,null,"",null,""]
[null,null,null,null,"",null,""]
[null,null,null,null,"",null,""]
[null,null,null,null,"",null,""]
[null,null,null,null,"",null,""]
[null,null,null,null,"",null,""]
[null,null,null,null,"",null,""]
[null,null,null,null,"",null,{"$f":"IF(A3146<>\"\",IF(B3146=\"\",\"Falta IBAN\",IF(C3146=\"\",\"Falta Valor\",\"Linha totalmente preenchida\")),IF(B3146<>\"\",IF(A3146=\"\",\"Falta Nome\",\"\"),\"\"))","v":""}]
[null,null,null,null,"",null,""]
[null,null,null,null,"",null,""]
[null,null,null,null,"",null,""]
[null,null,null,null,"",null,""]
[null,null,null,null,"",null,""]
[null,null,null,null,"",null,""]
[null,null,null,null,"",null,""]
[null,null,null,null,"",null,""]
[null,null,null,null,"",null,""]
[null,null,null,null,"",null,""]
[null,null,null,null,"",null,""]
[null,null,null,null,"",null,""]
[null,null,null,null,"",null,""]
[null,null,null,null,"",null,""]
[null,null,null,null,"",null,""]
[null,null,null,null,"",null,""]
[null,null,null,null,{"$f":"IF(C3163<>\"\",C3163,\"\")","v":""},null,""]
[null,null,null,null,"",null,""]
[null,null,null,null,"",null,""]
[null,null,null,null,"",null,""]
[null,null,null,null,"",null,""]
[null,null,null,null,"",null,""]
[null,null,null,null,"",null,""]
[null,null,null,null,"",null,""]
[null,null,null,null,"",null,""]
[null,null,null,null,"",null,""]
[null,null,null,null,"",null,""]
[null,null,null,null,"",null,""]
[null,null,null,null,"",null,""]
[null,null,null,null,"",null,""]
[null,null,null,null,"",null,""]
[null,null,null,null,"",null,""]
[null,null,null,null,"",null,""]
[null,null,null,null,"",null,""]
[null,null,null,null,"",null,""]
[null,null,null,null,"",null,""]
[null,null,null,null,"",null,""]
[null,null,null,null,"",null,""]
[null,null,null,null,"",null,""]
[null,null,null,null,"",null,""]
[null,null,null,null,"",null,""]
[null,null,null,null,"",null,""]
[null,null,null,null,"",null,""]
[null,null,null,null,"",null,""]
[null,null,null,null,"",null,""]
[null,null,null,null,"",null,""]
[null,null,null,null,"",null,""]
[null,null,null,null,"",null,""]
[null,null,null,null,"",null,""]
[null,null,null,null,"",null,""]
[null,null,null,null,"",null,""]
[null,null,null,null,"",null,""]
[null,null,null,null,"",null,""]
[null,null,null,null,"",null,""]
[null,null,null,null,"",null,""]
[null,null,null,null,"",null,""]
[null,null,null,null,"",null,""]
[null,null,null,null,"",null,""]
[null,null,null,null,"",null,""]
[null,null,null,null,"",null,""]
[null,null,null,null,"",null,""]
[null,null,null,null,"",null,""]
[null,null,null,null,"",null,""]
[null,null,null,null,"",null,{"$f":"IF(A3210<>\"\",IF(B3210=\"\",\"Falta IBAN\",IF(C3210=\"\",\"Falta Valor\",\"Linha totalmente preenchida\")),IF(B3210<>\"\",IF(A3210=\"\",\"Falta Nome\",\"\"),\"\"))","v":""}]
[null,null,null,null,"",null,""]
[null,null,null,null,"",null,""]
[null,null,null,null,"",null,""]
[null,null,null,null,"",null,""]
[null,null,null,null,"",null,""]
[null,null,null,null,"",null,""]
[null,null,null,null,"",null,""]
[null,null,null,null,"",null,""]
[null,null,null,null,"",null,""]
[null,null,null,null,"",null,""]
[null,null,null,null,"",null,""]
[null,null,null,null,"",null,""]
[null,null,null,null,"",null,""]
[null,null,null,null,"",null,""]
[null,null,null,null,"",null,""]
[null,null,null,null,"",null,""]
[null,null,null,null,{"$f":"IF(C3227<>\"\",C3227,\"\")","v":""},null,""]
[null,null,null,null,"",null,""]
[null,null,null,null,"",null,""]
[null,null,null,null,"",null,""]
[null,null,null,null,"",null,""]
[null,null,null,null,"",null,""]
[null,null,null,null,"",null,""]
[null,null,null,null,"",null,""]
[null,null,null,null,"",null,""]
[null,null,null,null,"",null,""]
[null,null,null,null,"",null,""]
[null,null,null,null,"",null,""]
[null,null,null,null,"",null,""]
[null,null,null,null,"",null,""]
[null,null,null,null,"",null,""]
[null,null,null,null,"",null,""]
[null,null,null,null,"",null,""]
[null,null,null,null,"",null,""]
[null,null,null,null,"",null,""]
[null,null,null,null,"",null,""]
[null,null,null,null,"",null,""]
[null,null,null,null,"",null,""]
[null,null,null,null,"",null,""]
[null,null,null,null,"",null,""]
[null,null,null,null,"",null,""]
[null,null,null,null,"",null,""]
[null,null,null,null,"",null,""]
[null,null,null,null,"",null,""]
[null,null,null,null,"",null,""]
[null,null,null,null,"",null,""]
[null,null,null,null,"",null,""]
[null,null,null,null,"",null,""]
[null,null,null,null,"",null,""]
[null,null,null,null,"",null,""]
[null,null,null,null,"",null,""]
[null,null,null,null,"",null,""]
[null,null,null,null,"",null,""]
[null,null,null,null,"",null,""]
[null,null,null,null,"",null,""]
[null,null,null,null,"",null,""]
[null,null,null,null,"",null,""]
[null,null,null,null,"",null,""]
[null,null,null,null,"",null,""]
[null,null,null,null,"",null,""]
[null,null,null,null,"",null,""]
[null,null,null,null,"",null,""]
[null,null,null,null,"",null,""]
[null,null,null,null,"",null,{"$f":"IF(A3274<>\"\",IF(B3274=\"\",\"Falta IBAN\",IF(C3274=\"\",\"Falta Valor\",\"Linha totalmente preenchida\")),IF(B3274<>\"\",IF(A3274=\"\",\"Falta Nome\",\"\"),\"\"))","v":""}]
[null,null,null,null,"",null,""]
[null,null,null,null,"",null,""]
[null,null,null,null,"",null,""]
[null,null,null,null,"",null,""]
[null,null,null,null,"",null,""]
[null,null,null,null,"",null,""]
[null,null,null,null,"",null,""]
[null,null,null,null,"",null,""]
[null,null,null,null,"",null,""]
[null,null,null,null,"",null,""]
[null,null,null,null,"",null,""]
[null,null,null,null,"",null,""]
[null,null,null,null,"",null,""]
[null,null,null,null,"",null,""]
[null,null,null,null,"",null,""]
[null,null,null,null,"",null,""]
[null,null,null,null,{"$f":"IF(C3291<>\"\",C3291,\"\")","v":""},null,""]
[null,null,null,null,"",null,""]
[null,null,null,null,"",null,""]
[null,null,null,null,"",null,""]
[null,null,null,null,"",null,""]
[null,null,null,null,"",null,""]
[null,null,null,null,"",null,""]
[null,null,null,null,"",null,""]
[null,null,null,null,"",null,""]
[null,null,null,null,"",null,""]
[null,null,null,null,"",null,""]
[null,null,null,null,"",null,""]
[null,null,null,null,"",null,""]
[null,null,null,null,"",null,""]
[null,null,null,null,"",null,""]
[null,null,null,null,"",null,""]
[null,null,null,null,"",null,""]
[null,null,null,null,"",null,""]
[null,null,null,null,"",null,""]
[null,null,null,null,"",null,""]
[null,null,null,null,"",null,""]
[null,null,null,null,"",null,""]
[null,null,null,null,"",null,""]
[null,null,null,null,"",null,""]
[null,null,null,null,"",null,""]
[null,null,null,null,"",null,""]
[null,null,null,null,"",null,""]
[null,null,null,null,"",null,""]
[null,null,null,null,"",null,""]
[null,null,null,null,"",null,""]
[null,null,null,null,"",null,""]
[null,null,null,null,"",null,""]
[null,null,null,null,"",null,""]
[null,null,null,null,"",null,""]
[null,null,null,null,"",null,""]
[null,null,null,null,"",null,""]
[null,null,null,null,"",null,""]
[null,null,null,null,"",null,""]
[null,null,null,null,"",null,""]
[null,null,null,null,"",null,""]
[null,null,null,null,"",null,""]
[null,null,null,null,"",null,""]
[null,null,null,null,"",null,""]
[null,null,null,null,"",null,""]
[null,null,null,null,"",null,""]
[null,null,null,null,"",null,""]
[null,null,null,null,"",null,""]
[null,null,null,null,"",null,{"$f":"IF(A3338<>\"\",IF(B3338=\"\",\"Falta IBAN\",IF(C3338=\"\",\"Falta Valor\",\"Linha totalmente preenchida\")),IF(B3338<>\"\",IF(A3338=\"\",\"Falta Nome\",\"\"),\"\"))","v":""}]
[null,null,null,null,"",null,""]
[null,null,null,null,"",null,""]
[null,null,null,null,"",null,""]
[null,null,null,null,"",null,""]
[null,null,null,null,"",null,""]
[null,null,null,null,"",null,""]
[null,null,null,null,"",null,""]
[null,null,null,null,"",null,""]
[null,null,null,null,"",null,""]
[null,null,null,null,"",null,""]
[null,null,null,null,"",null,""]
[null,null,null,null,"",null,""]
[null,null,null,null,"",null,""]
[null,null,null,null,"",null,""]
[null,null,null,null,"",null,""]
[null,null,null,null,"",null,""]
[null,null,null,null,{"$f":"IF(C3355<>\"\",C3355,\"\")","v":""},null,""]
[null,null,null,null,"",null,""]
[null,null,null,null,"",null,""]
[null,null,null,null,"",null,""]
[null,null,null,null,"",null,""]
[null,null,null,null,"",null,""]
[null,null,null,null,"",null,""]
[null,null,null,null,"",null,""]
[null,null,null,null,"",null,""]
[null,null,null,null,"",null,""]
[null,null,null,null,"",null,""]
[null,null,null,null,"",null,""]
[null,null,null,null,"",null,""]
[null,null,null,null,"",null,""]
[null,null,null,null,"",null,""]
[null,null,null,null,"",null,""]
[null,null,null,null,"",null,""]
[null,null,null,null,"",null,""]
[null,null,null,null,"",null,""]
[null,null,null,null,"",null,""]
[null,null,null,null,"",null,""]
[null,null,null,null,"",null,""]
[null,null,null,null,"",null,""]
[null,null,null,null,"",null,""]
[null,null,null,null,"",null,""]
[null,null,null,null,"",null,""]
[null,null,null,null,"",null,""]
[null,null,null,null,"",null,""]
[null,null,null,null,"",null,""]
[null,null,null,null,"",null,""]
[null,null,null,null,"",null,""]
[null,null,null,null,"",null,""]
[null,null,null,null,"",null,""]
[null,null,null,null,"",null,""]
[null,null,null,null,"",null,""]
[null,null,null,null,"",null,""]
[null,null,null,null,"",null,""]
[null,null,null,null,"",null,""]
[null,null,null,null,"",null,""]
[null,null,null,null,"",null,""]
[null,null,null,null,"",null,""]
[null,null,null,null,"",null,""]
[null,null,null,null,"",null,""]
[null,null,null,null,"",null,""]
[null,null,null,null,"",null,""]
[null,null,null,null,"",null,""]
[null,null,null,null,"",null,""]
[null,null,null,null,"",null,{"$f":"IF(A3402<>\"\",IF(B3402=\"\",\"Falta IBAN\",IF(C3402=\"\",\"Falta Valor\",\"Linha totalmente preenchida\")),IF(B3402<>\"\",IF(A3402=\"\",\"Falta Nome\",\"\"),\"\"))","v":""}]
[null,null,null,null,"",null,""]
[null,null,null,null,"",null,""]
[null,null,null,null,"",null,""]
[null,null,null,null,"",null,""]
[null,null,null,null,"",null,""]
[null,null,null,null,"",null,""]
[null,null,null,null,"",null,""]
[null,null,null,null,"",null,""]
[null,null,null,null,"",null,""]
[null,null,null,null,"",null,""]
[null,null,null,null,"",null,""]
[null,null,null,null,"",null,""]
[null,null,null,null,"",null,""]
[null,null,null,null,"",null,""]
[null,null,null,null,"",null,""]
[null,null,null,null,"",null,""]
[null,null,null,null,{"$f":"IF(C3419<>\"\",C3419,\"\")","v":""},null,""]
[null,null,null,null,"",null,""]
[null,null,null,null,"",null,""]
[null,null,null,null,"",null,""]
[null,null,null,null,"",null,""]
[null,null,null,null,"",null,""]
[null,null,null,null,"",null,""]
[null,null,null,null,"",null,""]
[null,null,null,null,"",null,""]
[null,null,null,null,"",null,""]
[null,null,null,null,"",null,""]
[null,null,null,null,"",null,""]
[null,null,null,null,"",null,""]
[null,null,null,null,"",null,""]
[null,null,null,null,"",null,""]
[null,null,null,null,"",null,""]
[null,null,null,null,"",null,""]
[null,null,null,null,"",null,""]
[null,null,null,null,"",null,""]
[null,null,null,null,"",null,""]
[null,null,null,null,"",null,""]
[null,null,null,null,"",null,""]
[null,null,null,null,"",null,""]
[null,null,null,null,"",null,""]
[null,null,null,null,"",null,""]
[null,null,null,null,"",null,""]
[null,null,null,null,"",null,""]
[null,null,null,null,"",null,""]
[null,null,null,null,"",null,""]
[null,null,null,null,"",null,""]
[null,null,null,null,"",null,""]
[null,null,null,null,"",null,""]
[null,null,null,null,"",null,""]
[null,null,null,null,"",null,""]
[null,null,null,null,"",null,""]
[null,null,null,null,"",null,""]
[null,null,null,null,"",null,""]
[null,null,null,null,"",null,""]
[null,null,null,null,"",null,""]
[null,null,null,null,"",null,""]
[null,null,null,null,"",null,""]
[null,null,null,null,"",null,""]
[null,null,null,null,"",null,""]
[null,null,null,null,"",null,""]
[null,null,null,null,"",null,""]
[null,null,null,null,"",null,""]
[null,null,null,null,"",null,""]
[null,null,null,null,"",null,{"$f":"IF(A3466<>\"\",IF(B3466=\"\",\"Falta IBAN\",IF(C3466=\"\",\"Falta Valor\",\"Linha totalmente preenchida\")),IF(B3466<>\"\",IF(A3466=\"\",\"Falta Nome\",\"\"),\"\"))","v":""}]
[null,null,null,null,"",null,""]
[null,null,null,null,"",null,""]
[null,null,null,null,"",null,""]
[null,null,null,null,"",null,""]
[null,null,null,null,"",null,""]
[null,null,null,null,"",null,""]
[null,null,null,null,"",null,""]
[null,null,null,null,"",null,""]
[null,null,null,null,"",null,""]
[null,null,null,null,"",null,""]
[null,null,null,null,"",null,""]
[null,null,null,null,"",null,""]
[null,null,null,null,"",null,""]
[null,null,null,null,"",null,""]
[null,null,null,null,"",null,""]
[null,null,null,null,"",null,""]
[null,null,null,null,{"$f":"IF(C3483<>\"\",C3483,\"\")","v":""},null,""]
[null,null,null,null,"",null,""]
[null,null,null,null,"",null,""]
[null,null,null,null,"",null,""]
[null,null,null,null,"",null,""]
[null,null,null,null,"",null,""]
[null,null,null,null,"",null,""]
[null,null,null,null,"",null,""]
[null,null,null,null,"",null,""]
[null,null,null,null,"",null,""]
[null,null,null,null,"",null,""]
[null,null,null,null,"",null,""]
[null,null,null,null,"",null,""]
[null,null,null,null,"",null,""]
[null,null,null,null,"",null,""]
[null,null,null,null,"",null,""]
[null,null,null,null,"",null,""]
[null,null,null,null,"",null,""]
[null,null,null,null,"",null,""]
[null,null,null,null,"",null,""]
[null,null,null,null,"",null,""]
[null,null,null,null,"",null,""]
[null,null,null,null,"",null,""]
[null,null,null,null,"",null,""]
[null,null,null,null,"",null,""]
[null,null,null,null,"",null,""]
[null,null,null,null,"",null,""]
[null,null,null,null,"",null,""]
[null,null,null,null,"",null,""]
[null,null,null,null,"",null,""]
[null,null,null,null,"",null,""]
[null,null,null,null,"",null,""]
[null,null,null,null,"",null,""]
[null,null,null,null,"",null,""]
[null,null,null,null,"",null,""]
[null,null,null,null,"",null,""]
[null,null,null,null,"",null,""]
[null,null,null,null,"",null,""]
[null,null,null,null,"",null,""]
[null,null,null,null,"",null,""]
[null,null,null,null,"",null,""]
[null,null,null,null,"",null,""]
[null,null,null,null,"",null,""]
[null,null,null,null,"",null,""]
[null,null,null,null,"",null,""]
[null,null,null,null,"",null,""]
[null,null,null,null,"",null,""]
[null,null,null,null,"",null,{"$f":"IF(A3530<>\"\",IF(B3530=\"\",\"Falta IBAN\",IF(C3530=\"\",\"Falta Valor\",\"Linha totalmente preenchida\")),IF(B3530<>\"\",IF(A3530=\"\",\"Falta Nome\",\"\"),\"\"))","v":""}]
[null,null,null,null,"",null,""]
[null,null,null,null,"",null,""]
[null,null,null,null,"",null,""]
[null,null,null,null,"",null,""]
[null,null,null,null,"",null,""]
[null,null,null,null,"",null,""]
[null,null,null,null,"",null,""]
[null,null,null,null,"",null,""]
[null,null,null,null,"",null,""]
[null,null,null,null,"",null,""]
[null,null,null,null,"",null,""]
[null,null,null,null,"",null,""]
[null,null,null,null,"",null,""]
[null,null,null,null,"",null,""]
[null,null,null,null,"",null,""]
[null,null,null,null,"",null,""]
[null,null,null,null,{"$f":"IF(C3547<>\"\",C3547,\"\")","v":""},null,""]
[null,null,null,null,"",null,""]
[null,null,null,null,"",null,""]
[null,null,null,null,"",null,""]
[null,null,null,null,"",null,""]
[null,null,null,null,"",null,""]
[null,null,null,null,"",null,""]
[null,null,null,null,"",null,""]
[null,null,null,null,"",null,""]
[null,null,null,null,"",null,""]
[null,null,null,null,"",null,""]
[null,null,null,null,"",null,""]
[null,null,null,null,"",null,""]
[null,null,null,null,"",null,""]
[null,null,null,null,"",null,""]
[null,null,null,null,"",null,""]
[null,null,null,null,"",null,""]
[null,null,null,null,"",null,""]
[null,null,null,null,"",null,""]
[null,null,null,null,"",null,""]
[null,null,null,null,"",null,""]
[null,null,null,null,"",null,""]
[null,null,null,null,"",null,""]
[null,null,null,null,"",null,""]
[null,null,null,null,"",null,""]
[null,null,null,null,"",null,""]
[null,null,null,null,"",null,""]
[null,null,null,null,"",null,""]
[null,null,null,null,"",null,""]
[null,null,null,null,"",null,""]
[null,null,null,null,"",null,""]
[null,null,null,null,"",null,""]
[null,null,null,null,"",null,""]
[null,null,null,null,"",null,""]
[null,null,null,null,"",null,""]
[null,null,null,null,"",null,""]
[null,null,null,null,"",null,""]
[null,null,null,null,"",null,""]
[null,null,null,null,"",null,""]
[null,null,null,null,"",null,""]
[null,null,null,null,"",null,""]
[null,null,null,null,"",null,""]
[null,null,null,null,"",null,""]
[null,null,null,null,"",null,""]
[null,null,null,null,"",null,""]
[null,null,null,null,"",null,""]
[null,null,null,null,"",null,""]
[null,null,null,null,"",null,{"$f":"IF(A3594<>\"\",IF(B3594=\"\",\"Falta IBAN\",IF(C3594=\"\",\"Falta Valor\",\"Linha totalmente preenchida\")),IF(B3594<>\"\",IF(A3594=\"\",\"Falta Nome\",\"\"),\"\"))","v":""}]
[null,null,null,null,"",null,""]
[null,null,null,null,"",null,""]
[null,null,null,null,"",null,""]
[null,null,null,null,"",null,""]
[null,null,null,null,"",null,""]
[null,null,null,null,"",null,""]
[null,null,null,null,"",null,""]
[null,null,null,null,"",null,""]
[null,null,null,null,"",null,""]
[null,null,null,null,"",null,""]
[null,null,null,null,"",null,""]
[null,null,null,null,"",null,""]
[null,null,null,null,"",null,""]
[null,null,null,null,"",null,""]
[null,null,null,null,"",null,""]
[null,null,null,null,"",null,""]
[null,null,null,null,{"$f":"IF(C3611<>\"\",C3611,\"\")","v":""},null,""]
[null,null,null,null,"",null,""]
[null,null,null,null,"",null,""]
[null,null,null,null,"",null,""]
[null,null,null,null,"",null,""]
[null,null,null,null,"",null,""]
[null,null,null,null,"",null,""]
[null,null,null,null,"",null,""]
[null,null,null,null,"",null,""]
[null,null,null,null,"",null,""]
[null,null,null,null,"",null,""]
[null,null,null,null,"",null,""]
[null,null,null,null,"",null,""]
[null,null,null,null,"",null,""]
[null,null,null,null,"",null,""]
[null,null,null,null,"",null,""]
[null,null,null,null,"",null,""]
[null,null,null,null,"",null,""]
[null,null,null,null,"",null,""]
[null,null,null,null,"",null,""]
[null,null,null,null,"",null,""]
[null,null,null,null,"",null,""]
[null,null,null,null,"",null,""]
[null,null,null,null,"",null,""]
[null,null,null,null,"",null,""]
[null,null,null,null,"",null,""]
[null,null,null,null,"",null,""]
[null,null,null,null,"",null,""]
[null,null,null,null,"",null,""]
[null,null,null,null,"",null,""]
[null,null,null,null,"",null,""]
[null,null,null,null,"",null,""]
[null,null,null,null,"",null,""]
[null,null,null,null,"",null,""]
[null,null,null,null,"",null,""]
[null,null,null,null,"",null,""]
[null,null,null,null,"",null,""]
[null,null,null,null,"",null,""]
[null,null,null,null,"",null,""]
[null,null,null,null,"",null,""]
[null,null,null,null,"",null,""]
[null,null,null,null,"",null,""]
[null,null,null,null,"",null,""]
[null,null,null,null,"",null,""]
[null,null,null,null,"",null,""]
[null,null,null,null,"",null,""]
[null,null,null,null,"",null,""]
[null,null,null,null,"",null,{"$f":"IF(A3658<>\"\",IF(B3658=\"\",\"Falta IBAN\",IF(C3658=\"\",\"Falta Valor\",\"Linha totalmente preenchida\")),IF(B3658<>\"\",IF(A3658=\"\",\"Falta Nome\",\"\"),\"\"))","v":""}]
[null,null,null,null,"",null,""]
[null,null,null,null,"",null,""]
[null,null,null,null,"",null,""]
[null,null,null,null,"",null,""]
[null,null,null,null,"",null,""]
[null,null,null,null,"",null,""]
[null,null,null,null,"",null,""]
[null,null,null,null,"",null,""]
[null,null,null,null,"",null,""]
[null,null,null,null,"",null,""]
[null,null,null,null,"",null,""]
[null,null,null,null,"",null,""]
[null,null,null,null,"",null,""]
[null,null,null,null,"",null,""]
[null,null,null,null,"",null,""]
[null,null,null,null,"",null,""]
[null,null,null,null,{"$f":"IF(C3675<>\"\",C3675,\"\")","v":""},null,""]
[null,null,null,null,"",null,""]
[null,null,null,null,"",null,""]
[null,null,null,null,"",null,""]
[null,null,null,null,"",null,""]
[null,null,null,null,"",null,""]
[null,null,null,null,"",null,""]
[null,null,null,null,"",null,""]
[null,null,null,null,"",null,""]
[null,null,null,null,"",null,""]
[null,null,null,null,"",null,""]
[null,null,null,null,"",null,""]
[null,null,null,null,"",null,""]
[null,null,null,null,"",null,""]
[null,null,null,null,"",null,""]
[null,null,null,null,"",null,""]
[null,null,null,null,"",null,""]
[null,null,null,null,"",null,""]
[null,null,null,null,"",null,""]
[null,null,null,null,"",null,""]
[null,null,null,null,"",null,""]
[null,null,null,null,"",null,""]
[null,null,null,null,"",null,""]
[null,null,null,null,"",null,""]
[null,null,null,null,"",null,""]
[null,null,null,null,"",null,""]
[null,null,null,null,"",null,""]
[null,null,null,null,"",null,""]
[null,null,null,null,"",null,""]
[null,null,null,null,"",null,""]
[null,null,null,null,"",null,""]
[null,null,null,null,"",null,""]
[null,null,null,null,"",null,""]
[null,null,null,null,"",null,""]
[null,null,null,null,"",null,""]
[null,null,null,null,"",null,""]
[null,null,null,null,"",null,""]
[null,null,null,null,"",null,""]
[null,null,null,null,"",null,""]
[null,null,null,null,"",null,""]
[null,null,null,null,"",null,""]
[null,null,null,null,"",null,""]
[null,null,null,null,"",null,""]
[null,null,null,null,"",null,""]
[null,null,null,null,"",null,""]
[null,null,null,null,"",null,""]
[null,null,null,null,"",null,""]
[null,null,null,null,"",null,{"$f":"IF(A3722<>\"\",IF(B3722=\"\",\"Falta IBAN\",IF(C3722=\"\",\"Falta Valor\",\"Linha totalmente preenchida\")),IF(B3722<>\"\",IF(A3722=\"\",\"Falta Nome\",\"\"),\"\"))","v":""}]
[null,null,null,null,"",null,""]
[null,null,null,null,"",null,""]
[null,null,null,null,"",null,""]
[null,null,null,null,"",null,""]
[null,null,null,null,"",null,""]
[null,null,null,null,"",null,""]
[null,null,null,null,"",null,""]
[null,null,null,null,"",null,""]
[null,null,null,null,"",null,""]
[null,null,null,null,"",null,""]
[null,null,null,null,"",null,""]
[null,null,null,null,"",null,""]
[null,null,null,null,"",null,""]
[null,null,null,null,"",null,""]
[null,null,null,null,"",null,""]
[null,null,null,null,"",null,""]
[null,null,null,null,{"$f":"IF(C3739<>\"\",C3739,\"\")","v":""},null,""]
[null,null,null,null,"",null,""]
[null,null,null,null,"",null,""]
[null,null,null,null,"",null,""]
[null,null,null,null,"",null,""]
[null,null,null,null,"",null,""]
[null,null,null,null,"",null,""]
[null,null,null,null,"",null,""]
[null,null,null,null,"",null,""]
[null,null,null,null,"",null,""]
[null,null,null,null,"",null,""]
[null,null,null,null,"",null,""]
[null,null,null,null,"",null,""]
[null,null,null,null,"",null,""]
[null,null,null,null,"",null,""]
[null,null,null,null,"",null,""]
[null,null,null,null,"",null,""]
[null,null,null,null,"",null,""]
[null,null,null,null,"",null,""]
[null,null,null,null,"",null,""]
[null,null,null,null,"",null,""]
[null,null,null,null,"",null,""]
[null,null,null,null,"",null,""]
[null,null,null,null,"",null,""]
[null,null,null,null,"",null,""]
[null,null,null,null,"",null,""]
[null,null,null,null,"",null,""]
[null,null,null,null,"",null,""]
[null,null,null,null,"",null,""]
[null,null,null,null,"",null,""]
[null,null,null,null,"",null,""]
[null,null,null,null,"",null,""]
[null,null,null,null,"",null,""]
[null,null,null,null,"",null,""]
[null,null,null,null,"",null,""]
[null,null,null,null,"",null,""]
[null,null,null,null,"",null,""]
[null,null,null,null,"",null,""]
[null,null,null,null,"",null,""]
[null,null,null,null,"",null,""]
[null,null,null,null,"",null,""]
[null,null,null,null,"",null,""]
[null,null,null,null,"",null,""]
[null,null,null,null,"",null,""]
[null,null,null,null,"",null,""]
[null,null,null,null,"",null,""]
[null,null,null,null,"",null,""]
[null,null,null,null,"",null,{"$f":"IF(A3786<>\"\",IF(B3786=\"\",\"Falta IBAN\",IF(C3786=\"\",\"Falta Valor\",\"Linha totalmente preenchida\")),IF(B3786<>\"\",IF(A3786=\"\",\"Falta Nome\",\"\"),\"\"))","v":""}]
[null,null,null,null,"",null,""]
[null,null,null,null,"",null,""]
[null,null,null,null,"",null,""]
[null,null,null,null,"",null,""]
[null,null,null,null,"",null,""]
[null,null,null,null,"",null,""]
[null,null,null,null,"",null,""]
[null,null,null,null,"",null,""]
[null,null,null,null,"",null,""]
[null,null,null,null,"",null,""]
[null,null,null,null,"",null,""]
[null,null,null,null,"",null,""]
[null,null,null,null,"",null,""]
[null,null,null,null,"",null,""]
[null,null,null,null,"",null,""]
[null,null,null,null,"",null,""]
[null,null,null,null,{"$f":"IF(C3803<>\"\",C3803,\"\")","v":""},null,""]
[null,null,null,null,"",null,""]
[null,null,null,null,"",null,""]
[null,null,null,null,"",null,""]
[null,null,null,null,"",null,""]
[null,null,null,null,"",null,""]
[null,null,null,null,"",null,""]
[null,null,null,null,"",null,""]
[null,null,null,null,"",null,""]
[null,null,null,null,"",null,""]
[null,null,null,null,"",null,""]
[null,null,null,null,"",null,""]
[null,null,null,null,"",null,""]
[null,null,null,null,"",null,""]
[null,null,null,null,"",null,""]
[null,null,null,null,"",null,""]
[null,null,null,null,"",null,""]
[null,null,null,null,"",null,""]
[null,null,null,null,"",null,""]
[null,null,null,null,"",null,""]
[null,null,null,null,"",null,""]
[null,null,null,null,"",null,""]
[null,null,null,null,"",null,""]
[null,null,null,null,"",null,""]
[null,null,null,null,"",null,""]
[null,null,null,null,"",null,""]
[null,null,null,null,"",null,""]
[null,null,null,null,"",null,""]
[null,null,null,null,"",null,""]
[null,null,null,null,"",null,""]
[null,null,null,null,"",null,""]
[null,null,null,null,"",null,""]
[null,null,null,null,"",null,""]
[null,null,null,null,"",null,""]
[null,null,null,null,"",null,""]
[null,null,null,null,"",null,""]
[null,null,null,null,"",null,""]
[null,null,null,null,"",null,""]
[null,null,null,null,"",null,""]
[null,null,null,null,"",null,""]
[null,null,null,null,"",null,""]
[null,null,null,null,"",null,""]
[null,null,null,null,"",null,""]
[null,null,null,null,"",null,""]
[null,null,null,null,"",null,""]
[null,null,null,null,"",null,""]
[null,null,null,null,"",null,""]
[null,null,null,null,"",null,{"$f":"IF(A3850<>\"\",IF(B3850=\"\",\"Falta IBAN\",IF(C3850=\"\",\"Falta Valor\",\"Linha totalmente preenchida\")),IF(B3850<>\"\",IF(A3850=\"\",\"Falta Nome\",\"\"),\"\"))","v":""}]
[null,null,null,null,"",null,""]
[null,null,null,null,"",null,""]
[null,null,null,null,"",null,""]
[null,null,null,null,"",null,""]
[null,null,null,null,"",null,""]
[null,null,null,null,"",null,""]
[null,null,null,null,"",null,""]
[null,null,null,null,"",null,""]
[null,null,null,null,"",null,""]
[null,null,null,null,"",null,""]
[null,null,null,null,"",null,""]
[null,null,null,null,"",null,""]
[null,null,null,null,"",null,""]
[null,null,null,null,"",null,""]
[null,null,null,null,"",null,""]
[null,null,null,null,"",null,""]
[null,null,null,null,{"$f":"IF(C3867<>\"\",C3867,\"\")","v":""},null,""]
[null,null,null,null,"",null,""]
[null,null,null,null,"",null,""]
[null,null,null,null,"",null,""]
[null,null,null,null,"",null,""]
[null,null,null,null,"",null,""]
[null,null,null,null,"",null,""]
[null,null,null,null,"",null,""]
[null,null,null,null,"",null,""]
[null,null,null,null,"",null,""]
[null,null,null,null,"",null,""]
[null,null,null,null,"",null,""]
[null,null,null,null,"",null,""]
[null,null,null,null,"",null,""]
[null,null,null,null,"",null,""]
[null,null,null,null,"",null,""]
[null,null,null,null,"",null,""]
[null,null,null,null,"",null,""]
[null,null,null,null,"",null,""]
[null,null,null,null,"",null,""]
[null,null,null,null,"",null,""]
[null,null,null,null,"",null,""]
[null,null,null,null,"",null,""]
[null,null,null,null,"",null,""]
[null,null,null,null,"",null,""]
[null,null,null,null,"",null,""]
[null,null,null,null,"",null,""]
[null,null,null,null,"",null,""]
[null,null,null,null,"",null,""]
[null,null,null,null,"",null,""]
[null,null,null,null,"",null,""]
[null,null,null,null,"",null,""]
[null,null,null,null,"",null,""]
[null,null,null,null,"",null,""]
[null,null,null,null,"",null,""]
[null,null,null,null,"",null,""]
[null,null,null,null,"",null,""]
[null,null,null,null,"",null,""]
[null,null,null,null,"",null,""]
[null,null,null,null,"",null,""]
[null,null,null,null,"",null,""]
[null,null,null,null,"",null,""]
[null,null,null,null,"",null,""]
[null,null,null,null,"",null,""]
[null,null,null,null,"",null,""]
[null,null,null,null,"",null,""]
[null,null,null,null,"",null,""]
[null,null,null,null,"",null,{"$f":"IF(A3914<>\"\",IF(B3914=\"\",\"Falta IBAN\",IF(C3914=\"\",\"Falta Valor\",\"Linha totalmente preenchida\")),IF(B3914<>\"\",IF(A3914=\"\",\"Falta Nome\",\"\"),\"\"))","v":""}]
[null,null,null,null,"",null,""]
[null,null,null,null,"",null,""]
[null,null,null,null,"",null,""]
[null,null,null,null,"",null,""]
[null,null,null,null,"",null,""]
[null,null,null,null,"",null,""]
[null,null,null,null,"",null,""]
[null,null,null,null,"",null,""]
[null,null,null,null,"",null,""]
[null,null,null,null,"",null,""]
[null,null,null,null,"",null,""]
[null,null,null,null,"",null,""]
[null,null,null,null,"",null,""]
[null,null,null,null,"",null,""]
[null,null,null,null,"",null,""]
[null,null,null,null,"",null,""]
[null,null,null,null,{"$f":"IF(C3931<>\"\",C3931,\"\")","v":""},null,""]
[null,null,null,null,"",null,""]
[null,null,null,null,"",null,""]
[null,null,null,null,"",null,""]
[null,null,null,null,"",null,""]
[null,null,null,null,"",null,""]
[null,null,null,null,"",null,""]
[null,null,null,null,"",null,""]
[null,null,null,null,"",null,""]
[null,null,null,null,"",null,""]
[null,null,null,null,"",null,""]
[null,null,null,null,"",null,""]
[null,null,null,null,"",null,""]
[null,null,null,null,"",null,""]
[null,null,null,null,"",null,""]
[null,null,null,null,"",null,""]
[null,null,null,null,"",null,""]
[null,null,null,null,"",null,""]
[null,null,null,null,"",null,""]
[null,null,null,null,"",null,""]
[null,null,null,null,"",null,""]
[null,null,null,null,"",null,""]
[null,null,null,null,"",null,""]
[null,null,null,null,"",null,""]
[null,null,null,null,"",null,""]
[null,null,null,null,"",null,""]
[null,null,null,null,"",null,""]
[null,null,null,null,"",null,""]
[null,null,null,null,"",null,""]
[null,null,null,null,"",null,""]
[null,null,null,null,"",null,""]
[null,null,null,null,"",null,""]
[null,null,null,null,"",null,""]
[null,null,null,null,"",null,""]
[null,null,null,null,"",null,""]
[null,null,null,null,"",null,""]
[null,null,null,null,"",null,""]
[null,null,null,null,"",null,""]
[null,null,null,null,"",null,""]
[null,null,null,null,"",null,""]
[null,null,null,null,"",null,""]
[null,null,null,null,"",null,""]
[null,null,null,null,"",null,""]
[null,null,null,null,"",null,""]
[null,null,null,null,"",null,""]
[null,null,null,null,"",null,""]
[null,null,null,null,"",null,""]
[null,null,null,null,"",null,{"$f":"IF(A3978<>\"\",IF(B3978=\"\",\"Falta IBAN\",IF(C3978=\"\",\"Falta Valor\",\"Linha totalmente preenchida\")),IF(B3978<>\"\",IF(A3978=\"\",\"Falta Nome\",\"\"),\"\"))","v":""}]
[null,null,null,null,"",null,""]
[null,null,null,null,"",null,""]
[null,null,null,null,"",null,""]
[null,null,null,null,"",null,""]
[null,null,null,null,"",null,""]
[null,null,null,null,"",null,""]
[null,null,null,null,"",null,""]
[null,null,null,null,"",null,""]
[null,null,null,null,"",null,""]
[null,null,null,null,"",null,""]
[null,null,null,null,"",null,""]
[null,null,null,null,"",null,""]
[null,null,null,null,"",null,""]
[null,null,null,null,"",null,""]
[null,null,null,null,"",null,""]
[null,null,null,null,"",null,""]
[null,null,null,null,{"$f":"IF(C3995<>\"\",C3995,\"\")","v":""},null,""]
[null,null,null,null,"",null,""]
[null,null,null,null,"",null,""]
[null,null,null,null,"",null,""]
[null,null,null,null,"",null,""]
[null,null,null,null,"",null,""]
[null,null,null,null,"",null,""]
[null,null,null,null,"",null,""]
[null,null,null,null,"",null,""]
[null,null,null,null,"",null,""]
[null,null,null,null,"",null,""]
[null,null,null,null,"",null,""]
[null,null,null,null,"",null,""]
[null,null,null,null,"",null,""]
[null,null,null,null,"",null,""]
[null,null,null,null,"",null,""]
[null,null,null,null,"",null,""]
[null,null,null,null,"",null,""]
[null,null,null,null,"",null,""]
[null,null,null,null,"",null,""]
[null,null,null,null,"",null,""]
[null,null,null,null,"",null,""]
[null,null,null,null,"",null,""]
[null,null,null,null,"",null,""]
[null,null,null,null,"",null,""]
[null,null,null,null,"",null,""]
[null,null,null,null,"",null,""]
[null,null,null,null,"",null,""]
[null,null,null,null,"",null,""]
[null,null,null,null,"",null,""]
[null,null,null,null,"",null,""]
[null,null,null,null,"",null,""]
[null,null,null,null,"",null,""]
[null,null,null,null,"",null,""]
[null,null,null,null,"",null,""]
[null,null,null,null,"",null,""]
[null,null,null,null,"",null,""]
[null,null,null,null,"",null,""]
[null,null,null,null,"",null,""]
[null,null,null,null,"",null,""]
[null,null,null,null,"",null,""]
[null,null,null,null,"",null,""]
[null,null,null,null,"",null,""]
[null,null,null,null,"",null,""]
[null,null,null,null,"",null,""]
[null,null,null,null,"",null,""]
[null,null,null,null,"",null,""]
[null,null,null,null,"",null,{"$f":"IF(A4042<>\"\",IF(B4042=\"\",\"Falta IBAN\",IF(C4042=\"\",\"Falta Valor\",\"Linha totalmente preenchida\")),IF(B4042<>\"\",IF(A4042=\"\",\"Falta Nome\",\"\"),\"\"))","v":""}]
[null,null,null,null,"",null,""]
[null,null,null,null,"",null,""]
[null,null,null,null,"",null,""]
[null,null,null,null,"",null,""]
[null,null,null,null,"",null,""]
[null,null,null,null,"",null,""]
[null,null,null,null,"",null,""]
[null,null,null,null,"",null,""]
[null,null,null,null,"",null,""]
[null,null,null,null,"",null,""]
[null,null,null,null,"",null,""]
[null,null,null,null,"",null,""]
[null,null,null,null,"",null,""]
[null,null,null,null,"",null,""]
[null,null,null,null,"",null,""]
[null,null,null,null,"",null,""]
[null,null,null,null,{"$f":"IF(C4059<>\"\",C4059,\"\")","v":""},null,""]
[null,null,null,null,"",null,""]
[null,null,null,null,"",null,""]
[null,null,null,null,"",null,""]
[null,null,null,null,"",null,""]
[null,null,null,null,"",null,""]
[null,null,null,null,"",null,""]
[null,null,null,null,"",null,""]
[null,null,null,null,"",null,""]
[null,null,null,null,"",null,""]
[null,null,null,null,"",null,""]
[null,null,null,null,"",null,""]
[null,null,null,null,"",null,""]
[null,null,null,null,"",null,""]
[null,null,null,null,"",null,""]
[null,null,null,null,"",null,""]
[null,null,null,null,"",null,""]
[null,null,null,null,"",null,""]
[null,null,null,null,"",null,""]
[null,null,null,null,"",null,""]
[null,null,null,null,"",null,""]
[null,null,null,null,"",null,""]
[null,null,null,null,"",null,""]
[null,null,null,null,"",null,""]
[null,null,null,null,"",null,""]
[null,null,null,null,"",null,""]
[null,null,null,null,"",null,""]
[null,null,null,null,"",null,""]
[null,null,null,null,"",null,""]
[null,null,null,null,"",null,""]
[null,null,null,null,"",null,""]
[null,null,null,null,"",null,""]
[null,null,null,null,"",null,""]
[null,null,null,null,"",null,""]
[null,null,null,null,"",null,""]
[null,null,null,null,"",null,""]
[null,null,null,null,"",null,""]
[null,null,null,null,"",null,""]
[null,null,null,null,"",null,""]
[null,null,null,null,"",null,""]
[null,null,null,null,"",null,""]
[null,null,null,null,"",null,""]
[null,null,null,null,"",null,""]
[null,null,null,null,"",null,""]
[null,null,null,null,"",null,""]
[null,null,null,null,"",null,""]
[null,null,null,null,"",null,""]
[null,null,null,null,"",null,{"$f":"IF(A4106<>\"\",IF(B4106=\"\",\"Falta IBAN\",IF(C4106=\"\",\"Falta Valor\",\"Linha totalmente preenchida\")),IF(B4106<>\"\",IF(A4106=\"\",\"Falta Nome\",\"\"),\"\"))","v":""}]
[null,null,null,null,"",null,""]
[null,null,null,null,"",null,""]
[null,null,null,null,"",null,""]
[null,null,null,null,"",null,""]
[null,null,null,null,"",null,""]
[null,null,null,null,"",null,""]
[null,null,null,null,"",null,""]
[null,null,null,null,"",null,""]
[null,null,null,null,"",null,""]
[null,null,null,null,"",null,""]
[null,null,null,null,"",null,""]
[null,null,null,null,"",null,""]
[null,null,null,null,"",null,""]
[null,null,null,null,"",null,""]
[null,null,null,null,"",null,""]
[null,null,null,null,"",null,""]
[null,null,null,null,{"$f":"IF(C4123<>\"\",C4123,\"\")","v":""},null,""]
[null,null,null,null,"",null,""]
[null,null,null,null,"",null,""]
[null,null,null,null,"",null,""]
[null,null,null,null,"",null,""]
[null,null,null,null,"",null,""]
[null,null,null,null,"",null,""]
[null,null,null,null,"",null,""]
[null,null,null,null,"",null,""]
[null,null,null,null,"",null,""]
[null,null,null,null,"",null,""]
[null,null,null,null,"",null,""]
[null,null,null,null,"",null,""]
[null,null,null,null,"",null,""]
[null,null,null,null,"",null,""]
[null,null,null,null,"",null,""]
[null,null,null,null,"",null,""]
[null,null,null,null,"",null,""]
[null,null,null,null,"",null,""]
[null,null,null,null,"",null,""]
[null,null,null,null,"",null,""]
[null,null,null,null,"",null,""]
[null,null,null,null,"",null,""]
[null,null,null,null,"",null,""]
[null,null,null,null,"",null,""]
[null,null,null,null,"",null,""]
[null,null,null,null,"",null,""]
[null,null,null,null,"",null,""]
[null,null,null,null,"",null,""]
[null,null,null,null,"",null,""]
[null,null,null,null,"",null,""]
[null,null,null,null,"",null,""]
[null,null,null,null,"",null,""]
[null,null,null,null,"",null,""]
[null,null,null,null,"",null,""]
[null,null,null,null,"",null,""]
[null,null,null,null,"",null,""]
[null,null,null,null,"",null,""]
[null,null,null,null,"",null,""]
[null,null,null,null,"",null,""]
[null,null,null,null,"",null,""]
[null,null,null,null,"",null,""]
[null,null,null,null,"",null,""]
[null,null,null,null,"",null,""]
[null,null,null,null,"",null,""]
[null,null,null,null,"",null,""]
[null,null,null,null,"",null,""]
[null,null,null,null,"",null,{"$f":"IF(A4170<>\"\",IF(B4170=\"\",\"Falta IBAN\",IF(C4170=\"\",\"Falta Valor\",\"Linha totalmente preenchida\")),IF(B4170<>\"\",IF(A4170=\"\",\"Falta Nome\",\"\"),\"\"))","v":""}]
[null,null,null,null,"",null,""]
[null,null,null,null,"",null,""]
[null,null,null,null,"",null,""]
[null,null,null,null,"",null,""]
[null,null,null,null,"",null,""]
[null,null,null,null,"",null,""]
[null,null,null,null,"",null,""]
[null,null,null,null,"",null,""]
[null,null,null,null,"",null,""]
[null,null,null,null,"",null,""]
[null,null,null,null,"",null,""]
[null,null,null,null,"",null,""]
[null,null,null,null,"",null,""]
[null,null,null,null,"",null,""]
[null,null,null,null,"",null,""]
[null,null,null,null,"",null,""]
[null,null,null,null,{"$f":"IF(C4187<>\"\",C4187,\"\")","v":""},null,""]
[null,null,null,null,"",null,""]
[null,null,null,null,"",null,""]
[null,null,null,null,"",null,""]
[null,null,null,null,"",null,""]
[null,null,null,null,"",null,""]
[null,null,null,null,"",null,""]
[null,null,null,null,"",null,""]
[null,null,null,null,"",null,""]
[null,null,null,null,"",null,""]
[null,null,null,null,"",null,""]
[null,null,null,null,"",null,""]
[null,null,null,null,"",null,""]
[null,null,null,null,"",null,""]
[null,null,null,null,"",null,""]
[null,null,null,null,"",null,""]
[null,null,null,null,"",null,""]
[null,null,null,null,"",null,""]
[null,null,null,null,"",null,""]
[null,null,null,null,"",null,""]
[null,null,null,null,"",null,""]
[null,null,null,null,"",null,""]
[null,null,null,null,"",null,""]
[null,null,null,null,"",null,""]
[null,null,null,null,"",null,""]
[null,null,null,null,"",null,""]
[null,null,null,null,"",null,""]
[null,null,null,null,"",null,""]
[null,null,null,null,"",null,""]
[null,null,null,null,"",null,""]
[null,null,null,null,"",null,""]
[null,null,null,null,"",null,""]
[null,null,null,null,"",null,""]
[null,null,null,null,"",null,""]
[null,null,null,null,"",null,""]
[null,null,null,null,"",null,""]
[null,null,null,null,"",null,""]
[null,null,null,null,"",null,""]
[null,null,null,null,"",null,""]
[null,null,null,null,"",null,""]
[null,null,null,null,"",null,""]
[null,null,null,null,"",null,""]
[null,null,null,null,"",null,""]
[null,null,null,null,"",null,""]
[null,null,null,null,"",null,""]
[null,null,null,null,"",null,""]
[null,null,null,null,"",null,""]
[null,null,null,null,"",null,{"$f":"IF(A4234<>\"\",IF(B4234=\"\",\"Falta IBAN\",IF(C4234=\"\",\"Falta Valor\",\"Linha totalmente preenchida\")),IF(B4234<>\"\",IF(A4234=\"\",\"Falta Nome\",\"\"),\"\"))","v":""}]
[null,null,null,null,"",null,""]
[null,null,null,null,"",null,""]
[null,null,null,null,"",null,""]
[null,null,null,null,"",null,""]
[null,null,null,null,"",null,""]
[null,null,null,null,"",null,""]
[null,null,null,null,"",null,""]
[null,null,null,null,"",null,""]
[null,null,null,null,"",null,""]
[null,null,null,null,"",null,""]
[null,null,null,null,"",null,""]
[null,null,null,null,"",null,""]
[null,null,null,null,"",null,""]
[null,null,null,null,"",null,""]
[null,null,null,null,"",null,""]
[null,null,null,null,"",null,""]
[null,null,null,null,{"$f":"IF(C4251<>\"\",C4251,\"\")","v":""},null,""]
[null,null,null,null,"",null,""]
[null,null,null,null,"",null,""]
[null,null,null,null,"",null,""]
[null,null,null,null,"",null,""]
[null,null,null,null,"",null,""]
[null,null,null,null,"",null,""]
[null,null,null,null,"",null,""]
[null,null,null,null,"",null,""]
[null,null,null,null,"",null,""]
[null,null,null,null,"",null,""]
[null,null,null,null,"",null,""]
[null,null,null,null,"",null,""]
[null,null,null,null,"",null,""]
[null,null,null,null,"",null,""]
[null,null,null,null,"",null,""]
[null,null,null,null,"",null,""]
[null,null,null,null,"",null,""]
[null,null,null,null,"",null,""]
[null,null,null,null,"",null,""]
[null,null,null,null,"",null,""]
[null,null,null,null,"",null,""]
[null,null,null,null,"",null,""]
[null,null,null,null,"",null,""]
[null,null,null,null,"",null,""]
[null,null,null,null,"",null,""]
[null,null,null,null,"",null,""]
[null,null,null,null,"",null,""]
[null,null,null,null,"",null,""]
[null,null,null,null,"",null,""]
[null,null,null,null,"",null,""]
[null,null,null,null,"",null,""]
[null,null,null,null,"",null,""]
[null,null,null,null,"",null,""]
[null,null,null,null,"",null,""]
[null,null,null,null,"",null,""]
[null,null,null,null,"",null,""]
[null,null,null,null,"",null,""]
[null,null,null,null,"",null,""]
[null,null,null,null,"",null,""]
[null,null,null,null,"",null,""]
[null,null,null,null,"",null,""]
[null,null,null,null,"",null,""]
[null,null,null,null,"",null,""]
[null,null,null,null,"",null,""]
[null,null,null,null,"",null,""]
[null,null,null,null,"",null,""]
[null,null,null,null,"",null,{"$f":"IF(A4298<>\"\",IF(B4298=\"\",\"Falta IBAN\",IF(C4298=\"\",\"Falta Valor\",\"Linha totalmente preenchida\")),IF(B4298<>\"\",IF(A4298=\"\",\"Falta Nome\",\"\"),\"\"))","v":""}]
[null,null,null,null,"",null,""]
[null,null,null,null,"",null,""]
[null,null,null,null,"",null,""]
[null,null,null,null,"",null,""]
[null,null,null,null,"",null,""]
[null,null,null,null,"",null,""]
[null,null,null,null,"",null,""]
[null,null,null,null,"",null,""]
[null,null,null,null,"",null,""]
[null,null,null,null,"",null,""]
[null,null,null,null,"",null,""]
[null,null,null,null,"",null,""]
[null,null,null,null,"",null,""]
[null,null,null,null,"",null,""]
[null,null,null,null,"",null,""]
[null,null,null,null,"",null,""]
[null,null,null,null,{"$f":"IF(C4315<>\"\",C4315,\"\")","v":""},null,""]
[null,null,null,null,"",null,""]
[null,null,null,null,"",null,""]
[null,null,null,null,"",null,""]
[null,null,null,null,"",null,""]
[null,null,null,null,"",null,""]
[null,null,null,null,"",null,""]
[null,null,null,null,"",null,""]
[null,null,null,null,"",null,""]
[null,null,null,null,"",null,""]
[null,null,null,null,"",null,""]
[null,null,null,null,"",null,""]
[null,null,null,null,"",null,""]
[null,null,null,null,"",null,""]
[null,null,null,null,"",null,""]
[null,null,null,null,"",null,""]
[null,null,null,null,"",null,""]
[null,null,null,null,"",null,""]
[null,null,null,null,"",null,""]
[null,null,null,null,"",null,""]
[null,null,null,null,"",null,""]
[null,null,null,null,"",null,""]
[null,null,null,null,"",null,""]
[null,null,null,null,"",null,""]
[null,null,null,null,"",null,""]
[null,null,null,null,"",null,""]
[null,null,null,null,"",null,""]
[null,null,null,null,"",null,""]
[null,null,null,null,"",null,""]
[null,null,null,null,"",null,""]
[null,null,null,null,"",null,""]
[null,null,null,null,"",null,""]
[null,null,null,null,"",null,""]
[null,null,null,null,"",null,""]
[null,null,null,null,"",null,""]
[null,null,null,null,"",null,""]
[null,null,null,null,"",null,""]
[null,null,null,null,"",null,""]
[null,null,null,null,"",null,""]
[null,null,null,null,"",null,""]
[null,null,null,null,"",null,""]
[null,null,null,null,"",null,""]
[null,null,null,null,"",null,""]
[null,null,null,null,"",null,""]
[null,null,null,null,"",null,""]
[null,null,null,null,"",null,""]
[null,null,null,null,"",null,""]
[null,null,null,null,"",null,{"$f":"IF(A4362<>\"\",IF(B4362=\"\",\"Falta IBAN\",IF(C4362=\"\",\"Falta Valor\",\"Linha totalmente preenchida\")),IF(B4362<>\"\",IF(A4362=\"\",\"Falta Nome\",\"\"),\"\"))","v":""}]
[null,null,null,null,"",null,""]
[null,null,null,null,"",null,""]
[null,null,null,null,"",null,""]
[null,null,null,null,"",null,""]
[null,null,null,null,"",null,""]
[null,null,null,null,"",null,""]
[null,null,null,null,"",null,""]
[null,null,null,null,"",null,""]
[null,null,null,null,"",null,""]
[null,null,null,null,"",null,""]
[null,null,null,null,"",null,""]
[null,null,null,null,"",null,""]
[null,null,null,null,"",null,""]
[null,null,null,null,"",null,""]
[null,null,null,null,"",null,""]
[null,null,null,null,"",null,""]
[null,null,null,null,{"$f":"IF(C4379<>\"\",C4379,\"\")","v":""},null,""]
[null,null,null,null,"",null,""]
[null,null,null,null,"",null,""]
[null,null,null,null,"",null,""]
[null,null,null,null,"",null,""]
[null,null,null,null,"",null,""]
[null,null,null,null,"",null,""]
[null,null,null,null,"",null,""]
[null,null,null,null,"",null,""]
[null,null,null,null,"",null,""]
[null,null,null,null,"",null,""]
[null,null,null,null,"",null,""]
[null,null,null,null,"",null,""]
[null,null,null,null,"",null,""]
[null,null,null,null,"",null,""]
[null,null,null,null,"",null,""]
[null,null,null,null,"",null,""]
[null,null,null,null,"",null,""]
[null,null,null,null,"",null,""]
[null,null,null,null,"",null,""]
[null,null,null,null,"",null,""]
[null,null,null,null,"",null,""]
[null,null,null,null,"",null,""]
[null,null,null,null,"",null,""]
[null,null,null,null,"",null,""]
[null,null,null,null,"",null,""]
[null,null,null,null,"",null,""]
[null,null,null,null,"",null,""]
[null,null,null,null,"",null,""]
[null,null,null,null,"",null,""]
[null,null,null,null,"",null,""]
[null,null,null,null,"",null,""]
[null,null,null,null,"",null,""]
[null,null,null,null,"",null,""]
[null,null,null,null,"",null,""]
[null,null,null,null,"",null,""]
[null,null,null,null,"",null,""]
[null,null,null,null,"",null,""]
[null,null,null,null,"",null,""]
[null,null,null,null,"",null,""]
[null,null,null,null,"",null,""]
[null,null,null,null,"",null,""]
[null,null,null,null,"",null,""]
[null,null,null,null,"",null,""]
[null,null,null,null,"",null,""]
[null,null,null,null,"",null,""]
[null,null,null,null,"",null,""]
[null,null,null,null,"",null,{"$f":"IF(A4426<>\"\",IF(B4426=\"\",\"Falta IBAN\",IF(C4426=\"\",\"Falta Valor\",\"Linha totalmente preenchida\")),IF(B4426<>\"\",IF(A4426=\"\",\"Falta Nome\",\"\"),\"\"))","v":""}]
[null,null,null,null,"",null,""]
[null,null,null,null,"",null,""]
[null,null,null,null,"",null,""]
[null,null,null,null,"",null,""]
[null,null,null,null,"",null,""]
[null,null,null,null,"",null,""]
[null,null,null,null,"",null,""]
[null,null,null,null,"",null,""]
[null,null,null,null,"",null,""]
[null,null,null,null,"",null,""]
[null,null,null,null,"",null,""]
[null,null,null,null,"",null,""]
[null,null,null,null,"",null,""]
[null,null,null,null,"",null,""]
[null,null,null,null,"",null,""]
[null,null,null,null,"",null,""]
[null,null,null,null,{"$f":"IF(C4443<>\"\",C4443,\"\")","v":""},null,""]
[null,null,null,null,"",null,""]
[null,null,null,null,"",null,""]
[null,null,null,null,"",null,""]
[null,null,null,null,"",null,""]
[null,null,null,null,"",null,""]
[null,null,null,null,"",null,""]
[null,null,null,null,"",null,""]
[null,null,null,null,"",null,""]
[null,null,null,null,"",null,""]
[null,null,null,null,"",null,""]
[null,null,null,null,"",null,""]
[null,null,null,null,"",null,""]
[null,null,null,null,"",null,""]
[null,null,null,null,"",null,""]
[null,null,null,null,"",null,""]
[null,null,null,null,"",null,""]
[null,null,null,null,"",null,""]
[null,null,null,null,"",null,""]
[null,null,null,null,"",null,""]
[null,null,null,null,"",null,""]
[null,null,null,null,"",null,""]
[null,null,null,null,"",null,""]
[null,null,null,null,"",null,""]
[null,null,null,null,"",null,""]
[null,null,null,null,"",null,""]
[null,null,null,null,"",null,""]
[null,null,null,null,"",null,""]
[null,null,null,null,"",null,""]
[null,null,null,null,"",null,""]
[null,null,null,null,"",null,""]
[null,null,null,null,"",null,""]
[null,null,null,null,"",null,""]
[null,null,null,null,"",null,""]
[null,null,null,null,"",null,""]
[null,null,null,null,"",null,""]
[null,null,null,null,"",null,""]
[null,null,null,null,"",null,""]
[null,null,null,null,"",null,""]
[null,null,null,null,"",null,""]
[null,null,null,null,"",null,""]
[null,null,null,null,"",null,""]
[null,null,null,null,"",null,""]
[null,null,null,null,"",null,""]
[null,null,null,null,"",null,""]
[null,null,null,null,"",null,""]
[null,null,null,null,"",null,""]
[null,null,null,null,"",null,{"$f":"IF(A4490<>\"\",IF(B4490=\"\",\"Falta IBAN\",IF(C4490=\"\",\"Falta Valor\",\"Linha totalmente preenchida\")),IF(B4490<>\"\",IF(A4490=\"\",\"Falta Nome\",\"\"),\"\"))","v":""}]
[null,null,null,null,"",null,""]
[null,null,null,null,"",null,""]
[null,null,null,null,"",null,""]
[null,null,null,null,"",null,""]
[null,null,null,null,"",null,""]
[null,null,null,null,"",null,""]
[null,null,null,null,"",null,""]
[null,null,null,null,"",null,""]
[null,null,null,null,"",null,""]
[null,null,null,null,"",null,""]
[null,null,null,null,"",null,""]
[null,null,null,null,"",null,""]
[null,null,null,null,"",null,""]
[null,null,null,null,"",null,""]
[null,null,null,null,"",null,""]
[null,null,null,null,"",null,""]
[null,null,null,null,{"$f":"IF(C4507<>\"\",C4507,\"\")","v":""},null,""]
[null,null,null,null,"",null,""]
[null,null,null,null,"",null,""]
[null,null,null,null,"",null,""]
[null,null,null,null,"",null,""]
[null,null,null,null,"",null,""]
[null,null,null,null,"",null,""]
[null,null,null,null,"",null,""]
[null,null,null,null,"",null,""]
[null,null,null,null,"",null,""]
[null,null,null,null,"",null,""]
[null,null,null,null,"",null,""]
[null,null,null,null,"",null,""]
[null,null,null,null,"",null,""]
[null,null,null,null,"",null,""]
[null,null,null,null,"",null,""]
[null,null,null,null,"",null,""]
[null,null,null,null,"",null,""]
[null,null,null,null,"",null,""]
[null,null,null,null,"",null,""]
[null,null,null,null,"",null,""]
[null,null,null,null,"",null,""]
[null,null,null,null,"",null,""]
[null,null,null,null,"",null,""]
[null,null,null,null,"",null,""]
[null,null,null,null,"",null,""]
[null,null,null,null,"",null,""]
[null,null,null,null,"",null,""]
[null,null,null,null,"",null,""]
[null,null,null,null,"",null,""]
[null,null,null,null,"",null,""]
[null,null,null,null,"",null,""]
[null,null,null,null,"",null,""]
[null,null,null,null,"",null,""]
[null,null,null,null,"",null,""]
[null,null,null,null,"",null,""]
[null,null,null,null,"",null,""]
[null,null,null,null,"",null,""]
[null,null,null,null,"",null,""]
[null,null,null,null,"",null,""]
[null,null,null,null,"",null,""]
[null,null,null,null,"",null,""]
[null,null,null,null,"",null,""]
[null,null,null,null,"",null,""]
[null,null,null,null,"",null,""]
[null,null,null,null,"",null,""]
[null,null,null,null,"",null,""]
[null,null,null,null,"",null,{"$f":"IF(A4554<>\"\",IF(B4554=\"\",\"Falta IBAN\",IF(C4554=\"\",\"Falta Valor\",\"Linha totalmente preenchida\")),IF(B4554<>\"\",IF(A4554=\"\",\"Falta Nome\",\"\"),\"\"))","v":""}]
[null,null,null,null,"",null,""]
[null,null,null,null,"",null,""]
[null,null,null,null,"",null,""]
[null,null,null,null,"",null,""]
[null,null,null,null,"",null,""]
[null,null,null,null,"",null,""]
[null,null,null,null,"",null,""]
[null,null,null,null,"",null,""]
[null,null,null,null,"",null,""]
[null,null,null,null,"",null,""]
[null,null,null,null,"",null,""]
[null,null,null,null,"",null,""]
[null,null,null,null,"",null,""]
[null,null,null,null,"",null,""]
[null,null,null,null,"",null,""]
[null,null,null,null,"",null,""]
[null,null,null,null,{"$f":"IF(C4571<>\"\",C4571,\"\")","v":""},null,""]
[null,null,null,null,"",null,""]
[null,null,null,null,"",null,""]
[null,null,null,null,"",null,""]
[null,null,null,null,"",null,""]
[null,null,null,null,"",null,""]
[null,null,null,null,"",null,""]
[null,null,null,null,"",null,""]
[null,null,null,null,"",null,""]
[null,null,null,null,"",null,""]
[null,null,null,null,"",null,""]
[null,null,null,null,"",null,""]
[null,null,null,null,"",null,""]
[null,null,null,null,"",null,""]
[null,null,null,null,"",null,""]
[null,null,null,null,"",null,""]
[null,null,null,null,"",null,""]
[null,null,null,null,"",null,""]
[null,null,null,null,"",null,""]
[null,null,null,null,"",null,""]
[null,null,null,null,"",null,""]
[null,null,null,null,"",null,""]
[null,null,null,null,"",null,""]
[null,null,null,null,"",null,""]
[null,null,null,null,"",null,""]
[null,null,null,null,"",null,""]
[null,null,null,null,"",null,""]
[null,null,null,null,"",null,""]
[null,null,null,null,"",null,""]
[null,null,null,null,"",null,""]
[null,null,null,null,"",null,""]
[null,null,null,null,"",null,""]
[null,null,null,null,"",null,""]
[null,null,null,null,"",null,""]
[null,null,null,null,"",null,""]
[null,null,null,null,"",null,""]
[null,null,null,null,"",null,""]
[null,null,null,null,"",null,""]
[null,null,null,null,"",null,""]
[null,null,null,null,"",null,""]
[null,null,null,null,"",null,""]
[null,null,null,null,"",null,""]
[null,null,null,null,"",null,""]
[null,null,null,null,"",null,""]
[null,null,null,null,"",null,""]
[null,null,null,null,"",null,""]
[null,null,null,null,"",null,""]
[null,null,null,null,"",null,{"$f":"IF(A4618<>\"\",IF(B4618=\"\",\"Falta IBAN\",IF(C4618=\"\",\"Falta Valor\",\"Linha totalmente preenchida\")),IF(B4618<>\"\",IF(A4618=\"\",\"Falta Nome\",\"\"),\"\"))","v":""}]
[null,null,null,null,"",null,""]
[null,null,null,null,"",null,""]
[null,null,null,null,"",null,""]
[null,null,null,null,"",null,""]
[null,null,null,null,"",null,""]
[null,null,null,null,"",null,""]
[null,null,null,null,"",null,""]
[null,null,null,null,"",null,""]
[null,null,null,null,"",null,""]
[null,null,null,null,"",null,""]
[null,null,null,null,"",null,""]
[null,null,null,null,"",null,""]
[null,null,null,null,"",null,""]
[null,null,null,null,"",null,""]
[null,null,null,null,"",null,""]
[null,null,null,null,"",null,""]
[null,null,null,null,{"$f":"IF(C4635<>\"\",C4635,\"\")","v":""},null,""]
[null,null,null,null,"",null,""]
[null,null,null,null,"",null,""]
[null,null,null,null,"",null,""]
[null,null,null,null,"",null,""]
[null,null,null,null,"",null,""]
[null,null,null,null,"",null,""]
[null,null,null,null,"",null,""]
[null,null,null,null,"",null,""]
[null,null,null,null,"",null,""]
[null,null,null,null,"",null,""]
[null,null,null,null,"",null,""]
[null,null,null,null,"",null,""]
[null,null,null,null,"",null,""]
[null,null,null,null,"",null,""]
[null,null,null,null,"",null,""]
[null,null,null,null,"",null,""]
[null,null,null,null,"",null,""]
[null,null,null,null,"",null,""]
[null,null,null,null,"",null,""]
[null,null,null,null,"",null,""]
[null,null,null,null,"",null,""]
[null,null,null,null,"",null,""]
[null,null,null,null,"",null,""]
[null,null,null,null,"",null,""]
[null,null,null,null,"",null,""]
[null,null,null,null,"",null,""]
[null,null,null,null,"",null,""]
[null,null,null,null,"",null,""]
[null,null,null,null,"",null,""]
[null,null,null,null,"",null,""]
[null,null,null,null,"",null,""]
[null,null,null,null,"",null,""]
[null,null,null,null,"",null,""]
[null,null,null,null,"",null,""]
[null,null,null,null,"",null,""]
[null,null,null,null,"",null,""]
[null,null,null,null,"",null,""]
[null,null,null,null,"",null,""]
[null,null,null,null,"",null,""]
[null,null,null,null,"",null,""]
[null,null,null,null,"",null,""]
[null,null,null,null,"",null,""]
[null,null,null,null,"",null,""]
[null,null,null,null,"",null,""]
[null,null,null,null,"",null,""]
[null,null,null,null,"",null,""]
[null,null,null,null,"",null,{"$f":"IF(A4682<>\"\",IF(B4682=\"\",\"Falta IBAN\",IF(C4682=\"\",\"Falta Valor\",\"Linha totalmente preenchida\")),IF(B4682<>\"\",IF(A4682=\"\",\"Falta Nome\",\"\"),\"\"))","v":""}]
[null,null,null,null,"",null,""]
[null,null,null,null,"",null,""]
[null,null,null,null,"",null,""]
[null,null,null,null,"",null,""]
[null,null,null,null,"",null,""]
[null,null,null,null,"",null,""]
[null,null,null,null,"",null,""]
[null,null,null,null,"",null,""]
[null,null,null,null,"",null,""]
[null,null,null,null,"",null,""]
[null,null,null,null,"",null,""]
[null,null,null,null,"",null,""]
[null,null,null,null,"",null,""]
[null,null,null,null,"",null,""]
[null,null,null,null,"",null,""]
[null,null,null,null,"",null,""]
[null,null,null,null,{"$f":"IF(C4699<>\"\",C4699,\"\")","v":""},null,""]
[null,null,null,null,"",null,""]
[null,null,null,null,"",null,""]
[null,null,null,null,"",null,""]
[null,null,null,null,"",null,""]
[null,null,null,null,"",null,""]
[null,null,null,null,"",null,""]
[null,null,null,null,"",null,""]
[null,null,null,null,"",null,""]
[null,null,null,null,"",null,""]
[null,null,null,null,"",null,""]
[null,null,null,null,"",null,""]
[null,null,null,null,"",null,""]
[null,null,null,null,"",null,""]
[null,null,null,null,"",null,""]
[null,null,null,null,"",null,""]
[null,null,null,null,"",null,""]
[null,null,null,null,"",null,""]
[null,null,null,null,"",null,""]
[null,null,null,null,"",null,""]
[null,null,null,null,"",null,""]
[null,null,null,null,"",null,""]
[null,null,null,null,"",null,""]
[null,null,null,null,"",null,""]
[null,null,null,null,"",null,""]
[null,null,null,null,"",null,""]
[null,null,null,null,"",null,""]
[null,null,null,null,"",null,""]
[null,null,null,null,"",null,""]
[null,null,null,null,"",null,""]
[null,null,null,null,"",null,""]
[null,null,null,null,"",null,""]
[null,null,null,null,"",null,""]
[null,null,null,null,"",null,""]
[null,null,null,null,"",null,""]
[null,null,null,null,"",null,""]
[null,null,null,null,"",null,""]
[null,null,null,null,"",null,""]
[null,null,null,null,"",null,""]
[null,null,null,null,"",null,""]
[null,null,null,null,"",null,""]
[null,null,null,null,"",null,""]
[null,null,null,null,"",null,""]
[null,null,null,null,"",null,""]
[null,null,null,null,"",null,""]
[null,null,null,null,"",null,""]
[null,null,null,null,"",null,""]
[null,null,null,null,"",null,{"$f":"IF(A4746<>\"\",IF(B4746=\"\",\"Falta IBAN\",IF(C4746=\"\",\"Falta Valor\",\"Linha totalmente preenchida\")),IF(B4746<>\"\",IF(A4746=\"\",\"Falta Nome\",\"\"),\"\"))","v":""}]
[null,null,null,null,"",null,""]
[null,null,null,null,"",null,""]
[null,null,null,null,"",null,""]
[null,null,null,null,"",null,""]
[null,null,null,null,"",null,""]
[null,null,null,null,"",null,""]
[null,null,null,null,"",null,""]
[null,null,null,null,"",null,""]
[null,null,null,null,"",null,""]
[null,null,null,null,"",null,""]
[null,null,null,null,"",null,""]
[null,null,null,null,"",null,""]
[null,null,null,null,"",null,""]
[null,null,null,null,"",null,""]
[null,null,null,null,"",null,""]
[null,null,null,null,"",null,""]
[null,null,null,null,{"$f":"IF(C4763<>\"\",C4763,\"\")","v":""},null,""]
[null,null,null,null,"",null,""]
[null,null,null,null,"",null,""]
[null,null,null,null,"",null,""]
[null,null,null,null,"",null,""]
[null,null,null,null,"",null,""]
[null,null,null,null,"",null,""]
[null,null,null,null,"",null,""]
[null,null,null,null,"",null,""]
[null,null,null,null,"",null,""]
[null,null,null,null,"",null,""]
[null,null,null,null,"",null,""]
[null,null,null,null,"",null,""]
[null,null,null,null,"",null,""]
[null,null,null,null,"",null,""]
[null,null,null,null,"",null,""]
[null,null,null,null,"",null,""]
[null,null,null,null,"",null,""]
[null,null,null,null,"",null,""]
[null,null,null,null,"",null,""]
[null,null,null,null,"",null,""]
[null,null,null,null,"",null,""]
[null,null,null,null,"",null,""]
[null,null,null,null,"",null,""]
[null,null,null,null,"",null,""]
[null,null,null,null,"",null,""]
[null,null,null,null,"",null,""]
[null,null,null,null,"",null,""]
[null,null,null,null,"",null,""]
[null,null,null,null,"",null,""]
[null,null,null,null,"",null,""]
[null,null,null,null,"",null,""]
[null,null,null,null,"",null,""]
[null,null,null,null,"",null,""]
[null,null,null,null,"",null,""]
[null,null,null,null,"",null,""]
[null,null,null,null,"",null,""]
[null,null,null,null,"",null,""]
[null,null,null,null,"",null,""]
[null,null,null,null,"",null,""]
[null,null,null,null,"",null,""]
[null,null,null,null,"",null,""]
[null,null,null,null,"",null,""]
[null,null,null,null,"",null,""]
[null,null,null,null,"",null,""]
[null,null,null,null,"",null,""]
[null,null,null,null,"",null,""]
[null,null,null,null,"",null,{"$f":"IF(A4810<>\"\",IF(B4810=\"\",\"Falta IBAN\",IF(C4810=\"\",\"Falta Valor\",\"Linha totalmente preenchida\")),IF(B4810<>\"\",IF(A4810=\"\",\"Falta Nome\",\"\"),\"\"))","v":""}]
[null,null,null,null,"",null,""]
[null,null,null,null,"",null,""]
[null,null,null,null,"",null,""]
[null,null,null,null,"",null,""]
[null,null,null,null,"",null,""]
[null,null,null,null,"",null,""]
[null,null,null,null,"",null,""]
[null,null,null,null,"",null,""]
[null,null,null,null,"",null,""]
[null,null,null,null,"",null,""]
[null,null,null,null,"",null,""]
[null,null,null,null,"",null,""]
[null,null,null,null,"",null,""]
[null,null,null,null,"",null,""]
[null,null,null,null,"",null,""]
[null,null,null,null,"",null,""]
[null,null,null,null,{"$f":"IF(C4827<>\"\",C4827,\"\")","v":""},null,""]
[null,null,null,null,"",null,""]
[null,null,null,null,"",null,""]
[null,null,null,null,"",null,""]
[null,null,null,null,"",null,""]
[null,null,null,null,"",null,""]
[null,null,null,null,"",null,""]
[null,null,null,null,"",null,""]
[null,null,null,null,"",null,""]
[null,null,null,null,"",null,""]
[null,null,null,null,"",null,""]
[null,null,null,null,"",null,""]
[null,null,null,null,"",null,""]
[null,null,null,null,"",null,""]
[null,null,null,null,"",null,""]
[null,null,null,null,"",null,""]
[null,null,null,null,"",null,""]
[null,null,null,null,"",null,""]
[null,null,null,null,"",null,""]
[null,null,null,null,"",null,""]
[null,null,null,null,"",null,""]
[null,null,null,null,"",null,""]
[null,null,null,null,"",null,""]
[null,null,null,null,"",null,""]
[null,null,null,null,"",null,""]
[null,null,null,null,"",null,""]
[null,null,null,null,"",null,""]
[null,null,null,null,"",null,""]
[null,null,null,null,"",null,""]
[null,null,null,null,"",null,""]
[null,null,null,null,"",null,""]
[null,null,null,null,"",null,""]
[null,null,null,null,"",null,""]
[null,null,null,null,"",null,""]
[null,null,null,null,"",null,""]
[null,null,null,null,"",null,""]
[null,null,null,null,"",null,""]
[null,null,null,null,"",null,""]
[null,null,null,null,"",null,""]
[null,null,null,null,"",null,""]
[null,null,null,null,"",null,""]
[null,null,null,null,"",null,""]
[null,null,null,null,"",null,""]
[null,null,null,null,"",null,""]
[null,null,null,null,"",null,""]
[null,null,null,null,"",null,""]
[null,null,null,null,"",null,""]
[null,null,null,null,"",null,{"$f":"IF(A4874<>\"\",IF(B4874=\"\",\"Falta IBAN\",IF(C4874=\"\",\"Falta Valor\",\"Linha totalmente preenchida\")),IF(B4874<>\"\",IF(A4874=\"\",\"Falta Nome\",\"\"),\"\"))","v":""}]
[null,null,null,null,"",null,""]
[null,null,null,null,"",null,""]
[null,null,null,null,"",null,""]
[null,null,null,null,"",null,""]
[null,null,null,null,"",null,""]
[null,null,null,null,"",null,""]
[null,null,null,null,"",null,""]
[null,null,null,null,"",null,""]
[null,null,null,null,"",null,""]
[null,null,null,null,"",null,""]
[null,null,null,null,"",null,""]
[null,null,null,null,"",null,""]
[null,null,null,null,"",null,""]
[null,null,null,null,"",null,""]
[null,null,null,null,"",null,""]
[null,null,null,null,"",null,""]
[null,null,null,null,{"$f":"IF(C4891<>\"\",C4891,\"\")","v":""},null,""]
[null,null,null,null,"",null,""]
[null,null,null,null,"",null,""]
[null,null,null,null,"",null,""]
[null,null,null,null,"",null,""]
[null,null,null,null,"",null,""]
[null,null,null,null,"",null,""]
[null,null,null,null,"",null,""]
[null,null,null,null,"",null,""]
[null,null,null,null,"",null,""]
[null,null,null,null,"",null,""]
[null,null,null,null,"",null,""]
[null,null,null,null,"",null,""]
[null,null,null,null,"",null,""]
[null,null,null,null,"",null,""]
[null,null,null,null,"",null,""]
[null,null,null,null,"",null,""]
[null,null,null,null,"",null,""]
[null,null,null,null,"",null,""]
[null,null,null,null,"",null,""]
[null,null,null,null,"",null,""]
[null,null,null,null,"",null,""]
[null,null,null,null,"",null,""]
[null,null,null,null,"",null,""]
[null,null,null,null,"",null,""]
[null,null,null,null,"",null,""]
[null,null,null,null,"",null,""]
[null,null,null,null,"",null,""]
[null,null,null,null,"",null,""]
[null,null,null,null,"",null,""]
[null,null,null,null,"",null,""]
[null,null,null,null,"",null,""]
[null,null,null,null,"",null,""]
[null,null,null,null,"",null,""]
[null,null,null,null,"",null,""]
[null,null,null,null,"",null,""]
[null,null,null,null,"",null,""]
[null,null,null,null,"",null,""]
[null,null,null,null,"",null,""]
[null,null,null,null,"",null,""]
[null,null,null,null,"",null,""]
[null,null,null,null,"",null,""]
[null,null,null,null,"",null,""]
[null,null,null,null,"",null,""]
[null,null,null,null,"",null,""]
[null,null,null,null,"",null,""]
[null,null,null,null,"",null,""]
[null,null,null,null,"",null,{"$f":"IF(A4938<>\"\",IF(B4938=\"\",\"Falta IBAN\",IF(C4938=\"\",\"Falta Valor\",\"Linha totalmente preenchida\")),IF(B4938<>\"\",IF(A4938=\"\",\"Falta Nome\",\"\"),\"\"))","v":""}]
[null,null,null,null,"",null,""]
[null,null,null,null,"",null,""]
[null,null,null,null,"",null,""]
[null,null,null,null,"",null,""]
[null,null,null,null,"",null,""]
[null,null,null,null,"",null,""]
[null,null,null,null,"",null,""]
[null,null,null,null,"",null,""]
[null,null,null,null,"",null,""]
[null,null,null,null,"",null,""]
[null,null,null,null,"",null,""]
[null,null,null,null,"",null,""]
[null,null,null,null,"",null,""]
[null,null,null,null,"",null,""]
[null,null,null,null,"",null,""]
[null,null,null,null,"",null,""]
[null,null,null,null,{"$f":"IF(C4955<>\"\",C4955,\"\")","v":""},null,""]
[null,null,null,null,"",null,""]
[null,null,null,null,"",null,""]
[null,null,null,null,"",null,""]
[null,null,null,null,"",null,""]
[null,null,null,null,"",null,""]
[null,null,null,null,"",null,""]
[null,null,null,null,"",null,""]
[null,null,null,null,"",null,""]
[null,null,null,null,"",null,""]
[null,null,null,null,"",null,""]
[null,null,null,null,"",null,""]
[null,null,null,null,"",null,""]
[null,null,null,null,"",null,""]
[null,null,null,null,"",null,""]
[null,null,null,null,"",null,""]
[null,null,null,null,"",null,""]
[null,null,null,null,"",null,""]
[null,null,null,null,"",null,""]
[null,null,null,null,"",null,""]
[null,null,null,null,"",null,""]
[null,null,null,null,"",null,""]
[null,null,null,null,"",null,""]
[null,null,null,null,"",null,""]
[null,null,null,null,"",null,""]
[null,null,null,null,"",null,""]
[null,null,null,null,"",null,""]
[null,null,null,null,"",null,""]
[null,null,null,null,"",null,""]
[null,null,null,null,"",null,""]
[null,null,null,null,"",null,""]
[null,null,null,null,"",null,""]
[null,null,null,null,"",null,""]
[null,null,null,null,"",null,""]
[null,null,null,null,"",null,""]
[null,null,null,null,"",null,""]
[null,null,null,null,"",null,""]
[null,null,null,null,"",null,""]
[null,null,null,null,"",null,""]
[null,null,null,null,"",null,""]
[null,null,null,null,"",null,""]
[null,null,null,null,"",null,""]
[null,null,null,null,"",null,""]
[null,null,null,null,"",null,""]
[null,null,null,null,"",null,""]
[null,null,null,null,"",null,""]
[null,null,null,null,"",null,""]
[null,null,null,null,"",null,{"$f":"IF(A5002<>\"\",IF(B5002=\"\",\"Falta IBAN\",IF(C5002=\"\",\"Falta Valor\",\"Linha totalmente preenchida\")),IF(B5002<>\"\",IF(A5002=\"\",\"Falta Nome\",\"\"),\"\"))","v":""}]
[null,null,null,null,"",null,""]
[null,null,null,null,"",null,""]
[null,null,null,null,"",null,""]
[null,null,null,null,"",null,""]
[null,null,null,null,"",null,""]
[null,null,null,null,"",null,""]
[null,null,null,null,"",null,""]
[null,null,null,null,"",null,""]
[null,null,null,null,"",null,""]
[null,null,null,null,"",null,""]
[null,null,null,null,"",null,""]
[null,null,null,null,"",null,""]
[null,null,null,null,"",null,""]
[null,null,null,null,"",null,""]
[null,null,null,null,"",null,""]
[null,null,null,null,"",null,""]
[null,null,null,null,{"$f":"IF(C5019<>\"\",C5019,\"\")","v":""},null,""]
[null,null,null,null,"",null,""]
[null,null,null,null,"",null,""]
[null,null,null,null,"",null,""]
[null,null,null,null,"",null,""]
[null,null,null,null,"",null,""]
[null,null,null,null,"",null,""]
[null,null,null,null,"",null,""]
[null,null,null,null,"",null,""]
[null,null,null,null,"",null,""]
[null,null,null,null,"",null,""]
[null,null,null,null,"",null,""]
[null,null,null,null,"",null,""]
[null,null,null,null,"",null,""]
[null,null,null,null,"",null,""]
[null,null,null,null,"",null,""]
[null,null,null,null,"",null,""]
[null,null,null,null,"",null,""]
[null,null,null,null,"",null,""]
[null,null,null,null,"",null,""]
[null,null,null,null,"",null,""]
[null,null,null,null,"",null,""]
[null,null,null,null,"",null,""]
[null,null,null,null,"",null,""]
[null,null,null,null,"",null,""]
[null,null,null,null,"",null,""]
[null,null,null,null,"",null,""]
[null,null,null,null,"",null,""]
[null,null,null,null,"",null,""]
[null,null,null,null,"",null,""]
[null,null,null,null,"",null,""]
[null,null,null,null,"",null,""]
[null,null,null,null,"",null,""]
[null,null,null,null,"",null,""]
[null,null,null,null,"",null,""]
[null,null,null,null,"",null,""]
[null,null,null,null,"",null,""]
[null,null,null,null,"",null,""]
[null,null,null,null,"",null,""]
[null,null,null,null,"",null,""]
[null,null,null,null,"",null,""]
[null,null,null,null,"",null,""]
[null,null,null,null,"",null,""]
[null,null,null,null,"",null,""]
[null,null,null,null,"",null,""]
[null,null,null,null,"",null,""]
[null,null,null,null,"",null,""]
[null,null,null,null,"",null,{"$f":"IF(A5066<>\"\",IF(B5066=\"\",\"Falta IBAN\",IF(C5066=\"\",\"Falta Valor\",\"Linha totalmente preenchida\")),IF(B5066<>\"\",IF(A5066=\"\",\"Falta Nome\",\"\"),\"\"))","v":""}]
[null,null,null,null,"",null,""]
[null,null,null,null,"",null,""]
[null,null,null,null,"",null,""]
[null,null,null,null,"",null,""]
[null,null,null,null,"",null,""]
[null,null,null,null,"",null,""]
[null,null,null,null,"",null,""]
[null,null,null,null,"",null,""]
[null,null,null,null,"",null,""]
[null,null,null,null,"",null,""]
[null,null,null,null,"",null,""]
[null,null,null,null,"",null,""]
[null,null,null,null,"",null,""]
[null,null,null,null,"",null,""]
[null,null,null,null,"",null,""]
[null,null,null,null,"",null,""]
[null,null,null,null,{"$f":"IF(C5083<>\"\",C5083,\"\")","v":""},null,""]
[null,null,null,null,"",null,""]
[null,null,null,null,"",null,""]
[null,null,null,null,"",null,""]
[null,null,null,null,"",null,""]
[null,null,null,null,"",null,""]
[null,null,null,null,"",null,""]
[null,null,null,null,"",null,""]
[null,null,null,null,"",null,""]
[null,null,null,null,"",null,""]
[null,null,null,null,"",null,""]
[null,null,null,null,"",null,""]
[null,null,null,null,"",null,""]
[null,null,null,null,"",null,""]
[null,null,null,null,"",null,""]
[null,null,null,null,"",null,""]
[null,null,null,null,"",null,""]
[null,null,null,null,"",null,""]
[null,null,null,null,"",null,""]
[null,null,null,null,"",null,""]
[null,null,null,null,"",null,""]
[null,null,null,null,"",null,""]
[null,null,null,null,"",null,""]
[null,null,null,null,"",null,""]
[null,null,null,null,"",null,""]
[null,null,null,null,"",null,""]
[null,null,null,null,"",null,""]
[null,null,null,null,"",null,""]
[null,null,null,null,"",null,""]
[null,null,null,null,"",null,""]
[null,null,null,null,"",null,""]
[null,null,null,null,"",null,""]
[null,null,null,null,"",null,""]
[null,null,null,null,"",null,""]
[null,null,null,null,"",null,""]
[null,null,null,null,"",null,""]
[null,null,null,null,"",null,""]
[null,null,null,null,"",null,""]
[null,null,null,null,"",null,""]
[null,null,null,null,"",null,""]
[null,null,null,null,"",null,""]
[null,null,null,null,"",null,""]
[null,null,null,null,"",null,""]
[null,null,null,null,"",null,""]
[null,null,null,null,"",null,""]
[null,null,null,null,"",null,""]
[null,null,null,null,"",null,""]
[null,null,null,null,"",null,{"$f":"IF(A5130<>\"\",IF(B5130=\"\",\"Falta IBAN\",IF(C5130=\"\",\"Falta Valor\",\"Linha totalmente preenchida\")),IF(B5130<>\"\",IF(A5130=\"\",\"Falta Nome\",\"\"),\"\"))","v":""}]
[null,null,null,null,"",null,""]
[null,null,null,null,"",null,""]
[null,null,null,null,"",null,""]
[null,null,null,null,"",null,""]
[null,null,null,null,"",null,""]
[null,null,null,null,"",null,""]
[null,null,null,null,"",null,""]
[null,null,null,null,"",null,""]
[null,null,null,null,"",null,""]
[null,null,null,null,"",null,""]
[null,null,null,null,"",null,""]
[null,null,null,null,"",null,""]
[null,null,null,null,"",null,""]
[null,null,null,null,"",null,""]
[null,null,null,null,"",null,""]
[null,null,null,null,"",null,""]
[null,null,null,null,{"$f":"IF(C5147<>\"\",C5147,\"\")","v":""},null,""]
[null,null,null,null,"",null,""]
[null,null,null,null,"",null,""]
[null,null,null,null,"",null,""]
[null,null,null,null,"",null,""]
[null,null,null,null,"",null,""]
[null,null,null,null,"",null,""]
[null,null,null,null,"",null,""]
[null,null,null,null,"",null,""]
[null,null,null,null,"",null,""]
[null,null,null,null,"",null,""]
[null,null,null,null,"",null,""]
[null,null,null,null,"",null,""]
[null,null,null,null,"",null,""]
[null,null,null,null,"",null,""]
[null,null,null,null,"",null,""]
[null,null,null,null,"",null,""]
[null,null,null,null,"",null,""]
[null,null,null,null,"",null,""]
[null,null,null,null,"",null,""]
[null,null,null,null,"",null,""]
[null,null,null,null,"",null,""]
[null,null,null,null,"",null,""]
[null,null,null,null,"",null,""]
[null,null,null,null,"",null,""]
[null,null,null,null,"",null,""]
[null,null,null,null,"",null,""]
[null,null,null,null,"",null,""]
[null,null,null,null,"",null,""]
[null,null,null,null,"",null,""]
[null,null,null,null,"",null,""]
[null,null,null,null,"",null,""]
[null,null,null,null,"",null,""]
[null,null,null,null,"",null,""]
[null,null,null,null,"",null,""]
[null,null,null,null,"",null,""]
[null,null,null,null,"",null,""]
[null,null,null,null,"",null,""]
[null,null,null,null,"",null,""]
[null,null,null,null,"",null,""]
[null,null,null,null,"",null,""]
[null,null,null,null,"",null,""]
[null,null,null,null,"",null,""]
[null,null,null,null,"",null,""]
[null,null,null,null,"",null,""]
[null,null,null,null,"",null,""]
[null,null,null,null,"",null,""]
[null,null,null,null,"",null,{"$f":"IF(A5194<>\"\",IF(B5194=\"\",\"Falta IBAN\",IF(C5194=\"\",\"Falta Valor\",\"Linha totalmente preenchida\")),IF(B5194<>\"\",IF(A5194=\"\",\"Falta Nome\",\"\"),\"\"))","v":""}]
[null,null,null,null,"",null,""]
[null,null,null,null,"",null,""]
[null,null,null,null,"",null,""]
[null,null,null,null,"",null,""]
[null,null,null,null,"",null,""]
[null,null,null,null,"",null,""]
[null,null,null,null,"",null,""]
[null,null,null,null,"",null,""]
[null,null,null,null,"",null,""]
[null,null,null,null,"",null,""]
[null,null,null,null,"",null,""]
[null,null,null,null,"",null,""]
[null,null,null,null,"",null,""]
[null,null,null,null,"",null,""]
[null,null,null,null,"",null,""]
[null,null,null,null,"",null,""]
[null,null,null,null,{"$f":"IF(C5211<>\"\",C5211,\"\")","v":""},null,""]
[null,null,null,null,"",null,""]
[null,null,null,null,"",null,""]
[null,null,null,null,"",null,""]
[null,null,null,null,"",null,""]
[null,null,null,null,"",null,""]
[null,null,null,null,"",null,""]
[null,null,null,null,"",null,""]
[null,null,null,null,"",null,""]
[null,null,null,null,"",null,""]
[null,null,null,null,"",null,""]
[null,null,null,null,"",null,""]
[null,null,null,null,"",null,""]
[null,null,null,null,"",null,""]
[null,null,null,null,"",null,""]
[null,null,null,null,"",null,""]
[null,null,null,null,"",null,""]
[null,null,null,null,"",null,""]
[null,null,null,null,"",null,""]
[null,null,null,null,"",null,""]
[null,null,null,null,"",null,""]
[null,null,null,null,"",null,""]
[null,null,null,null,"",null,""]
[null,null,null,null,"",null,""]
[null,null,null,null,"",null,""]
[null,null,null,null,"",null,""]
[null,null,null,null,"",null,""]
[null,null,null,null,"",null,""]
[null,null,null,null,"",null,""]
[null,null,null,null,"",null,""]
[null,null,null,null,"",null,""]
[null,null,null,null,"",null,""]
[null,null,null,null,"",null,""]
[null,null,null,null,"",null,""]
[null,null,null,null,"",null,""]
[null,null,null,null,"",null,""]
[null,null,null,null,"",null,""]
[null,null,null,null,"",null,""]
[null,null,null,null,"",null,""]
[null,null,null,null,"",null,""]
[null,null,null,null,"",null,""]
[null,null,null,null,"",null,""]
[null,null,null,null,"",null,""]
[null,null,null,null,"",null,""]
[null,null,null,null,"",null,""]
[null,null,null,null,"",null,""]
[null,null,null,null,"",null,""]
[null,null,null,null,"",null,{"$f":"IF(A5258<>\"\",IF(B5258=\"\",\"Falta IBAN\",IF(C5258=\"\",\"Falta Valor\",\"Linha totalmente preenchida\")),IF(B5258<>\"\",IF(A5258=\"\",\"Falta Nome\",\"\"),\"\"))","v":""}]
[null,null,null,null,"",null,""]
[null,null,null,null,"",null,""]
[null,null,null,null,"",null,""]
[null,null,null,null,"",null,""]
[null,null,null,null,"",null,""]
[null,null,null,null,"",null,""]
[null,null,null,null,"",null,""]
[null,null,null,null,"",null,""]
[null,null,null,null,"",null,""]
[null,null,null,null,"",null,""]
[null,null,null,null,"",null,""]
[null,null,null,null,"",null,""]
[null,null,null,null,"",null,""]
[null,null,null,null,"",null,""]
[null,null,null,null,"",null,""]
[null,null,null,null,"",null,""]
[null,null,null,null,{"$f":"IF(C5275<>\"\",C5275,\"\")","v":""},null,""]
[null,null,null,null,"",null,""]
[null,null,null,null,"",null,""]
[null,null,null,null,"",null,""]
[null,null,null,null,"",null,""]
[null,null,null,null,"",null,""]
[null,null,null,null,"",null,""]
[null,null,null,null,"",null,""]
[null,null,null,null,"",null,""]
[null,null,null,null,"",null,""]
[null,null,null,null,"",null,""]
[null,null,null,null,"",null,""]
[null,null,null,null,"",null,""]
[null,null,null,null,"",null,""]
[null,null,null,null,"",null,""]
[null,null,null,null,"",null,""]
[null,null,null,null,"",null,""]
[null,null,null,null,"",null,""]
[null,null,null,null,"",null,""]
[null,null,null,null,"",null,""]
[null,null,null,null,"",null,""]
[null,null,null,null,"",null,""]
[null,null,null,null,"",null,""]
[null,null,null,null,"",null,""]
[null,null,null,null,"",null,""]
[null,null,null,null,"",null,""]
[null,null,null,null,"",null,""]
[null,null,null,null,"",null,""]
[null,null,null,null,"",null,""]
[null,null,null,null,"",null,""]
[null,null,null,null,"",null,""]
[null,null,null,null,"",null,""]
[null,null,null,null,"",null,""]
[null,null,null,null,"",null,""]
[null,null,null,null,"",null,""]
[null,null,null,null,"",null,""]
[null,null,null,null,"",null,""]
[null,null,null,null,"",null,""]
[null,null,null,null,"",null,""]
[null,null,null,null,"",null,""]
[null,null,null,null,"",null,""]
[null,null,null,null,"",null,""]
[null,null,null,null,"",null,""]
[null,null,null,null,"",null,""]
[null,null,null,null,"",null,""]
[null,null,null,null,"",null,""]
[null,null,null,null,"",null,""]
[null,null,null,null,"",null,{"$f":"IF(A5322<>\"\",IF(B5322=\"\",\"Falta IBAN\",IF(C5322=\"\",\"Falta Valor\",\"Linha totalmente preenchida\")),IF(B5322<>\"\",IF(A5322=\"\",\"Falta Nome\",\"\"),\"\"))","v":""}]
[null,null,null,null,"",null,""]
[null,null,null,null,"",null,""]
[null,null,null,null,"",null,""]
[null,null,null,null,"",null,""]
[null,null,null,null,"",null,""]
[null,null,null,null,"",null,""]
[null,null,null,null,"",null,""]
[null,null,null,null,"",null,""]
[null,null,null,null,"",null,""]
[null,null,null,null,"",null,""]
[null,null,null,null,"",null,""]
[null,null,null,null,"",null,""]
[null,null,null,null,"",null,""]
[null,null,null,null,"",null,""]
[null,null,null,null,"",null,""]
[null,null,null,null,"",null,""]
[null,null,null,null,{"$f":"IF(C5339<>\"\",C5339,\"\")","v":""},null,""]
[null,null,null,null,"",null,""]
[null,null,null,null,"",null,""]
[null,null,null,null,"",null,""]
[null,null,null,null,"",null,""]
[null,null,null,null,"",null,""]
[null,null,null,null,"",null,""]
[null,null,null,null,"",null,""]
[null,null,null,null,"",null,""]
[null,null,null,null,"",null,""]
[null,null,null,null,"",null,""]
[null,null,null,null,"",null,""]
[null,null,null,null,"",null,""]
[null,null,null,null,"",null,""]
[null,null,null,null,"",null,""]
[null,null,null,null,"",null,""]
[null,null,null,null,"",null,""]
[null,null,null,null,"",null,""]
[null,null,null,null,"",null,""]
[null,null,null,null,"",null,""]
[null,null,null,null,"",null,""]
[null,null,null,null,"",null,""]
[null,null,null,null,"",null,""]
[null,null,null,null,"",null,""]
[null,null,null,null,"",null,""]
[null,null,null,null,"",null,""]
[null,null,null,null,"",null,""]
[null,null,null,null,"",null,""]
[null,null,null,null,"",null,""]
[null,null,null,null,"",null,""]
[null,null,null,null,"",null,""]
[null,null,null,null,"",null,""]
[null,null,null,null,"",null,""]
[null,null,null,null,"",null,""]
[null,null,null,null,"",null,""]
[null,null,null,null,"",null,""]
[null,null,null,null,"",null,""]
[null,null,null,null,"",null,""]
[null,null,null,null,"",null,""]
[null,null,null,null,"",null,""]
[null,null,null,null,"",null,""]
[null,null,null,null,"",null,""]
[null,null,null,null,"",null,""]
[null,null,null,null,"",null,""]
[null,null,null,null,"",null,""]
[null,null,null,null,"",null,""]
[null,null,null,null,"",null,""]
[null,null,null,null,"",null,{"$f":"IF(A5386<>\"\",IF(B5386=\"\",\"Falta IBAN\",IF(C5386=\"\",\"Falta Valor\",\"Linha totalmente preenchida\")),IF(B5386<>\"\",IF(A5386=\"\",\"Falta Nome\",\"\"),\"\"))","v":""}]
[null,null,null,null,"",null,""]
[null,null,null,null,"",null,""]
[null,null,null,null,"",null,""]
[null,null,null,null,"",null,""]
[null,null,null,null,"",null,""]
[null,null,null,null,"",null,""]
[null,null,null,null,"",null,""]
[null,null,null,null,"",null,""]
[null,null,null,null,"",null,""]
[null,null,null,null,"",null,""]
[null,null,null,null,"",null,""]
[null,null,null,null,"",null,""]
[null,null,null,null,"",null,""]
[null,null,null,null,"",null,""]
[null,null,null,null,"",null,""]
[null,null,null,null,"",null,""]
[null,null,null,null,{"$f":"IF(C5403<>\"\",C5403,\"\")","v":""},null,""]
[null,null,null,null,"",null,""]
[null,null,null,null,"",null,""]
[null,null,null,null,"",null,""]
[null,null,null,null,"",null,""]
[null,null,null,null,"",null,""]
[null,null,null,null,"",null,""]
[null,null,null,null,"",null,""]
[null,null,null,null,"",null,""]
[null,null,null,null,"",null,""]
[null,null,null,null,"",null,""]
[null,null,null,null,"",null,""]
[null,null,null,null,"",null,""]
[null,null,null,null,"",null,""]
[null,null,null,null,"",null,""]
[null,null,null,null,"",null,""]
[null,null,null,null,"",null,""]
[null,null,null,null,"",null,""]
[null,null,null,null,"",null,""]
[null,null,null,null,"",null,""]
[null,null,null,null,"",null,""]
[null,null,null,null,"",null,""]
[null,null,null,null,"",null,""]
[null,null,null,null,"",null,""]
[null,null,null,null,"",null,""]
[null,null,null,null,"",null,""]
[null,null,null,null,"",null,""]
[null,null,null,null,"",null,""]
[null,null,null,null,"",null,""]
[null,null,null,null,"",null,""]
[null,null,null,null,"",null,""]
[null,null,null,null,"",null,""]
[null,null,null,null,"",null,""]
[null,null,null,null,"",null,""]
[null,null,null,null,"",null,""]
[null,null,null,null,"",null,""]
[null,null,null,null,"",null,""]
[null,null,null,null,"",null,""]
[null,null,null,null,"",null,""]
[null,null,null,null,"",null,""]
[null,null,null,null,"",null,""]
[null,null,null,null,"",null,""]
[null,null,null,null,"",null,""]
[null,null,null,null,"",null,""]
[null,null,null,null,"",null,""]
[null,null,null,null,"",null,""]
[null,null,null,null,"",null,""]
[null,null,null,null,"",null,{"$f":"IF(A5450<>\"\",IF(B5450=\"\",\"Falta IBAN\",IF(C5450=\"\",\"Falta Valor\",\"Linha totalmente preenchida\")),IF(B5450<>\"\",IF(A5450=\"\",\"Falta Nome\",\"\"),\"\"))","v":""}]
[null,null,null,null,"",null,""]
[null,null,null,null,"",null,""]
[null,null,null,null,"",null,""]
[null,null,null,null,"",null,""]
[null,null,null,null,"",null,""]
[null,null,null,null,"",null,""]
[null,null,null,null,"",null,""]
[null,null,null,null,"",null,""]
[null,null,null,null,"",null,""]
[null,null,null,null,"",null,""]
[null,null,null,null,"",null,""]
[null,null,null,null,"",null,""]
[null,null,null,null,"",null,""]
[null,null,null,null,"",null,""]
[null,null,null,null,"",null,""]
[null,null,null,null,"",null,""]
[null,null,null,null,{"$f":"IF(C5467<>\"\",C5467,\"\")","v":""},null,""]
[null,null,null,null,"",null,""]
[null,null,null,null,"",null,""]
[null,null,null,null,"",null,""]
[null,null,null,null,"",null,""]
[null,null,null,null,"",null,""]
[null,null,null,null,"",null,""]
[null,null,null,null,"",null,""]
[null,null,null,null,"",null,""]
[null,null,null,null,"",null,""]
[null,null,null,null,"",null,""]
[null,null,null,null,"",null,""]
[null,null,null,null,"",null,""]
[null,null,null,null,"",null,""]
[null,null,null,null,"",null,""]
[null,null,null,null,"",null,""]
[null,null,null,null,"",null,""]
[null,null,null,null,"",null,""]
[null,null,null,null,"",null,""]
[null,null,null,null,"",null,""]
[null,null,null,null,"",null,""]
[null,null,null,null,"",null,""]
[null,null,null,null,"",null,""]
[null,null,null,null,"",null,""]
[null,null,null,null,"",null,""]
[null,null,null,null,"",null,""]
[null,null,null,null,"",null,""]
[null,null,null,null,"",null,""]
[null,null,null,null,"",null,""]
[null,null,null,null,"",null,""]
[null,null,null,null,"",null,""]
[null,null,null,null,"",null,""]
[null,null,null,null,"",null,""]
[null,null,null,null,"",null,""]
[null,null,null,null,"",null,""]
[null,null,null,null,"",null,""]
[null,null,null,null,"",null,""]
[null,null,null,null,"",null,""]
[null,null,null,null,"",null,""]
[null,null,null,null,"",null,""]
[null,null,null,null,"",null,""]
[null,null,null,null,"",null,""]
[null,null,null,null,"",null,""]
[null,null,null,null,"",null,""]
[null,null,null,null,"",null,""]
[null,null,null,null,"",null,""]
[null,null,null,null,"",null,""]
[null,null,null,null,"",null,{"$f":"IF(A5514<>\"\",IF(B5514=\"\",\"Falta IBAN\",IF(C5514=\"\",\"Falta Valor\",\"Linha totalmente preenchida\")),IF(B5514<>\"\",IF(A5514=\"\",\"Falta Nome\",\"\"),\"\"))","v":""}]
[null,null,null,null,"",null,""]
[null,null,null,null,"",null,""]
[null,null,null,null,"",null,""]
[null,null,null,null,"",null,""]
[null,null,null,null,"",null,""]
[null,null,null,null,"",null,""]
[null,null,null,null,"",null,""]
[null,null,null,null,"",null,""]
[null,null,null,null,"",null,""]
[null,null,null,null,"",null,""]
[null,null,null,null,"",null,""]
[null,null,null,null,"",null,""]
[null,null,null,null,"",null,""]
[null,null,null,null,"",null,""]
[null,null,null,null,"",null,""]
[null,null,null,null,"",null,""]
[null,null,null,null,{"$f":"IF(C5531<>\"\",C5531,\"\")","v":""},null,""]
[null,null,null,null,"",null,""]
[null,null,null,null,"",null,""]
[null,null,null,null,"",null,""]
[null,null,null,null,"",null,""]
[null,null,null,null,"",null,""]
[null,null,null,null,"",null,""]
[null,null,null,null,"",null,""]
[null,null,null,null,"",null,""]
[null,null,null,null,"",null,""]
[null,null,null,null,"",null,""]
[null,null,null,null,"",null,""]
[null,null,null,null,"",null,""]
[null,null,null,null,"",null,""]
[null,null,null,null,"",null,""]
[null,null,null,null,"",null,""]
[null,null,null,null,"",null,""]
[null,null,null,null,"",null,""]
[null,null,null,null,"",null,""]
[null,null,null,null,"",null,""]
[null,null,null,null,"",null,""]
[null,null,null,null,"",null,""]
[null,null,null,null,"",null,""]
[null,null,null,null,"",null,""]
[null,null,null,null,"",null,""]
[null,null,null,null,"",null,""]
[null,null,null,null,"",null,""]
[null,null,null,null,"",null,""]
[null,null,null,null,"",null,""]
[null,null,null,null,"",null,""]
[null,null,null,null,"",null,""]
[null,null,null,null,"",null,""]
[null,null,null,null,"",null,""]
[null,null,null,null,"",null,""]
[null,null,null,null,"",null,""]
[null,null,null,null,"",null,""]
[null,null,null,null,"",null,""]
[null,null,null,null,"",null,""]
[null,null,null,null,"",null,""]
[null,null,null,null,"",null,""]
[null,null,null,null,"",null,""]
[null,null,null,null,"",null,""]
[null,null,null,null,"",null,""]
[null,null,null,null,"",null,""]
[null,null,null,null,"",null,""]
[null,null,null,null,"",null,""]
[null,null,null,null,"",null,""]
[null,null,null,null,"",null,{"$f":"IF(A5578<>\"\",IF(B5578=\"\",\"Falta IBAN\",IF(C5578=\"\",\"Falta Valor\",\"Linha totalmente preenchida\")),IF(B5578<>\"\",IF(A5578=\"\",\"Falta Nome\",\"\"),\"\"))","v":""}]
[null,null,null,null,"",null,""]
[null,null,null,null,"",null,""]
[null,null,null,null,"",null,""]
[null,null,null,null,"",null,""]
[null,null,null,null,"",null,""]
[null,null,null,null,"",null,""]
[null,null,null,null,"",null,""]
[null,null,null,null,"",null,""]
[null,null,null,null,"",null,""]
[null,null,null,null,"",null,""]
[null,null,null,null,"",null,""]
[null,null,null,null,"",null,""]
[null,null,null,null,"",null,""]
[null,null,null,null,"",null,""]
[null,null,null,null,"",null,""]
[null,null,null,null,"",null,""]
[null,null,null,null,{"$f":"IF(C5595<>\"\",C5595,\"\")","v":""},null,""]
[null,null,null,null,"",null,""]
[null,null,null,null,"",null,""]
[null,null,null,null,"",null,""]
[null,null,null,null,"",null,""]
[null,null,null,null,"",null,""]
[null,null,null,null,"",null,""]
[null,null,null,null,"",null,""]
[null,null,null,null,"",null,""]
[null,null,null,null,"",null,""]
[null,null,null,null,"",null,""]
[null,null,null,null,"",null,""]
[null,null,null,null,"",null,""]
[null,null,null,null,"",null,""]
[null,null,null,null,"",null,""]
[null,null,null,null,"",null,""]
[null,null,null,null,"",null,""]
[null,null,null,null,"",null,""]
[null,null,null,null,"",null,""]
[null,null,null,null,"",null,""]
[null,null,null,null,"",null,""]
[null,null,null,null,"",null,""]
[null,null,null,null,"",null,""]
[null,null,null,null,"",null,""]
[null,null,null,null,"",null,""]
[null,null,null,null,"",null,""]
[null,null,null,null,"",null,""]
[null,null,null,null,"",null,""]
[null,null,null,null,"",null,""]
[null,null,null,null,"",null,""]
[null,null,null,null,"",null,""]
[null,null,null,null,"",null,""]
[null,null,null,null,"",null,""]
[null,null,null,null,"",null,""]
[null,null,null,null,"",null,""]
[null,null,null,null,"",null,""]
[null,null,null,null,"",null,""]
[null,null,null,null,"",null,""]
[null,null,null,null,"",null,""]
[null,null,null,null,"",null,""]
[null,null,null,null,"",null,""]
[null,null,null,null,"",null,""]
[null,null,null,null,"",null,""]
[null,null,null,null,"",null,""]
[null,null,null,null,"",null,""]
[null,null,null,null,"",null,""]
[null,null,null,null,"",null,""]
[null,null,null,null,"",null,{"$f":"IF(A5642<>\"\",IF(B5642=\"\",\"Falta IBAN\",IF(C5642=\"\",\"Falta Valor\",\"Linha totalmente preenchida\")),IF(B5642<>\"\",IF(A5642=\"\",\"Falta Nome\",\"\"),\"\"))","v":""}]
[null,null,null,null,"",null,""]
[null,null,null,null,"",null,""]
[null,null,null,null,"",null,""]
[null,null,null,null,"",null,""]
[null,null,null,null,"",null,""]
[null,null,null,null,"",null,""]
[null,null,null,null,"",null,""]
[null,null,null,null,"",null,""]
[null,null,null,null,"",null,""]
[null,null,null,null,"",null,""]
[null,null,null,null,"",null,""]
[null,null,null,null,"",null,""]
[null,null,null,null,"",null,""]
[null,null,null,null,"",null,""]
[null,null,null,null,"",null,""]
[null,null,null,null,"",null,""]
[null,null,null,null,{"$f":"IF(C5659<>\"\",C5659,\"\")","v":""},null,""]
[null,null,null,null,"",null,""]
[null,null,null,null,"",null,""]
[null,null,null,null,"",null,""]
[null,null,null,null,"",null,""]
[null,null,null,null,"",null,""]
[null,null,null,null,"",null,""]
[null,null,null,null,"",null,""]
[null,null,null,null,"",null,""]
[null,null,null,null,"",null,""]
[null,null,null,null,"",null,""]
[null,null,null,null,"",null,""]
[null,null,null,null,"",null,""]
[null,null,null,null,"",null,""]
[null,null,null,null,"",null,""]
[null,null,null,null,"",null,""]
[null,null,null,null,"",null,""]
[null,null,null,null,"",null,""]
[null,null,null,null,"",null,""]
[null,null,null,null,"",null,""]
[null,null,null,null,"",null,""]
[null,null,null,null,"",null,""]
[null,null,null,null,"",null,""]
[null,null,null,null,"",null,""]
[null,null,null,null,"",null,""]
[null,null,null,null,"",null,""]
[null,null,null,null,"",null,""]
[null,null,null,null,"",null,""]
[null,null,null,null,"",null,""]
[null,null,null,null,"",null,""]
[null,null,null,null,"",null,""]
[null,null,null,null,"",null,""]
[null,null,null,null,"",null,""]
[null,null,null,null,"",null,""]
[null,null,null,null,"",null,""]
[null,null,null,null,"",null,""]
[null,null,null,null,"",null,""]
[null,null,null,null,"",null,""]
[null,null,null,null,"",null,""]
[null,null,null,null,"",null,""]
[null,null,null,null,"",null,""]
[null,null,null,null,"",null,""]
[null,null,null,null,"",null,""]
[null,null,null,null,"",null,""]
[null,null,null,null,"",null,""]
[null,null,null,null,"",null,""]
[null,null,null,null,"",null,""]
[null,null,null,null,"",null,{"$f":"IF(A5706<>\"\",IF(B5706=\"\",\"Falta IBAN\",IF(C5706=\"\",\"Falta Valor\",\"Linha totalmente preenchida\")),IF(B5706<>\"\",IF(A5706=\"\",\"Falta Nome\",\"\"),\"\"))","v":""}]
[null,null,null,null,"",null,""]
[null,null,null,null,"",null,""]
[null,null,null,null,"",null,""]
[null,null,null,null,"",null,""]
[null,null,null,null,"",null,""]
[null,null,null,null,"",null,""]
[null,null,null,null,"",null,""]
[null,null,null,null,"",null,""]
[null,null,null,null,"",null,""]
[null,null,null,null,"",null,""]
[null,null,null,null,"",null,""]
[null,null,null,null,"",null,""]
[null,null,null,null,"",null,""]
[null,null,null,null,"",null,""]
[null,null,null,null,"",null,""]
[null,null,null,null,"",null,""]
[null,null,null,null,{"$f":"IF(C5723<>\"\",C5723,\"\")","v":""},null,""]
[null,null,null,null,"",null,""]
[null,null,null,null,"",null,""]
[null,null,null,null,"",null,""]
[null,null,null,null,"",null,""]
[null,null,null,null,"",null,""]
[null,null,null,null,"",null,""]
[null,null,null,null,"",null,""]
[null,null,null,null,"",null,""]
[null,null,null,null,"",null,""]
[null,null,null,null,"",null,""]
[null,null,null,null,"",null,""]
[null,null,null,null,"",null,""]
[null,null,null,null,"",null,""]
[null,null,null,null,"",null,""]
[null,null,null,null,"",null,""]
[null,null,null,null,"",null,""]
[null,null,null,null,"",null,""]
[null,null,null,null,"",null,""]
[null,null,null,null,"",null,""]
[null,null,null,null,"",null,""]
[null,null,null,null,"",null,""]
[null,null,null,null,"",null,""]
[null,null,null,null,"",null,""]
[null,null,null,null,"",null,""]
[null,null,null,null,"",null,""]
[null,null,null,null,"",null,""]
[null,null,null,null,"",null,""]
[null,null,null,null,"",null,""]
[null,null,null,null,"",null,""]
[null,null,null,null,"",null,""]
[null,null,null,null,"",null,""]
[null,null,null,null,"",null,""]
[null,null,null,null,"",null,""]
[null,null,null,null,"",null,""]
[null,null,null,null,"",null,""]
[null,null,null,null,"",null,""]
[null,null,null,null,"",null,""]
[null,null,null,null,"",null,""]
[null,null,null,null,"",null,""]
[null,null,null,null,"",null,""]
[null,null,null,null,"",null,""]
[null,null,null,null,"",null,""]
[null,null,null,null,"",null,""]
[null,null,null,null,"",null,""]
[null,null,null,null,"",null,""]
[null,null,null,null,"",null,""]
[null,null,null,null,"",null,{"$f":"IF(A5770<>\"\",IF(B5770=\"\",\"Falta IBAN\",IF(C5770=\"\",\"Falta Valor\",\"Linha totalmente preenchida\")),IF(B5770<>\"\",IF(A5770=\"\",\"Falta Nome\",\"\"),\"\"))","v":""}]
[null,null,null,null,"",null,""]
[null,null,null,null,"",null,""]
[null,null,null,null,"",null,""]
[null,null,null,null,"",null,""]
[null,null,null,null,"",null,""]
[null,null,null,null,"",null,""]
[null,null,null,null,"",null,""]
[null,null,null,null,"",null,""]
[null,null,null,null,"",null,""]
[null,null,null,null,"",null,""]
[null,null,null,null,"",null,""]
[null,null,null,null,"",null,""]
[null,null,null,null,"",null,""]
[null,null,null,null,"",null,""]
[null,null,null,null,"",null,""]
[null,null,null,null,"",null,""]
[null,null,null,null,{"$f":"IF(C5787<>\"\",C5787,\"\")","v":""},null,""]
[null,null,null,null,"",null,""]
[null,null,null,null,"",null,""]
[null,null,null,null,"",null,""]
[null,null,null,null,"",null,""]
[null,null,null,null,"",null,""]
[null,null,null,null,"",null,""]
[null,null,null,null,"",null,""]
[null,null,null,null,"",null,""]
[null,null,null,null,"",null,""]
[null,null,null,null,"",null,""]
[null,null,null,null,"",null,""]
[null,null,null,null,"",null,""]
[null,null,null,null,"",null,""]
[null,null,null,null,"",null,""]
[null,null,null,null,"",null,""]
[null,null,null,null,"",null,""]
[null,null,null,null,"",null,""]
[null,null,null,null,"",null,""]
[null,null,null,null,"",null,""]
[null,null,null,null,"",null,""]
[null,null,null,null,"",null,""]
[null,null,null,null,"",null,""]
[null,null,null,null,"",null,""]
[null,null,null,null,"",null,""]
[null,null,null,null,"",null,""]
[null,null,null,null,"",null,""]
[null,null,null,null,"",null,""]
[null,null,null,null,"",null,""]
[null,null,null,null,"",null,""]
[null,null,null,null,"",null,""]
[null,null,null,null,"",null,""]
[null,null,null,null,"",null,""]
[null,null,null,null,"",null,""]
[null,null,null,null,"",null,""]
[null,null,null,null,"",null,""]
[null,null,null,null,"",null,""]
[null,null,null,null,"",null,""]
[null,null,null,null,"",null,""]
[null,null,null,null,"",null,""]
[null,null,null,null,"",null,""]
[null,null,null,null,"",null,""]
[null,null,null,null,"",null,""]
[null,null,null,null,"",null,""]
[null,null,null,null,"",null,""]
[null,null,null,null,"",null,""]
[null,null,null,null,"",null,""]
[null,null,null,null,"",null,{"$f":"IF(A5834<>\"\",IF(B5834=\"\",\"Falta IBAN\",IF(C5834=\"\",\"Falta Valor\",\"Linha totalmente preenchida\")),IF(B5834<>\"\",IF(A5834=\"\",\"Falta Nome\",\"\"),\"\"))","v":""}]
[null,null,null,null,"",null,""]
[null,null,null,null,"",null,""]
[null,null,null,null,"",null,""]
[null,null,null,null,"",null,""]
[null,null,null,null,"",null,""]
[null,null,null,null,"",null,""]
[null,null,null,null,"",null,""]
[null,null,null,null,"",null,""]
[null,null,null,null,"",null,""]
[null,null,null,null,"",null,""]
[null,null,null,null,"",null,""]
[null,null,null,null,"",null,""]
[null,null,null,null,"",null,""]
[null,null,null,null,"",null,""]
[null,null,null,null,"",null,""]
[null,null,null,null,"",null,""]
[null,null,null,null,{"$f":"IF(C5851<>\"\",C5851,\"\")","v":""},null,""]
[null,null,null,null,"",null,""]
[null,null,null,null,"",null,""]
[null,null,null,null,"",null,""]
[null,null,null,null,"",null,""]
[null,null,null,null,"",null,""]
[null,null,null,null,"",null,""]
[null,null,null,null,"",null,""]
[null,null,null,null,"",null,""]
[null,null,null,null,"",null,""]
[null,null,null,null,"",null,""]
[null,null,null,null,"",null,""]
[null,null,null,null,"",null,""]
[null,null,null,null,"",null,""]
[null,null,null,null,"",null,""]
[null,null,null,null,"",null,""]
[null,null,null,null,"",null,""]
[null,null,null,null,"",null,""]
[null,null,null,null,"",null,""]
[null,null,null,null,"",null,""]
[null,null,null,null,"",null,""]
[null,null,null,null,"",null,""]
[null,null,null,null,"",null,""]
[null,null,null,null,"",null,""]
[null,null,null,null,"",null,""]
[null,null,null,null,"",null,""]
[null,null,null,null,"",null,""]
[null,null,null,null,"",null,""]
[null,null,null,null,"",null,""]
[null,null,null,null,"",null,""]
[null,null,null,null,"",null,""]
[null,null,null,null,"",null,""]
[null,null,null,null,"",null,""]
[null,null,null,null,"",null,""]
[null,null,null,null,"",null,""]
[null,null,null,null,"",null,""]
[null,null,null,null,"",null,""]
[null,null,null,null,"",null,""]
[null,null,null,null,"",null,""]
[null,null,null,null,"",null,""]
[null,null,null,null,"",null,""]
[null,null,null,null,"",null,""]
[null,null,null,null,"",null,""]
[null,null,null,null,"",null,""]
[null,null,null,null,"",null,""]
[null,null,null,null,"",null,""]
[null,null,null,null,"",null,""]
[null,null,null,null,"",null,{"$f":"IF(A5898<>\"\",IF(B5898=\"\",\"Falta IBAN\",IF(C5898=\"\",\"Falta Valor\",\"Linha totalmente preenchida\")),IF(B5898<>\"\",IF(A5898=\"\",\"Falta Nome\",\"\"),\"\"))","v":""}]
[null,null,null,null,"",null,""]
[null,null,null,null,"",null,""]
[null,null,null,null,"",null,""]
[null,null,null,null,"",null,""]
[null,null,null,null,"",null,""]
[null,null,null,null,"",null,""]
[null,null,null,null,"",null,""]
[null,null,null,null,"",null,""]
[null,null,null,null,"",null,""]
[null,null,null,null,"",null,""]
[null,null,null,null,"",null,""]
[null,null,null,null,"",null,""]
[null,null,null,null,"",null,""]
[null,null,null,null,"",null,""]
[null,null,null,null,"",null,""]
[null,null,null,null,"",null,""]
[null,null,null,null,{"$f":"IF(C5915<>\"\",C5915,\"\")","v":""},null,""]
[null,null,null,null,"",null,""]
[null,null,null,null,"",null,""]
[null,null,null,null,"",null,""]
[null,null,null,null,"",null,""]
[null,null,null,null,"",null,""]
[null,null,null,null,"",null,""]
[null,null,null,null,"",null,""]
[null,null,null,null,"",null,""]
[null,null,null,null,"",null,""]
[null,null,null,null,"",null,""]
[null,null,null,null,"",null,""]
[null,null,null,null,"",null,""]
[null,null,null,null,"",null,""]
[null,null,null,null,"",null,""]
[null,null,null,null,"",null,""]
[null,null,null,null,"",null,""]
[null,null,null,null,"",null,""]
[null,null,null,null,"",null,""]
[null,null,null,null,"",null,""]
[null,null,null,null,"",null,""]
[null,null,null,null,"",null,""]
[null,null,null,null,"",null,""]
[null,null,null,null,"",null,""]
[null,null,null,null,"",null,""]
[null,null,null,null,"",null,""]
[null,null,null,null,"",null,""]
[null,null,null,null,"",null,""]
[null,null,null,null,"",null,""]
[null,null,null,null,"",null,""]
[null,null,null,null,"",null,""]
[null,null,null,null,"",null,""]
[null,null,null,null,"",null,""]
[null,null,null,null,"",null,""]
[null,null,null,null,"",null,""]
[null,null,null,null,"",null,""]
[null,null,null,null,"",null,""]
[null,null,null,null,"",null,""]
[null,null,null,null,"",null,""]
[null,null,null,null,"",null,""]
[null,null,null,null,"",null,""]
[null,null,null,null,"",null,""]
[null,null,null,null,"",null,""]
[null,null,null,null,"",null,""]
[null,null,null,null,"",null,""]
[null,null,null,null,"",null,""]
[null,null,null,null,"",null,""]
[null,null,null,null,"",null,{"$f":"IF(A5962<>\"\",IF(B5962=\"\",\"Falta IBAN\",IF(C5962=\"\",\"Falta Valor\",\"Linha totalmente preenchida\")),IF(B5962<>\"\",IF(A5962=\"\",\"Falta Nome\",\"\"),\"\"))","v":""}]
[null,null,null,null,"",null,""]
[null,null,null,null,"",null,""]
[null,null,null,null,"",null,""]
[null,null,null,null,"",null,""]
[null,null,null,null,"",null,""]
[null,null,null,null,"",null,""]
[null,null,null,null,"",null,""]
[null,null,null,null,"",null,""]
[null,null,null,null,"",null,""]
[null,null,null,null,"",null,""]
[null,null,null,null,"",null,""]
[null,null,null,null,"",null,""]
[null,null,null,null,"",null,""]
[null,null,null,null,"",null,""]
[null,null,null,null,"",null,""]
[null,null,null,null,"",null,""]
[null,null,null,null,{"$f":"IF(C5979<>\"\",C5979,\"\")","v":""},null,""]
[null,null,null,null,"",null,""]
[null,null,null,null,"",null,""]
[null,null,null,null,"",null,""]
[null,null,null,null,"",null,""]
[null,null,null,null,"",null,""]
[null,null,null,null,"",null,""]
[null,null,null,null,"",null,""]
[null,null,null,null,"",null,""]
[null,null,null,null,"",null,""]
[null,null,null,null,"",null,""]
[null,null,null,null,"",null,""]
[null,null,null,null,"",null,""]
[null,null,null,null,"",null,""]
[null,null,null,null,"",null,""]
[null,null,null,null,"",null,""]
[null,null,null,null,"",null,""]
[null,null,null,null,"",null,""]
[null,null,null,null,"",null,""]
[null,null,null,null,"",null,""]
[null,null,null,null,"",null,""]
[null,null,null,null,"",null,""]
[null,null,null,null,"",null,""]
[null,null,null,null,"",null,""]
[null,null,null,null,"",null,""]
[null,null,null,null,"",null,""]
[null,null,null,null,"",null,""]
[null,null,null,null,"",null,""]
[null,null,null,null,"",null,""]
[null,null,null,null,"",null,""]
[null,null,null,null,"",null,""]
[null,null,null,null,"",null,""]
[null,null,null,null,"",null,""]
[null,null,null,null,"",null,""]
[null,null,null,null,"",null,""]
[null,null,null,null,"",null,""]
[null,null,null,null,"",null,""]
[null,null,null,null,"",null,""]
[null,null,null,null,"",null,""]
[null,null,null,null,"",null,""]
[null,null,null,null,"",null,""]
[null,null,null,null,"",null,""]
[null,null,null,null,"",null,""]
[null,null,null,null,"",null,""]
[null,null,null,null,"",null,""]
[null,null,null,null,"",null,""]
[null,null,null,null,"",null,""]
[null,null,null,null,"",null,{"$f":"IF(A6026<>\"\",IF(B6026=\"\",\"Falta IBAN\",IF(C6026=\"\",\"Falta Valor\",\"Linha totalmente preenchida\")),IF(B6026<>\"\",IF(A6026=\"\",\"Falta Nome\",\"\"),\"\"))","v":""}]
[null,null,null,null,"",null,""]
[null,null,null,null,"",null,""]
[null,null,null,null,"",null,""]
[null,null,null,null,"",null,""]
[null,null,null,null,"",null,""]
[null,null,null,null,"",null,""]
[null,null,null,null,"",null,""]
[null,null,null,null,"",null,""]
[null,null,null,null,"",null,""]
[null,null,null,null,"",null,""]
[null,null,null,null,"",null,""]
[null,null,null,null,"",null,""]
[null,null,null,null,"",null,""]
[null,null,null,null,"",null,""]
[null,null,null,null,"",null,""]
[null,null,null,null,"",null,""]
[null,null,null,null,{"$f":"IF(C6043<>\"\",C6043,\"\")","v":""},null,""]
[null,null,null,null,"",null,""]
[null,null,null,null,"",null,""]
[null,null,null,null,"",null,""]
[null,null,null,null,"",null,""]
[null,null,null,null,"",null,""]
[null,null,null,null,"",null,""]
[null,null,null,null,"",null,""]
[null,null,null,null,"",null,""]
[null,null,null,null,"",null,""]
[null,null,null,null,"",null,""]
[null,null,null,null,"",null,""]
[null,null,null,null,"",null,""]
[null,null,null,null,"",null,""]
[null,null,null,null,"",null,""]
[null,null,null,null,"",null,""]
[null,null,null,null,"",null,""]
[null,null,null,null,"",null,""]
[null,null,null,null,"",null,""]
[null,null,null,null,"",null,""]
[null,null,null,null,"",null,""]
[null,null,null,null,"",null,""]
[null,null,null,null,"",null,""]
[null,null,null,null,"",null,""]
[null,null,null,null,"",null,""]
[null,null,null,null,"",null,""]
[null,null,null,null,"",null,""]
[null,null,null,null,"",null,""]
[null,null,null,null,"",null,""]
[null,null,null,null,"",null,""]
[null,null,null,null,"",null,""]
[null,null,null,null,"",null,""]
[null,null,null,null,"",null,""]
[null,null,null,null,"",null,""]
[null,null,null,null,"",null,""]
[null,null,null,null,"",null,""]
[null,null,null,null,"",null,""]
[null,null,null,null,"",null,""]
[null,null,null,null,"",null,""]
[null,null,null,null,"",null,""]
[null,null,null,null,"",null,""]
[null,null,null,null,"",null,""]
[null,null,null,null,"",null,""]
[null,null,null,null,"",null,""]
[null,null,null,null,"",null,""]
[null,null,null,null,"",null,""]
[null,null,null,null,"",null,""]
[null,null,null,null,"",null,{"$f":"IF(A6090<>\"\",IF(B6090=\"\",\"Falta IBAN\",IF(C6090=\"\",\"Falta Valor\",\"Linha totalmente preenchida\")),IF(B6090<>\"\",IF(A6090=\"\",\"Falta Nome\",\"\"),\"\"))","v":""}]
[null,null,null,null,"",null,""]
[null,null,null,null,"",null,""]
[null,null,null,null,"",null,""]
[null,null,null,null,"",null,""]
[null,null,null,null,"",null,""]
[null,null,null,null,"",null,""]
[null,null,null,null,"",null,""]
[null,null,null,null,"",null,""]
[null,null,null,null,"",null,""]
[null,null,null,null,"",null,""]
[null,null,null,null,"",null,""]
[null,null,null,null,"",null,""]
[null,null,null,null,"",null,""]
[null,null,null,null,"",null,""]
[null,null,null,null,"",null,""]
[null,null,null,null,"",null,""]
[null,null,null,null,{"$f":"IF(C6107<>\"\",C6107,\"\")","v":""},null,""]
[null,null,null,null,"",null,""]
[null,null,null,null,"",null,""]
[null,null,null,null,"",null,""]
[null,null,null,null,"",null,""]
[null,null,null,null,"",null,""]
[null,null,null,null,"",null,""]
[null,null,null,null,"",null,""]
[null,null,null,null,"",null,""]
[null,null,null,null,"",null,""]
[null,null,null,null,"",null,""]
[null,null,null,null,"",null,""]
[null,null,null,null,"",null,""]
[null,null,null,null,"",null,""]
[null,null,null,null,"",null,""]
[null,null,null,null,"",null,""]
[null,null,null,null,"",null,""]
[null,null,null,null,"",null,""]
[null,null,null,null,"",null,""]
[null,null,null,null,"",null,""]
[null,null,null,null,"",null,""]
[null,null,null,null,"",null,""]
[null,null,null,null,"",null,""]
[null,null,null,null,"",null,""]
[null,null,null,null,"",null,""]
[null,null,null,null,"",null,""]
[null,null,null,null,"",null,""]
[null,null,null,null,"",null,""]
[null,null,null,null,"",null,""]
[null,null,null,null,"",null,""]
[null,null,null,null,"",null,""]
[null,null,null,null,"",null,""]
[null,null,null,null,"",null,""]
[null,null,null,null,"",null,""]
[null,null,null,null,"",null,""]
[null,null,null,null,"",null,""]
[null,null,null,null,"",null,""]
[null,null,null,null,"",null,""]
[null,null,null,null,"",null,""]
[null,null,null,null,"",null,""]
[null,null,null,null,"",null,""]
[null,null,null,null,"",null,""]
[null,null,null,null,"",null,""]
[null,null,null,null,"",null,""]
[null,null,null,null,"",null,""]
[null,null,null,null,"",null,""]
[null,null,null,null,"",null,""]
[null,null,null,null,"",null,{"$f":"IF(A6154<>\"\",IF(B6154=\"\",\"Falta IBAN\",IF(C6154=\"\",\"Falta Valor\",\"Linha totalmente preenchida\")),IF(B6154<>\"\",IF(A6154=\"\",\"Falta Nome\",\"\"),\"\"))","v":""}]
[null,null,null,null,"",null,""]
[null,null,null,null,"",null,""]
[null,null,null,null,"",null,""]
[null,null,null,null,"",null,""]
[null,null,null,null,"",null,""]
[null,null,null,null,"",null,""]
[null,null,null,null,"",null,""]
[null,null,null,null,"",null,""]
[null,null,null,null,"",null,""]
[null,null,null,null,"",null,""]
[null,null,null,null,"",null,""]
[null,null,null,null,"",null,""]
[null,null,null,null,"",null,""]
[null,null,null,null,"",null,""]
[null,null,null,null,"",null,""]
[null,null,null,null,"",null,""]
[null,null,null,null,{"$f":"IF(C6171<>\"\",C6171,\"\")","v":""},null,""]
[null,null,null,null,"",null,""]
[null,null,null,null,"",null,""]
[null,null,null,null,"",null,""]
[null,null,null,null,"",null,""]
[null,null,null,null,"",null,""]
[null,null,null,null,"",null,""]
[null,null,null,null,"",null,""]
[null,null,null,null,"",null,""]
[null,null,null,null,"",null,""]
[null,null,null,null,"",null,""]
[null,null,null,null,"",null,""]
[null,null,null,null,"",null,""]
[null,null,null,null,"",null,""]
[null,null,null,null,"",null,""]
[null,null,null,null,"",null,""]
[null,null,null,null,"",null,""]
[null,null,null,null,"",null,""]
[null,null,null,null,"",null,""]
[null,null,null,null,"",null,""]
[null,null,null,null,"",null,""]
[null,null,null,null,"",null,""]
[null,null,null,null,"",null,""]
[null,null,null,null,"",null,""]
[null,null,null,null,"",null,""]
[null,null,null,null,"",null,""]
[null,null,null,null,"",null,""]
[null,null,null,null,"",null,""]
[null,null,null,null,"",null,""]
[null,null,null,null,"",null,""]
[null,null,null,null,"",null,""]
[null,null,null,null,"",null,""]
[null,null,null,null,"",null,""]
[null,null,null,null,"",null,""]
[null,null,null,null,"",null,""]
[null,null,null,null,"",null,""]
[null,null,null,null,"",null,""]
[null,null,null,null,"",null,""]
[null,null,null,null,"",null,""]
[null,null,null,null,"",null,""]
[null,null,null,null,"",null,""]
[null,null,null,null,"",null,""]
[null,null,null,null,"",null,""]
[null,null,null,null,"",null,""]
[null,null,null,null,"",null,""]
[null,null,null,null,"",null,""]
[null,null,null,null,"",null,""]
[null,null,null,null,"",null,{"$f":"IF(A6218<>\"\",IF(B6218=\"\",\"Falta IBAN\",IF(C6218=\"\",\"Falta Valor\",\"Linha totalmente preenchida\")),IF(B6218<>\"\",IF(A6218=\"\",\"Falta Nome\",\"\"),\"\"))","v":""}]
[null,null,null,null,"",null,""]
[null,null,null,null,"",null,""]
[null,null,null,null,"",null,""]
[null,null,null,null,"",null,""]
[null,null,null,null,"",null,""]
[null,null,null,null,"",null,""]
[null,null,null,null,"",null,""]
[null,null,null,null,"",null,""]
[null,null,null,null,"",null,""]
[null,null,null,null,"",null,""]
[null,null,null,null,"",null,""]
[null,null,null,null,"",null,""]
[null,null,null,null,"",null,""]
[null,null,null,null,"",null,""]
[null,null,null,null,"",null,""]
[null,null,null,null,"",null,""]
[null,null,null,null,{"$f":"IF(C6235<>\"\",C6235,\"\")","v":""},null,""]
[null,null,null,null,"",null,""]
[null,null,null,null,"",null,""]
[null,null,null,null,"",null,""]
[null,null,null,null,"",null,""]
[null,null,null,null,"",null,""]
[null,null,null,null,"",null,""]
[null,null,null,null,"",null,""]
[null,null,null,null,"",null,""]
[null,null,null,null,"",null,""]
[null,null,null,null,"",null,""]
[null,null,null,null,"",null,""]
[null,null,null,null,"",null,""]
[null,null,null,null,"",null,""]
[null,null,null,null,"",null,""]
[null,null,null,null,"",null,""]
[null,null,null,null,"",null,""]
[null,null,null,null,"",null,""]
[null,null,null,null,"",null,""]
[null,null,null,null,"",null,""]
[null,null,null,null,"",null,""]
[null,null,null,null,"",null,""]
[null,null,null,null,"",null,""]
[null,null,null,null,"",null,""]
[null,null,null,null,"",null,""]
[null,null,null,null,"",null,""]
[null,null,null,null,"",null,""]
[null,null,null,null,"",null,""]
[null,null,null,null,"",null,""]
[null,null,null,null,"",null,""]
[null,null,null,null,"",null,""]
[null,null,null,null,"",null,""]
[null,null,null,null,"",null,""]
[null,null,null,null,"",null,""]
[null,null,null,null,"",null,""]
[null,null,null,null,"",null,""]
[null,null,null,null,"",null,""]
[null,null,null,null,"",null,""]
[null,null,null,null,"",null,""]
[null,null,null,null,"",null,""]
[null,null,null,null,"",null,""]
[null,null,null,null,"",null,""]
[null,null,null,null,"",null,""]
[null,null,null,null,"",null,""]
[null,null,null,null,"",null,""]
[null,null,null,null,"",null,""]
[null,null,null,null,"",null,""]
[null,null,null,null,"",null,{"$f":"IF(A6282<>\"\",IF(B6282=\"\",\"Falta IBAN\",IF(C6282=\"\",\"Falta Valor\",\"Linha totalmente preenchida\")),IF(B6282<>\"\",IF(A6282=\"\",\"Falta Nome\",\"\"),\"\"))","v":""}]
[null,null,null,null,"",null,""]
[null,null,null,null,"",null,""]
[null,null,null,null,"",null,""]
[null,null,null,null,"",null,""]
[null,null,null,null,"",null,""]
[null,null,null,null,"",null,""]
[null,null,null,null,"",null,""]
[null,null,null,null,"",null,""]
[null,null,null,null,"",null,""]
[null,null,null,null,"",null,""]
[null,null,null,null,"",null,""]
[null,null,null,null,"",null,""]
[null,null,null,null,"",null,""]
[null,null,null,null,"",null,""]
[null,null,null,null,"",null,""]
[null,null,null,null,"",null,""]
[null,null,null,null,{"$f":"IF(C6299<>\"\",C6299,\"\")","v":""},null,""]
[null,null,null,null,"",null,""]
[null,null,null,null,"",null,""]
[null,null,null,null,"",null,""]
[null,null,null,null,"",null,""]
[null,null,null,null,"",null,""]
[null,null,null,null,"",null,""]
[null,null,null,null,"",null,""]
[null,null,null,null,"",null,""]
[null,null,null,null,"",null,""]
[null,null,null,null,"",null,""]
[null,null,null,null,"",null,""]
[null,null,null,null,"",null,""]
[null,null,null,null,"",null,""]
[null,null,null,null,"",null,""]
[null,null,null,null,"",null,""]
[null,null,null,null,"",null,""]
[null,null,null,null,"",null,""]
[null,null,null,null,"",null,""]
[null,null,null,null,"",null,""]
[null,null,null,null,"",null,""]
[null,null,null,null,"",null,""]
[null,null,null,null,"",null,""]
[null,null,null,null,"",null,""]
[null,null,null,null,"",null,""]
[null,null,null,null,"",null,""]
[null,null,null,null,"",null,""]
[null,null,null,null,"",null,""]
[null,null,null,null,"",null,""]
[null,null,null,null,"",null,""]
[null,null,null,null,"",null,""]
[null,null,null,null,"",null,""]
[null,null,null,null,"",null,""]
[null,null,null,null,"",null,""]
[null,null,null,null,"",null,""]
[null,null,null,null,"",null,""]
[null,null,null,null,"",null,""]
[null,null,null,null,"",null,""]
[null,null,null,null,"",null,""]
[null,null,null,null,"",null,""]
[null,null,null,null,"",null,""]
[null,null,null,null,"",null,""]
[null,null,null,null,"",null,""]
[null,null,null,null,"",null,""]
[null,null,null,null,"",null,""]
[null,null,null,null,"",null,""]
[null,null,null,null,"",null,""]
[null,null,null,null,"",null,{"$f":"IF(A6346<>\"\",IF(B6346=\"\",\"Falta IBAN\",IF(C6346=\"\",\"Falta Valor\",\"Linha totalmente preenchida\")),IF(B6346<>\"\",IF(A6346=\"\",\"Falta Nome\",\"\"),\"\"))","v":""}]
[null,null,null,null,"",null,""]
[null,null,null,null,"",null,""]
[null,null,null,null,"",null,""]
[null,null,null,null,"",null,""]
[null,null,null,null,"",null,""]
[null,null,null,null,"",null,""]
[null,null,null,null,"",null,""]
[null,null,null,null,"",null,""]
[null,null,null,null,"",null,""]
[null,null,null,null,"",null,""]
[null,null,null,null,"",null,""]
[null,null,null,null,"",null,""]
[null,null,null,null,"",null,""]
[null,null,null,null,"",null,""]
[null,null,null,null,"",null,""]
[null,null,null,null,"",null,""]
[null,null,null,null,{"$f":"IF(C6363<>\"\",C6363,\"\")","v":""},null,""]
[null,null,null,null,"",null,""]
[null,null,null,null,"",null,""]
[null,null,null,null,"",null,""]
[null,null,null,null,"",null,""]
[null,null,null,null,"",null,""]
[null,null,null,null,"",null,""]
[null,null,null,null,"",null,""]
[null,null,null,null,"",null,""]
[null,null,null,null,"",null,""]
[null,null,null,null,"",null,""]
[null,null,null,null,"",null,""]
[null,null,null,null,"",null,""]
[null,null,null,null,"",null,""]
[null,null,null,null,"",null,""]
[null,null,null,null,"",null,""]
[null,null,null,null,"",null,""]
[null,null,null,null,"",null,""]
[null,null,null,null,"",null,""]
[null,null,null,null,"",null,""]
[null,null,null,null,"",null,""]
[null,null,null,null,"",null,""]
[null,null,null,null,"",null,""]
[null,null,null,null,"",null,""]
[null,null,null,null,"",null,""]
[null,null,null,null,"",null,""]
[null,null,null,null,"",null,""]
[null,null,null,null,"",null,""]
[null,null,null,null,"",null,""]
[null,null,null,null,"",null,""]
[null,null,null,null,"",null,""]
[null,null,null,null,"",null,""]
[null,null,null,null,"",null,""]
[null,null,null,null,"",null,""]
[null,null,null,null,"",null,""]
[null,null,null,null,"",null,""]
[null,null,null,null,"",null,""]
[null,null,null,null,"",null,""]
[null,null,null,null,"",null,""]
[null,null,null,null,"",null,""]
[null,null,null,null,"",null,""]
[null,null,null,null,"",null,""]
[null,null,null,null,"",null,""]
[null,null,null,null,"",null,""]
[null,null,null,null,"",null,""]
[null,null,null,null,"",null,""]
[null,null,null,null,"",null,""]
[null,null,null,null,"",null,{"$f":"IF(A6410<>\"\",IF(B6410=\"\",\"Falta IBAN\",IF(C6410=\"\",\"Falta Valor\",\"Linha totalmente preenchida\")),IF(B6410<>\"\",IF(A6410=\"\",\"Falta Nome\",\"\"),\"\"))","v":""}]
[null,null,null,null,"",null,""]
[null,null,null,null,"",null,""]
[null,null,null,null,"",null,""]
[null,null,null,null,"",null,""]
[null,null,null,null,"",null,""]
[null,null,null,null,"",null,""]
[null,null,null,null,"",null,""]
[null,null,null,null,"",null,""]
[null,null,null,null,"",null,""]
[null,null,null,null,"",null,""]
[null,null,null,null,"",null,""]
[null,null,null,null,"",null,""]
[null,null,null,null,"",null,""]
[null,null,null,null,"",null,""]
[null,null,null,null,"",null,""]
[null,null,null,null,"",null,""]
[null,null,null,null,{"$f":"IF(C6427<>\"\",C6427,\"\")","v":""},null,""]
[null,null,null,null,"",null,""]
[null,null,null,null,"",null,""]
[null,null,null,null,"",null,""]
[null,null,null,null,"",null,""]
[null,null,null,null,"",null,""]
[null,null,null,null,"",null,""]
[null,null,null,null,"",null,""]
[null,null,null,null,"",null,""]
[null,null,null,null,"",null,""]
[null,null,null,null,"",null,""]
[null,null,null,null,"",null,""]
[null,null,null,null,"",null,""]
[null,null,null,null,"",null,""]
[null,null,null,null,"",null,""]
[null,null,null,null,"",null,""]
[null,null,null,null,"",null,""]
[null,null,null,null,"",null,""]
[null,null,null,null,"",null,""]
[null,null,null,null,"",null,""]
[null,null,null,null,"",null,""]
[null,null,null,null,"",null,""]
[null,null,null,null,"",null,""]
[null,null,null,null,"",null,""]
[null,null,null,null,"",null,""]
[null,null,null,null,"",null,""]
[null,null,null,null,"",null,""]
[null,null,null,null,"",null,""]
[null,null,null,null,"",null,""]
[null,null,null,null,"",null,""]
[null,null,null,null,"",null,""]
[null,null,null,null,"",null,""]
[null,null,null,null,"",null,""]
[null,null,null,null,"",null,""]
[null,null,null,null,"",null,""]
[null,null,null,null,"",null,""]
[null,null,null,null,"",null,""]
[null,null,null,null,"",null,""]
[null,null,null,null,"",null,""]
[null,null,null,null,"",null,""]
[null,null,null,null,"",null,""]
[null,null,null,null,"",null,""]
[null,null,null,null,"",null,""]
[null,null,null,null,"",null,""]
[null,null,null,null,"",null,""]
[null,null,null,null,"",null,""]
[null,null,null,null,"",null,""]
[null,null,null,null,"",null,{"$f":"IF(A6474<>\"\",IF(B6474=\"\",\"Falta IBAN\",IF(C6474=\"\",\"Falta Valor\",\"Linha totalmente preenchida\")),IF(B6474<>\"\",IF(A6474=\"\",\"Falta Nome\",\"\"),\"\"))","v":""}]
[null,null,null,null,"",null,""]
[null,null,null,null,"",null,""]
[null,null,null,null,"",null,""]
[null,null,null,null,"",null,""]
[null,null,null,null,"",null,""]
[null,null,null,null,"",null,""]
[null,null,null,null,"",null,""]
[null,null,null,null,"",null,""]
[null,null,null,null,"",null,""]
[null,null,null,null,"",null,""]
[null,null,null,null,"",null,""]
[null,null,null,null,"",null,""]
[null,null,null,null,"",null,""]
[null,null,null,null,"",null,""]
[null,null,null,null,"",null,""]
[null,null,null,null,"",null,""]
[null,null,null,null,{"$f":"IF(C6491<>\"\",C6491,\"\")","v":""},null,""]
[null,null,null,null,"",null,""]
[null,null,null,null,"",null,""]
[null,null,null,null,"",null,""]
[null,null,null,null,"",null,""]
[null,null,null,null,"",null,""]
[null,null,null,null,"",null,""]
[null,null,null,null,"",null,""]
[null,null,null,null,"",null,""]
[null,null,null,null,"",null,""]
[null,null,null,null,"",null,""]
[null,null,null,null,"",null,""]
[null,null,null,null,"",null,""]
[null,null,null,null,"",null,""]
[null,null,null,null,"",null,""]
[null,null,null,null,"",null,""]
[null,null,null,null,"",null,""]
[null,null,null,null,"",null,""]
[null,null,null,null,"",null,""]
[null,null,null,null,"",null,""]
[null,null,null,null,"",null,""]
[null,null,null,null,"",null,""]
[null,null,null,null,"",null,""]
[null,null,null,null,"",null,""]
[null,null,null,null,"",null,""]
[null,null,null,null,"",null,""]
[null,null,null,null,"",null,""]
[null,null,null,null,"",null,""]
[null,null,null,null,"",null,""]
[null,null,null,null,"",null,""]
[null,null,null,null,"",null,""]
[null,null,null,null,"",null,""]
[null,null,null,null,"",null,""]
[null,null,null,null,"",null,""]
[null,null,null,null,"",null,""]
[null,null,null,null,"",null,""]
[null,null,null,null,"",null,""]
[null,null,null,null,"",null,""]
[null,null,null,null,"",null,""]
[null,null,null,null,"",null,""]
[null,null,null,null,"",null,""]
[null,null,null,null,"",null,""]
[null,null,null,null,"",null,""]
[null,null,null,null,"",null,""]
[null,null,null,null,"",null,""]
[null,null,null,null,"",null,""]
[null,null,null,null,"",null,""]
[null,null,null,null,"",null,{"$f":"IF(A6538<>\"\",IF(B6538=\"\",\"Falta IBAN\",IF(C6538=\"\",\"Falta Valor\",\"Linha totalmente preenchida\")),IF(B6538<>\"\",IF(A6538=\"\",\"Falta Nome\",\"\"),\"\"))","v":""}]
[null,null,null,null,"",null,""]
[null,null,null,null,"",null,""]
[null,null,null,null,"",null,""]
[null,null,null,null,"",null,""]
[null,null,null,null,"",null,""]
[null,null,null,null,"",null,""]
[null,null,null,null,"",null,""]
[null,null,null,null,"",null,""]
[null,null,null,null,"",null,""]
[null,null,null,null,"",null,""]
[null,null,null,null,"",null,""]
[null,null,null,null,"",null,""]
[null,null,null,null,"",null,""]
[null,null,null,null,"",null,""]
[null,null,null,null,"",null,""]
[null,null,null,null,"",null,""]
[null,null,null,null,{"$f":"IF(C6555<>\"\",C6555,\"\")","v":""},null,""]
[null,null,null,null,"",null,""]
[null,null,null,null,"",null,""]
[null,null,null,null,"",null,""]
[null,null,null,null,"",null,""]
[null,null,null,null,"",null,""]
[null,null,null,null,"",null,""]
[null,null,null,null,"",null,""]
[null,null,null,null,"",null,""]
[null,null,null,null,"",null,""]
[null,null,null,null,"",null,""]
[null,null,null,null,"",null,""]
[null,null,null,null,"",null,""]
[null,null,null,null,"",null,""]
[null,null,null,null,"",null,""]
[null,null,null,null,"",null,""]
[null,null,null,null,"",null,""]
[null,null,null,null,"",null,""]
[null,null,null,null,"",null,""]
[null,null,null,null,"",null,""]
[null,null,null,null,"",null,""]
[null,null,null,null,"",null,""]
[null,null,null,null,"",null,""]
[null,null,null,null,"",null,""]
[null,null,null,null,"",null,""]
[null,null,null,null,"",null,""]
[null,null,null,null,"",null,""]
[null,null,null,null,"",null,""]
[null,null,null,null,"",null,""]
[null,null,null,null,"",null,""]
[null,null,null,null,"",null,""]
[null,null,null,null,"",null,""]
[null,null,null,null,"",null,""]
[null,null,null,null,"",null,""]
[null,null,null,null,"",null,""]
[null,null,null,null,"",null,""]
[null,null,null,null,"",null,""]
[null,null,null,null,"",null,""]
[null,null,null,null,"",null,""]
[null,null,null,null,"",null,""]
[null,null,null,null,"",null,""]
[null,null,null,null,"",null,""]
[null,null,null,null,"",null,""]
[null,null,null,null,"",null,""]
[null,null,null,null,"",null,""]
[null,null,null,null,"",null,""]
[null,null,null,null,"",null,""]
[null,null,null,null,"",null,{"$f":"IF(A6602<>\"\",IF(B6602=\"\",\"Falta IBAN\",IF(C6602=\"\",\"Falta Valor\",\"Linha totalmente preenchida\")),IF(B6602<>\"\",IF(A6602=\"\",\"Falta Nome\",\"\"),\"\"))","v":""}]
[null,null,null,null,"",null,""]
[null,null,null,null,"",null,""]
[null,null,null,null,"",null,""]
[null,null,null,null,"",null,""]
[null,null,null,null,"",null,""]
[null,null,null,null,"",null,""]
[null,null,null,null,"",null,""]
[null,null,null,null,"",null,""]
[null,null,null,null,"",null,""]
[null,null,null,null,"",null,""]
[null,null,null,null,"",null,""]
[null,null,null,null,"",null,""]
[null,null,null,null,"",null,""]
[null,null,null,null,"",null,""]
[null,null,null,null,"",null,""]
[null,null,null,null,"",null,""]
[null,null,null,null,{"$f":"IF(C6619<>\"\",C6619,\"\")","v":""},null,""]
[null,null,null,null,"",null,""]
[null,null,null,null,"",null,""]
[null,null,null,null,"",null,""]
[null,null,null,null,"",null,""]
[null,null,null,null,"",null,""]
[null,null,null,null,"",null,""]
[null,null,null,null,"",null,""]
[null,null,null,null,"",null,""]
[null,null,null,null,"",null,""]
[null,null,null,null,"",null,""]
[null,null,null,null,"",null,""]
[null,null,null,null,"",null,""]
[null,null,null,null,"",null,""]
[null,null,null,null,"",null,""]
[null,null,null,null,"",null,""]
[null,null,null,null,"",null,""]
[null,null,null,null,"",null,""]
[null,null,null,null,"",null,""]
[null,null,null,null,"",null,""]
[null,null,null,null,"",null,""]
[null,null,null,null,"",null,""]
[null,null,null,null,"",null,""]
[null,null,null,null,"",null,""]
[null,null,null,null,"",null,""]
[null,null,null,null,"",null,""]
[null,null,null,null,"",null,""]
[null,null,null,null,"",null,""]
[null,null,null,null,"",null,""]
[null,null,null,null,"",null,""]
[null,null,null,null,"",null,""]
[null,null,null,null,"",null,""]
[null,null,null,null,"",null,""]
[null,null,null,null,"",null,""]
[null,null,null,null,"",null,""]
[null,null,null,null,"",null,""]
[null,null,null,null,"",null,""]
[null,null,null,null,"",null,""]
[null,null,null,null,"",null,""]
[null,null,null,null,"",null,""]
[null,null,null,null,"",null,""]
[null,null,null,null,"",null,""]
[null,null,null,null,"",null,""]
[null,null,null,null,"",null,""]
[null,null,null,null,"",null,""]
[null,null,null,null,"",null,""]
[null,null,null,null,"",null,""]
[null,null,null,null,"",null,{"$f":"IF(A6666<>\"\",IF(B6666=\"\",\"Falta IBAN\",IF(C6666=\"\",\"Falta Valor\",\"Linha totalmente preenchida\")),IF(B6666<>\"\",IF(A6666=\"\",\"Falta Nome\",\"\"),\"\"))","v":""}]
[null,null,null,null,"",null,""]
[null,null,null,null,"",null,""]
[null,null,null,null,"",null,""]
[null,null,null,null,"",null,""]
[null,null,null,null,"",null,""]
[null,null,null,null,"",null,""]
[null,null,null,null,"",null,""]
[null,null,null,null,"",null,""]
[null,null,null,null,"",null,""]
[null,null,null,null,"",null,""]
[null,null,null,null,"",null,""]
[null,null,null,null,"",null,""]
[null,null,null,null,"",null,""]
[null,null,null,null,"",null,""]
[null,null,null,null,"",null,""]
[null,null,null,null,"",null,""]
[null,null,null,null,{"$f":"IF(C6683<>\"\",C6683,\"\")","v":""},null,""]
[null,null,null,null,"",null,""]
[null,null,null,null,"",null,""]
[null,null,null,null,"",null,""]
[null,null,null,null,"",null,""]
[null,null,null,null,"",null,""]
[null,null,null,null,"",null,""]
[null,null,null,null,"",null,""]
[null,null,null,null,"",null,""]
[null,null,null,null,"",null,""]
[null,null,null,null,"",null,""]
[null,null,null,null,"",null,""]
[null,null,null,null,"",null,""]
[null,null,null,null,"",null,""]
[null,null,null,null,"",null,""]
[null,null,null,null,"",null,""]
[null,null,null,null,"",null,""]
[null,null,null,null,"",null,""]
[null,null,null,null,"",null,""]
[null,null,null,null,"",null,""]
[null,null,null,null,"",null,""]
[null,null,null,null,"",null,""]
[null,null,null,null,"",null,""]
[null,null,null,null,"",null,""]
[null,null,null,null,"",null,""]
[null,null,null,null,"",null,""]
[null,null,null,null,"",null,""]
[null,null,null,null,"",null,""]
[null,null,null,null,"",null,""]
[null,null,null,null,"",null,""]
[null,null,null,null,"",null,""]
[null,null,null,null,"",null,""]
[null,null,null,null,"",null,""]
[null,null,null,null,"",null,""]
[null,null,null,null,"",null,""]
[null,null,null,null,"",null,""]
[null,null,null,null,"",null,""]
[null,null,null,null,"",null,""]
[null,null,null,null,"",null,""]
[null,null,null,null,"",null,""]
[null,null,null,null,"",null,""]
[null,null,null,null,"",null,""]
[null,null,null,null,"",null,""]
[null,null,null,null,"",null,""]
[null,null,null,null,"",null,""]
[null,null,null,null,"",null,""]
[null,null,null,null,"",null,""]
[null,null,null,null,"",null,{"$f":"IF(A6730<>\"\",IF(B6730=\"\",\"Falta IBAN\",IF(C6730=\"\",\"Falta Valor\",\"Linha totalmente preenchida\")),IF(B6730<>\"\",IF(A6730=\"\",\"Falta Nome\",\"\"),\"\"))","v":""}]
[null,null,null,null,"",null,""]
[null,null,null,null,"",null,""]
[null,null,null,null,"",null,""]
[null,null,null,null,"",null,""]
[null,null,null,null,"",null,""]
[null,null,null,null,"",null,""]
[null,null,null,null,"",null,""]
[null,null,null,null,"",null,""]
[null,null,null,null,"",null,""]
[null,null,null,null,"",null,""]
[null,null,null,null,"",null,""]
[null,null,null,null,"",null,""]
[null,null,null,null,"",null,""]
[null,null,null,null,"",null,""]
[null,null,null,null,"",null,""]
[null,null,null,null,"",null,""]
[null,null,null,null,{"$f":"IF(C6747<>\"\",C6747,\"\")","v":""},null,""]
[null,null,null,null,"",null,""]
[null,null,null,null,"",null,""]
[null,null,null,null,"",null,""]
[null,null,null,null,"",null,""]
[null,null,null,null,"",null,""]
[null,null,null,null,"",null,""]
[null,null,null,null,"",null,""]
[null,null,null,null,"",null,""]
[null,null,null,null,"",null,""]
[null,null,null,null,"",null,""]
[null,null,null,null,"",null,""]
[null,null,null,null,"",null,""]
[null,null,null,null,"",null,""]
[null,null,null,null,"",null,""]
[null,null,null,null,"",null,""]
[null,null,null,null,"",null,""]
[null,null,null,null,"",null,""]
[null,null,null,null,"",null,""]
[null,null,null,null,"",null,""]
[null,null,null,null,"",null,""]
[null,null,null,null,"",null,""]
[null,null,null,null,"",null,""]
[null,null,null,null,"",null,""]
[null,null,null,null,"",null,""]
[null,null,null,null,"",null,""]
[null,null,null,null,"",null,""]
[null,null,null,null,"",null,""]
[null,null,null,null,"",null,""]
[null,null,null,null,"",null,""]
[null,null,null,null,"",null,""]
[null,null,null,null,"",null,""]
[null,null,null,null,"",null,""]
[null,null,null,null,"",null,""]
[null,null,null,null,"",null,""]
[null,null,null,null,"",null,""]
[null,null,null,null,"",null,""]
[null,null,null,null,"",null,""]
[null,null,null,null,"",null,""]
[null,null,null,null,"",null,""]
[null,null,null,null,"",null,""]
[null,null,null,null,"",null,""]
[null,null,null,null,"",null,""]
[null,null,null,null,"",null,""]
[null,null,null,null,"",null,""]
[null,null,null,null,"",null,""]
[null,null,null,null,"",null,""]
[null,null,null,null,"",null,{"$f":"IF(A6794<>\"\",IF(B6794=\"\",\"Falta IBAN\",IF(C6794=\"\",\"Falta Valor\",\"Linha totalmente preenchida\")),IF(B6794<>\"\",IF(A6794=\"\",\"Falta Nome\",\"\"),\"\"))","v":""}]
[null,null,null,null,"",null,""]
[null,null,null,null,"",null,""]
[null,null,null,null,"",null,""]
[null,null,null,null,"",null,""]
[null,null,null,null,"",null,""]
[null,null,null,null,"",null,""]
[null,null,null,null,"",null,""]
[null,null,null,null,"",null,""]
[null,null,null,null,"",null,""]
[null,null,null,null,"",null,""]
[null,null,null,null,"",null,""]
[null,null,null,null,"",null,""]
[null,null,null,null,"",null,""]
[null,null,null,null,"",null,""]
[null,null,null,null,"",null,""]
[null,null,null,null,"",null,""]
[null,null,null,null,{"$f":"IF(C6811<>\"\",C6811,\"\")","v":""},null,""]
[null,null,null,null,"",null,""]
[null,null,null,null,"",null,""]
[null,null,null,null,"",null,""]
[null,null,null,null,"",null,""]
[null,null,null,null,"",null,""]
[null,null,null,null,"",null,""]
[null,null,null,null,"",null,""]
[null,null,null,null,"",null,""]
[null,null,null,null,"",null,""]
[null,null,null,null,"",null,""]
[null,null,null,null,"",null,""]
[null,null,null,null,"",null,""]
[null,null,null,null,"",null,""]
[null,null,null,null,"",null,""]
[null,null,null,null,"",null,""]
[null,null,null,null,"",null,""]
[null,null,null,null,"",null,""]
[null,null,null,null,"",null,""]
[null,null,null,null,"",null,""]
[null,null,null,null,"",null,""]
[null,null,null,null,"",null,""]
[null,null,null,null,"",null,""]
[null,null,null,null,"",null,""]
[null,null,null,null,"",null,""]
[null,null,null,null,"",null,""]
[null,null,null,null,"",null,""]
[null,null,null,null,"",null,""]
[null,null,null,null,"",null,""]
[null,null,null,null,"",null,""]
[null,null,null,null,"",null,""]
[null,null,null,null,"",null,""]
[null,null,null,null,"",null,""]
[null,null,null,null,"",null,""]
[null,null,null,null,"",null,""]
[null,null,null,null,"",null,""]
[null,null,null,null,"",null,""]
[null,null,null,null,"",null,""]
[null,null,null,null,"",null,""]
[null,null,null,null,"",null,""]
[null,null,null,null,"",null,""]
[null,null,null,null,"",null,""]
[null,null,null,null,"",null,""]
[null,null,null,null,"",null,""]
[null,null,null,null,"",null,""]
[null,null,null,null,"",null,""]
[null,null,null,null,"",null,""]
[null,null,null,null,"",null,{"$f":"IF(A6858<>\"\",IF(B6858=\"\",\"Falta IBAN\",IF(C6858=\"\",\"Falta Valor\",\"Linha totalmente preenchida\")),IF(B6858<>\"\",IF(A6858=\"\",\"Falta Nome\",\"\"),\"\"))","v":""}]
[null,null,null,null,"",null,""]
[null,null,null,null,"",null,""]
[null,null,null,null,"",null,""]
[null,null,null,null,"",null,""]
[null,null,null,null,"",null,""]
[null,null,null,null,"",null,""]
[null,null,null,null,"",null,""]
[null,null,null,null,"",null,""]
[null,null,null,null,"",null,""]
[null,null,null,null,"",null,""]
[null,null,null,null,"",null,""]
[null,null,null,null,"",null,""]
[null,null,null,null,"",null,""]
[null,null,null,null,"",null,""]
[null,null,null,null,"",null,""]
[null,null,null,null,"",null,""]
[null,null,null,null,{"$f":"IF(C6875<>\"\",C6875,\"\")","v":""},null,""]
[null,null,null,null,"",null,""]
[null,null,null,null,"",null,""]
[null,null,null,null,"",null,""]
[null,null,null,null,"",null,""]
[null,null,null,null,"",null,""]
[null,null,null,null,"",null,""]
[null,null,null,null,"",null,""]
[null,null,null,null,"",null,""]
[null,null,null,null,"",null,""]
[null,null,null,null,"",null,""]
[null,null,null,null,"",null,""]
[null,null,null,null,"",null,""]
[null,null,null,null,"",null,""]
[null,null,null,null,"",null,""]
[null,null,null,null,"",null,""]
[null,null,null,null,"",null,""]
[null,null,null,null,"",null,""]
[null,null,null,null,"",null,""]
[null,null,null,null,"",null,""]
[null,null,null,null,"",null,""]
[null,null,null,null,"",null,""]
[null,null,null,null,"",null,""]
[null,null,null,null,"",null,""]
[null,null,null,null,"",null,""]
[null,null,null,null,"",null,""]
[null,null,null,null,"",null,""]
[null,null,null,null,"",null,""]
[null,null,null,null,"",null,""]
[null,null,null,null,"",null,""]
[null,null,null,null,"",null,""]
[null,null,null,null,"",null,""]
[null,null,null,null,"",null,""]
[null,null,null,null,"",null,""]
[null,null,null,null,"",null,""]
[null,null,null,null,"",null,""]
[null,null,null,null,"",null,""]
[null,null,null,null,"",null,""]
[null,null,null,null,"",null,""]
[null,null,null,null,"",null,""]
[null,null,null,null,"",null,""]
[null,null,null,null,"",null,""]
[null,null,null,null,"",null,""]
[null,null,null,null,"",null,""]
[null,null,null,null,"",null,""]
[null,null,null,null,"",null,""]
[null,null,null,null,"",null,""]
[null,null,null,null,"",null,{"$f":"IF(A6922<>\"\",IF(B6922=\"\",\"Falta IBAN\",IF(C6922=\"\",\"Falta Valor\",\"Linha totalmente preenchida\")),IF(B6922<>\"\",IF(A6922=\"\",\"Falta Nome\",\"\"),\"\"))","v":""}]
[null,null,null,null,"",null,""]
[null,null,null,null,"",null,""]
[null,null,null,null,"",null,""]
[null,null,null,null,"",null,""]
[null,null,null,null,"",null,""]
[null,null,null,null,"",null,""]
[null,null,null,null,"",null,""]
[null,null,null,null,"",null,""]
[null,null,null,null,"",null,""]
[null,null,null,null,"",null,""]
[null,null,null,null,"",null,""]
[null,null,null,null,"",null,""]
[null,null,null,null,"",null,""]
[null,null,null,null,"",null,""]
[null,null,null,null,"",null,""]
[null,null,null,null,"",null,""]
[null,null,null,null,{"$f":"IF(C6939<>\"\",C6939,\"\")","v":""},null,""]
[null,null,null,null,"",null,""]
[null,null,null,null,"",null,""]
[null,null,null,null,"",null,""]
[null,null,null,null,"",null,""]
[null,null,null,null,"",null,""]
[null,null,null,null,"",null,""]
[null,null,null,null,"",null,""]
[null,null,null,null,"",null,""]
[null,null,null,null,"",null,""]
[null,null,null,null,"",null,""]
[null,null,null,null,"",null,""]
[null,null,null,null,"",null,""]
[null,null,null,null,"",null,""]
[null,null,null,null,"",null,""]
[null,null,null,null,"",null,""]
[null,null,null,null,"",null,""]
[null,null,null,null,"",null,""]
[null,null,null,null,"",null,""]
[null,null,null,null,"",null,""]
[null,null,null,null,"",null,""]
[null,null,null,null,"",null,""]
[null,null,null,null,"",null,""]
[null,null,null,null,"",null,""]
[null,null,null,null,"",null,""]
[null,null,null,null,"",null,""]
[null,null,null,null,"",null,""]
[null,null,null,null,"",null,""]
[null,null,null,null,"",null,""]
[null,null,null,null,"",null,""]
[null,null,null,null,"",null,""]
[null,null,null,null,"",null,""]
[null,null,null,null,"",null,""]
[null,null,null,null,"",null,""]
[null,null,null,null,"",null,""]
[null,null,null,null,"",null,""]
[null,null,null,null,"",null,""]
[null,null,null,null,"",null,""]
[null,null,null,null,"",null,""]
[null,null,null,null,"",null,""]
[null,null,null,null,"",null,""]
[null,null,null,null,"",null,""]
[null,null,null,null,"",null,""]
[null,null,null,null,"",null,""]
[null,null,null,null,"",null,""]
[null,null,null,null,"",null,""]
[null,null,null,null,"",null,""]
[null,null,null,null,"",null,{"$f":"IF(A6986<>\"\",IF(B6986=\"\",\"Falta IBAN\",IF(C6986=\"\",\"Falta Valor\",\"Linha totalmente preenchida\")),IF(B6986<>\"\",IF(A6986=\"\",\"Falta Nome\",\"\"),\"\"))","v":""}]
[null,null,null,null,"",null,""]
[null,null,null,null,"",null,""]
[null,null,null,null,"",null,""]
[null,null,null,null,"",null,""]
[null,null,null,null,"",null,""]
[null,null,null,null,"",null,""]
[null,null,null,null,"",null,""]
[null,null,null,null,"",null,""]
[null,null,null,null,"",null,""]
[null,null,null,null,"",null,""]
[null,null,null,null,"",null,""]
[null,null,null,null,"",null,""]
[null,null,null,null,"",null,""]
[null,null,null,null,"",null,""]
[null,null,null,null,"",null,""]
[null,null,null,null,"",null,""]
[null,null,null,null,{"$f":"IF(C7003<>\"\",C7003,\"\")","v":""},null,""]
[null,null,null,null,"",null,""]
[null,null,null,null,"",null,""]
[null,null,null,null,"",null,""]
[null,null,null,null,"",null,""]
[null,null,null,null,"",null,""]
[null,null,null,null,"",null,""]
[null,null,null,null,"",null,""]
[null,null,null,null,"",null,""]
[null,null,null,null,"",null,""]
[null,null,null,null,"",null,""]
[null,null,null,null,"",null,""]
[null,null,null,null,"",null,""]
[null,null,null,null,"",null,""]
[null,null,null,null,"",null,""]
[null,null,null,null,"",null,""]
[null,null,null,null,"",null,""]
[null,null,null,null,"",null,""]
[null,null,null,null,"",null,""]
[null,null,null,null,"",null,""]
[null,null,null,null,"",null,""]
[null,null,null,null,"",null,""]
[null,null,null,null,"",null,""]
[null,null,null,null,"",null,""]
[null,null,null,null,"",null,""]
[null,null,null,null,"",null,""]
[null,null,null,null,"",null,""]
[null,null,null,null,"",null,""]
[null,null,null,null,"",null,""]
[null,null,null,null,"",null,""]
[null,null,null,null,"",null,""]
[null,null,null,null,"",null,""]
[null,null,null,null,"",null,""]
[null,null,null,null,"",null,""]
[null,null,null,null,"",null,""]
[null,null,null,null,"",null,""]
[null,null,null,null,"",null,""]
[null,null,null,null,"",null,""]
[null,null,null,null,"",null,""]
[null,null,null,null,"",null,""]
[null,null,null,null,"",null,""]
[null,null,null,null,"",null,""]
[null,null,null,null,"",null,""]
[null,null,null,null,"",null,""]
[null,null,null,null,"",null,""]
[null,null,null,null,"",null,""]
[null,null,null,null,"",null,""]
[null,null,null,null,"",null,{"$f":"IF(A7050<>\"\",IF(B7050=\"\",\"Falta IBAN\",IF(C7050=\"\",\"Falta Valor\",\"Linha totalmente preenchida\")),IF(B7050<>\"\",IF(A7050=\"\",\"Falta Nome\",\"\"),\"\"))","v":""}]
[null,null,null,null,"",null,""]
[null,null,null,null,"",null,""]
[null,null,null,null,"",null,""]
[null,null,null,null,"",null,""]
[null,null,null,null,"",null,""]
[null,null,null,null,"",null,""]
[null,null,null,null,"",null,""]
[null,null,null,null,"",null,""]
[null,null,null,null,"",null,""]
[null,null,null,null,"",null,""]
[null,null,null,null,"",null,""]
[null,null,null,null,"",null,""]
[null,null,null,null,"",null,""]
[null,null,null,null,"",null,""]
[null,null,null,null,"",null,""]
[null,null,null,null,"",null,""]
[null,null,null,null,{"$f":"IF(C7067<>\"\",C7067,\"\")","v":""},null,""]
[null,null,null,null,"",null,""]
[null,null,null,null,"",null,""]
[null,null,null,null,"",null,""]
[null,null,null,null,"",null,""]
[null,null,null,null,"",null,""]
[null,null,null,null,"",null,""]
[null,null,null,null,"",null,""]
[null,null,null,null,"",null,""]
[null,null,null,null,"",null,""]
[null,null,null,null,"",null,""]
[null,null,null,null,"",null,""]
[null,null,null,null,"",null,""]
[null,null,null,null,"",null,""]
[null,null,null,null,"",null,""]
[null,null,null,null,"",null,""]
[null,null,null,null,"",null,""]
[null,null,null,null,"",null,""]
[null,null,null,null,"",null,""]
[null,null,null,null,"",null,""]
[null,null,null,null,"",null,""]
[null,null,null,null,"",null,""]
[null,null,null,null,"",null,""]
[null,null,null,null,"",null,""]
[null,null,null,null,"",null,""]
[null,null,null,null,"",null,""]
[null,null,null,null,"",null,""]
[null,null,null,null,"",null,""]
[null,null,null,null,"",null,""]
[null,null,null,null,"",null,""]
[null,null,null,null,"",null,""]
[null,null,null,null,"",null,""]
[null,null,null,null,"",null,""]
[null,null,null,null,"",null,""]
[null,null,null,null,"",null,""]
[null,null,null,null,"",null,""]
[null,null,null,null,"",null,""]
[null,null,null,null,"",null,""]
[null,null,null,null,"",null,""]
[null,null,null,null,"",null,""]
[null,null,null,null,"",null,""]
[null,null,null,null,"",null,""]
[null,null,null,null,"",null,""]
[null,null,null,null,"",null,""]
[null,null,null,null,"",null,""]
[null,null,null,null,"",null,""]
[null,null,null,null,"",null,""]
[null,null,null,null,"",null,{"$f":"IF(A7114<>\"\",IF(B7114=\"\",\"Falta IBAN\",IF(C7114=\"\",\"Falta Valor\",\"Linha totalmente preenchida\")),IF(B7114<>\"\",IF(A7114=\"\",\"Falta Nome\",\"\"),\"\"))","v":""}]
[null,null,null,null,"",null,""]
[null,null,null,null,"",null,""]
[null,null,null,null,"",null,""]
[null,null,null,null,"",null,""]
[null,null,null,null,"",null,""]
[null,null,null,null,"",null,""]
[null,null,null,null,"",null,""]
[null,null,null,null,"",null,""]
[null,null,null,null,"",null,""]
[null,null,null,null,"",null,""]
[null,null,null,null,"",null,""]
[null,null,null,null,"",null,""]
[null,null,null,null,"",null,""]
[null,null,null,null,"",null,""]
[null,null,null,null,"",null,""]
[null,null,null,null,"",null,""]
[null,null,null,null,{"$f":"IF(C7131<>\"\",C7131,\"\")","v":""},null,""]
[null,null,null,null,"",null,""]
[null,null,null,null,"",null,""]
[null,null,null,null,"",null,""]
[null,null,null,null,"",null,""]
[null,null,null,null,"",null,""]
[null,null,null,null,"",null,""]
[null,null,null,null,"",null,""]
[null,null,null,null,"",null,""]
[null,null,null,null,"",null,""]
[null,null,null,null,"",null,""]
[null,null,null,null,"",null,""]
[null,null,null,null,"",null,""]
[null,null,null,null,"",null,""]
[null,null,null,null,"",null,""]
[null,null,null,null,"",null,""]
[null,null,null,null,"",null,""]
[null,null,null,null,"",null,""]
[null,null,null,null,"",null,""]
[null,null,null,null,"",null,""]
[null,null,null,null,"",null,""]
[null,null,null,null,"",null,""]
[null,null,null,null,"",null,""]
[null,null,null,null,"",null,""]
[null,null,null,null,"",null,""]
[null,null,null,null,"",null,""]
[null,null,null,null,"",null,""]
[null,null,null,null,"",null,""]
[null,null,null,null,"",null,""]
[null,null,null,null,"",null,""]
[null,null,null,null,"",null,""]
[null,null,null,null,"",null,""]
[null,null,null,null,"",null,""]
[null,null,null,null,"",null,""]
[null,null,null,null,"",null,""]
[null,null,null,null,"",null,""]
[null,null,null,null,"",null,""]
[null,null,null,null,"",null,""]
[null,null,null,null,"",null,""]
[null,null,null,null,"",null,""]
[null,null,null,null,"",null,""]
[null,null,null,null,"",null,""]
[null,null,null,null,"",null,""]
[null,null,null,null,"",null,""]
[null,null,null,null,"",null,""]
[null,null,null,null,"",null,""]
[null,null,null,null,"",null,""]
[null,null,null,null,"",null,{"$f":"IF(A7178<>\"\",IF(B7178=\"\",\"Falta IBAN\",IF(C7178=\"\",\"Falta Valor\",\"Linha totalmente preenchida\")),IF(B7178<>\"\",IF(A7178=\"\",\"Falta Nome\",\"\"),\"\"))","v":""}]
[null,null,null,null,"",null,""]
[null,null,null,null,"",null,""]
[null,null,null,null,"",null,""]
[null,null,null,null,"",null,""]
[null,null,null,null,"",null,""]
[null,null,null,null,"",null,""]
[null,null,null,null,"",null,""]
[null,null,null,null,"",null,""]
[null,null,null,null,"",null,""]
[null,null,null,null,"",null,""]
[null,null,null,null,"",null,""]
[null,null,null,null,"",null,""]
[null,null,null,null,"",null,""]
[null,null,null,null,"",null,""]
[null,null,null,null,"",null,""]
[null,null,null,null,"",null,""]
[null,null,null,null,{"$f":"IF(C7195<>\"\",C7195,\"\")","v":""},null,""]
[null,null,null,null,"",null,""]
[null,null,null,null,"",null,""]
[null,null,null,null,"",null,""]
[null,null,null,null,"",null,""]
[null,null,null,null,"",null,""]
[null,null,null,null,"",null,""]
[null,null,null,null,"",null,""]
[null,null,null,null,"",null,""]
[null,null,null,null,"",null,""]
[null,null,null,null,"",null,""]
[null,null,null,null,"",null,""]
[null,null,null,null,"",null,""]
[null,null,null,null,"",null,""]
[null,null,null,null,"",null,""]
[null,null,null,null,"",null,""]
[null,null,null,null,"",null,""]
[null,null,null,null,"",null,""]
[null,null,null,null,"",null,""]
[null,null,null,null,"",null,""]
[null,null,null,null,"",null,""]
[null,null,null,null,"",null,""]
[null,null,null,null,"",null,""]
[null,null,null,null,"",null,""]
[null,null,null,null,"",null,""]
[null,null,null,null,"",null,""]
[null,null,null,null,"",null,""]
[null,null,null,null,"",null,""]
[null,null,null,null,"",null,""]
[null,null,null,null,"",null,""]
[null,null,null,null,"",null,""]
[null,null,null,null,"",null,""]
[null,null,null,null,"",null,""]
[null,null,null,null,"",null,""]
[null,null,null,null,"",null,""]
[null,null,null,null,"",null,""]
[null,null,null,null,"",null,""]
[null,null,null,null,"",null,""]
[null,null,null,null,"",null,""]
[null,null,null,null,"",null,""]
[null,null,null,null,"",null,""]
[null,null,null,null,"",null,""]
[null,null,null,null,"",null,""]
[null,null,null,null,"",null,""]
[null,null,null,null,"",null,""]
[null,null,null,null,"",null,""]
[null,null,null,null,"",null,""]
[null,null,null,null,"",null,{"$f":"IF(A7242<>\"\",IF(B7242=\"\",\"Falta IBAN\",IF(C7242=\"\",\"Falta Valor\",\"Linha totalmente preenchida\")),IF(B7242<>\"\",IF(A7242=\"\",\"Falta Nome\",\"\"),\"\"))","v":""}]
[null,null,null,null,"",null,""]
[null,null,null,null,"",null,""]
[null,null,null,null,"",null,""]
[null,null,null,null,"",null,""]
[null,null,null,null,"",null,""]
[null,null,null,null,"",null,""]
[null,null,null,null,"",null,""]
[null,null,null,null,"",null,""]
[null,null,null,null,"",null,""]
[null,null,null,null,"",null,""]
[null,null,null,null,"",null,""]
[null,null,null,null,"",null,""]
[null,null,null,null,"",null,""]
[null,null,null,null,"",null,""]
[null,null,null,null,"",null,""]
[null,null,null,null,"",null,""]
[null,null,null,null,{"$f":"IF(C7259<>\"\",C7259,\"\")","v":""},null,""]
[null,null,null,null,"",null,""]
[null,null,null,null,"",null,""]
[null,null,null,null,"",null,""]
[null,null,null,null,"",null,""]
[null,null,null,null,"",null,""]
[null,null,null,null,"",null,""]
[null,null,null,null,"",null,""]
[null,null,null,null,"",null,""]
[null,null,null,null,"",null,""]
[null,null,null,null,"",null,""]
[null,null,null,null,"",null,""]
[null,null,null,null,"",null,""]
[null,null,null,null,"",null,""]
[null,null,null,null,"",null,""]
[null,null,null,null,"",null,""]
[null,null,null,null,"",null,""]
[null,null,null,null,"",null,""]
[null,null,null,null,"",null,""]
[null,null,null,null,"",null,""]
[null,null,null,null,"",null,""]
[null,null,null,null,"",null,""]
[null,null,null,null,"",null,""]
[null,null,null,null,"",null,""]
[null,null,null,null,"",null,""]
[null,null,null,null,"",null,""]
[null,null,null,null,"",null,""]
[null,null,null,null,"",null,""]
[null,null,null,null,"",null,""]
[null,null,null,null,"",null,""]
[null,null,null,null,"",null,""]
[null,null,null,null,"",null,""]
[null,null,null,null,"",null,""]
[null,null,null,null,"",null,""]
[null,null,null,null,"",null,""]
[null,null,null,null,"",null,""]
[null,null,null,null,"",null,""]
[null,null,null,null,"",null,""]
[null,null,null,null,"",null,""]
[null,null,null,null,"",null,""]
[null,null,null,null,"",null,""]
[null,null,null,null,"",null,""]
[null,null,null,null,"",null,""]
[null,null,null,null,"",null,""]
[null,null,null,null,"",null,""]
[null,null,null,null,"",null,""]
[null,null,null,null,"",null,""]
[null,null,null,null,"",null,{"$f":"IF(A7306<>\"\",IF(B7306=\"\",\"Falta IBAN\",IF(C7306=\"\",\"Falta Valor\",\"Linha totalmente preenchida\")),IF(B7306<>\"\",IF(A7306=\"\",\"Falta Nome\",\"\"),\"\"))","v":""}]
[null,null,null,null,"",null,""]
[null,null,null,null,"",null,""]
[null,null,null,null,"",null,""]
[null,null,null,null,"",null,""]
[null,null,null,null,"",null,""]
[null,null,null,null,"",null,""]
[null,null,null,null,"",null,""]
[null,null,null,null,"",null,""]
[null,null,null,null,"",null,""]
[null,null,null,null,"",null,""]
[null,null,null,null,"",null,""]
[null,null,null,null,"",null,""]
[null,null,null,null,"",null,""]
[null,null,null,null,"",null,""]
[null,null,null,null,"",null,""]
[null,null,null,null,"",null,""]
[null,null,null,null,{"$f":"IF(C7323<>\"\",C7323,\"\")","v":""},null,""]
[null,null,null,null,"",null,""]
[null,null,null,null,"",null,""]
[null,null,null,null,"",null,""]
[null,null,null,null,"",null,""]
[null,null,null,null,"",null,""]
[null,null,null,null,"",null,""]
[null,null,null,null,"",null,""]
[null,null,null,null,"",null,""]
[null,null,null,null,"",null,""]
[null,null,null,null,"",null,""]
[null,null,null,null,"",null,""]
[null,null,null,null,"",null,""]
[null,null,null,null,"",null,""]
[null,null,null,null,"",null,""]
[null,null,null,null,"",null,""]
[null,null,null,null,"",null,""]
[null,null,null,null,"",null,""]
[null,null,null,null,"",null,""]
[null,null,null,null,"",null,""]
[null,null,null,null,"",null,""]
[null,null,null,null,"",null,""]
[null,null,null,null,"",null,""]
[null,null,null,null,"",null,""]
[null,null,null,null,"",null,""]
[null,null,null,null,"",null,""]
[null,null,null,null,"",null,""]
[null,null,null,null,"",null,""]
[null,null,null,null,"",null,""]
[null,null,null,null,"",null,""]
[null,null,null,null,"",null,""]
[null,null,null,null,"",null,""]
[null,null,null,null,"",null,""]
[null,null,null,null,"",null,""]
[null,null,null,null,"",null,""]
[null,null,null,null,"",null,""]
[null,null,null,null,"",null,""]
[null,null,null,null,"",null,""]
[null,null,null,null,"",null,""]
[null,null,null,null,"",null,""]
[null,null,null,null,"",null,""]
[null,null,null,null,"",null,""]
[null,null,null,null,"",null,""]
[null,null,null,null,"",null,""]
[null,null,null,null,"",null,""]
[null,null,null,null,"",null,""]
[null,null,null,null,"",null,""]
[null,null,null,null,"",null,{"$f":"IF(A7370<>\"\",IF(B7370=\"\",\"Falta IBAN\",IF(C7370=\"\",\"Falta Valor\",\"Linha totalmente preenchida\")),IF(B7370<>\"\",IF(A7370=\"\",\"Falta Nome\",\"\"),\"\"))","v":""}]
[null,null,null,null,"",null,""]
[null,null,null,null,"",null,""]
[null,null,null,null,"",null,""]
[null,null,null,null,"",null,""]
[null,null,null,null,"",null,""]
[null,null,null,null,"",null,""]
[null,null,null,null,"",null,""]
[null,null,null,null,"",null,""]
[null,null,null,null,"",null,""]
[null,null,null,null,"",null,""]
[null,null,null,null,"",null,""]
[null,null,null,null,"",null,""]
[null,null,null,null,"",null,""]
[null,null,null,null,"",null,""]
[null,null,null,null,"",null,""]
[null,null,null,null,"",null,""]
[null,null,null,null,{"$f":"IF(C7387<>\"\",C7387,\"\")","v":""},null,""]
[null,null,null,null,"",null,""]
[null,null,null,null,"",null,""]
[null,null,null,null,"",null,""]
[null,null,null,null,"",null,""]
[null,null,null,null,"",null,""]
[null,null,null,null,"",null,""]
[null,null,null,null,"",null,""]
[null,null,null,null,"",null,""]
[null,null,null,null,"",null,""]
[null,null,null,null,"",null,""]
[null,null,null,null,"",null,""]
[null,null,null,null,"",null,""]
[null,null,null,null,"",null,""]
[null,null,null,null,"",null,""]
[null,null,null,null,"",null,""]
[null,null,null,null,"",null,""]
[null,null,null,null,"",null,""]
[null,null,null,null,"",null,""]
[null,null,null,null,"",null,""]
[null,null,null,null,"",null,""]
[null,null,null,null,"",null,""]
[null,null,null,null,"",null,""]
[null,null,null,null,"",null,""]
[null,null,null,null,"",null,""]
[null,null,null,null,"",null,""]
[null,null,null,null,"",null,""]
[null,null,null,null,"",null,""]
[null,null,null,null,"",null,""]
[null,null,null,null,"",null,""]
[null,null,null,null,"",null,""]
[null,null,null,null,"",null,""]
[null,null,null,null,"",null,""]
[null,null,null,null,"",null,""]
[null,null,null,null,"",null,""]
[null,null,null,null,"",null,""]
[null,null,null,null,"",null,""]
[null,null,null,null,"",null,""]
[null,null,null,null,"",null,""]
[null,null,null,null,"",null,""]
[null,null,null,null,"",null,""]
[null,null,null,null,"",null,""]
[null,null,null,null,"",null,""]
[null,null,null,null,"",null,""]
[null,null,null,null,"",null,""]
[null,null,null,null,"",null,""]
[null,null,null,null,"",null,""]
[null,null,null,null,"",null,{"$f":"IF(A7434<>\"\",IF(B7434=\"\",\"Falta IBAN\",IF(C7434=\"\",\"Falta Valor\",\"Linha totalmente preenchida\")),IF(B7434<>\"\",IF(A7434=\"\",\"Falta Nome\",\"\"),\"\"))","v":""}]
[null,null,null,null,"",null,""]
[null,null,null,null,"",null,""]
[null,null,null,null,"",null,""]
[null,null,null,null,"",null,""]
[null,null,null,null,"",null,""]
[null,null,null,null,"",null,""]
[null,null,null,null,"",null,""]
[null,null,null,null,"",null,""]
[null,null,null,null,"",null,""]
[null,null,null,null,"",null,""]
[null,null,null,null,"",null,""]
[null,null,null,null,"",null,""]
[null,null,null,null,"",null,""]
[null,null,null,null,"",null,""]
[null,null,null,null,"",null,""]
[null,null,null,null,"",null,""]
[null,null,null,null,{"$f":"IF(C7451<>\"\",C7451,\"\")","v":""},null,""]
[null,null,null,null,"",null,""]
[null,null,null,null,"",null,""]
[null,null,null,null,"",null,""]
[null,null,null,null,"",null,""]
[null,null,null,null,"",null,""]
[null,null,null,null,"",null,""]
[null,null,null,null,"",null,""]
[null,null,null,null,"",null,""]
[null,null,null,null,"",null,""]
[null,null,null,null,"",null,""]
[null,null,null,null,"",null,""]
[null,null,null,null,"",null,""]
[null,null,null,null,"",null,""]
[null,null,null,null,"",null,""]
[null,null,null,null,"",null,""]
[null,null,null,null,"",null,""]
[null,null,null,null,"",null,""]
[null,null,null,null,"",null,""]
[null,null,null,null,"",null,""]
[null,null,null,null,"",null,""]
[null,null,null,null,"",null,""]
[null,null,null,null,"",null,""]
[null,null,null,null,"",null,""]
[null,null,null,null,"",null,""]
[null,null,null,null,"",null,""]
[null,null,null,null,"",null,""]
[null,null,null,null,"",null,""]
[null,null,null,null,"",null,""]
[null,null,null,null,"",null,""]
[null,null,null,null,"",null,""]
[null,null,null,null,"",null,""]
[null,null,null,null,"",null,""]
[null,null,null,null,"",null,""]
[null,null,null,null,"",null,""]
[null,null,null,null,"",null,""]
[null,null,null,null,"",null,""]
[null,null,null,null,"",null,""]
[null,null,null,null,"",null,""]
[null,null,null,null,"",null,""]
[null,null,null,null,"",null,""]
[null,null,null,null,"",null,""]
[null,null,null,null,"",null,""]
[null,null,null,null,"",null,""]
[null,null,null,null,"",null,""]
[null,null,null,null,"",null,""]
[null,null,null,null,"",null,""]
[null,null,null,null,"",null,{"$f":"IF(A7498<>\"\",IF(B7498=\"\",\"Falta IBAN\",IF(C7498=\"\",\"Falta Valor\",\"Linha totalmente preenchida\")),IF(B7498<>\"\",IF(A7498=\"\",\"Falta Nome\",\"\"),\"\"))","v":""}]
[null,null,null,null,"",null,""]
[null,null,null,null,"",null,""]
[null,null,null,null,"",null,""]
[null,null,null,null,"",null,""]
[null,null,null,null,"",null,""]
[null,null,null,null,"",null,""]
[null,null,null,null,"",null,""]
[null,null,null,null,"",null,""]
[null,null,null,null,"",null,""]
[null,null,null,null,"",null,""]
[null,null,null,null,"",null,""]
[null,null,null,null,"",null,""]
[null,null,null,null,"",null,""]
[null,null,null,null,"",null,""]
[null,null,null,null,"",null,""]
[null,null,null,null,"",null,""]
[null,null,null,null,{"$f":"IF(C7515<>\"\",C7515,\"\")","v":""},null,""]
[null,null,null,null,"",null,""]
[null,null,null,null,"",null,""]
[null,null,null,null,"",null,""]
[null,null,null,null,"",null,""]
[null,null,null,null,"",null,""]
[null,null,null,null,"",null,""]
[null,null,null,null,"",null,""]
[null,null,null,null,"",null,""]
[null,null,null,null,"",null,""]
[null,null,null,null,"",null,""]
[null,null,null,null,"",null,""]
[null,null,null,null,"",null,""]
[null,null,null,null,"",null,""]
[null,null,null,null,"",null,""]
[null,null,null,null,"",null,""]
[null,null,null,null,"",null,""]
[null,null,null,null,"",null,""]
[null,null,null,null,"",null,""]
[null,null,null,null,"",null,""]
[null,null,null,null,"",null,""]
[null,null,null,null,"",null,""]
[null,null,null,null,"",null,""]
[null,null,null,null,"",null,""]
[null,null,null,null,"",null,""]
[null,null,null,null,"",null,""]
[null,null,null,null,"",null,""]
[null,null,null,null,"",null,""]
[null,null,null,null,"",null,""]
[null,null,null,null,"",null,""]
[null,null,null,null,"",null,""]
[null,null,null,null,"",null,""]
[null,null,null,null,"",null,""]
[null,null,null,null,"",null,""]
[null,null,null,null,"",null,""]
[null,null,null,null,"",null,""]
[null,null,null,null,"",null,""]
[null,null,null,null,"",null,""]
[null,null,null,null,"",null,""]
[null,null,null,null,"",null,""]
[null,null,null,null,"",null,""]
[null,null,null,null,"",null,""]
[null,null,null,null,"",null,""]
[null,null,null,null,"",null,""]
[null,null,null,null,"",null,""]
[null,null,null,null,"",null,""]
[null,null,null,null,"",null,""]
[null,null,null,null,"",null,{"$f":"IF(A7562<>\"\",IF(B7562=\"\",\"Falta IBAN\",IF(C7562=\"\",\"Falta Valor\",\"Linha totalmente preenchida\")),IF(B7562<>\"\",IF(A7562=\"\",\"Falta Nome\",\"\"),\"\"))","v":""}]
[null,null,null,null,"",null,""]
[null,null,null,null,"",null,""]
[null,null,null,null,"",null,""]
[null,null,null,null,"",null,""]
[null,null,null,null,"",null,""]
[null,null,null,null,"",null,""]
[null,null,null,null,"",null,""]
[null,null,null,null,"",null,""]
[null,null,null,null,"",null,""]
[null,null,null,null,"",null,""]
[null,null,null,null,"",null,""]
[null,null,null,null,"",null,""]
[null,null,null,null,"",null,""]
[null,null,null,null,"",null,""]
[null,null,null,null,"",null,""]
[null,null,null,null,"",null,""]
[null,null,null,null,{"$f":"IF(C7579<>\"\",C7579,\"\")","v":""},null,""]
[null,null,null,null,"",null,""]
[null,null,null,null,"",null,""]
[null,null,null,null,"",null,""]
[null,null,null,null,"",null,""]
[null,null,null,null,"",null,""]
[null,null,null,null,"",null,""]
[null,null,null,null,"",null,""]
[null,null,null,null,"",null,""]
[null,null,null,null,"",null,""]
[null,null,null,null,"",null,""]
[null,null,null,null,"",null,""]
[null,null,null,null,"",null,""]
[null,null,null,null,"",null,""]
[null,null,null,null,"",null,""]
[null,null,null,null,"",null,""]
[null,null,null,null,"",null,""]
[null,null,null,null,"",null,""]
[null,null,null,null,"",null,""]
[null,null,null,null,"",null,""]
[null,null,null,null,"",null,""]
[null,null,null,null,"",null,""]
[null,null,null,null,"",null,""]
[null,null,null,null,"",null,""]
[null,null,null,null,"",null,""]
[null,null,null,null,"",null,""]
[null,null,null,null,"",null,""]
[null,null,null,null,"",null,""]
[null,null,null,null,"",null,""]
[null,null,null,null,"",null,""]
[null,null,null,null,"",null,""]
[null,null,null,null,"",null,""]
[null,null,null,null,"",null,""]
[null,null,null,null,"",null,""]
[null,null,null,null,"",null,""]
[null,null,null,null,"",null,""]
[null,null,null,null,"",null,""]
[null,null,null,null,"",null,""]
[null,null,null,null,"",null,""]
[null,null,null,null,"",null,""]
[null,null,null,null,"",null,""]
[null,null,null,null,"",null,""]
[null,null,null,null,"",null,""]
[null,null,null,null,"",null,""]
[null,null,null,null,"",null,""]
[null,null,null,null,"",null,""]
[null,null,null,null,"",null,""]
[null,null,null,null,"",null,{"$f":"IF(A7626<>\"\",IF(B7626=\"\",\"Falta IBAN\",IF(C7626=\"\",\"Falta Valor\",\"Linha totalmente preenchida\")),IF(B7626<>\"\",IF(A7626=\"\",\"Falta Nome\",\"\"),\"\"))","v":""}]
[null,null,null,null,"",null,""]
[null,null,null,null,"",null,""]
[null,null,null,null,"",null,""]
[null,null,null,null,"",null,""]
[null,null,null,null,"",null,""]
[null,null,null,null,"",null,""]
[null,null,null,null,"",null,""]
[null,null,null,null,"",null,""]
[null,null,null,null,"",null,""]
[null,null,null,null,"",null,""]
[null,null,null,null,"",null,""]
[null,null,null,null,"",null,""]
[null,null,null,null,"",null,""]
[null,null,null,null,"",null,""]
[null,null,null,null,"",null,""]
[null,null,null,null,"",null,""]
[null,null,null,null,{"$f":"IF(C7643<>\"\",C7643,\"\")","v":""},null,""]
[null,null,null,null,"",null,""]
[null,null,null,null,"",null,""]
[null,null,null,null,"",null,""]
[null,null,null,null,"",null,""]
[null,null,null,null,"",null,""]
[null,null,null,null,"",null,""]
[null,null,null,null,"",null,""]
[null,null,null,null,"",null,""]
[null,null,null,null,"",null,""]
[null,null,null,null,"",null,""]
[null,null,null,null,"",null,""]
[null,null,null,null,"",null,""]
[null,null,null,null,"",null,""]
[null,null,null,null,"",null,""]
[null,null,null,null,"",null,""]
[null,null,null,null,"",null,""]
[null,null,null,null,"",null,""]
[null,null,null,null,"",null,""]
[null,null,null,null,"",null,""]
[null,null,null,null,"",null,""]
[null,null,null,null,"",null,""]
[null,null,null,null,"",null,""]
[null,null,null,null,"",null,""]
[null,null,null,null,"",null,""]
[null,null,null,null,"",null,""]
[null,null,null,null,"",null,""]
[null,null,null,null,"",null,""]
[null,null,null,null,"",null,""]
[null,null,null,null,"",null,""]
[null,null,null,null,"",null,""]
[null,null,null,null,"",null,""]
[null,null,null,null,"",null,""]
[null,null,null,null,"",null,""]
[null,null,null,null,"",null,""]
[null,null,null,null,"",null,""]
[null,null,null,null,"",null,""]
[null,null,null,null,"",null,""]
[null,null,null,null,"",null,""]
[null,null,null,null,"",null,""]
[null,null,null,null,"",null,""]
[null,null,null,null,"",null,""]
[null,null,null,null,"",null,""]
[null,null,null,null,"",null,""]
[null,null,null,null,"",null,""]
[null,null,null,null,"",null,""]
[null,null,null,null,"",null,""]
[null,null,null,null,"",null,{"$f":"IF(A7690<>\"\",IF(B7690=\"\",\"Falta IBAN\",IF(C7690=\"\",\"Falta Valor\",\"Linha totalmente preenchida\")),IF(B7690<>\"\",IF(A7690=\"\",\"Falta Nome\",\"\"),\"\"))","v":""}]
[null,null,null,null,"",null,""]
[null,null,null,null,"",null,""]
[null,null,null,null,"",null,""]
[null,null,null,null,"",null,""]
[null,null,null,null,"",null,""]
[null,null,null,null,"",null,""]
[null,null,null,null,"",null,""]
[null,null,null,null,"",null,""]
[null,null,null,null,"",null,""]
[null,null,null,null,"",null,""]
[null,null,null,null,"",null,""]
[null,null,null,null,"",null,""]
[null,null,null,null,"",null,""]
[null,null,null,null,"",null,""]
[null,null,null,null,"",null,""]
[null,null,null,null,"",null,""]
[null,null,null,null,{"$f":"IF(C7707<>\"\",C7707,\"\")","v":""},null,""]
[null,null,null,null,"",null,""]
[null,null,null,null,"",null,""]
[null,null,null,null,"",null,""]
[null,null,null,null,"",null,""]
[null,null,null,null,"",null,""]
[null,null,null,null,"",null,""]
[null,null,null,null,"",null,""]
[null,null,null,null,"",null,""]
[null,null,null,null,"",null,""]
[null,null,null,null,"",null,""]
[null,null,null,null,"",null,""]
[null,null,null,null,"",null,""]
[null,null,null,null,"",null,""]
[null,null,null,null,"",null,""]
[null,null,null,null,"",null,""]
[null,null,null,null,"",null,""]
[null,null,null,null,"",null,""]
[null,null,null,null,"",null,""]
[null,null,null,null,"",null,""]
[null,null,null,null,"",null,""]
[null,null,null,null,"",null,""]
[null,null,null,null,"",null,""]
[null,null,null,null,"",null,""]
[null,null,null,null,"",null,""]
[null,null,null,null,"",null,""]
[null,null,null,null,"",null,""]
[null,null,null,null,"",null,""]
[null,null,null,null,"",null,""]
[null,null,null,null,"",null,""]
[null,null,null,null,"",null,""]
[null,null,null,null,"",null,""]
[null,null,null,null,"",null,""]
[null,null,null,null,"",null,""]
[null,null,null,null,"",null,""]
[null,null,null,null,"",null,""]
[null,null,null,null,"",null,""]
[null,null,null,null,"",null,""]
[null,null,null,null,"",null,""]
[null,null,null,null,"",null,""]
[null,null,null,null,"",null,""]
[null,null,null,null,"",null,""]
[null,null,null,null,"",null,""]
[null,null,null,null,"",null,""]
[null,null,null,null,"",null,""]
[null,null,null,null,"",null,""]
[null,null,null,null,"",null,""]
[null,null,null,null,"",null,{"$f":"IF(A7754<>\"\",IF(B7754=\"\",\"Falta IBAN\",IF(C7754=\"\",\"Falta Valor\",\"Linha totalmente preenchida\")),IF(B7754<>\"\",IF(A7754=\"\",\"Falta Nome\",\"\"),\"\"))","v":""}]
[null,null,null,null,"",null,""]
[null,null,null,null,"",null,""]
[null,null,null,null,"",null,""]
[null,null,null,null,"",null,""]
[null,null,null,null,"",null,""]
[null,null,null,null,"",null,""]
[null,null,null,null,"",null,""]
[null,null,null,null,"",null,""]
[null,null,null,null,"",null,""]
[null,null,null,null,"",null,""]
[null,null,null,null,"",null,""]
[null,null,null,null,"",null,""]
[null,null,null,null,"",null,""]
[null,null,null,null,"",null,""]
[null,null,null,null,"",null,""]
[null,null,null,null,"",null,""]
[null,null,null,null,{"$f":"IF(C7771<>\"\",C7771,\"\")","v":""},null,""]
[null,null,null,null,"",null,""]
[null,null,null,null,"",null,""]
[null,null,null,null,"",null,""]
[null,null,null,null,"",null,""]
[null,null,null,null,"",null,""]
[null,null,null,null,"",null,""]
[null,null,null,null,"",null,""]
[null,null,null,null,"",null,""]
[null,null,null,null,"",null,""]
[null,null,null,null,"",null,""]
[null,null,null,null,"",null,""]
[null,null,null,null,"",null,""]
[null,null,null,null,"",null,""]
[null,null,null,null,"",null,""]
[null,null,null,null,"",null,""]
[null,null,null,null,"",null,""]
[null,null,null,null,"",null,""]
[null,null,null,null,"",null,""]
[null,null,null,null,"",null,""]
[null,null,null,null,"",null,""]
[null,null,null,null,"",null,""]
[null,null,null,null,"",null,""]
[null,null,null,null,"",null,""]
[null,null,null,null,"",null,""]
[null,null,null,null,"",null,""]
[null,null,null,null,"",null,""]
[null,null,null,null,"",null,""]
[null,null,null,null,"",null,""]
[null,null,null,null,"",null,""]
[null,null,null,null,"",null,""]
[null,null,null,null,"",null,""]
[null,null,null,null,"",null,""]
[null,null,null,null,"",null,""]
[null,null,null,null,"",null,""]
[null,null,null,null,"",null,""]
[null,null,null,null,"",null,""]
[null,null,null,null,"",null,""]
[null,null,null,null,"",null,""]
[null,null,null,null,"",null,""]
[null,null,null,null,"",null,""]
[null,null,null,null,"",null,""]
[null,null,null,null,"",null,""]
[null,null,null,null,"",null,""]
[null,null,null,null,"",null,""]
[null,null,null,null,"",null,""]
[null,null,null,null,"",null,""]
[null,null,null,null,"",null,{"$f":"IF(A7818<>\"\",IF(B7818=\"\",\"Falta IBAN\",IF(C7818=\"\",\"Falta Valor\",\"Linha totalmente preenchida\")),IF(B7818<>\"\",IF(A7818=\"\",\"Falta Nome\",\"\"),\"\"))","v":""}]
[null,null,null,null,"",null,""]
[null,null,null,null,"",null,""]
[null,null,null,null,"",null,""]
[null,null,null,null,"",null,""]
[null,null,null,null,"",null,""]
[null,null,null,null,"",null,""]
[null,null,null,null,"",null,""]
[null,null,null,null,"",null,""]
[null,null,null,null,"",null,""]
[null,null,null,null,"",null,""]
[null,null,null,null,"",null,""]
[null,null,null,null,"",null,""]
[null,null,null,null,"",null,""]
[null,null,null,null,"",null,""]
[null,null,null,null,"",null,""]
[null,null,null,null,"",null,""]
[null,null,null,null,{"$f":"IF(C7835<>\"\",C7835,\"\")","v":""},null,""]
[null,null,null,null,"",null,""]
[null,null,null,null,"",null,""]
[null,null,null,null,"",null,""]
[null,null,null,null,"",null,""]
[null,null,null,null,"",null,""]
[null,null,null,null,"",null,""]
[null,null,null,null,"",null,""]
[null,null,null,null,"",null,""]
[null,null,null,null,"",null,""]
[null,null,null,null,"",null,""]
[null,null,null,null,"",null,""]
[null,null,null,null,"",null,""]
[null,null,null,null,"",null,""]
[null,null,null,null,"",null,""]
[null,null,null,null,"",null,""]
[null,null,null,null,"",null,""]
[null,null,null,null,"",null,""]
[null,null,null,null,"",null,""]
[null,null,null,null,"",null,""]
[null,null,null,null,"",null,""]
[null,null,null,null,"",null,""]
[null,null,null,null,"",null,""]
[null,null,null,null,"",null,""]
[null,null,null,null,"",null,""]
[null,null,null,null,"",null,""]
[null,null,null,null,"",null,""]
[null,null,null,null,"",null,""]
[null,null,null,null,"",null,""]
[null,null,null,null,"",null,""]
[null,null,null,null,"",null,""]
[null,null,null,null,"",null,""]
[null,null,null,null,"",null,""]
[null,null,null,null,"",null,""]
[null,null,null,null,"",null,""]
[null,null,null,null,"",null,""]
[null,null,null,null,"",null,""]
[null,null,null,null,"",null,""]
[null,null,null,null,"",null,""]
[null,null,null,null,"",null,""]
[null,null,null,null,"",null,""]
[null,null,null,null,"",null,""]
[null,null,null,null,"",null,""]
[null,null,null,null,"",null,""]
[null,null,null,null,"",null,""]
[null,null,null,null,"",null,""]
[null,null,null,null,"",null,""]
[null,null,null,null,"",null,{"$f":"IF(A7882<>\"\",IF(B7882=\"\",\"Falta IBAN\",IF(C7882=\"\",\"Falta Valor\",\"Linha totalmente preenchida\")),IF(B7882<>\"\",IF(A7882=\"\",\"Falta Nome\",\"\"),\"\"))","v":""}]
[null,null,null,null,"",null,""]
[null,null,null,null,"",null,""]
[null,null,null,null,"",null,""]
[null,null,null,null,"",null,""]
[null,null,null,null,"",null,""]
[null,null,null,null,"",null,""]
[null,null,null,null,"",null,""]
[null,null,null,null,"",null,""]
[null,null,null,null,"",null,""]
[null,null,null,null,"",null,""]
[null,null,null,null,"",null,""]
[null,null,null,null,"",null,""]
[null,null,null,null,"",null,""]
[null,null,null,null,"",null,""]
[null,null,null,null,"",null,""]
[null,null,null,null,"",null,""]
[null,null,null,null,{"$f":"IF(C7899<>\"\",C7899,\"\")","v":""},null,""]
[null,null,null,null,"",null,""]
[null,null,null,null,"",null,""]
[null,null,null,null,"",null,""]
[null,null,null,null,"",null,""]
[null,null,null,null,"",null,""]
[null,null,null,null,"",null,""]
[null,null,null,null,"",null,""]
[null,null,null,null,"",null,""]
[null,null,null,null,"",null,""]
[null,null,null,null,"",null,""]
[null,null,null,null,"",null,""]
[null,null,null,null,"",null,""]
[null,null,null,null,"",null,""]
[null,null,null,null,"",null,""]
[null,null,null,null,"",null,""]
[null,null,null,null,"",null,""]
[null,null,null,null,"",null,""]
[null,null,null,null,"",null,""]
[null,null,null,null,"",null,""]
[null,null,null,null,"",null,""]
[null,null,null,null,"",null,""]
[null,null,null,null,"",null,""]
[null,null,null,null,"",null,""]
[null,null,null,null,"",null,""]
[null,null,null,null,"",null,""]
[null,null,null,null,"",null,""]
[null,null,null,null,"",null,""]
[null,null,null,null,"",null,""]
[null,null,null,null,"",null,""]
[null,null,null,null,"",null,""]
[null,null,null,null,"",null,""]
[null,null,null,null,"",null,""]
[null,null,null,null,"",null,""]
[null,null,null,null,"",null,""]
[null,null,null,null,"",null,""]
[null,null,null,null,"",null,""]
[null,null,null,null,"",null,""]
[null,null,null,null,"",null,""]
[null,null,null,null,"",null,""]
[null,null,null,null,"",null,""]
[null,null,null,null,"",null,""]
[null,null,null,null,"",null,""]
[null,null,null,null,"",null,""]
[null,null,null,null,"",null,""]
[null,null,null,null,"",null,""]
[null,null,null,null,"",null,""]
[null,null,null,null,"",null,{"$f":"IF(A7946<>\"\",IF(B7946=\"\",\"Falta IBAN\",IF(C7946=\"\",\"Falta Valor\",\"Linha totalmente preenchida\")),IF(B7946<>\"\",IF(A7946=\"\",\"Falta Nome\",\"\"),\"\"))","v":""}]
[null,null,null,null,"",null,""]
[null,null,null,null,"",null,""]
[null,null,null,null,"",null,""]
[null,null,null,null,"",null,""]
[null,null,null,null,"",null,""]
[null,null,null,null,"",null,""]
[null,null,null,null,"",null,""]
[null,null,null,null,"",null,""]
[null,null,null,null,"",null,""]
[null,null,null,null,"",null,""]
[null,null,null,null,"",null,""]
[null,null,null,null,"",null,""]
[null,null,null,null,"",null,""]
[null,null,null,null,"",null,""]
[null,null,null,null,"",null,""]
[null,null,null,null,"",null,""]
[null,null,null,null,{"$f":"IF(C7963<>\"\",C7963,\"\")","v":""},null,""]
[null,null,null,null,"",null,""]
[null,null,null,null,"",null,""]
[null,null,null,null,"",null,""]
[null,null,null,null,"",null,""]
[null,null,null,null,"",null,""]
[null,null,null,null,"",null,""]
[null,null,null,null,"",null,""]
[null,null,null,null,"",null,""]
[null,null,null,null,"",null,""]
[null,null,null,null,"",null,""]
[null,null,null,null,"",null,""]
[null,null,null,null,"",null,""]
[null,null,null,null,"",null,""]
[null,null,null,null,"",null,""]
[null,null,null,null,"",null,""]
[null,null,null,null,"",null,""]
[null,null,null,null,"",null,""]
[null,null,null,null,"",null,""]
[null,null,null,null,"",null,""]
[null,null,null,null,"",null,""]
[null,null,null,null,"",null,""]
[null,null,null,null,"",null,""]
[null,null,null,null,"",null,""]
[null,null,null,null,"",null,""]
[null,null,null,null,"",null,""]
[null,null,null,null,"",null,""]
[null,null,null,null,"",null,""]
[null,null,null,null,"",null,""]
[null,null,null,null,"",null,""]
[null,null,null,null,"",null,""]
[null,null,null,null,"",null,""]
[null,null,null,null,"",null,""]
[null,null,null,null,"",null,""]
[null,null,null,null,"",null,""]
[null,null,null,null,"",null,""]
[null,null,null,null,"",null,""]
[null,null,null,null,"",null,""]
[null,null,null,null,"",null,""]
[null,null,null,null,"",null,""]
[null,null,null,null,"",null,""]
[null,null,null,null,"",null,""]
[null,null,null,null,"",null,""]
[null,null,null,null,"",null,""]
[null,null,null,null,"",null,""]
[null,null,null,null,"",null,""]
[null,null,null,null,"",null,""]
[null,null,null,null,"",null,{"$f":"IF(A8010<>\"\",IF(B8010=\"\",\"Falta IBAN\",IF(C8010=\"\",\"Falta Valor\",\"Linha totalmente preenchida\")),IF(B8010<>\"\",IF(A8010=\"\",\"Falta Nome\",\"\"),\"\"))","v":""}]
[null,null,null,null,"",null,""]
[null,null,null,null,"",null,""]
[null,null,null,null,"",null,""]
[null,null,null,null,"",null,""]
[null,null,null,null,"",null,""]
[null,null,null,null,"",null,""]
[null,null,null,null,"",null,""]
[null,null,null,null,"",null,""]
[null,null,null,null,"",null,""]
[null,null,null,null,"",null,""]
[null,null,null,null,"",null,""]
[null,null,null,null,"",null,""]
[null,null,null,null,"",null,""]
[null,null,null,null,"",null,""]
[null,null,null,null,"",null,""]
[null,null,null,null,"",null,""]
[null,null,null,null,{"$f":"IF(C8027<>\"\",C8027,\"\")","v":""},null,""]
[null,null,null,null,"",null,""]
[null,null,null,null,"",null,""]
[null,null,null,null,"",null,""]
[null,null,null,null,"",null,""]
[null,null,null,null,"",null,""]
[null,null,null,null,"",null,""]
[null,null,null,null,"",null,""]
[null,null,null,null,"",null,""]
[null,null,null,null,"",null,""]
[null,null,null,null,"",null,""]
[null,null,null,null,"",null,""]
[null,null,null,null,"",null,""]
[null,null,null,null,"",null,""]
[null,null,null,null,"",null,""]
[null,null,null,null,"",null,""]
[null,null,null,null,"",null,""]
[null,null,null,null,"",null,""]
[null,null,null,null,"",null,""]
[null,null,null,null,"",null,""]
[null,null,null,null,"",null,""]
[null,null,null,null,"",null,""]
[null,null,null,null,"",null,""]
[null,null,null,null,"",null,""]
[null,null,null,null,"",null,""]
[null,null,null,null,"",null,""]
[null,null,null,null,"",null,""]
[null,null,null,null,"",null,""]
[null,null,null,null,"",null,""]
[null,null,null,null,"",null,""]
[null,null,null,null,"",null,""]
[null,null,null,null,"",null,""]
[null,null,null,null,"",null,""]
[null,null,null,null,"",null,""]
[null,null,null,null,"",null,""]
[null,null,null,null,"",null,""]
[null,null,null,null,"",null,""]
[null,null,null,null,"",null,""]
[null,null,null,null,"",null,""]
[null,null,null,null,"",null,""]
[null,null,null,null,"",null,""]
[null,null,null,null,"",null,""]
[null,null,null,null,"",null,""]
[null,null,null,null,"",null,""]
[null,null,null,null,"",null,""]
[null,null,null,null,"",null,""]
[null,null,null,null,"",null,""]
[null,null,null,null,"",null,{"$f":"IF(A8074<>\"\",IF(B8074=\"\",\"Falta IBAN\",IF(C8074=\"\",\"Falta Valor\",\"Linha totalmente preenchida\")),IF(B8074<>\"\",IF(A8074=\"\",\"Falta Nome\",\"\"),\"\"))","v":""}]
[null,null,null,null,"",null,""]
[null,null,null,null,"",null,""]
[null,null,null,null,"",null,""]
[null,null,null,null,"",null,""]
[null,null,null,null,"",null,""]
[null,null,null,null,"",null,""]
[null,null,null,null,"",null,""]
[null,null,null,null,"",null,""]
[null,null,null,null,"",null,""]
[null,null,null,null,"",null,""]
[null,null,null,null,"",null,""]
[null,null,null,null,"",null,""]
[null,null,null,null,"",null,""]
[null,null,null,null,"",null,""]
[null,null,null,null,"",null,""]
[null,null,null,null,"",null,""]
[null,null,null,null,{"$f":"IF(C8091<>\"\",C8091,\"\")","v":""},null,""]
[null,null,null,null,"",null,""]
[null,null,null,null,"",null,""]
[null,null,null,null,"",null,""]
[null,null,null,null,"",null,""]
[null,null,null,null,"",null,""]
[null,null,null,null,"",null,""]
[null,null,null,null,"",null,""]
[null,null,null,null,"",null,""]
[null,null,null,null,"",null,""]
[null,null,null,null,"",null,""]
[null,null,null,null,"",null,""]
[null,null,null,null,"",null,""]
[null,null,null,null,"",null,""]
[null,null,null,null,"",null,""]
[null,null,null,null,"",null,""]
[null,null,null,null,"",null,""]
[null,null,null,null,"",null,""]
[null,null,null,null,"",null,""]
[null,null,null,null,"",null,""]
[null,null,null,null,"",null,""]
[null,null,null,null,"",null,""]
[null,null,null,null,"",null,""]
[null,null,null,null,"",null,""]
[null,null,null,null,"",null,""]
[null,null,null,null,"",null,""]
[null,null,null,null,"",null,""]
[null,null,null,null,"",null,""]
[null,null,null,null,"",null,""]
[null,null,null,null,"",null,""]
[null,null,null,null,"",null,""]
[null,null,null,null,"",null,""]
[null,null,null,null,"",null,""]
[null,null,null,null,"",null,""]
[null,null,null,null,"",null,""]
[null,null,null,null,"",null,""]
[null,null,null,null,"",null,""]
[null,null,null,null,"",null,""]
[null,null,null,null,"",null,""]
[null,null,null,null,"",null,""]
[null,null,null,null,"",null,""]
[null,null,null,null,"",null,""]
[null,null,null,null,"",null,""]
[null,null,null,null,"",null,""]
[null,null,null,null,"",null,""]
[null,null,null,null,"",null,""]
[null,null,null,null,"",null,""]
[null,null,null,null,"",null,{"$f":"IF(A8138<>\"\",IF(B8138=\"\",\"Falta IBAN\",IF(C8138=\"\",\"Falta Valor\",\"Linha totalmente preenchida\")),IF(B8138<>\"\",IF(A8138=\"\",\"Falta Nome\",\"\"),\"\"))","v":""}]
[null,null,null,null,"",null,""]
[null,null,null,null,"",null,""]
[null,null,null,null,"",null,""]
[null,null,null,null,"",null,""]
[null,null,null,null,"",null,""]
[null,null,null,null,"",null,""]
[null,null,null,null,"",null,""]
[null,null,null,null,"",null,""]
[null,null,null,null,"",null,""]
[null,null,null,null,"",null,""]
[null,null,null,null,"",null,""]
[null,null,null,null,"",null,""]
[null,null,null,null,"",null,""]
[null,null,null,null,"",null,""]
[null,null,null,null,"",null,""]
[null,null,null,null,"",null,""]
[null,null,null,null,{"$f":"IF(C8155<>\"\",C8155,\"\")","v":""},null,""]
[null,null,null,null,"",null,""]
[null,null,null,null,"",null,""]
[null,null,null,null,"",null,""]
[null,null,null,null,"",null,""]
[null,null,null,null,"",null,""]
[null,null,null,null,"",null,""]
[null,null,null,null,"",null,""]
[null,null,null,null,"",null,""]
[null,null,null,null,"",null,""]
[null,null,null,null,"",null,""]
[null,null,null,null,"",null,""]
[null,null,null,null,"",null,""]
[null,null,null,null,"",null,""]
[null,null,null,null,"",null,""]
[null,null,null,null,"",null,""]
[null,null,null,null,"",null,""]
[null,null,null,null,"",null,""]
[null,null,null,null,"",null,""]
[null,null,null,null,"",null,""]
[null,null,null,null,"",null,""]
[null,null,null,null,"",null,""]
[null,null,null,null,"",null,""]
[null,null,null,null,"",null,""]
[null,null,null,null,"",null,""]
[null,null,null,null,"",null,""]
[null,null,null,null,"",null,""]
[null,null,null,null,"",null,""]
[null,null,null,null,"",null,""]
[null,null,null,null,"",null,""]
[null,null,null,null,"",null,""]
[null,null,null,null,"",null,""]
[null,null,null,null,"",null,""]
[null,null,null,null,"",null,""]
[null,null,null,null,"",null,""]
[null,null,null,null,"",null,""]
[null,null,null,null,"",null,""]
[null,null,null,null,"",null,""]
[null,null,null,null,"",null,""]
[null,null,null,null,"",null,""]
[null,null,null,null,"",null,""]
[null,null,null,null,"",null,""]
[null,null,null,null,"",null,""]
[null,null,null,null,"",null,""]
[null,null,null,null,"",null,""]
[null,null,null,null,"",null,""]
[null,null,null,null,"",null,""]
[null,null,null,null,"",null,{"$f":"IF(A8202<>\"\",IF(B8202=\"\",\"Falta IBAN\",IF(C8202=\"\",\"Falta Valor\",\"Linha totalmente preenchida\")),IF(B8202<>\"\",IF(A8202=\"\",\"Falta Nome\",\"\"),\"\"))","v":""}]
[null,null,null,null,"",null,""]
[null,null,null,null,"",null,""]
[null,null,null,null,"",null,""]
[null,null,null,null,"",null,""]
[null,null,null,null,"",null,""]
[null,null,null,null,"",null,""]
[null,null,null,null,"",null,""]
[null,null,null,null,"",null,""]
[null,null,null,null,"",null,""]
[null,null,null,null,"",null,""]
[null,null,null,null,"",null,""]
[null,null,null,null,"",null,""]
[null,null,null,null,"",null,""]
[null,null,null,null,"",null,""]
[null,null,null,null,"",null,""]
[null,null,null,null,"",null,""]
[null,null,null,null,{"$f":"IF(C8219<>\"\",C8219,\"\")","v":""},null,""]
[null,null,null,null,"",null,""]
[null,null,null,null,"",null,""]
[null,null,null,null,"",null,""]
[null,null,null,null,"",null,""]
[null,null,null,null,"",null,""]
[null,null,null,null,"",null,""]
[null,null,null,null,"",null,""]
[null,null,null,null,"",null,""]
[null,null,null,null,"",null,""]
[null,null,null,null,"",null,""]
[null,null,null,null,"",null,""]
[null,null,null,null,"",null,""]
[null,null,null,null,"",null,""]
[null,null,null,null,"",null,""]
[null,null,null,null,"",null,""]
[null,null,null,null,"",null,""]
[null,null,null,null,"",null,""]
[null,null,null,null,"",null,""]
[null,null,null,null,"",null,""]
[null,null,null,null,"",null,""]
[null,null,null,null,"",null,""]
[null,null,null,null,"",null,""]
[null,null,null,null,"",null,""]
[null,null,null,null,"",null,""]
[null,null,null,null,"",null,""]
[null,null,null,null,"",null,""]
[null,null,null,null,"",null,""]
[null,null,null,null,"",null,""]
[null,null,null,null,"",null,""]
[null,null,null,null,"",null,""]
[null,null,null,null,"",null,""]
[null,null,null,null,"",null,""]
[null,null,null,null,"",null,""]
[null,null,null,null,"",null,""]
[null,null,null,null,"",null,""]
[null,null,null,null,"",null,""]
[null,null,null,null,"",null,""]
[null,null,null,null,"",null,""]
[null,null,null,null,"",null,""]
[null,null,null,null,"",null,""]
[null,null,null,null,"",null,""]
[null,null,null,null,"",null,""]
[null,null,null,null,"",null,""]
[null,null,null,null,"",null,""]
[null,null,null,null,"",null,""]
[null,null,null,null,"",null,""]
[null,null,null,null,"",null,{"$f":"IF(A8266<>\"\",IF(B8266=\"\",\"Falta IBAN\",IF(C8266=\"\",\"Falta Valor\",\"Linha totalmente preenchida\")),IF(B8266<>\"\",IF(A8266=\"\",\"Falta Nome\",\"\"),\"\"))","v":""}]
[null,null,null,null,"",null,""]
[null,null,null,null,"",null,""]
[null,null,null,null,"",null,""]
[null,null,null,null,"",null,""]
[null,null,null,null,"",null,""]
[null,null,null,null,"",null,""]
[null,null,null,null,"",null,""]
[null,null,null,null,"",null,""]
[null,null,null,null,"",null,""]
[null,null,null,null,"",null,""]
[null,null,null,null,"",null,""]
[null,null,null,null,"",null,""]
[null,null,null,null,"",null,""]
[null,null,null,null,"",null,""]
[null,null,null,null,"",null,""]
[null,null,null,null,"",null,""]
[null,null,null,null,{"$f":"IF(C8283<>\"\",C8283,\"\")","v":""},null,""]
[null,null,null,null,"",null,""]
[null,null,null,null,"",null,""]
[null,null,null,null,"",null,""]
[null,null,null,null,"",null,""]
[null,null,null,null,"",null,""]
[null,null,null,null,"",null,""]
[null,null,null,null,"",null,""]
[null,null,null,null,"",null,""]
[null,null,null,null,"",null,""]
[null,null,null,null,"",null,""]
[null,null,null,null,"",null,""]
[null,null,null,null,"",null,""]
[null,null,null,null,"",null,""]
[null,null,null,null,"",null,""]
[null,null,null,null,"",null,""]
[null,null,null,null,"",null,""]
[null,null,null,null,"",null,""]
[null,null,null,null,"",null,""]
[null,null,null,null,"",null,""]
[null,null,null,null,"",null,""]
[null,null,null,null,"",null,""]
[null,null,null,null,"",null,""]
[null,null,null,null,"",null,""]
[null,null,null,null,"",null,""]
[null,null,null,null,"",null,""]
[null,null,null,null,"",null,""]
[null,null,null,null,"",null,""]
[null,null,null,null,"",null,""]
[null,null,null,null,"",null,""]
[null,null,null,null,"",null,""]
[null,null,null,null,"",null,""]
[null,null,null,null,"",null,""]
[null,null,null,null,"",null,""]
[null,null,null,null,"",null,""]
[null,null,null,null,"",null,""]
[null,null,null,null,"",null,""]
[null,null,null,null,"",null,""]
[null,null,null,null,"",null,""]
[null,null,null,null,"",null,""]
[null,null,null,null,"",null,""]
[null,null,null,null,"",null,""]
[null,null,null,null,"",null,""]
[null,null,null,null,"",null,""]
[null,null,null,null,"",null,""]
[null,null,null,null,"",null,""]
[null,null,null,null,"",null,""]
[null,null,null,null,"",null,{"$f":"IF(A8330<>\"\",IF(B8330=\"\",\"Falta IBAN\",IF(C8330=\"\",\"Falta Valor\",\"Linha totalmente preenchida\")),IF(B8330<>\"\",IF(A8330=\"\",\"Falta Nome\",\"\"),\"\"))","v":""}]
[null,null,null,null,"",null,""]
[null,null,null,null,"",null,""]
[null,null,null,null,"",null,""]
[null,null,null,null,"",null,""]
[null,null,null,null,"",null,""]
[null,null,null,null,"",null,""]
[null,null,null,null,"",null,""]
[null,null,null,null,"",null,""]
[null,null,null,null,"",null,""]
[null,null,null,null,"",null,""]
[null,null,null,null,"",null,""]
[null,null,null,null,"",null,""]
[null,null,null,null,"",null,""]
[null,null,null,null,"",null,""]
[null,null,null,null,"",null,""]
[null,null,null,null,"",null,""]
[null,null,null,null,{"$f":"IF(C8347<>\"\",C8347,\"\")","v":""},null,""]
[null,null,null,null,"",null,""]
[null,null,null,null,"",null,""]
[null,null,null,null,"",null,""]
[null,null,null,null,"",null,""]
[null,null,null,null,"",null,""]
[null,null,null,null,"",null,""]
[null,null,null,null,"",null,""]
[null,null,null,null,"",null,""]
[null,null,null,null,"",null,""]
[null,null,null,null,"",null,""]
[null,null,null,null,"",null,""]
[null,null,null,null,"",null,""]
[null,null,null,null,"",null,""]
[null,null,null,null,"",null,""]
[null,null,null,null,"",null,""]
[null,null,null,null,"",null,""]
[null,null,null,null,"",null,""]
[null,null,null,null,"",null,""]
[null,null,null,null,"",null,""]
[null,null,null,null,"",null,""]
[null,null,null,null,"",null,""]
[null,null,null,null,"",null,""]
[null,null,null,null,"",null,""]
[null,null,null,null,"",null,""]
[null,null,null,null,"",null,""]
[null,null,null,null,"",null,""]
[null,null,null,null,"",null,""]
[null,null,null,null,"",null,""]
[null,null,null,null,"",null,""]
[null,null,null,null,"",null,""]
[null,null,null,null,"",null,""]
[null,null,null,null,"",null,""]
[null,null,null,null,"",null,""]
[null,null,null,null,"",null,""]
[null,null,null,null,"",null,""]
[null,null,null,null,"",null,""]
[null,null,null,null,"",null,""]
[null,null,null,null,"",null,""]
[null,null,null,null,"",null,""]
[null,null,null,null,"",null,""]
[null,null,null,null,"",null,""]
[null,null,null,null,"",null,""]
[null,null,null,null,"",null,""]
[null,null,null,null,"",null,""]
[null,null,null,null,"",null,""]
[null,null,null,null,"",null,""]
[null,null,null,null,"",null,{"$f":"IF(A8394<>\"\",IF(B8394=\"\",\"Falta IBAN\",IF(C8394=\"\",\"Falta Valor\",\"Linha totalmente preenchida\")),IF(B8394<>\"\",IF(A8394=\"\",\"Falta Nome\",\"\"),\"\"))","v":""}]
[null,null,null,null,"",null,""]
[null,null,null,null,"",null,""]
[null,null,null,null,"",null,""]
[null,null,null,null,"",null,""]
[null,null,null,null,"",null,""]
[null,null,null,null,"",null,""]
[null,null,null,null,"",null,""]
[null,null,null,null,"",null,""]
[null,null,null,null,"",null,""]
[null,null,null,null,"",null,""]
[null,null,null,null,"",null,""]
[null,null,null,null,"",null,""]
[null,null,null,null,"",null,""]
[null,null,null,null,"",null,""]
[null,null,null,null,"",null,""]
[null,null,null,null,"",null,""]
[null,null,null,null,{"$f":"IF(C8411<>\"\",C8411,\"\")","v":""},null,""]
[null,null,null,null,"",null,""]
[null,null,null,null,"",null,""]
[null,null,null,null,"",null,""]
[null,null,null,null,"",null,""]
[null,null,null,null,"",null,""]
[null,null,null,null,"",null,""]
[null,null,null,null,"",null,""]
[null,null,null,null,"",null,""]
[null,null,null,null,"",null,""]
[null,null,null,null,"",null,""]
[null,null,null,null,"",null,""]
[null,null,null,null,"",null,""]
[null,null,null,null,"",null,""]
[null,null,null,null,"",null,""]
[null,null,null,null,"",null,""]
[null,null,null,null,"",null,""]
[null,null,null,null,"",null,""]
[null,null,null,null,"",null,""]
[null,null,null,null,"",null,""]
[null,null,null,null,"",null,""]
[null,null,null,null,"",null,""]
[null,null,null,null,"",null,""]
[null,null,null,null,"",null,""]
[null,null,null,null,"",null,""]
[null,null,null,null,"",null,""]
[null,null,null,null,"",null,""]
[null,null,null,null,"",null,""]
[null,null,null,null,"",null,""]
[null,null,null,null,"",null,""]
[null,null,null,null,"",null,""]
[null,null,null,null,"",null,""]
[null,null,null,null,"",null,""]
[null,null,null,null,"",null,""]
[null,null,null,null,"",null,""]
[null,null,null,null,"",null,""]
[null,null,null,null,"",null,""]
[null,null,null,null,"",null,""]
[null,null,null,null,"",null,""]
[null,null,null,null,"",null,""]
[null,null,null,null,"",null,""]
[null,null,null,null,"",null,""]
[null,null,null,null,"",null,""]
[null,null,null,null,"",null,""]
[null,null,null,null,"",null,""]
[null,null,null,null,"",null,""]
[null,null,null,null,"",null,""]
[null,null,null,null,"",null,{"$f":"IF(A8458<>\"\",IF(B8458=\"\",\"Falta IBAN\",IF(C8458=\"\",\"Falta Valor\",\"Linha totalmente preenchida\")),IF(B8458<>\"\",IF(A8458=\"\",\"Falta Nome\",\"\"),\"\"))","v":""}]
[null,null,null,null,"",null,""]
[null,null,null,null,"",null,""]
[null,null,null,null,"",null,""]
[null,null,null,null,"",null,""]
[null,null,null,null,"",null,""]
[null,null,null,null,"",null,""]
[null,null,null,null,"",null,""]
[null,null,null,null,"",null,""]
[null,null,null,null,"",null,""]
[null,null,null,null,"",null,""]
[null,null,null,null,"",null,""]
[null,null,null,null,"",null,""]
[null,null,null,null,"",null,""]
[null,null,null,null,"",null,""]
[null,null,null,null,"",null,""]
[null,null,null,null,"",null,""]
[null,null,null,null,{"$f":"IF(C8475<>\"\",C8475,\"\")","v":""},null,""]
[null,null,null,null,"",null,""]
[null,null,null,null,"",null,""]
[null,null,null,null,"",null,""]
[null,null,null,null,"",null,""]
[null,null,null,null,"",null,""]
[null,null,null,null,"",null,""]
[null,null,null,null,"",null,""]
[null,null,null,null,"",null,""]
[null,null,null,null,"",null,""]
[null,null,null,null,"",null,""]
[null,null,null,null,"",null,""]
[null,null,null,null,"",null,""]
[null,null,null,null,"",null,""]
[null,null,null,null,"",null,""]
[null,null,null,null,"",null,""]
[null,null,null,null,"",null,""]
[null,null,null,null,"",null,""]
[null,null,null,null,"",null,""]
[null,null,null,null,"",null,""]
[null,null,null,null,"",null,""]
[null,null,null,null,"",null,""]
[null,null,null,null,"",null,""]
[null,null,null,null,"",null,""]
[null,null,null,null,"",null,""]
[null,null,null,null,"",null,""]
[null,null,null,null,"",null,""]
[null,null,null,null,"",null,""]
[null,null,null,null,"",null,""]
[null,null,null,null,"",null,""]
[null,null,null,null,"",null,""]
[null,null,null,null,"",null,""]
[null,null,null,null,"",null,""]
[null,null,null,null,"",null,""]
[null,null,null,null,"",null,""]
[null,null,null,null,"",null,""]
[null,null,null,null,"",null,""]
[null,null,null,null,"",null,""]
[null,null,null,null,"",null,""]
[null,null,null,null,"",null,""]
[null,null,null,null,"",null,""]
[null,null,null,null,"",null,""]
[null,null,null,null,"",null,""]
[null,null,null,null,"",null,""]
[null,null,null,null,"",null,""]
[null,null,null,null,"",null,""]
[null,null,null,null,"",null,""]
[null,null,null,null,"",null,{"$f":"IF(A8522<>\"\",IF(B8522=\"\",\"Falta IBAN\",IF(C8522=\"\",\"Falta Valor\",\"Linha totalmente preenchida\")),IF(B8522<>\"\",IF(A8522=\"\",\"Falta Nome\",\"\"),\"\"))","v":""}]
[null,null,null,null,"",null,""]
[null,null,null,null,"",null,""]
[null,null,null,null,"",null,""]
[null,null,null,null,"",null,""]
[null,null,null,null,"",null,""]
[null,null,null,null,"",null,""]
[null,null,null,null,"",null,""]
[null,null,null,null,"",null,""]
[null,null,null,null,"",null,""]
[null,null,null,null,"",null,""]
[null,null,null,null,"",null,""]
[null,null,null,null,"",null,""]
[null,null,null,null,"",null,""]
[null,null,null,null,"",null,""]
[null,null,null,null,"",null,""]
[null,null,null,null,"",null,""]
[null,null,null,null,{"$f":"IF(C8539<>\"\",C8539,\"\")","v":""},null,""]
[null,null,null,null,"",null,""]
[null,null,null,null,"",null,""]
[null,null,null,null,"",null,""]
[null,null,null,null,"",null,""]
[null,null,null,null,"",null,""]
[null,null,null,null,"",null,""]
[null,null,null,null,"",null,""]
[null,null,null,null,"",null,""]
[null,null,null,null,"",null,""]
[null,null,null,null,"",null,""]
[null,null,null,null,"",null,""]
[null,null,null,null,"",null,""]
[null,null,null,null,"",null,""]
[null,null,null,null,"",null,""]
[null,null,null,null,"",null,""]
[null,null,null,null,"",null,""]
[null,null,null,null,"",null,""]
[null,null,null,null,"",null,""]
[null,null,null,null,"",null,""]
[null,null,null,null,"",null,""]
[null,null,null,null,"",null,""]
[null,null,null,null,"",null,""]
[null,null,null,null,"",null,""]
[null,null,null,null,"",null,""]
[null,null,null,null,"",null,""]
[null,null,null,null,"",null,""]
[null,null,null,null,"",null,""]
[null,null,null,null,"",null,""]
[null,null,null,null,"",null,""]
[null,null,null,null,"",null,""]
[null,null,null,null,"",null,""]
[null,null,null,null,"",null,""]
[null,null,null,null,"",null,""]
[null,null,null,null,"",null,""]
[null,null,null,null,"",null,""]
[null,null,null,null,"",null,""]
[null,null,null,null,"",null,""]
[null,null,null,null,"",null,""]
[null,null,null,null,"",null,""]
[null,null,null,null,"",null,""]
[null,null,null,null,"",null,""]
[null,null,null,null,"",null,""]
[null,null,null,null,"",null,""]
[null,null,null,null,"",null,""]
[null,null,null,null,"",null,""]
[null,null,null,null,"",null,""]
[null,null,null,null,"",null,{"$f":"IF(A8586<>\"\",IF(B8586=\"\",\"Falta IBAN\",IF(C8586=\"\",\"Falta Valor\",\"Linha totalmente preenchida\")),IF(B8586<>\"\",IF(A8586=\"\",\"Falta Nome\",\"\"),\"\"))","v":""}]
[null,null,null,null,"",null,""]
[null,null,null,null,"",null,""]
[null,null,null,null,"",null,""]
[null,null,null,null,"",null,""]
[null,null,null,null,"",null,""]
[null,null,null,null,"",null,""]
[null,null,null,null,"",null,""]
[null,null,null,null,"",null,""]
[null,null,null,null,"",null,""]
[null,null,null,null,"",null,""]
[null,null,null,null,"",null,""]
[null,null,null,null,"",null,""]
[null,null,null,null,"",null,""]
[null,null,null,null,"",null,""]
[null,null,null,null,"",null,""]
[null,null,null,null,"",null,""]
[null,null,null,null,{"$f":"IF(C8603<>\"\",C8603,\"\")","v":""},null,""]
[null,null,null,null,"",null,""]
[null,null,null,null,"",null,""]
[null,null,null,null,"",null,""]
[null,null,null,null,"",null,""]
[null,null,null,null,"",null,""]
[null,null,null,null,"",null,""]
[null,null,null,null,"",null,""]
[null,null,null,null,"",null,""]
[null,null,null,null,"",null,""]
[null,null,null,null,"",null,""]
[null,null,null,null,"",null,""]
[null,null,null,null,"",null,""]
[null,null,null,null,"",null,""]
[null,null,null,null,"",null,""]
[null,null,null,null,"",null,""]
[null,null,null,null,"",null,""]
[null,null,null,null,"",null,""]
[null,null,null,null,"",null,""]
[null,null,null,null,"",null,""]
[null,null,null,null,"",null,""]
[null,null,null,null,"",null,""]
[null,null,null,null,"",null,""]
[null,null,null,null,"",null,""]
[null,null,null,null,"",null,""]
[null,null,null,null,"",null,""]
[null,null,null,null,"",null,""]
[null,null,null,null,"",null,""]
[null,null,null,null,"",null,""]
[null,null,null,null,"",null,""]
[null,null,null,null,"",null,""]
[null,null,null,null,"",null,""]
[null,null,null,null,"",null,""]
[null,null,null,null,"",null,""]
[null,null,null,null,"",null,""]
[null,null,null,null,"",null,""]
[null,null,null,null,"",null,""]
[null,null,null,null,"",null,""]
[null,null,null,null,"",null,""]
[null,null,null,null,"",null,""]
[null,null,null,null,"",null,""]
[null,null,null,null,"",null,""]
[null,null,null,null,"",null,""]
[null,null,null,null,"",null,""]
[null,null,null,null,"",null,""]
[null,null,null,null,"",null,""]
[null,null,null,null,"",null,""]
[null,null,null,null,"",null,{"$f":"IF(A8650<>\"\",IF(B8650=\"\",\"Falta IBAN\",IF(C8650=\"\",\"Falta Valor\",\"Linha totalmente preenchida\")),IF(B8650<>\"\",IF(A8650=\"\",\"Falta Nome\",\"\"),\"\"))","v":""}]
[null,null,null,null,"",null,""]
[null,null,null,null,"",null,""]
[null,null,null,null,"",null,""]
[null,null,null,null,"",null,""]
[null,null,null,null,"",null,""]
[null,null,null,null,"",null,""]
[null,null,null,null,"",null,""]
[null,null,null,null,"",null,""]
[null,null,null,null,"",null,""]
[null,null,null,null,"",null,""]
[null,null,null,null,"",null,""]
[null,null,null,null,"",null,""]
[null,null,null,null,"",null,""]
[null,null,null,null,"",null,""]
[null,null,null,null,"",null,""]
[null,null,null,null,"",null,""]
[null,null,null,null,{"$f":"IF(C8667<>\"\",C8667,\"\")","v":""},null,""]
[null,null,null,null,"",null,""]
[null,null,null,null,"",null,""]
[null,null,null,null,"",null,""]
[null,null,null,null,"",null,""]
[null,null,null,null,"",null,""]
[null,null,null,null,"",null,""]
[null,null,null,null,"",null,""]
[null,null,null,null,"",null,""]
[null,null,null,null,"",null,""]
[null,null,null,null,"",null,""]
[null,null,null,null,"",null,""]
[null,null,null,null,"",null,""]
[null,null,null,null,"",null,""]
[null,null,null,null,"",null,""]
[null,null,null,null,"",null,""]
[null,null,null,null,"",null,""]
[null,null,null,null,"",null,""]
[null,null,null,null,"",null,""]
[null,null,null,null,"",null,""]
[null,null,null,null,"",null,""]
[null,null,null,null,"",null,""]
[null,null,null,null,"",null,""]
[null,null,null,null,"",null,""]
[null,null,null,null,"",null,""]
[null,null,null,null,"",null,""]
[null,null,null,null,"",null,""]
[null,null,null,null,"",null,""]
[null,null,null,null,"",null,""]
[null,null,null,null,"",null,""]
[null,null,null,null,"",null,""]
[null,null,null,null,"",null,""]
[null,null,null,null,"",null,""]
[null,null,null,null,"",null,""]
[null,null,null,null,"",null,""]
[null,null,null,null,"",null,""]
[null,null,null,null,"",null,""]
[null,null,null,null,"",null,""]
[null,null,null,null,"",null,""]
[null,null,null,null,"",null,""]
[null,null,null,null,"",null,""]
[null,null,null,null,"",null,""]
[null,null,null,null,"",null,""]
[null,null,null,null,"",null,""]
[null,null,null,null,"",null,""]
[null,null,null,null,"",null,""]
[null,null,null,null,"",null,""]
[null,null,null,null,"",null,{"$f":"IF(A8714<>\"\",IF(B8714=\"\",\"Falta IBAN\",IF(C8714=\"\",\"Falta Valor\",\"Linha totalmente preenchida\")),IF(B8714<>\"\",IF(A8714=\"\",\"Falta Nome\",\"\"),\"\"))","v":""}]
[null,null,null,null,"",null,""]
[null,null,null,null,"",null,""]
[null,null,null,null,"",null,""]
[null,null,null,null,"",null,""]
[null,null,null,null,"",null,""]
[null,null,null,null,"",null,""]
[null,null,null,null,"",null,""]
[null,null,null,null,"",null,""]
[null,null,null,null,"",null,""]
[null,null,null,null,"",null,""]
[null,null,null,null,"",null,""]
[null,null,null,null,"",null,""]
[null,null,null,null,"",null,""]
[null,null,null,null,"",null,""]
[null,null,null,null,"",null,""]
[null,null,null,null,"",null,""]
[null,null,null,null,{"$f":"IF(C8731<>\"\",C8731,\"\")","v":""},null,""]
[null,null,null,null,"",null,""]
[null,null,null,null,"",null,""]
[null,null,null,null,"",null,""]
[null,null,null,null,"",null,""]
[null,null,null,null,"",null,""]
[null,null,null,null,"",null,""]
[null,null,null,null,"",null,""]
[null,null,null,null,"",null,""]
[null,null,null,null,"",null,""]
[null,null,null,null,"",null,""]
[null,null,null,null,"",null,""]
[null,null,null,null,"",null,""]
[null,null,null,null,"",null,""]
[null,null,null,null,"",null,""]
[null,null,null,null,"",null,""]
[null,null,null,null,"",null,""]
[null,null,null,null,"",null,""]
[null,null,null,null,"",null,""]
[null,null,null,null,"",null,""]
[null,null,null,null,"",null,""]
[null,null,null,null,"",null,""]
[null,null,null,null,"",null,""]
[null,null,null,null,"",null,""]
[null,null,null,null,"",null,""]
[null,null,null,null,"",null,""]
[null,null,null,null,"",null,""]
[null,null,null,null,"",null,""]
[null,null,null,null,"",null,""]
[null,null,null,null,"",null,""]
[null,null,null,null,"",null,""]
[null,null,null,null,"",null,""]
[null,null,null,null,"",null,""]
[null,null,null,null,"",null,""]
[null,null,null,null,"",null,""]
[null,null,null,null,"",null,""]
[null,null,null,null,"",null,""]
[null,null,null,null,"",null,""]
[null,null,null,null,"",null,""]
[null,null,null,null,"",null,""]
[null,null,null,null,"",null,""]
[null,null,null,null,"",null,""]
[null,null,null,null,"",null,""]
[null,null,null,null,"",null,""]
[null,null,null,null,"",null,""]
[null,null,null,null,"",null,""]
[null,null,null,null,"",null,""]
[null,null,null,null,"",null,{"$f":"IF(A8778<>\"\",IF(B8778=\"\",\"Falta IBAN\",IF(C8778=\"\",\"Falta Valor\",\"Linha totalmente preenchida\")),IF(B8778<>\"\",IF(A8778=\"\",\"Falta Nome\",\"\"),\"\"))","v":""}]
[null,null,null,null,"",null,""]
[null,null,null,null,"",null,""]
[null,null,null,null,"",null,""]
[null,null,null,null,"",null,""]
[null,null,null,null,"",null,""]
[null,null,null,null,"",null,""]
[null,null,null,null,"",null,""]
[null,null,null,null,"",null,""]
[null,null,null,null,"",null,""]
[null,null,null,null,"",null,""]
[null,null,null,null,"",null,""]
[null,null,null,null,"",null,""]
[null,null,null,null,"",null,""]
[null,null,null,null,"",null,""]
[null,null,null,null,"",null,""]
[null,null,null,null,"",null,""]
[null,null,null,null,{"$f":"IF(C8795<>\"\",C8795,\"\")","v":""},null,""]
[null,null,null,null,"",null,""]
[null,null,null,null,"",null,""]
[null,null,null,null,"",null,""]
[null,null,null,null,"",null,""]
[null,null,null,null,"",null,""]
[null,null,null,null,"",null,""]
[null,null,null,null,"",null,""]
[null,null,null,null,"",null,""]
[null,null,null,null,"",null,""]
[null,null,null,null,"",null,""]
[null,null,null,null,"",null,""]
[null,null,null,null,"",null,""]
[null,null,null,null,"",null,""]
[null,null,null,null,"",null,""]
[null,null,null,null,"",null,""]
[null,null,null,null,"",null,""]
[null,null,null,null,"",null,""]
[null,null,null,null,"",null,""]
[null,null,null,null,"",null,""]
[null,null,null,null,"",null,""]
[null,null,null,null,"",null,""]
[null,null,null,null,"",null,""]
[null,null,null,null,"",null,""]
[null,null,null,null,"",null,""]
[null,null,null,null,"",null,""]
[null,null,null,null,"",null,""]
[null,null,null,null,"",null,""]
[null,null,null,null,"",null,""]
[null,null,null,null,"",null,""]
[null,null,null,null,"",null,""]
[null,null,null,null,"",null,""]
[null,null,null,null,"",null,""]
[null,null,null,null,"",null,""]
[null,null,null,null,"",null,""]
[null,null,null,null,"",null,""]
[null,null,null,null,"",null,""]
[null,null,null,null,"",null,""]
[null,null,null,null,"",null,""]
[null,null,null,null,"",null,""]
[null,null,null,null,"",null,""]
[null,null,null,null,"",null,""]
[null,null,null,null,"",null,""]
[null,null,null,null,"",null,""]
[null,null,null,null,"",null,""]
[null,null,null,null,"",null,""]
[null,null,null,null,"",null,""]
[null,null,null,null,"",null,{"$f":"IF(A8842<>\"\",IF(B8842=\"\",\"Falta IBAN\",IF(C8842=\"\",\"Falta Valor\",\"Linha totalmente preenchida\")),IF(B8842<>\"\",IF(A8842=\"\",\"Falta Nome\",\"\"),\"\"))","v":""}]
[null,null,null,null,"",null,""]
[null,null,null,null,"",null,""]
[null,null,null,null,"",null,""]
[null,null,null,null,"",null,""]
[null,null,null,null,"",null,""]
[null,null,null,null,"",null,""]
[null,null,null,null,"",null,""]
[null,null,null,null,"",null,""]
[null,null,null,null,"",null,""]
[null,null,null,null,"",null,""]
[null,null,null,null,"",null,""]
[null,null,null,null,"",null,""]
[null,null,null,null,"",null,""]
[null,null,null,null,"",null,""]
[null,null,null,null,"",null,""]
[null,null,null,null,"",null,""]
[null,null,null,null,{"$f":"IF(C8859<>\"\",C8859,\"\")","v":""},null,""]
[null,null,null,null,"",null,""]
[null,null,null,null,"",null,""]
[null,null,null,null,"",null,""]
[null,null,null,null,"",null,""]
[null,null,null,null,"",null,""]
[null,null,null,null,"",null,""]
[null,null,null,null,"",null,""]
[null,null,null,null,"",null,""]
[null,null,null,null,"",null,""]
[null,null,null,null,"",null,""]
[null,null,null,null,"",null,""]
[null,null,null,null,"",null,""]
[null,null,null,null,"",null,""]
[null,null,null,null,"",null,""]
[null,null,null,null,"",null,""]
[null,null,null,null,"",null,""]
[null,null,null,null,"",null,""]
[null,null,null,null,"",null,""]
[null,null,null,null,"",null,""]
[null,null,null,null,"",null,""]
[null,null,null,null,"",null,""]
[null,null,null,null,"",null,""]
[null,null,null,null,"",null,""]
[null,null,null,null,"",null,""]
[null,null,null,null,"",null,""]
[null,null,null,null,"",null,""]
[null,null,null,null,"",null,""]
[null,null,null,null,"",null,""]
[null,null,null,null,"",null,""]
[null,null,null,null,"",null,""]
[null,null,null,null,"",null,""]
[null,null,null,null,"",null,""]
[null,null,null,null,"",null,""]
[null,null,null,null,"",null,""]
[null,null,null,null,"",null,""]
[null,null,null,null,"",null,""]
[null,null,null,null,"",null,""]
[null,null,null,null,"",null,""]
[null,null,null,null,"",null,""]
[null,null,null,null,"",null,""]
[null,null,null,null,"",null,""]
[null,null,null,null,"",null,""]
[null,null,null,null,"",null,""]
[null,null,null,null,"",null,""]
[null,null,null,null,"",null,""]
[null,null,null,null,"",null,""]
[null,null,null,null,"",null,{"$f":"IF(A8906<>\"\",IF(B8906=\"\",\"Falta IBAN\",IF(C8906=\"\",\"Falta Valor\",\"Linha totalmente preenchida\")),IF(B8906<>\"\",IF(A8906=\"\",\"Falta Nome\",\"\"),\"\"))","v":""}]
[null,null,null,null,"",null,""]
[null,null,null,null,"",null,""]
[null,null,null,null,"",null,""]
[null,null,null,null,"",null,""]
[null,null,null,null,"",null,""]
[null,null,null,null,"",null,""]
[null,null,null,null,"",null,""]
[null,null,null,null,"",null,""]
[null,null,null,null,"",null,""]
[null,null,null,null,"",null,""]
[null,null,null,null,"",null,""]
[null,null,null,null,"",null,""]
[null,null,null,null,"",null,""]
[null,null,null,null,"",null,""]
[null,null,null,null,"",null,""]
[null,null,null,null,"",null,""]
[null,null,null,null,{"$f":"IF(C8923<>\"\",C8923,\"\")","v":""},null,""]
[null,null,null,null,"",null,""]
[null,null,null,null,"",null,""]
[null,null,null,null,"",null,""]
[null,null,null,null,"",null,""]
[null,null,null,null,"",null,""]
[null,null,null,null,"",null,""]
[null,null,null,null,"",null,""]
[null,null,null,null,"",null,""]
[null,null,null,null,"",null,""]
[null,null,null,null,"",null,""]
[null,null,null,null,"",null,""]
[null,null,null,null,"",null,""]
[null,null,null,null,"",null,""]
[null,null,null,null,"",null,""]
[null,null,null,null,"",null,""]
[null,null,null,null,"",null,""]
[null,null,null,null,"",null,""]
[null,null,null,null,"",null,""]
[null,null,null,null,"",null,""]
[null,null,null,null,"",null,""]
[null,null,null,null,"",null,""]
[null,null,null,null,"",null,""]
[null,null,null,null,"",null,""]
[null,null,null,null,"",null,""]
[null,null,null,null,"",null,""]
[null,null,null,null,"",null,""]
[null,null,null,null,"",null,""]
[null,null,null,null,"",null,""]
[null,null,null,null,"",null,""]
[null,null,null,null,"",null,""]
[null,null,null,null,"",null,""]
[null,null,null,null,"",null,""]
[null,null,null,null,"",null,""]
[null,null,null,null,"",null,""]
[null,null,null,null,"",null,""]
[null,null,null,null,"",null,""]
[null,null,null,null,"",null,""]
[null,null,null,null,"",null,""]
[null,null,null,null,"",null,""]
[null,null,null,null,"",null,""]
[null,null,null,null,"",null,""]
[null,null,null,null,"",null,""]
[null,null,null,null,"",null,""]
[null,null,null,null,"",null,""]
[null,null,null,null,"",null,""]
[null,null,null,null,"",null,""]
[null,null,null,null,"",null,{"$f":"IF(A8970<>\"\",IF(B8970=\"\",\"Falta IBAN\",IF(C8970=\"\",\"Falta Valor\",\"Linha totalmente preenchida\")),IF(B8970<>\"\",IF(A8970=\"\",\"Falta Nome\",\"\"),\"\"))","v":""}]
[null,null,null,null,"",null,""]
[null,null,null,null,"",null,""]
[null,null,null,null,"",null,""]
[null,null,null,null,"",null,""]
[null,null,null,null,"",null,""]
[null,null,null,null,"",null,""]
[null,null,null,null,"",null,""]
[null,null,null,null,"",null,""]
[null,null,null,null,"",null,""]
[null,null,null,null,"",null,""]
[null,null,null,null,"",null,""]
[null,null,null,null,"",null,""]
[null,null,null,null,"",null,""]
[null,null,null,null,"",null,""]
[null,null,null,null,"",null,""]
[null,null,null,null,"",null,""]
[null,null,null,null,{"$f":"IF(C8987<>\"\",C8987,\"\")","v":""},null,""]
[null,null,null,null,"",null,""]
[null,null,null,null,"",null,""]
[null,null,null,null,"",null,""]
[null,null,null,null,"",null,""]
[null,null,null,null,"",null,""]
[null,null,null,null,"",null,""]
[null,null,null,null,"",null,""]
[null,null,null,null,"",null,""]
[null,null,null,null,"",null,""]
[null,null,null,null,"",null,""]
[null,null,null,null,"",null,""]
[null,null,null,null,"",null,""]
[null,null,null,null,"",null,""]
[null,null,null,null,"",null,""]
[null,null,null,null,"",null,""]
[null,null,null,null,"",null,""]
[null,null,null,null,"",null,""]
[null,null,null,null,"",null,""]
[null,null,null,null,"",null,""]
[null,null,null,null,"",null,""]
[null,null,null,null,"",null,""]
[null,null,null,null,"",null,""]
[null,null,null,null,"",null,""]
[null,null,null,null,"",null,""]
[null,null,null,null,"",null,""]
[null,null,null,null,"",null,""]
[null,null,null,null,"",null,""]
[null,null,null,null,"",null,""]
[null,null,null,null,"",null,""]
[null,null,null,null,"",null,""]
[null,null,null,null,"",null,""]
[null,null,null,null,"",null,""]
[null,null,null,null,"",null,""]
[null,null,null,null,"",null,""]
[null,null,null,null,"",null,""]
[null,null,null,null,"",null,""]
[null,null,null,null,"",null,""]
[null,null,null,null,"",null,""]
[null,null,null,null,"",null,""]
[null,null,null,null,"",null,""]
[null,null,null,null,"",null,""]
[null,null,null,null,"",null,""]
[null,null,null,null,"",null,""]
[null,null,null,null,"",null,""]
[null,null,null,null,"",null,""]
[null,null,null,null,"",null,""]
[null,null,null,null,"",null,{"$f":"IF(A9034<>\"\",IF(B9034=\"\",\"Falta IBAN\",IF(C9034=\"\",\"Falta Valor\",\"Linha totalmente preenchida\")),IF(B9034<>\"\",IF(A9034=\"\",\"Falta Nome\",\"\"),\"\"))","v":""}]
[null,null,null,null,"",null,""]
[null,null,null,null,"",null,""]
[null,null,null,null,"",null,""]
[null,null,null,null,"",null,""]
[null,null,null,null,"",null,""]
[null,null,null,null,"",null,""]
[null,null,null,null,"",null,""]
[null,null,null,null,"",null,""]
[null,null,null,null,"",null,""]
[null,null,null,null,"",null,""]
[null,null,null,null,"",null,""]
[null,null,null,null,"",null,""]
[null,null,null,null,"",null,""]
[null,null,null,null,"",null,""]
[null,null,null,null,"",null,""]
[null,null,null,null,"",null,""]
[null,null,null,null,{"$f":"IF(C9051<>\"\",C9051,\"\")","v":""},null,""]
[null,null,null,null,"",null,""]
[null,null,null,null,"",null,""]
[null,null,null,null,"",null,""]
[null,null,null,null,"",null,""]
[null,null,null,null,"",null,""]
[null,null,null,null,"",null,""]
[null,null,null,null,"",null,""]
[null,null,null,null,"",null,""]
[null,null,null,null,"",null,""]
[null,null,null,null,"",null,""]
[null,null,null,null,"",null,""]
[null,null,null,null,"",null,""]
[null,null,null,null,"",null,""]
[null,null,null,null,"",null,""]
[null,null,null,null,"",null,""]
[null,null,null,null,"",null,""]
[null,null,null,null,"",null,""]
[null,null,null,null,"",null,""]
[null,null,null,null,"",null,""]
[null,null,null,null,"",null,""]
[null,null,null,null,"",null,""]
[null,null,null,null,"",null,""]
[null,null,null,null,"",null,""]
[null,null,null,null,"",null,""]
[null,null,null,null,"",null,""]
[null,null,null,null,"",null,""]
[null,null,null,null,"",null,""]
[null,null,null,null,"",null,""]
[null,null,null,null,"",null,""]
[null,null,null,null,"",null,""]
[null,null,null,null,"",null,""]
[null,null,null,null,"",null,""]
[null,null,null,null,"",null,""]
[null,null,null,null,"",null,""]
[null,null,null,null,"",null,""]
[null,null,null,null,"",null,""]
[null,null,null,null,"",null,""]
[null,null,null,null,"",null,""]
[null,null,null,null,"",null,""]
[null,null,null,null,"",null,""]
[null,null,null,null,"",null,""]
[null,null,null,null,"",null,""]
[null,null,null,null,"",null,""]
[null,null,null,null,"",null,""]
[null,null,null,null,"",null,""]
[null,null,null,null,"",null,""]
[null,null,null,null,"",null,{"$f":"IF(A9098<>\"\",IF(B9098=\"\",\"Falta IBAN\",IF(C9098=\"\",\"Falta Valor\",\"Linha totalmente preenchida\")),IF(B9098<>\"\",IF(A9098=\"\",\"Falta Nome\",\"\"),\"\"))","v":""}]
[null,null,null,null,"",null,""]
[null,null,null,null,"",null,""]
[null,null,null,null,"",null,""]
[null,null,null,null,"",null,""]
[null,null,null,null,"",null,""]
[null,null,null,null,"",null,""]
[null,null,null,null,"",null,""]
[null,null,null,null,"",null,""]
[null,null,null,null,"",null,""]
[null,null,null,null,"",null,""]
[null,null,null,null,"",null,""]
[null,null,null,null,"",null,""]
[null,null,null,null,"",null,""]
[null,null,null,null,"",null,""]
[null,null,null,null,"",null,""]
[null,null,null,null,"",null,""]
[null,null,null,null,{"$f":"IF(C9115<>\"\",C9115,\"\")","v":""},null,""]
[null,null,null,null,"",null,""]
[null,null,null,null,"",null,""]
[null,null,null,null,"",null,""]
[null,null,null,null,"",null,""]
[null,null,null,null,"",null,""]
[null,null,null,null,"",null,""]
[null,null,null,null,"",null,""]
[null,null,null,null,"",null,""]
[null,null,null,null,"",null,""]
[null,null,null,null,"",null,""]
[null,null,null,null,"",null,""]
[null,null,null,null,"",null,""]
[null,null,null,null,"",null,""]
[null,null,null,null,"",null,""]
[null,null,null,null,"",null,""]
[null,null,null,null,"",null,""]
[null,null,null,null,"",null,""]
[null,null,null,null,"",null,""]
[null,null,null,null,"",null,""]
[null,null,null,null,"",null,""]
[null,null,null,null,"",null,""]
[null,null,null,null,"",null,""]
[null,null,null,null,"",null,""]
[null,null,null,null,"",null,""]
[null,null,null,null,"",null,""]
[null,null,null,null,"",null,""]
[null,null,null,null,"",null,""]
[null,null,null,null,"",null,""]
[null,null,null,null,"",null,""]
[null,null,null,null,"",null,""]
[null,null,null,null,"",null,""]
[null,null,null,null,"",null,""]
[null,null,null,null,"",null,""]
[null,null,null,null,"",null,""]
[null,null,null,null,"",null,""]
[null,null,null,null,"",null,""]
[null,null,null,null,"",null,""]
[null,null,null,null,"",null,""]
[null,null,null,null,"",null,""]
[null,null,null,null,"",null,""]
[null,null,null,null,"",null,""]
[null,null,null,null,"",null,""]
[null,null,null,null,"",null,""]
[null,null,null,null,"",null,""]
[null,null,null,null,"",null,""]
[null,null,null,null,"",null,""]
[null,null,null,null,"",null,{"$f":"IF(A9162<>\"\",IF(B9162=\"\",\"Falta IBAN\",IF(C9162=\"\",\"Falta Valor\",\"Linha totalmente preenchida\")),IF(B9162<>\"\",IF(A9162=\"\",\"Falta Nome\",\"\"),\"\"))","v":""}]
[null,null,null,null,"",null,""]
[null,null,null,null,"",null,""]
[null,null,null,null,"",null,""]
[null,null,null,null,"",null,""]
[null,null,null,null,"",null,""]
[null,null,null,null,"",null,""]
[null,null,null,null,"",null,""]
[null,null,null,null,"",null,""]
[null,null,null,null,"",null,""]
[null,null,null,null,"",null,""]
[null,null,null,null,"",null,""]
[null,null,null,null,"",null,""]
[null,null,null,null,"",null,""]
[null,null,null,null,"",null,""]
[null,null,null,null,"",null,""]
[null,null,null,null,"",null,""]
[null,null,null,null,{"$f":"IF(C9179<>\"\",C9179,\"\")","v":""},null,""]
[null,null,null,null,"",null,""]
[null,null,null,null,"",null,""]
[null,null,null,null,"",null,""]
[null,null,null,null,"",null,""]
[null,null,null,null,"",null,""]
[null,null,null,null,"",null,""]
[null,null,null,null,"",null,""]
[null,null,null,null,"",null,""]
[null,null,null,null,"",null,""]
[null,null,null,null,"",null,""]
[null,null,null,null,"",null,""]
[null,null,null,null,"",null,""]
[null,null,null,null,"",null,""]
[null,null,null,null,"",null,""]
[null,null,null,null,"",null,""]
[null,null,null,null,"",null,""]
[null,null,null,null,"",null,""]
[null,null,null,null,"",null,""]
[null,null,null,null,"",null,""]
[null,null,null,null,"",null,""]
[null,null,null,null,"",null,""]
[null,null,null,null,"",null,""]
[null,null,null,null,"",null,""]
[null,null,null,null,"",null,""]
[null,null,null,null,"",null,""]
[null,null,null,null,"",null,""]
[null,null,null,null,"",null,""]
[null,null,null,null,"",null,""]
[null,null,null,null,"",null,""]
[null,null,null,null,"",null,""]
[null,null,null,null,"",null,""]
[null,null,null,null,"",null,""]
[null,null,null,null,"",null,""]
[null,null,null,null,"",null,""]
[null,null,null,null,"",null,""]
[null,null,null,null,"",null,""]
[null,null,null,null,"",null,""]
[null,null,null,null,"",null,""]
[null,null,null,null,"",null,""]
[null,null,null,null,"",null,""]
[null,null,null,null,"",null,""]
[null,null,null,null,"",null,""]
[null,null,null,null,"",null,""]
[null,null,null,null,"",null,""]
[null,null,null,null,"",null,""]
[null,null,null,null,"",null,""]
[null,null,null,null,"",null,{"$f":"IF(A9226<>\"\",IF(B9226=\"\",\"Falta IBAN\",IF(C9226=\"\",\"Falta Valor\",\"Linha totalmente preenchida\")),IF(B9226<>\"\",IF(A9226=\"\",\"Falta Nome\",\"\"),\"\"))","v":""}]
[null,null,null,null,"",null,""]
[null,null,null,null,"",null,""]
[null,null,null,null,"",null,""]
[null,null,null,null,"",null,""]
[null,null,null,null,"",null,""]
[null,null,null,null,"",null,""]
[null,null,null,null,"",null,""]
[null,null,null,null,"",null,""]
[null,null,null,null,"",null,""]
[null,null,null,null,"",null,""]
[null,null,null,null,"",null,""]
[null,null,null,null,"",null,""]
[null,null,null,null,"",null,""]
[null,null,null,null,"",null,""]
[null,null,null,null,"",null,""]
[null,null,null,null,"",null,""]
[null,null,null,null,{"$f":"IF(C9243<>\"\",C9243,\"\")","v":""},null,""]
[null,null,null,null,"",null,""]
[null,null,null,null,"",null,""]
[null,null,null,null,"",null,""]
[null,null,null,null,"",null,""]
[null,null,null,null,"",null,""]
[null,null,null,null,"",null,""]
[null,null,null,null,"",null,""]
[null,null,null,null,"",null,""]
[null,null,null,null,"",null,""]
[null,null,null,null,"",null,""]
[null,null,null,null,"",null,""]
[null,null,null,null,"",null,""]
[null,null,null,null,"",null,""]
[null,null,null,null,"",null,""]
[null,null,null,null,"",null,""]
[null,null,null,null,"",null,""]
[null,null,null,null,"",null,""]
[null,null,null,null,"",null,""]
[null,null,null,null,"",null,""]
[null,null,null,null,"",null,""]
[null,null,null,null,"",null,""]
[null,null,null,null,"",null,""]
[null,null,null,null,"",null,""]
[null,null,null,null,"",null,""]
[null,null,null,null,"",null,""]
[null,null,null,null,"",null,""]
[null,null,null,null,"",null,""]
[null,null,null,null,"",null,""]
[null,null,null,null,"",null,""]
[null,null,null,null,"",null,""]
[null,null,null,null,"",null,""]
[null,null,null,null,"",null,""]
[null,null,null,null,"",null,""]
[null,null,null,null,"",null,""]
[null,null,null,null,"",null,""]
[null,null,null,null,"",null,""]
[null,null,null,null,"",null,""]
[null,null,null,null,"",null,""]
[null,null,null,null,"",null,""]
[null,null,null,null,"",null,""]
[null,null,null,null,"",null,""]
[null,null,null,null,"",null,""]
[null,null,null,null,"",null,""]
[null,null,null,null,"",null,""]
[null,null,null,null,"",null,""]
[null,null,null,null,"",null,""]
[null,null,null,null,"",null,{"$f":"IF(A9290<>\"\",IF(B9290=\"\",\"Falta IBAN\",IF(C9290=\"\",\"Falta Valor\",\"Linha totalmente preenchida\")),IF(B9290<>\"\",IF(A9290=\"\",\"Falta Nome\",\"\"),\"\"))","v":""}]
[null,null,null,null,"",null,""]
[null,null,null,null,"",null,""]
[null,null,null,null,"",null,""]
[null,null,null,null,"",null,""]
[null,null,null,null,"",null,""]
[null,null,null,null,"",null,""]
[null,null,null,null,"",null,""]
[null,null,null,null,"",null,""]
[null,null,null,null,"",null,""]
[null,null,null,null,"",null,""]
[null,null,null,null,"",null,""]
[null,null,null,null,"",null,""]
[null,null,null,null,"",null,""]
[null,null,null,null,"",null,""]
[null,null,null,null,"",null,""]
[null,null,null,null,"",null,""]
[null,null,null,null,{"$f":"IF(C9307<>\"\",C9307,\"\")","v":""},null,""]
[null,null,null,null,"",null,""]
[null,null,null,null,"",null,""]
[null,null,null,null,"",null,""]
[null,null,null,null,"",null,""]
[null,null,null,null,"",null,""]
[null,null,null,null,"",null,""]
[null,null,null,null,"",null,""]
[null,null,null,null,"",null,""]
[null,null,null,null,"",null,""]
[null,null,null,null,"",null,""]
[null,null,null,null,"",null,""]
[null,null,null,null,"",null,""]
[null,null,null,null,"",null,""]
[null,null,null,null,"",null,""]
[null,null,null,null,"",null,""]
[null,null,null,null,"",null,""]
[null,null,null,null,"",null,""]
[null,null,null,null,"",null,""]
[null,null,null,null,"",null,""]
[null,null,null,null,"",null,""]
[null,null,null,null,"",null,""]
[null,null,null,null,"",null,""]
[null,null,null,null,"",null,""]
[null,null,null,null,"",null,""]
[null,null,null,null,"",null,""]
[null,null,null,null,"",null,""]
[null,null,null,null,"",null,""]
[null,null,null,null,"",null,""]
[null,null,null,null,"",null,""]
[null,null,null,null,"",null,""]
[null,null,null,null,"",null,""]
[null,null,null,null,"",null,""]
[null,null,null,null,"",null,""]
[null,null,null,null,"",null,""]
[null,null,null,null,"",null,""]
[null,null,null,null,"",null,""]
[null,null,null,null,"",null,""]
[null,null,null,null,"",null,""]
[null,null,null,null,"",null,""]
[null,null,null,null,"",null,""]
[null,null,null,null,"",null,""]
[null,null,null,null,"",null,""]
[null,null,null,null,"",null,""]
[null,null,null,null,"",null,""]
[null,null,null,null,"",null,""]
[null,null,null,null,"",null,""]
[null,null,null,null,"",null,{"$f":"IF(A9354<>\"\",IF(B9354=\"\",\"Falta IBAN\",IF(C9354=\"\",\"Falta Valor\",\"Linha totalmente preenchida\")),IF(B9354<>\"\",IF(A9354=\"\",\"Falta Nome\",\"\"),\"\"))","v":""}]
[null,null,null,null,"",null,""]
[null,null,null,null,"",null,""]
[null,null,null,null,"",null,""]
[null,null,null,null,"",null,""]
[null,null,null,null,"",null,""]
[null,null,null,null,"",null,""]
[null,null,null,null,"",null,""]
[null,null,null,null,"",null,""]
[null,null,null,null,"",null,""]
[null,null,null,null,"",null,""]
[null,null,null,null,"",null,""]
[null,null,null,null,"",null,""]
[null,null,null,null,"",null,""]
[null,null,null,null,"",null,""]
[null,null,null,null,"",null,""]
[null,null,null,null,"",null,""]
[null,null,null,null,{"$f":"IF(C9371<>\"\",C9371,\"\")","v":""},null,""]
[null,null,null,null,"",null,""]
[null,null,null,null,"",null,""]
[null,null,null,null,"",null,""]
[null,null,null,null,"",null,""]
[null,null,null,null,"",null,""]
[null,null,null,null,"",null,""]
[null,null,null,null,"",null,""]
[null,null,null,null,"",null,""]
[null,null,null,null,"",null,""]
[null,null,null,null,"",null,""]
[null,null,null,null,"",null,""]
[null,null,null,null,"",null,""]
[null,null,null,null,"",null,""]
[null,null,null,null,"",null,""]
[null,null,null,null,"",null,""]
[null,null,null,null,"",null,""]
[null,null,null,null,"",null,""]
[null,null,null,null,"",null,""]
[null,null,null,null,"",null,""]
[null,null,null,null,"",null,""]
[null,null,null,null,"",null,""]
[null,null,null,null,"",null,""]
[null,null,null,null,"",null,""]
[null,null,null,null,"",null,""]
[null,null,null,null,"",null,""]
[null,null,null,null,"",null,""]
[null,null,null,null,"",null,""]
[null,null,null,null,"",null,""]
[null,null,null,null,"",null,""]
[null,null,null,null,"",null,""]
[null,null,null,null,"",null,""]
[null,null,null,null,"",null,""]
[null,null,null,null,"",null,""]
[null,null,null,null,"",null,""]
[null,null,null,null,"",null,""]
[null,null,null,null,"",null,""]
[null,null,null,null,"",null,""]
[null,null,null,null,"",null,""]
[null,null,null,null,"",null,""]
[null,null,null,null,"",null,""]
[null,null,null,null,"",null,""]
[null,null,null,null,"",null,""]
[null,null,null,null,"",null,""]
[null,null,null,null,"",null,""]
[null,null,null,null,"",null,""]
[null,null,null,null,"",null,""]
[null,null,null,null,"",null,{"$f":"IF(A9418<>\"\",IF(B9418=\"\",\"Falta IBAN\",IF(C9418=\"\",\"Falta Valor\",\"Linha totalmente preenchida\")),IF(B9418<>\"\",IF(A9418=\"\",\"Falta Nome\",\"\"),\"\"))","v":""}]
[null,null,null,null,"",null,""]
[null,null,null,null,"",null,""]
[null,null,null,null,"",null,""]
[null,null,null,null,"",null,""]
[null,null,null,null,"",null,""]
[null,null,null,null,"",null,""]
[null,null,null,null,"",null,""]
[null,null,null,null,"",null,""]
[null,null,null,null,"",null,""]
[null,null,null,null,"",null,""]
[null,null,null,null,"",null,""]
[null,null,null,null,"",null,""]
[null,null,null,null,"",null,""]
[null,null,null,null,"",null,""]
[null,null,null,null,"",null,""]
[null,null,null,null,"",null,""]
[null,null,null,null,{"$f":"IF(C9435<>\"\",C9435,\"\")","v":""},null,""]
[null,null,null,null,"",null,""]
[null,null,null,null,"",null,""]
[null,null,null,null,"",null,""]
[null,null,null,null,"",null,""]
[null,null,null,null,"",null,""]
[null,null,null,null,"",null,""]
[null,null,null,null,"",null,""]
[null,null,null,null,"",null,""]
[null,null,null,null,"",null,""]
[null,null,null,null,"",null,""]
[null,null,null,null,"",null,""]
[null,null,null,null,"",null,""]
[null,null,null,null,"",null,""]
[null,null,null,null,"",null,""]
[null,null,null,null,"",null,""]
[null,null,null,null,"",null,""]
[null,null,null,null,"",null,""]
[null,null,null,null,"",null,""]
[null,null,null,null,"",null,""]
[null,null,null,null,"",null,""]
[null,null,null,null,"",null,""]
[null,null,null,null,"",null,""]
[null,null,null,null,"",null,""]
[null,null,null,null,"",null,""]
[null,null,null,null,"",null,""]
[null,null,null,null,"",null,""]
[null,null,null,null,"",null,""]
[null,null,null,null,"",null,""]
[null,null,null,null,"",null,""]
[null,null,null,null,"",null,""]
[null,null,null,null,"",null,""]
[null,null,null,null,"",null,""]
[null,null,null,null,"",null,""]
[null,null,null,null,"",null,""]
[null,null,null,null,"",null,""]
[null,null,null,null,"",null,""]
[null,null,null,null,"",null,""]
[null,null,null,null,"",null,""]
[null,null,null,null,"",null,""]
[null,null,null,null,"",null,""]
[null,null,null,null,"",null,""]
[null,null,null,null,"",null,""]
[null,null,null,null,"",null,""]
[null,null,null,null,"",null,""]
[null,null,null,null,"",null,""]
[null,null,null,null,"",null,""]
[null,null,null,null,"",null,{"$f":"IF(A9482<>\"\",IF(B9482=\"\",\"Falta IBAN\",IF(C9482=\"\",\"Falta Valor\",\"Linha totalmente preenchida\")),IF(B9482<>\"\",IF(A9482=\"\",\"Falta Nome\",\"\"),\"\"))","v":""}]
[null,null,null,null,"",null,""]
[null,null,null,null,"",null,""]
[null,null,null,null,"",null,""]
[null,null,null,null,"",null,""]
[null,null,null,null,"",null,""]
[null,null,null,null,"",null,""]
[null,null,null,null,"",null,""]
[null,null,null,null,"",null,""]
[null,null,null,null,"",null,""]
[null,null,null,null,"",null,""]
[null,null,null,null,"",null,""]
[null,null,null,null,"",null,""]
[null,null,null,null,"",null,""]
[null,null,null,null,"",null,""]
[null,null,null,null,"",null,""]
[null,null,null,null,"",null,""]
[null,null,null,null,{"$f":"IF(C9499<>\"\",C9499,\"\")","v":""},null,""]
[null,null,null,null,"",null,""]
[null,null,null,null,"",null,""]
[null,null,null,null,"",null,""]
[null,null,null,null,"",null,""]
[null,null,null,null,"",null,""]
[null,null,null,null,"",null,""]
[null,null,null,null,"",null,""]
[null,null,null,null,"",null,""]
[null,null,null,null,"",null,""]
[null,null,null,null,"",null,""]
[null,null,null,null,"",null,""]
[null,null,null,null,"",null,""]
[null,null,null,null,"",null,""]
[null,null,null,null,"",null,""]
[null,null,null,null,"",null,""]
[null,null,null,null,"",null,""]
[null,null,null,null,"",null,""]
[null,null,null,null,"",null,""]
[null,null,null,null,"",null,""]
[null,null,null,null,"",null,""]
[null,null,null,null,"",null,""]
[null,null,null,null,"",null,""]
[null,null,null,null,"",null,""]
[null,null,null,null,"",null,""]
[null,null,null,null,"",null,""]
[null,null,null,null,"",null,""]
[null,null,null,null,"",null,""]
[null,null,null,null,"",null,""]
[null,null,null,null,"",null,""]
[null,null,null,null,"",null,""]
[null,null,null,null,"",null,""]
[null,null,null,null,"",null,""]
[null,null,null,null,"",null,""]
[null,null,null,null,"",null,""]
[null,null,null,null,"",null,""]
[null,null,null,null,"",null,""]
[null,null,null,null,"",null,""]
[null,null,null,null,"",null,""]
[null,null,null,null,"",null,""]
[null,null,null,null,"",null,""]
[null,null,null,null,"",null,""]
[null,null,null,null,"",null,""]
[null,null,null,null,"",null,""]
[null,null,null,null,"",null,""]
[null,null,null,null,"",null,""]
[null,null,null,null,"",null,""]
[null,null,null,null,"",null,{"$f":"IF(A9546<>\"\",IF(B9546=\"\",\"Falta IBAN\",IF(C9546=\"\",\"Falta Valor\",\"Linha totalmente preenchida\")),IF(B9546<>\"\",IF(A9546=\"\",\"Falta Nome\",\"\"),\"\"))","v":""}]
[null,null,null,null,"",null,""]
[null,null,null,null,"",null,""]
[null,null,null,null,"",null,""]
[null,null,null,null,"",null,""]
[null,null,null,null,"",null,""]
[null,null,null,null,"",null,""]
[null,null,null,null,"",null,""]
[null,null,null,null,"",null,""]
[null,null,null,null,"",null,""]
[null,null,null,null,"",null,""]
[null,null,null,null,"",null,""]
[null,null,null,null,"",null,""]
[null,null,null,null,"",null,""]
[null,null,null,null,"",null,""]
[null,null,null,null,"",null,""]
[null,null,null,null,"",null,""]
[null,null,null,null,{"$f":"IF(C9563<>\"\",C9563,\"\")","v":""},null,""]
[null,null,null,null,"",null,""]
[null,null,null,null,"",null,""]
[null,null,null,null,"",null,""]
[null,null,null,null,"",null,""]
[null,null,null,null,"",null,""]
[null,null,null,null,"",null,""]
[null,null,null,null,"",null,""]
[null,null,null,null,"",null,""]
[null,null,null,null,"",null,""]
[null,null,null,null,"",null,""]
[null,null,null,null,"",null,""]
[null,null,null,null,"",null,""]
[null,null,null,null,"",null,""]
[null,null,null,null,"",null,""]
[null,null,null,null,"",null,""]
[null,null,null,null,"",null,""]
[null,null,null,null,"",null,""]
[null,null,null,null,"",null,""]
[null,null,null,null,"",null,""]
[null,null,null,null,"",null,""]
[null,null,null,null,"",null,""]
[null,null,null,null,"",null,""]
[null,null,null,null,"",null,""]
[null,null,null,null,"",null,""]
[null,null,null,null,"",null,""]
[null,null,null,null,"",null,""]
[null,null,null,null,"",null,""]
[null,null,null,null,"",null,""]
[null,null,null,null,"",null,""]
[null,null,null,null,"",null,""]
[null,null,null,null,"",null,""]
[null,null,null,null,"",null,""]
[null,null,null,null,"",null,""]
[null,null,null,null,"",null,""]
[null,null,null,null,"",null,""]
[null,null,null,null,"",null,""]
[null,null,null,null,"",null,""]
[null,null,null,null,"",null,""]
[null,null,null,null,"",null,""]
[null,null,null,null,"",null,""]
[null,null,null,null,"",null,""]
[null,null,null,null,"",null,""]
[null,null,null,null,"",null,""]
[null,null,null,null,"",null,""]
[null,null,null,null,"",null,""]
[null,null,null,null,"",null,""]
[null,null,null,null,"",null,{"$f":"IF(A9610<>\"\",IF(B9610=\"\",\"Falta IBAN\",IF(C9610=\"\",\"Falta Valor\",\"Linha totalmente preenchida\")),IF(B9610<>\"\",IF(A9610=\"\",\"Falta Nome\",\"\"),\"\"))","v":""}]
[null,null,null,null,"",null,""]
[null,null,null,null,"",null,""]
[null,null,null,null,"",null,""]
[null,null,null,null,"",null,""]
[null,null,null,null,"",null,""]
[null,null,null,null,"",null,""]
[null,null,null,null,"",null,""]
[null,null,null,null,"",null,""]
[null,null,null,null,"",null,""]
[null,null,null,null,"",null,""]
[null,null,null,null,"",null,""]
[null,null,null,null,"",null,""]
[null,null,null,null,"",null,""]
[null,null,null,null,"",null,""]
[null,null,null,null,"",null,""]
[null,null,null,null,"",null,""]
[null,null,null,null,{"$f":"IF(C9627<>\"\",C9627,\"\")","v":""},null,""]
[null,null,null,null,"",null,""]
[null,null,null,null,"",null,""]
[null,null,null,null,"",null,""]
[null,null,null,null,"",null,""]
[null,null,null,null,"",null,""]
[null,null,null,null,"",null,""]
[null,null,null,null,"",null,""]
[null,null,null,null,"",null,""]
[null,null,null,null,"",null,""]
[null,null,null,null,"",null,""]
[null,null,null,null,"",null,""]
[null,null,null,null,"",null,""]
[null,null,null,null,"",null,""]
[null,null,null,null,"",null,""]
[null,null,null,null,"",null,""]
[null,null,null,null,"",null,""]
[null,null,null,null,"",null,""]
[null,null,null,null,"",null,""]
[null,null,null,null,"",null,""]
[null,null,null,null,"",null,""]
[null,null,null,null,"",null,""]
[null,null,null,null,"",null,""]
[null,null,null,null,"",null,""]
[null,null,null,null,"",null,""]
[null,null,null,null,"",null,""]
[null,null,null,null,"",null,""]
[null,null,null,null,"",null,""]
[null,null,null,null,"",null,""]
[null,null,null,null,"",null,""]
[null,null,null,null,"",null,""]
[null,null,null,null,"",null,""]
[null,null,null,null,"",null,""]
[null,null,null,null,"",null,""]
[null,null,null,null,"",null,""]
[null,null,null,null,"",null,""]
[null,null,null,null,"",null,""]
[null,null,null,null,"",null,""]
[null,null,null,null,"",null,""]
[null,null,null,null,"",null,""]
[null,null,null,null,"",null,""]
[null,null,null,null,"",null,""]
[null,null,null,null,"",null,""]
[null,null,null,null,"",null,""]
[null,null,null,null,"",null,""]
[null,null,null,null,"",null,""]
[null,null,null,null,"",null,""]
[null,null,null,null,"",null,{"$f":"IF(A9674<>\"\",IF(B9674=\"\",\"Falta IBAN\",IF(C9674=\"\",\"Falta Valor\",\"Linha totalmente preenchida\")),IF(B9674<>\"\",IF(A9674=\"\",\"Falta Nome\",\"\"),\"\"))","v":""}]
[null,null,null,null,"",null,""]
[null,null,null,null,"",null,""]
[null,null,null,null,"",null,""]
[null,null,null,null,"",null,""]
[null,null,null,null,"",null,""]
[null,null,null,null,"",null,""]
[null,null,null,null,"",null,""]
[null,null,null,null,"",null,""]
[null,null,null,null,"",null,""]
[null,null,null,null,"",null,""]
[null,null,null,null,"",null,""]
[null,null,null,null,"",null,""]
[null,null,null,null,"",null,""]
[null,null,null,null,"",null,""]
[null,null,null,null,"",null,""]
[null,null,null,null,"",null,""]
[null,null,null,null,{"$f":"IF(C9691<>\"\",C9691,\"\")","v":""},null,""]
[null,null,null,null,"",null,""]
[null,null,null,null,"",null,""]
[null,null,null,null,"",null,""]
[null,null,null,null,"",null,""]
[null,null,null,null,"",null,""]
[null,null,null,null,"",null,""]
[null,null,null,null,"",null,""]
[null,null,null,null,"",null,""]
[null,null,null,null,"",null,""]
[null,null,null,null,"",null,""]
[null,null,null,null,"",null,""]
[null,null,null,null,"",null,""]
[null,null,null,null,"",null,""]
[null,null,null,null,"",null,""]
[null,null,null,null,"",null,""]
[null,null,null,null,"",null,""]
[null,null,null,null,"",null,""]
[null,null,null,null,"",null,""]
[null,null,null,null,"",null,""]
[null,null,null,null,"",null,""]
[null,null,null,null,"",null,""]
[null,null,null,null,"",null,""]
[null,null,null,null,"",null,""]
[null,null,null,null,"",null,""]
[null,null,null,null,"",null,""]
[null,null,null,null,"",null,""]
[null,null,null,null,"",null,""]
[null,null,null,null,"",null,""]
[null,null,null,null,"",null,""]
[null,null,null,null,"",null,""]
[null,null,null,null,"",null,""]
[null,null,null,null,"",null,""]
[null,null,null,null,"",null,""]
[null,null,null,null,"",null,""]
[null,null,null,null,"",null,""]
[null,null,null,null,"",null,""]
[null,null,null,null,"",null,""]
[null,null,null,null,"",null,""]
[null,null,null,null,"",null,""]
[null,null,null,null,"",null,""]
[null,null,null,null,"",null,""]
[null,null,null,null,"",null,""]
[null,null,null,null,"",null,""]
[null,null,null,null,"",null,""]
[null,null,null,null,"",null,""]
[null,null,null,null,"",null,""]
[null,null,null,null,"",null,{"$f":"IF(A9738<>\"\",IF(B9738=\"\",\"Falta IBAN\",IF(C9738=\"\",\"Falta Valor\",\"Linha totalmente preenchida\")),IF(B9738<>\"\",IF(A9738=\"\",\"Falta Nome\",\"\"),\"\"))","v":""}]
[null,null,null,null,"",null,""]
[null,null,null,null,"",null,""]
[null,null,null,null,"",null,""]
[null,null,null,null,"",null,""]
[null,null,null,null,"",null,""]
[null,null,null,null,"",null,""]
[null,null,null,null,"",null,""]
[null,null,null,null,"",null,""]
[null,null,null,null,"",null,""]
[null,null,null,null,"",null,""]
[null,null,null,null,"",null,""]
[null,null,null,null,"",null,""]
[null,null,null,null,"",null,""]
[null,null,null,null,"",null,""]
[null,null,null,null,"",null,""]
[null,null,null,null,"",null,""]
[null,null,null,null,{"$f":"IF(C9755<>\"\",C9755,\"\")","v":""},null,""]
[null,null,null,null,"",null,""]
[null,null,null,null,"",null,""]
[null,null,null,null,"",null,""]
[null,null,null,null,"",null,""]
[null,null,null,null,"",null,""]
[null,null,null,null,"",null,""]
[null,null,null,null,"",null,""]
[null,null,null,null,"",null,""]
[null,null,null,null,"",null,""]
[null,null,null,null,"",null,""]
[null,null,null,null,"",null,""]
[null,null,null,null,"",null,""]
[null,null,null,null,"",null,""]
[null,null,null,null,"",null,""]
[null,null,null,null,"",null,""]
[null,null,null,null,"",null,""]
[null,null,null,null,"",null,""]
[null,null,null,null,"",null,""]
[null,null,null,null,"",null,""]
[null,null,null,null,"",null,""]
[null,null,null,null,"",null,""]
[null,null,null,null,"",null,""]
[null,null,null,null,"",null,""]
[null,null,null,null,"",null,""]
[null,null,null,null,"",null,""]
[null,null,null,null,"",null,""]
[null,null,null,null,"",null,""]
[null,null,null,null,"",null,""]
[null,null,null,null,"",null,""]
[null,null,null,null,"",null,""]
[null,null,null,null,"",null,""]
[null,null,null,null,"",null,""]
[null,null,null,null,"",null,""]
[null,null,null,null,"",null,""]
[null,null,null,null,"",null,""]
[null,null,null,null,"",null,""]
[null,null,null,null,"",null,""]
[null,null,null,null,"",null,""]
[null,null,null,null,"",null,""]
[null,null,null,null,"",null,""]
[null,null,null,null,"",null,""]
[null,null,null,null,"",null,""]
[null,null,null,null,"",null,""]
[null,null,null,null,"",null,""]
[null,null,null,null,"",null,""]
[null,null,null,null,"",null,""]
[null,null,null,null,"",null,{"$f":"IF(A9802<>\"\",IF(B9802=\"\",\"Falta IBAN\",IF(C9802=\"\",\"Falta Valor\",\"Linha totalmente preenchida\")),IF(B9802<>\"\",IF(A9802=\"\",\"Falta Nome\",\"\"),\"\"))","v":""}]
[null,null,null,null,"",null,""]
[null,null,null,null,"",null,""]
[null,null,null,null,"",null,""]
[null,null,null,null,"",null,""]
[null,null,null,null,"",null,""]
[null,null,null,null,"",null,""]
[null,null,null,null,"",null,""]
[null,null,null,null,"",null,""]
[null,null,null,null,"",null,""]
[null,null,null,null,"",null,""]
[null,null,null,null,"",null,""]
[null,null,null,null,"",null,""]
[null,null,null,null,"",null,""]
[null,null,null,null,"",null,""]
[null,null,null,null,"",null,""]
[null,null,null,null,"",null,""]
[null,null,null,null,{"$f":"IF(C9819<>\"\",C9819,\"\")","v":""},null,""]
[null,null,null,null,"",null,""]
[null,null,null,null,"",null,""]
[null,null,null,null,"",null,""]
[null,null,null,null,"",null,""]
[null,null,null,null,"",null,""]
[null,null,null,null,"",null,""]
[null,null,null,null,"",null,""]
[null,null,null,null,"",null,""]
[null,null,null,null,"",null,""]
[null,null,null,null,"",null,""]
[null,null,null,null,"",null,""]
[null,null,null,null,"",null,""]
[null,null,null,null,"",null,""]
[null,null,null,null,"",null,""]
[null,null,null,null,"",null,""]
[null,null,null,null,"",null,""]
[null,null,null,null,"",null,""]
[null,null,null,null,"",null,""]
[null,null,null,null,"",null,""]
[null,null,null,null,"",null,""]
[null,null,null,null,"",null,""]
[null,null,null,null,"",null,""]
[null,null,null,null,"",null,""]
[null,null,null,null,"",null,""]
[null,null,null,null,"",null,""]
[null,null,null,null,"",null,""]
[null,null,null,null,"",null,""]
[null,null,null,null,"",null,""]
[null,null,null,null,"",null,""]
[null,null,null,null,"",null,""]
[null,null,null,null,"",null,""]
[null,null,null,null,"",null,""]
[null,null,null,null,"",null,""]
[null,null,null,null,"",null,""]
[null,null,null,null,"",null,""]
[null,null,null,null,"",null,""]
[null,null,null,null,"",null,""]
[null,null,null,null,"",null,""]
[null,null,null,null,"",null,""]
[null,null,null,null,"",null,""]
[null,null,null,null,"",null,""]
[null,null,null,null,"",null,""]
[null,null,null,null,"",null,""]
[null,null,null,null,"",null,""]
[null,null,null,null,"",null,""]
[null,null,null,null,"",null,""]
[null,null,null,null,"",null,{"$f":"IF(A9866<>\"\",IF(B9866=\"\",\"Falta IBAN\",IF(C9866=\"\",\"Falta Valor\",\"Linha totalmente preenchida\")),IF(B9866<>\"\",IF(A9866=\"\",\"Falta Nome\",\"\"),\"\"))","v":""}]
[null,null,null,null,"",null,""]
[null,null,null,null,"",null,""]
[null,null,null,null,"",null,""]
[null,null,null,null,"",null,""]
[null,null,null,null,"",null,""]
[null,null,null,null,"",null,""]
[null,null,null,null,"",null,""]
[null,null,null,null,"",null,""]
[null,null,null,null,"",null,""]
[null,null,null,null,"",null,""]
[null,null,null,null,"",null,""]
[null,null,null,null,"",null,""]
[null,null,null,null,"",null,""]
[null,null,null,null,"",null,""]
[null,null,null,null,"",null,""]
[null,null,null,null,"",null,""]
[null,null,null,null,{"$f":"IF(C9883<>\"\",C9883,\"\")","v":""},null,""]
[null,null,null,null,"",null,""]
[null,null,null,null,"",null,""]
[null,null,null,null,"",null,""]
[null,null,null,null,"",null,""]
[null,null,null,null,"",null,""]
[null,null,null,null,"",null,""]
[null,null,null,null,"",null,""]
[null,null,null,null,"",null,""]
[null,null,null,null,"",null,""]
[null,null,null,null,"",null,""]
[null,null,null,null,"",null,""]
[null,null,null,null,"",null,""]
[null,null,null,null,"",null,""]
[null,null,null,null,"",null,""]
[null,null,null,null,"",null,""]
[null,null,null,null,"",null,""]
[null,null,null,null,"",null,""]
[null,null,null,null,"",null,""]
[null,null,null,null,"",null,""]
[null,null,null,null,"",null,""]
[null,null,null,null,"",null,""]
[null,null,null,null,"",null,""]
[null,null,null,null,"",null,""]
[null,null,null,null,"",null,""]
[null,null,null,null,"",null,""]
[null,null,null,null,"",null,""]
[null,null,null,null,"",null,""]
[null,null,null,null,"",null,""]
[null,null,null,null,"",null,""]
[null,null,null,null,"",null,""]
[null,null,null,null,"",null,""]
[null,null,null,null,"",null,""]
[null,null,null,null,"",null,""]
[null,null,null,null,"",null,""]
[null,null,null,null,"",null,""]
[null,null,null,null,"",null,""]
[null,null,null,null,"",null,""]
[null,null,null,null,"",null,""]
[null,null,null,null,"",null,""]
[null,null,null,null,"",null,""]
[null,null,null,null,"",null,""]
[null,null,null,null,"",null,""]
[null,null,null,null,"",null,""]
[null,null,null,null,"",null,""]
[null,null,null,null,"",null,""]
[null,null,null,null,"",null,""]
[null,null,null,null,"",null,{"$f":"IF(A9930<>\"\",IF(B9930=\"\",\"Falta IBAN\",IF(C9930=\"\",\"Falta Valor\",\"Linha totalmente preenchida\")),IF(B9930<>\"\",IF(A9930=\"\",\"Falta Nome\",\"\"),\"\"))","v":""}]
[null,null,null,null,"",null,""]
[null,null,null,null,"",null,""]
[null,null,null,null,"",null,""]
[null,null,null,null,"",null,""]
[null,null,null,null,"",null,""]
[null,null,null,null,"",null,""]
[null,null,null,null,"",null,""]
[null,null,null,null,"",null,""]
[null,null,null,null,"",null,""]
[null,null,null,null,"",null,""]
[null,null,null,null,"",null,""]
[null,null,null,null,"",null,""]
[null,null,null,null,"",null,""]
[null,null,null,null,"",null,""]
[null,null,null,null,"",null,""]
[null,null,null,null,"",null,""]
[null,null,null,null,{"$f":"IF(C9947<>\"\",C9947,\"\")","v":""},null,""]
[null,null,null,null,"",null,""]
[null,null,null,null,"",null,""]
[null,null,null,null,"",null,""]
[null,null,null,null,"",null,""]
[null,null,null,null,"",null,""]
[null,null,null,null,"",null,""]
[null,null,null,null,"",null,""]
[null,null,null,null,"",null,""]
[null,null,null,null,"",null,""]
[null,null,null,null,"",null,""]
[null,null,null,null,"",null,""]
[null,null,null,null,"",null,""]
[null,null,null,null,"",null,""]
[null,null,null,null,"",null,""]
[null,null,null,null,"",null,""]
[null,null,null,null,"",null,""]
[null,null,null,null,"",null,""]
[null,null,null,null,"",null,""]
[null,null,null,null,"",null,""]
[null,null,null,null,"",null,""]
[null,null,null,null,"",null,""]
[null,null,null,null,"",null,""]
[null,null,null,null,"",null,""]
[null,null,null,null,"",null,""]
[null,null,null,null,"",null,""]
[null,null,null,null,"",null,""]
[null,null,null,null,"",null,""]
[null,null,null,null,"",null,""]
[null,null,null,null,"",null,""]
[null,null,null,null,"",null,""]
[null,null,null,null,"",null,""]
[null,null,null,null,"",null,""]
[null,null,null,null,"",null,""]
[null,null,null,null,"",null,""]
[null,null,null,null,"",null,""]
[null,null,null,null,"",null,""]
[null,null,null,null,"",null,""]
[null,null,null,null,"",null,""]
[null,null,null,null,"",null,""]
[null,null,null,null,"",null,""]
[null,null,null,null,"",null,""]
[null,null,null,null,"",null,""]
[null,null,null,null,"",null,""]
[null,null,null,null,"",null,""]
[null,null,null,null,"",null,""]
[null,null,null,null,"",null,""]
[null,null,null,null,"",null,{"$f":"IF(A9994<>\"\",IF(B9994=\"\",\"Falta IBAN\",IF(C9994=\"\",\"Falta Valor\",\"Linha totalmente preenchida\")),IF(B9994<>\"\",IF(A9994=\"\",\"Falta Nome\",\"\"),\"\"))","v":""}]
[null,null,null,null,"",null,""]
[null,null,null,null,"",null,""]
[null,null,null,null,"",null,""]
[null,null,null,null,"",null,""]
[null,null,null,null,"",null,""]
[null,null,null,null,"",null,""]
[null,null,null,null,"",null,""]
[null,null,null,null,"",null,""]
[null,null,null,null,"",null,""]
[null,null,null,null,"",null,""]
[null,null,null,null,"",null,""]
[null,null,null,null,"",null,""]
[null,null,null,null,"",null,""]
[null,null,null,null,"",null,""]
[null,null,null,null,"",null,""]

{"sheet":"Ficheiro a enviar BFA","index":1,"n_rows":2,"n_cols":4,"rows_kept":2,"cut":false,"hidden":false,"merged":[]}
["Nome ","IBAN                                                                                                          ","Valor","Descritivo"]
["Exemplo","AO06xxxxxxxxxxxxxxxxxxxxx",99999,"Salário Dezembro"]